Workbook

Sheet Scratch Sheet (hidden)
A2: SumKrach | B2: KRACH Matrix | C2: =C3 -> 0.7367758186 | F2: =C2*F3 -> 2.018800252 | G2: =F2*G3 -> 0.7382253483 | J2: =G2*J3 -> 0.1138709468
B3: 0 | C3: 0.7367758186 | D3: 0 | E3: 0 | F3: 2.740046838 | G3: 0.3656752804 | H3: 0 | I3: 0 | J3: 0.1542495758
C4: 6:4 | F4: 6:0 | G4: 2:2 | J4: 5:9
B5: Method 1 Additive | C5: 1.5 | F5: 6 | G5: 1 | J5: =5/9 -> 0.5555555556
C6: 1.994593787 | F6: =$C$6 -> 1.994593787 | G6: =$C$6 -> 1.994593787 | J6: =$C$6 -> 1.994593787
C7: 0.7692307692 | D7: =C6/C7 -> 2.592971922 | E7: =F6/F7 -> 2.160809935 | F7: 0.9230769231 | G7: 1.468 | H7: =G6/G7 -> 1.358715113 | J7: 2.335 | K7: =J6/J7 -> 0.8542157544
C8: =C5/(C6+C7) -> 0.5427262005 | F8: =F5/(F6+F7) -> 2.056434943 | G8: =G5/(G6+G7) -> 0.2888008417 | J8: =J5/(J6+J7) -> 0.1283158612
B10: Divide
C11: =C5/(C6/C7) -> 0.5784867885 | F11: =F5/(F6/F7) -> 2.776736585 | G11: =G5/(G6/G7) -> 0.7359894581 | J11: =J5/(J6/J7) -> 0.6503691283
B13: Divide Non multiplicatively | J13: =SUM(C14:J14)/4 -> 1.18539549 | K13: =J13/J6 -> 0.5943042126
C14: =C11 -> 0.5784867885 | F14: =F11 -> 2.776736585 | G14: =G11 -> 0.7359894581 | J14: =J11 -> 0.6503691283
C17: Iteration 1
C18: 1.5 | F18: 6 | G18: 1 | J18: 0.5555555556
C19: 1.266666667 | F19: 1.266666667 | G19: 1.266666667 | J19: 1.266666667
C20: 0.7692307692 | F20: 0.9230769231 | G20: 1.468 | J20: 2.335
C21: 0.7367758186 | F21: 2.740046838 | G21: 0.3656752804 | J21: 0.1542495758
C23: 0.9109311741 | F23: 3.983018899 | G23: 4.616109271 | J23: 4.727462784 | K23: =J19/J23 -> 0.2679379457
C24: 0.9109311741 | F24: 4.372469636 | G24: 1.158947368 | J24: 1.024122807
A26: #202 | B26: 4:6 | H26: 1:3 | I26: 4:4 | J26: 1:0
A27: 1.476749805 | B27: 1.097777778 | C27: 0 | D27: 0 | E27: 0 | F27: 0 | G27: 0 | H27: 0.5919032597 | I27: 1.181818182 | J27: 3.0355 | K27: 0
B28: =4/6 -> 0.6666666667 | H28: =1/3 -> 0.3333333333 | I28: 1 | J28: 1
B29: 0.7692307692 | H29: 0.7692307692 | I29: 0.7692307692 | J29: 0.7692307692
B30: 1.923076923 | H30: 1.365930599 | I30: 0.9090909091 | J30: 2.335
B31: =B28/(B29/B30) -> 1.666666667 | H31: =H28/(H29/H30) -> 0.5919032597 | I31: =I28/(I29/I30) -> 1.181818182 | J31: =J28/(J29/J30) -> 3.0355
J32: =SUM(B31:J31)/4 -> 1.618972027 | K32: =J32/J29 -> 2.104663635
B33: A | C33: B | D33: C | E33: D | G33: GF | H33: GA | I33: W | J33: L | K33: T | L33: GF/GA
A34: A | C34: 4 | D34: 2 | E34: 0 | F34: =SUM(B34:E34) -> 6 | G34: =F34/3 -> 2 | H34: =B39 -> 5 | I34: 1 | J34: 2 | K34: 0 | L34: =G34/H34 -> 0.4 | M34: =A222 -> 4.565222077
A35: B | B35: 3 | D35: 1 | E35: 4 | F35: =SUM(B35:E35) -> 8 | G35: =F35/3 -> 2.666666667 | H35: =C39 -> 2.333333333 | I35: 1 | J35: 1 | K35: 1 | L35: =G35/H35 -> 1.142857143 | M35: =A223 -> 8.031986628
A36: C | B36: 3 | C36: 1 | E36: 6 | F36: =SUM(B36:E36) -> 10 | G36: =F36/3 -> 3.333333333 | H36: =D39 -> 2 | I36: 2 | J36: 0 | K36: 1 | L36: =G36/H36 -> 1.666666667 | M36: =A224 -> 8.760268658
A37: D | B37: 9 | C37: 2 | D37: 3 | F37: =SUM(B37:E37) -> 14 | G37: =F37/3 -> 4.666666667 | H37: =E39 -> 3.333333333 | I37: 1 | J37: 2 | L37: =G37/H37 -> 1.4 | M37: =A225 -> 8.507025162
B38: =SUM(B34:B37) -> 15 | C38: =SUM(C34:C37) -> 7 | D38: =SUM(D34:D37) -> 6 | E38: =SUM(E34:E37) -> 10 | F38: =SUM(F34:F37) -> 38
B39: =B38/3 -> 5 | C39: =C38/3 -> 2.333333333 | D39: =D38/3 -> 2 | E39: =E38/3 -> 3.333333333
A41: GF/GA | B41: =L34 -> 0.4 | C41: =L35 -> 1.142857143 | D41: =L36 -> 1.666666667 | E41: =L37 -> 1.4 | F41: Iteration | G41: 1 | I41: What to do about shutouts?
A42: =L34 -> 0.4 | C42: =$A42/C$41 -> 0.35 | D42: =$A42/D$41 -> 0.24 | E42: =$A42/E$41 -> 0.2857142857 | I42: See cell B51
A43: =L35 -> 1.142857143 | B43: =$A43/B$41 -> 2.857142857 | D43: =$A43/D$41 -> 0.6857142857 | E43: =$A43/E$41 -> 0.8163265306 | I43: Should it be shutout score divided by 2 with a minimum of 1?
A44: =L36 -> 1.666666667 | B44: =$A44/B$41 -> 4.166666667 | C44: =$A44/C$41 -> 1.458333333 | E44: =$A44/E$41 -> 1.19047619 | I44: Should it be equal to shutout score -1? Subject to a cap of 7or 6?
A45: =L37 -> 1.4 | B45: =$A45/B$41 -> 3.5 | C45: =$A45/C$41 -> 1.225 | D45: =$A45/D$41 -> 0.84 | I45: If you play with the value in B37, the rankings change dramatically
B47: Game Differential
C48: =$C$34/$B$35 -> 1.333333333 | D48: =$D$34/$B$36 -> 0.6666666667 | E48: =$E$34/$B$37 -> 0
B49: =$B$35/$C$34 -> 0.75 | D49: =$D$35/$C$36 -> 1 | E49: =$E$35/$C$37 -> 2
B50: =$B$36/$D$34 -> 1.5 | C50: =$C$36/$D$35 -> 1 | E50: =$E$36/$D$37 -> 2
B51: =MIN(5,IF($E$34=0,$B$37-1,$B$37/$E$34)) -> 5 | C51: =$C$37/$E$35 -> 0.5 | D51: =$D$37/$E$36 -> 0.5
C54: =C48/C42 -> 3.80952381 | D54: =D48/D42 -> 2.777777778 | E54: =E48/E42 -> 0 | F54: =SUM(B54:E54) -> 6.587301587 | G54: =(F54/3) -> 2.195767196
B55: =B49/B43 -> 0.2625 | D55: =D49/D43 -> 1.458333333 | E55: =E49/E43 -> 2.45 | F55: =SUM(B55:E55) -> 4.170833333 | G55: =(F55/3) -> 1.390277778
B56: =B50/B44 -> 0.36 | C56: =C50/C44 -> 0.6857142857 | E56: =E50/E44 -> 1.68 | F56: =SUM(B56:E56) -> 2.725714286 | G56: =(F56/3) -> 0.9085714286
B57: =B51/B45 -> 1.428571429 | C57: =C51/C45 -> 0.4081632653 | D57: =D51/D45 -> 0.5952380952 | F57: =SUM(B57:E57) -> 2.431972789 | G57: =(F57/3) -> 0.8106575964
A59: GF/GA | B59: =G54*A42 -> 0.8783068783 | C59: =G55*A43 -> 1.588888889 | D59: =G56*A44 -> 1.514285714 | E59: =G57*A45 -> 1.134920635 | F59: Iteration | G59: =G41+1 -> 2
A60: =G54*A42 -> 0.8783068783 | C60: =$A60/C59 -> 0.5527805528 | D60: =$A60/D59 -> 0.5800139762 | E60: =$A60/E59 -> 0.7738927739
A61: =G55*A43 -> 1.588888889 | B61: =$A61/B59 -> 1.809036145 | D61: =$A61/D59 -> 1.049266247 | E61: =$A61/E59 -> 1.4
A62: =G56*A44 -> 1.514285714 | B62: =$A62/B59 -> 1.724096386 | C62: =$A62/C59 -> 0.953046953 | E62: =$A62/E59 -> 1.334265734
A63: =G57*A45 -> 1.134920635 | B63: =$A63/B59 -> 1.292168675 | C63: =$A63/C59 -> 0.7142857143 | D63: =$A63/D59 -> 0.749475891
B65: Game Differential
C66: =$C$34/$B$35 -> 1.333333333 | D66: =$D$34/$B$36 -> 0.6666666667 | E66: =$E$34/$B$37 -> 0
B67: =$B$35/$C$34 -> 0.75 | D67: =$D$35/$C$36 -> 1 | E67: =$E$35/$C$37 -> 2
B68: =$B$36/$D$34 -> 1.5 | C68: =$C$36/$D$35 -> 1 | E68: =$E$36/$D$37 -> 2
B69: =B51 -> 5 | C69: =$C$37/$E$35 -> 0.5 | D69: =$D$37/$E$36 -> 0.5
C72: =C66/C60 -> 2.412048193 | D72: =D66/D60 -> 1.14939759 | E72: =E66/E60 -> 0 | F72: =SUM(B72:E72) -> 3.561445783 | G72: =(F72/3) -> 1.187148594 | H72: =ABS(G72-G54) -> 1.008618601 | I72: =SUM(H72:H75) -> 2.632544666
B73: =B67/B61 -> 0.4145854146 | D73: =D67/D61 -> 0.953046953 | E73: =E67/E61 -> 1.428571429 | F73: =SUM(B73:E73) -> 2.796203796 | G73: =(F73/3) -> 0.9320679321 | H73: =ABS(G73-G55) -> 0.4582098457
B74: =B68/B62 -> 0.8700209644 | C74: =C68/C62 -> 1.049266247 | E74: =E68/E62 -> 1.498951782 | F74: =SUM(B74:E74) -> 3.418238994 | G74: =(F74/3) -> 1.139412998 | H74: =ABS(G74-G56) -> 0.2308415693
B75: =B69/B63 -> 3.869463869 | C75: =C69/C63 -> 0.7 | D75: =D69/D63 -> 0.6671328671 | F75: =SUM(B75:E75) -> 5.236596737 | G75: =(F75/3) -> 1.745532246 | H75: =ABS(G75-G57) -> 0.9348746492
A77: GF/GA | B77: =G72*A60 -> 1.042680776 | C77: =G73*A61 -> 1.480952381 | D77: =G74*A62 -> 1.725396825 | E77: =G75*A63 -> 1.981040564 | F77: Iteration | G77: =G59+1 -> 3
A78: =G72*A60 -> 1.042680776 | C78: =$A78/C77 -> 0.7040609742 | D78: =$A78/D77 -> 0.6043136052 | E78: =$A78/E77 -> 0.5263298464
A79: =G73*A61 -> 1.480952381 | B79: =$A79/B77 -> 1.420331529 | D79: =$A79/D77 -> 0.858325667 | E79: =$A79/E77 -> 0.7475628756
A80: =G74*A62 -> 1.725396825 | B80: =$A80/B77 -> 1.654769959 | C80: =$A80/C77 -> 1.16505895 | E80: =$A80/E77 -> 0.8709548186
A81: =G75*A63 -> 1.981040564 | B81: =$A81/B77 -> 1.899949256 | C81: =$A81/C77 -> 1.337680124 | D81: =$A81/D77 -> 1.148165185
B83: Game Differential
C84: =$C$34/$B$35 -> 1.333333333 | D84: =$D$34/$B$36 -> 0.6666666667 | E84: =$E$34/$B$37 -> 0
B85: =$B$35/$C$34 -> 0.75 | D85: =$D$35/$C$36 -> 1 | E85: =$E$35/$C$37 -> 2
B86: =$B$36/$D$34 -> 1.5 | C86: =$C$36/$D$35 -> 1 | E86: =$E$36/$D$37 -> 2
B87: =B69 -> 5 | C87: =$C$37/$E$35 -> 0.5 | D87: =$D$37/$E$36 -> 0.5
C90: =C84/C78 -> 1.893775372 | D90: =D84/D78 -> 1.103179973 | E90: =E84/E78 -> 0 | F90: =SUM(B90:E90) -> 2.996955345 | G90: =(F90/3) -> 0.998985115 | H90: =ABS(G90-G72) -> 0.1881634794 | I90: =SUM(H90:H93) -> 1.525109226
B91: =B85/B79 -> 0.5280457306 | D91: =D85/D79 -> 1.16505895 | E91: =E85/E79 -> 2.675360248 | F91: =SUM(B91:E91) -> 4.368464928 | G91: =(F91/3) -> 1.456154976 | H91: =ABS(G91-G73) -> 0.5240870439
B92: =B86/B80 -> 0.9064704079 | C92: =C86/C80 -> 0.858325667 | E92: =E86/E80 -> 2.296330369 | F92: =SUM(B92:E92) -> 4.061126444 | G92: =(F92/3) -> 1.353708815 | H92: =ABS(G92-G74) -> 0.2142958167
B93: =B87/B81 -> 2.631649232 | C93: =C87/C81 -> 0.3737814378 | D93: =D87/D81 -> 0.4354774093 | F93: =SUM(B93:E93) -> 3.440908079 | G93: =(F93/3) -> 1.14696936 | H93: =ABS(G93-G75) -> 0.5985628858
A95: GF/GA | B95: =G90*A78 -> 1.041622575 | C95: =G91*A79 -> 2.156496179 | D95: =G92*A80 -> 2.335684891 | E95: =G93*A81 -> 2.272192828 | F95: Iteration | G95: =G77+1 -> 4
A96: =G90*A78 -> 1.041622575 | C96: =$A96/C95 -> 0.4830161932 | D96: =$A96/D95 -> 0.4459602316 | E96: =$A96/E95 -> 0.4584217335
A97: =G91*A79 -> 2.156496179 | B97: =$A97/B95 -> 2.070323964 | D97: =$A97/D95 -> 0.9232821545 | E97: =$A97/E95 -> 0.9490815006
A98: =G92*A80 -> 2.335684891 | B98: =$A98/B95 -> 2.24235241 | C98: =$A98/C95 -> 1.083092525 | E98: =$A98/E95 -> 1.027943079
A99: =G93*A81 -> 2.272192828 | B99: =$A99/B95 -> 2.181397449 | C99: =$A99/C95 -> 1.053650292 | D99: =$A99/D95 -> 0.9728165115
B101: Game Differential
C102: =$C$34/$B$35 -> 1.333333333 | D102: =$D$34/$B$36 -> 0.6666666667 | E102: =$E$34/$B$37 -> 0
B103: =$B$35/$C$34 -> 0.75 | D103: =$D$35/$C$36 -> 1 | E103: =$E$35/$C$37 -> 2
B104: =$B$36/$D$34 -> 1.5 | C104: =$C$36/$D$35 -> 1 | E104: =$E$36/$D$37 -> 2
B105: =B87 -> 5 | C105: =$C$37/$E$35 -> 0.5 | D105: =$D$37/$E$36 -> 0.5
C108: =C102/C96 -> 2.760431952 | D108: =D102/D96 -> 1.494901607 | E108: =E102/E96 -> 0 | F108: =SUM(B108:E108) -> 4.255333559 | G108: =(F108/3) -> 1.41844452 | H108: =ABS(G108-G90) -> 0.4194594047 | I108: =SUM(H108:H111) -> 0.9192486432
B109: =B103/B97 -> 0.3622621449 | D109: =D103/D97 -> 1.083092525 | E109: =E103/E97 -> 2.107300583 | F109: =SUM(B109:E109) -> 3.552655253 | G109: =(F109/3) -> 1.184218418 | H109: =ABS(G109-G91) -> 0.2719365582
B110: =B104/B98 -> 0.6689403473 | C110: =C104/C98 -> 0.9232821545 | E110: =E104/E98 -> 1.945633023 | F110: =SUM(B110:E110) -> 3.537855525 | G110: =(F110/3) -> 1.179285175 | H110: =ABS(G110-G92) -> 0.1744236397
B111: =B105/B99 -> 2.292108668 | C111: =C105/C99 -> 0.4745407503 | D111: =D105/D99 -> 0.5139715395 | F111: =SUM(B111:E111) -> 3.280620957 | G111: =(F111/3) -> 1.093540319 | H111: =ABS(G111-G93) -> 0.05342904064
A113: GF/GA | B113: =G108*A96 -> 1.477483833 | C113: =G109*A97 -> 2.553762493 | D113: =G110*A98 -> 2.754438566 | E113: =G111*A99 -> 2.48473447 | F113: Iteration | G113: =G95+1 -> 5
A114: =G108*A96 -> 1.477483833 | C114: =$A114/C113 -> 0.5785517789 | D114: =$A114/D113 -> 0.5364010842 | E114: =$A114/E113 -> 0.5946244361
A115: =G109*A97 -> 2.553762493 | B115: =$A115/B113 -> 1.728453764 | D115: =$A115/D113 -> 0.9271444731 | E115: =$A115/E113 -> 1.027780845
A116: =G110*A98 -> 2.754438566 | B116: =$A116/B113 -> 1.864276619 | C116: =$A116/C113 -> 1.078580555 | E116: =$A116/E113 -> 1.108544434
A117: =G111*A99 -> 2.48473447 | B117: =$A117/B113 -> 1.681733779 | C117: =$A117/C113 -> 0.9729700695 | D117: =$A117/D113 -> 0.9020838225
B119: Game Differential
C120: =$C$34/$B$35 -> 1.333333333 | D120: =$D$34/$B$36 -> 0.6666666667 | E120: =$E$34/$B$37 -> 0
B121: =$B$35/$C$34 -> 0.75 | D121: =$D$35/$C$36 -> 1 | E121: =$E$35/$C$37 -> 2
B122: =$B$36/$D$34 -> 1.5 | C122: =$C$36/$D$35 -> 1 | E122: =$E$36/$D$37 -> 2
B123: =B105 -> 5 | C123: =$C$37/$E$35 -> 0.5 | D123: =$D$37/$E$36 -> 0.5
C126: =C120/C114 -> 2.304605019 | D126: =D120/D114 -> 1.24285108 | E126: =E120/E114 -> 0 | F126: =SUM(B126:E126) -> 3.547456098 | G126: =(F126/3) -> 1.182485366 | H126: =ABS(G126-G108) -> 0.2359591535 | I126: =SUM(H126:H129) -> 0.521567943
B127: =B121/B115 -> 0.4339138342 | D127: =D121/D115 -> 1.078580555 | E127: =E121/E115 -> 1.945940139 | F127: =SUM(B127:E127) -> 3.458434528 | G127: =(F127/3) -> 1.152811509 | H127: =ABS(G127-G109) -> 0.03140690851
B128: =B122/B116 -> 0.8046016264 | C128: =C122/C116 -> 0.9271444731 | E128: =E122/E116 -> 1.804167645 | F128: =SUM(B128:E128) -> 3.535913744 | G128: =(F128/3) -> 1.178637915 | H128: =ABS(G128-G110) -> 0.0006472601287
B129: =B123/B117 -> 2.973122181 | C129: =C123/C117 -> 0.5138904224 | D129: =D123/D117 -> 0.5542722168 | F129: =SUM(B129:E129) -> 4.04128482 | G129: =(F129/3) -> 1.34709494 | H129: =ABS(G129-G111) -> 0.2535546208
A131: GF/GA | B131: =G126*A114 -> 1.747103011 | C131: =G127*A115 -> 2.944006793 | D131: =G128*A116 -> 3.246485727 | E131: =G129*A117 -> 3.347173231 | F131: Iteration | G131: =G113+1 -> 6
A132: =G126*A114 -> 1.747103011 | C132: =$A132/C131 -> 0.5934439469 | D132: =$A132/D131 -> 0.538152069 | E132: =$A132/E131 -> 0.521963726
A133: =G127*A115 -> 2.944006793 | B133: =$A133/B131 -> 1.685079113 | D133: =$A133/D131 -> 0.9068288114 | E133: =$A133/E131 -> 0.8795501726
A134: =G128*A116 -> 3.246485727 | B134: =$A134/B131 -> 1.858210825 | C134: =$A134/C131 -> 1.102743966 | E134: =$A134/E131 -> 0.9699186456
A135: =G129*A117 -> 3.347173231 | B135: =$A135/B131 -> 1.915841945 | C135: =$A135/C131 -> 1.136944806 | D135: =$A135/D131 -> 1.031014307
B137: Game Differential
C138: =$C$34/$B$35 -> 1.333333333 | D138: =$D$34/$B$36 -> 0.6666666667 | E138: =$E$34/$B$37 -> 0
B139: =$B$35/$C$34 -> 0.75 | D139: =$D$35/$C$36 -> 1 | E139: =$E$35/$C$37 -> 2
B140: =$B$36/$D$34 -> 1.5 | C140: =$C$36/$D$35 -> 1 | E140: =$E$36/$D$37 -> 2
B141: =B123 -> 5 | C141: =$C$37/$E$35 -> 0.5 | D141: =$D$37/$E$36 -> 0.5
C144: =C138/C132 -> 2.246772151 | D144: =D138/D132 -> 1.238807216 | E144: =E138/E132 -> 0 | F144: =SUM(B144:E144) -> 3.485579368 | G144: =(F144/3) -> 1.161859789 | H144: =ABS(G144-G126) -> 0.02062557693 | I144: =SUM(H144:H147) -> 0.3906874351
B145: =B139/B133 -> 0.4450829602 | D145: =D139/D133 -> 1.102743966 | E145: =E139/E133 -> 2.273889611 | F145: =SUM(B145:E145) -> 3.821716537 | G145: =(F145/3) -> 1.273905512 | H145: =ABS(G145-G127) -> 0.1210940032
B146: =B140/B134 -> 0.8072281036 | C146: =C140/C134 -> 0.9068288114 | E146: =E140/E134 -> 2.062028613 | F146: =SUM(B146:E146) -> 3.776085528 | G146: =(F146/3) -> 1.258695176 | H146: =ABS(G146-G128) -> 0.08005726133
B147: =B141/B135 -> 2.60981863 | C147: =C141/C135 -> 0.4397750863 | D147: =D141/D135 -> 0.4849593228 | F147: =SUM(B147:E147) -> 3.534553039 | G147: =(F147/3) -> 1.178184346 | H147: =ABS(G147-G129) -> 0.1689105936
A149: GF/GA | B149: =G144*A132 -> 2.029888736 | C149: =G145*A133 -> 3.750386483 | D149: =G146*A134 -> 4.086335924 | E149: =G147*A135 -> 3.943587106 | F149: Iteration | G149: =G131+1 -> 7
A150: =G144*A132 -> 2.029888736 | C150: =$A150/C149 -> 0.5412478809 | D150: =$A150/D149 -> 0.4967503343 | E150: =$A150/E149 -> 0.5147315584
A151: =G145*A133 -> 3.750386483 | B151: =$A151/B149 -> 1.847582291 | D151: =$A151/D149 -> 0.9177871209 | E151: =$A151/E149 -> 0.9510089121
A152: =G146*A134 -> 4.086335924 | B152: =$A152/B149 -> 2.013083698 | C152: =$A152/C149 -> 1.089577286 | E152: =$A152/E149 -> 1.036197709
A153: =G147*A135 -> 3.943587106 | B153: =$A153/B149 -> 1.942760229 | C153: =$A153/C149 -> 1.051514857 | D153: =$A153/D149 -> 0.965066793
B155: Game Differential
C156: =$C$34/$B$35 -> 1.333333333 | D156: =$D$34/$B$36 -> 0.6666666667 | E156: =$E$34/$B$37 -> 0
B157: =$B$35/$C$34 -> 0.75 | D157: =$D$35/$C$36 -> 1 | E157: =$E$35/$C$37 -> 2
B158: =$B$36/$D$34 -> 1.5 | C158: =$C$36/$D$35 -> 1 | E158: =$E$36/$D$37 -> 2
B159: =B141 -> 5 | C159: =$C$37/$E$35 -> 0.5 | D159: =$D$37/$E$36 -> 0.5
C162: =C156/C150 -> 2.463443055 | D162: =D156/D150 -> 1.342055799 | E162: =E156/E150 -> 0 | F162: =SUM(B162:E162) -> 3.805498854 | G162: =(F162/3) -> 1.268499618 | H162: =ABS(G162-G144) -> 0.1066398287 | I162: =SUM(H162:H165) -> 0.2529468324
B163: =B157/B151 -> 0.4059359107 | D163: =D157/D151 -> 1.089577286 | E163: =E157/E151 -> 2.103029714 | F163: =SUM(B163:E163) -> 3.59854291 | G163: =(F163/3) -> 1.199514303 | H163: =ABS(G163-G145) -> 0.07439120913
B164: =B158/B152 -> 0.7451255014 | C164: =C158/C152 -> 0.9177871209 | E164: =E158/E152 -> 1.930133586 | F164: =SUM(B164:E164) -> 3.593046208 | G164: =(F164/3) -> 1.197682069 | H164: =ABS(G164-G146) -> 0.06101310671
B165: =B159/B153 -> 2.573657792 | C165: =C159/C153 -> 0.475504456 | D165: =D159/D153 -> 0.5180988545 | F165: =SUM(B165:E165) -> 3.567261102 | G165: =(F165/3) -> 1.189087034 | H165: =ABS(G165-G147) -> 0.01090268785
A167: GF/GA | B167: =G162*A150 -> 2.574913087 | C167: =G163*A151 -> 4.498642229 | D167: =G164*A152 -> 4.894131266 | E167: =G165*A153 -> 4.689268295 | F167: Iteration | G167: =G149+1 -> 8
A168: =G162*A150 -> 2.574913087 | C168: =$A168/C167 -> 0.5723756092 | D168: =$A168/D167 -> 0.5261226041 | E168: =$A168/E167 -> 0.5491076485
A169: =G163*A151 -> 4.498642229 | B169: =$A169/B167 -> 1.747104496 | D169: =$A169/D167 -> 0.9191911668 | E169: =$A169/E167 -> 0.9593484412
A170: =G164*A152 -> 4.894131266 | B170: =$A170/B167 -> 1.900697655 | C170: =$A170/C167 -> 1.087912978 | E170: =$A170/E167 -> 1.04368762
A171: =G165*A153 -> 4.689268295 | B171: =$A171/B167 -> 1.821136534 | C171: =$A171/C167 -> 1.042374133 | D171: =$A171/D167 -> 0.958141096
B173: Game Differential
C174: =$C$34/$B$35 -> 1.333333333 | D174: =$D$34/$B$36 -> 0.6666666667 | E174: =$E$34/$B$37 -> 0
B175: =$B$35/$C$34 -> 0.75 | D175: =$D$35/$C$36 -> 1 | E175: =$E$35/$C$37 -> 2
B176: =$B$36/$D$34 -> 1.5 | C176: =$C$36/$D$35 -> 1 | E176: =$E$36/$D$37 -> 2
B177: =B159 -> 5 | C177: =$C$37/$E$35 -> 0.5 | D177: =$D$37/$E$36 -> 0.5
C180: =C174/C168 -> 2.329472661 | D180: =D174/D168 -> 1.26713177 | E180: =E174/E168 -> 0 | F180: =SUM(B180:E180) -> 3.596604431 | G180: =(F180/3) -> 1.198868144 | H180: =ABS(G180-G162) -> 0.06963147435 | I180: =SUM(H180:H183) -> 0.1412335641
B181: =B175/B169 -> 0.4292817069 | D181: =D175/D169 -> 1.087912978 | E181: =E175/E169 -> 2.084748267 | F181: =SUM(B181:E181) -> 3.601942952 | G181: =(F181/3) -> 1.200647651 | H181: =ABS(G181-G163) -> 0.001133347349
B182: =B176/B170 -> 0.7891839062 | C182: =C176/C170 -> 0.9191911668 | E182: =E176/E170 -> 1.916282192 | F182: =SUM(B182:E182) -> 3.624657265 | G182: =(F182/3) -> 1.208219088 | H182: =ABS(G182-G164) -> 0.0105370189
B183: =B177/B171 -> 2.745538242 | C183: =C177/C171 -> 0.4796742206 | D183: =D177/D171 -> 0.52184381 | F183: =SUM(B183:E183) -> 3.747056273 | G183: =(F183/3) -> 1.249018758 | H183: =ABS(G183-G165) -> 0.05993172348
A185: GF/GA | B185: =G180*A168 -> 3.086981272 | C185: =G181*A169 -> 5.401284224 | D185: =G182*A170 -> 5.913182817 | E185: =G183*A171 -> 5.85698406 | F185: Iteration | G185: =G167+1 -> 9
A186: =G180*A168 -> 3.086981272 | C186: =$A186/C185 -> 0.5715272784 | D186: =$A186/D185 -> 0.5220507074 | E186: =$A186/E185 -> 0.5270598725
A187: =G181*A169 -> 5.401284224 | B187: =$A187/B185 -> 1.749697762 | D187: =$A187/D185 -> 0.9134309544 | E187: =$A187/E185 -> 0.9221954795
A188: =G182*A170 -> 5.913182817 | B188: =$A188/B185 -> 1.915522737 | C188: =$A188/C185 -> 1.094773497 | E188: =$A188/E185 -> 1.00959517
A189: =G183*A171 -> 5.85698406 | B189: =$A189/B185 -> 1.897317652 | C189: =$A189/C185 -> 1.084368794 | D189: =$A189/D185 -> 0.9904960225
B191: Game Differential
C192: =$C$34/$B$35 -> 1.333333333 | D192: =$D$34/$B$36 -> 0.6666666667 | E192: =$E$34/$B$37 -> 0
B193: =$B$35/$C$34 -> 0.75 | D193: =$D$35/$C$36 -> 1 | E193: =$E$35/$C$37 -> 2
B194: =$B$36/$D$34 -> 1.5 | C194: =$C$36/$D$35 -> 1 | E194: =$E$36/$D$37 -> 2
B195: =B177 -> 5 | C195: =$C$37/$E$35 -> 0.5 | D195: =$D$37/$E$36 -> 0.5
C198: =C192/C186 -> 2.33293035 | D198: =D192/D186 -> 1.277015158 | E198: =E192/E186 -> 0 | F198: =SUM(B198:E198) -> 3.609945508 | G198: =(F198/3) -> 1.203315169 | H198: =ABS(G198-G180) -> 0.004447025679 | I198: =SUM(H198:H201) -> 0.1007526833
B199: =B193/B187 -> 0.4286454588 | D199: =D193/D187 -> 1.094773497 | E199: =E193/E187 -> 2.168737588 | F199: =SUM(B199:E199) -> 3.692156544 | G199: =(F199/3) -> 1.230718848 | H199: =ABS(G199-G181) -> 0.03007119718
B200: =B194/B188 -> 0.783076061 | C200: =C194/C188 -> 0.9134309544 | E200: =E194/E188 -> 1.980992045 | F200: =SUM(B200:E200) -> 3.677499061 | G200: =(F200/3) -> 1.22583302 | H200: =ABS(G200-G182) -> 0.01761393186
B201: =B195/B189 -> 2.635299363 | C201: =C195/C189 -> 0.4610977397 | D201: =D195/D189 -> 0.5047975849 | F201: =SUM(B201:E201) -> 3.601194687 | G201: =(F201/3) -> 1.200398229 | H201: =ABS(G201-G183) -> 0.04862052857
A203: GF/GA | B203: =G198*A186 -> 3.714611392 | C203: =G199*A187 -> 6.647462297 | D203: =G200*A188 -> 7.248574751 | E203: =G201*A189 -> 7.030713294 | F203: Iteration | G203: =G185+1 -> 10
A204: =G198*A186 -> 3.714611392 | C204: =$A204/C203 -> 0.5588014232 | D204: =$A204/D203 -> 0.5124609347 | E204: =$A204/E203 -> 0.5283406159
A205: =G199*A187 -> 6.647462297 | B205: =$A205/B203 -> 1.789544476 | D205: =$A205/D203 -> 0.9170716348 | E205: =$A205/E203 -> 0.9454890307
A206: =G200*A188 -> 7.248574751 | B206: =$A206/B203 -> 1.951368255 | C206: =$A206/C203 -> 1.090427358 | E206: =$A206/E203 -> 1.030987106
A207: =G201*A189 -> 7.030713294 | B207: =$A207/B203 -> 1.89271839 | C207: =$A207/C203 -> 1.05765373 | D207: =$A207/D203 -> 0.9699442353
B209: Game Differential
C210: =$C$34/$B$35 -> 1.333333333 | D210: =$D$34/$B$36 -> 0.6666666667 | E210: =$E$34/$B$37 -> 0
B211: =$B$35/$C$34 -> 0.75 | D211: =$D$35/$C$36 -> 1 | E211: =$E$35/$C$37 -> 2
B212: =$B$36/$D$34 -> 1.5 | C212: =$C$36/$D$35 -> 1 | E212: =$E$36/$D$37 -> 2
B213: =B195 -> 5 | C213: =$C$37/$E$35 -> 0.5 | D213: =$D$37/$E$36 -> 0.5
C216: =C210/C204 -> 2.386059301 | D216: =D210/D204 -> 1.30091217 | E216: =E210/E204 -> 0 | F216: =SUM(B216:E216) -> 3.686971471 | G216: =(F216/3) -> 1.22899049 | H216: =ABS(G216-G198) -> 0.0256753212 | I216: =SUM(H216:H219) -> 0.07498021188
B217: =B211/B205 -> 0.4191010674 | D217: =D211/D205 -> 1.090427358 | E217: =E211/E205 -> 2.11530746 | F217: =SUM(B217:E217) -> 3.624835886 | G217: =(F217/3) -> 1.208278629 | H217: =ABS(G217-G199) -> 0.02244021937
B218: =B212/B206 -> 0.768691402 | C218: =C212/C206 -> 0.9170716348 | E218: =E212/E206 -> 1.939888471 | F218: =SUM(B218:E218) -> 3.625651507 | G218: =(F218/3) -> 1.208550502 | H218: =ABS(G218-G200) -> 0.0172825177
B219: =B213/B207 -> 2.64170308 | C219: =C213/C207 -> 0.4727445153 | D219: =D213/D207 -> 0.5154935529 | F219: =SUM(B219:E219) -> 3.629941148 | G219: =(F219/3) -> 1.209980383 | H219: =ABS(G219-G201) -> 0.009582153605
A221: GF/GA | B221: =G216*A204 -> 4.565222077 | C221: =G217*A205 -> 8.031986628 | D221: =G218*A206 -> 8.760268658 | E221: =G219*A207 -> 8.507025162 | F221: Iteration | G221: =G203+1 -> 11
A222: =G216*A204 -> 4.565222077 | C222: =$A222/C221 -> 0.5683801889 | D222: =$A222/D221 -> 0.5211280904 | E222: =$A222/E221 -> 0.5366414217
A223: =G217*A205 -> 8.031986628 | B223: =$A223/B221 -> 1.759385741 | D223: =$A223/D221 -> 0.9168653316 | E223: =$A223/E221 -> 0.9441592654
A224: =G218*A206 -> 8.760268658 | B224: =$A224/B221 -> 1.918914022 | C224: =$A224/C221 -> 1.090672714 | E224: =$A224/E221 -> 1.029768749
A225: =G219*A207 -> 8.507025162 | B225: =$A225/B221 -> 1.863441694 | C225: =$A225/C221 -> 1.059143342 | D225: =$A225/D221 -> 0.9710918117
B227: Game Differential
C228: =$C$34/$B$35 -> 1.333333333 | D228: =$D$34/$B$36 -> 0.6666666667 | E228: =$E$34/$B$37 -> 0
B229: =$B$35/$C$34 -> 0.75 | D229: =$D$35/$C$36 -> 1 | E229: =$E$35/$C$37 -> 2
B230: =$B$36/$D$34 -> 1.5 | C230: =$C$36/$D$35 -> 1 | E230: =$E$36/$D$37 -> 2
B231: =B213 -> 5 | C231: =$C$37/$E$35 -> 0.5 | D231: =$D$37/$E$36 -> 0.5
C234: =C228/C222 -> 2.345847655 | D234: =D228/D222 -> 1.279276015 | E234: =E228/E222 -> 0 | F234: =SUM(B234:E234) -> 3.62512367 | G234: =(F234/3) -> 1.208374557 | H234: =ABS(G234-G216) -> 0.02061593387 | I234: =SUM(H234:H237) -> 0.04252533576
B235: =B229/B223 -> 0.4262851417 | D235: =D229/D223 -> 1.090672714 | E235: =E229/E223 -> 2.118286684 | F235: =SUM(B235:E235) -> 3.635244541 | G235: =(F235/3) -> 1.21174818 | H235: =ABS(G235-G217) -> 0.003469551708
B236: =B230/B224 -> 0.7816921356 | C236: =C230/C224 -> 0.9168653316 | E236: =E230/E224 -> 1.942183623 | F236: =SUM(B236:E236) -> 3.640741091 | G236: =(F236/3) -> 1.213580364 | H236: =ABS(G236-G218) -> 0.005029861024
B237: =B231/B225 -> 2.683207108 | C237: =C231/C225 -> 0.4720796327 | D237: =D231/D225 -> 0.5148843745 | F237: =SUM(B237:E237) -> 3.670171115 | G237: =(F237/3) -> 1.223390372 | H237: =ABS(G237-G219) -> 0.01340998915
A239: GF/GA | B239: =G234*A222 -> 5.516498203 | C239: =G235*A223 -> 9.73274518 | D239: =G236*A224 -> 10.63129002 | E239: =G237*A225 -> 10.40741268 | F239: Iteration | G239: =G221+1 -> 12
A240: =G234*A222 -> 5.516498203 | C240: =$A240/C239 -> 0.5667977637 | D240: =$A240/D239 -> 0.5188926453 | E240: =$A240/E239 -> 0.5300547192
A241: =G235*A223 -> 9.73274518 | B241: =$A241/B239 -> 1.764297716 | D241: =$A241/D239 -> 0.915481109 | E241: =$A241/E239 -> 0.9351743304
A242: =G236*A224 -> 10.63129002 | B242: =$A242/B239 -> 1.927180909 | C242: =$A242/C239 -> 1.09232183 | E242: =$A242/E239 -> 1.021511336
A243: =G237*A225 -> 10.40741268 | B243: =$A243/B239 -> 1.886597674 | C243: =$A243/C239 -> 1.069319342 | D243: =$A243/D239 -> 0.9789416575
B245: Game Differential
C246: =$C$34/$B$35 -> 1.333333333 | D246: =$D$34/$B$36 -> 0.6666666667 | E246: =$E$34/$B$37 -> 0
B247: =$B$35/$C$34 -> 0.75 | D247: =$D$35/$C$36 -> 1 | E247: =$E$35/$C$37 -> 2
B248: =$B$36/$D$34 -> 1.5 | C248: =$C$36/$D$35 -> 1 | E248: =$E$36/$D$37 -> 2
B249: =B231 -> 5 | C249: =$C$37/$E$35 -> 0.5 | D249: =$D$37/$E$36 -> 0.5
C252: =C246/C240 -> 2.352396955 | D252: =D246/D240 -> 1.284787273 | E252: =E246/E240 -> 0 | F252: =SUM(B252:E252) -> 3.637184227 | G252: =(F252/3) -> 1.212394742 | H252: =ABS(G252-G234) -> 0.004020185865 | I252: =SUM(H252:H255) -> 0.0284639475
B253: =B247/B241 -> 0.4250983228 | D253: =D247/D241 -> 1.09232183 | E253: =E247/E241 -> 2.138638685 | F253: =SUM(B253:E253) -> 3.656058837 | G253: =(F253/3) -> 1.218686279 | H253: =ABS(G253-G235) -> 0.006938098898
B254: =B248/B242 -> 0.778338968 | C254: =C248/C242 -> 0.915481109 | E254: =E248/E242 -> 1.957883315 | F254: =SUM(B254:E254) -> 3.651703392 | G254: =(F254/3) -> 1.217234464 | H254: =ABS(G254-G236) -> 0.003654100497
B255: =B249/B243 -> 2.650273596 | C255: =C249/C243 -> 0.4675871652 | D255: =D249/D243 -> 0.5107556678 | F255: =SUM(B255:E255) -> 3.628616429 | G255: =(F255/3) -> 1.20953881 | H255: =ABS(G255-G237) -> 0.01385156224
... 280 more rows

Sheet MiteGamesMatrix
A1: Leave this blank line in here!!!!!
A2: Team | B2: 101 | C2: 102 | D2: 103 | E2: 104 | F2: 105 | G2: 106 | H2: 107 | I2: 108 | J2: 109 | K2: 110 | L2: 111 | M2: 112 | N2: 113 | O2: 114 | P2: 115 | Q2: 116 | R2: 117 | S2: 118 | T2: 119 | U2: 120 | V2: 121 | W2: 122 | X2: 123 | Y2: 124 | Z2: 125 | AA2: 126 | AB2: 127 | AC2: 128 | AD2: 129 | AE2: 130 | AF2: 131 | AG2: 132 | AH2: 133 | AI2: 134 | AJ2: 135 | AK2: 136 | AL2: 137 | AM2: 138 | AN2: 139 | AO2: 140 | AP2: 141 | AQ2: 142 | AR2: 143 | AS2: 144 | AT2: 145 | AU2: 146 | AV2: 151 | AW2: 152
A3: 101 | C3: 1 | D3: 8 | E3: 11 | G3: 4 | H3: 6 | AV3: 2 | AW3: 4
A4: 102 | B4: 1 | D4: 15 | E4: 12 | G4: 8 | H4: 6 | I4: 9 | J4: 7 | M4: 6 | AW4: 2
A5: 103 | B5: 0 | C5: 0 | E5: 5 | F5: 0 | G5: 0 | K5: 2 | M5: 8
A6: 104 | B6: 3 | C6: 1 | D6: 1 | H6: 1 | K6: 2 | N6: 2 | AW6: 0
A7: 105 | D7: 8 | H7: 8 | I7: 2 | J7: 1 | M7: 4
A8: 106 | B8: 0 | C8: 1 | D8: 16 | H8: 2 | J8: 13 | O8: 13 | AV8: 5 | AW8: 7
A9: 107 | B9: 2 | C9: 0 | E9: 4 | F9: 2 | G9: 2 | J9: 0 | K9: 4 | Q9: 7
A10: 108 | C10: 1 | F10: 6 | J10: 3 | K10: 4 | Q10: 6 | R10: 8
A11: 109 | C11: 1 | F11: 2 | G11: 1 | H11: 4 | I11: 5 | K11: 4 | L11: 9 | M11: 3 | N11: 5 | AW11: 2
A12: 110 | D12: 9 | E12: 3 | H12: 4 | I12: 1 | J12: 2 | L12: 5 | M12: 5 | N12: 8 | R12: 4
A13: 111 | J13: 2 | K13: 4 | M13: 4 | N13: 2 | O13: 7 | Q13: 6 | T13: 11
A14: 112 | C14: 0 | D14: 9 | F14: 3 | J14: 4 | K14: 4 | L14: 6 | O14: 9 | AW14: 0
A15: 113 | E15: 6 | J15: 1 | K15: 4 | L15: 2 | O15: 8 | P15: 7 | Q15: 4 | U15: 22
A16: 114 | G16: 1 | L16: 3 | M16: 3 | N16: 2 | Q16: 3 | R16: 6
A17: 115 | N17: 0 | Q17: 8 | R17: 3 | W17: 10
A18: 116 | H18: 3 | I18: 7 | L18: 4 | N18: 4 | O18: 7 | P18: 6 | S18: 14 | T18: 8
A19: 117 | I19: 0 | K19: 5 | O19: 4 | P19: 13 | T19: 7 | U19: 16 | Y19: 16
A20: 118 | Q20: 1 | U20: 5 | V20: 2 | AF20: 1
A21: 119 | L21: 2 | Q21: 0 | R21: 1 | U21: 11 | V21: 18 | W21: 4 | AB21: 6
A22: 120 | N22: 0 | R22: 0 | S22: 3 | T22: 0 | W22: 1 | X22: 11
A23: 121 | S23: 4 | T23: 0 | W23: 1 | X23: 20 | Y23: 3 | AC23: 17 | AN23: 3
A24: 122 | P24: 2 | T24: 7 | U24: 10 | V24: 3 | Y24: 5 | Z24: 1 | AA24: 5
A25: 123 | U25: 0 | V25: 0 | Y25: 0 | Z25: 1 | AA25: 2 | AB25: 1 | AC25: 1 | AD25: 2 | AQ25: 1
A26: 124 | R26: 2 | V26: 2 | W26: 3 | X26: 31 | Z26: 3 | AA26: 8 | AB26: 7 | AE26: 17 | AF26: 8
A27: 125 | W27: 4 | X27: 36 | Y27: 3 | AA27: 2 | AC27: 9 | AG27: 5
A28: 126 | W28: 2 | X28: 19 | Y28: 2 | Z28: 4 | AB28: 4 | AC28: 12 | AU28: 6
A29: 127 | T29: 4 | X29: 15 | Y29: 1 | AA29: 3 | AD29: 12 | AE29: 5 | AI29: 9 | AQ29: 1
A30: 128 | V30: 3 | X30: 25 | Z30: 4 | AA30: 2 | AF30: 8 | AJ30: 1
A31: 129 | X31: 6 | AB31: 3 | AF31: 1 | AG31: 2
A32: 130 | Y32: 2 | AB32: 3 | AF32: 1 | AG32: 1 | AI32: 13 | AM32: 1 | AN32: 3 | AU32: 3
A33: 131 | S33: 4 | Y33: 7 | AC33: 9 | AD33: 12 | AE33: 5 | AG33: 8 | AH33: 2 | AQ33: 4
A34: 132 | Z34: 7 | AD34: 18 | AE34: 1 | AF34: 4 | AH34: 5 | AJ34: 4 | AQ34: 8
A35: 133 | AF35: 2 | AG35: 2 | AJ35: 8 | AK35: 17 | AL35: 12 | AO35: 4 | AQ35: 0
A36: 134 | AB36: 0 | AE36: 3 | AK36: 10 | AL36: 4 | AM36: 0 | AO36: 2 | AP36: 4
A37: 135 | AC37: 7 | AG37: 5 | AH37: 3 | AL37: 9 | AM37: 11 | AN37: 2 | AP37: 22 | AQ37: 3 | AR37: 16 | AS37: 17
A38: 136 | AH38: 0 | AI38: 0 | AM38: 0 | AN38: 0
A39: 137 | AH39: 2 | AI39: 11 | AJ39: 4 | AN39: 3 | AO39: 4 | AP39: 13 | AQ39: 0 | AU39: 1
A40: 138 | AE40: 4 | AI40: 7 | AJ40: 1 | AK40: 7 | AO40: 2 | AP40: 9 | AR40: 3 | AT40: 8
A41: 139 | V41: 4 | AE41: 11 | AJ41: 7 | AK41: 21 | AL41: 10 | AP41: 20 | AQ41: 2 | AR41: 11
A42: 140 | AH42: 5 | AI42: 9 | AL42: 12 | AM42: 4 | AP42: 36 | AQ42: 2 | AR42: 5 | AS42: 7 | AU42: 1
A43: 141 | AI43: 0 | AJ43: 1 | AL43: 1 | AM43: 0 | AN43: 0 | AO43: 1 | AR43: 0 | AS43: 4
A44: 142 | X44: 17 | AB44: 1 | AF44: 6 | AG44: 15 | AH44: 11 | AJ44: 9 | AL44: 25 | AN44: 9 | AO44: 10 | AS44: 20 | AT44: 14
A45: 143 | AJ45: 1 | AM45: 3 | AN45: 4 | AO45: 3 | AP45: 9 | AS45: 7 | AT45: 5 | AU45: 2
A46: 144 | AJ46: 0 | AO46: 6 | AP46: 7 | AQ46: 2 | AR46: 5 | AT46: 7 | AU46: 3
A47: 145 | AM47: 2 | AQ47: 2 | AR47: 8 | AS47: 8 | AU47: 1
A48: 146 | AA48: 2 | AE48: 6 | AL48: 14 | AO48: 9 | AR48: 4 | AS48: 15 | AT48: 12
A49: 151 | B49: 6 | G49: 2
A50: 152 | B50: 3 | C50: 0 | E50: 6 | G50: 5 | J50: 8 | M50: 4
M55: From --> | N55: b3: AW50
M56: To --> | N56: b3: AW50
F60: CSHL | G60: 1 | H60: 2 | I60: 3 | J60: 4 | K60: 5 | L60: 6 | M60: 7 | N60: 8 | O60: 9 | P60: 10 | Q60: 11 | R60: 12 | S60: 13 | T60: 14 | U60: 15 | V60: 16 | W60: 17 | X60: 18 | Y60: 19 | Z60: 20 | AA60: 21 | AB60: 22 | AC60: 23 | AD60: 24 | AE60: 25 | AF60: 26 | AG60: 27 | AH60: 28 | AI60: 29 | AJ60: 30 | AK60: 31 | AL60: 32 | AM60: 33 | AN60: 34 | AO60: 35 | AP60: 36 | AQ60: 37 | AR60: 38 | AS60: 39 | AT60: 40 | AU60: 41 | AV60: 42 | AW60: 43 | AX60: 44 | AY60: 45 | AZ60: 46
F61: MW | G61: 1 | H61: 2 | I61: 4 | J61: 3 | K61: 5 | L61: 6 | M61: 7 | N61: 9 | O61: 8 | P61: 10 | Q61: 11 | R61: 12 | S61: 13 | T61: 15 | U61: 14 | V61: 16 | W61: 17 | X61: 20 | Y61: 18 | Z61: 21 | AA61: 19 | AB61: 23 | AC61: 22 | AD61: 24 | AE61: 25 | AF61: 29 | AG61: 30 | AH61: 27 | AI61: 28 | AJ61: 26 | AK61: 31 | AL61: 32 | AM61: 37 | AN61: 33 | AO61: 34 | AP61: 36 | AQ61: 35 | AR61: 38 | AS61: 39 | AT61: 42 | AU61: 40 | AV61: 41 | AW61: 43 | AX61: 44 | AY61: 46 | AZ61: 45
F62: Walkush | G62: 2 | H62: 3 | I62: 4 | J62: 5 | K62: 6 | L62: 7 | M62: 9 | N62: 10 | O62: 11 | P62: 12 | Q62: 14 | R62: 13 | S62: 16 | T62: 15 | U62: 17 | V62: 18 | W62: 19 | X62: 20 | Y62: 21 | Z62: 23 | AA62: 26 | AB62: 22 | AC62: 24 | AD62: 25 | AE62: 27 | AF62: 28 | AG62: 29 | AH62: 30 | AI62: 31 | AJ62: 34 | AK62: 32 | AL62: 33 | AM62: 35 | AN62: 39 | AO62: 38 | AP62: 36 | AQ62: 37 | AR62: 40 | AS62: 42 | AT62: 41 | AU62: 43 | AV62: 44 | AW62: 45 | AX62: 46 | AY62: 47 | AZ62: 48
F63: Custom | G63: 2 | H63: 1 | I63: 6 | J63: 48 | K63: 8 | L63: 9 | M63: 7 | N63: 10 | O63: 12 | P63: 13 | Q63: 11 | R63: 16 | S63: 3 | T63: 4 | U63: 17 | V63: 14 | W63: 15 | X63: 22 | Y63: 19 | Z63: 24 | AA63: 42 | AB63: 25 | AC63: 26 | AD63: 31 | AE63: 21 | AF63: 18 | AG63: 32 | AH63: 39 | AI63: 27 | AJ63: 46 | AK63: 35 | AL63: 33 | AM63: 28 | AN63: 20 | AO63: 40 | AP63: 30 | AQ63: 38 | AR63: 43 | AS63: 45 | AT63: 29 | AU63: 37 | AV63: 44 | AW63: 23 | AX63: 34 | AY63: 41 | AZ63: 36
F64: Index | G64: 2 | H64: 1 | I64: 6 | J64: 48 | K64: 8 | L64: 9 | M64: 7 | N64: 10 | O64: 12 | P64: 13 | Q64: 11 | R64: 16 | S64: 3 | T64: 4 | U64: 17 | V64: 14 | W64: 15 | X64: 22 | Y64: 19 | Z64: 24 | AA64: 42 | AB64: 25 | AC64: 26 | AD64: 31 | AE64: 21 | AF64: 18 | AG64: 32 | AH64: 39 | AI64: 27 | AJ64: 46 | AK64: 35 | AL64: 33 | AM64: 28 | AN64: 20 | AO64: 40 | AP64: 30 | AQ64: 38 | AR64: 43 | AS64: 45 | AT64: 29 | AU64: 37 | AV64: 44 | AW64: 23 | AX64: 34 | AY64: 41 | AZ64: 36
F65: Team | G65: 102 | H65: 101 | I65: 106 | J65: 152 | K65: 108 | L65: 109 | M65: 107 | N65: 110 | O65: 112 | P65: 113 | Q65: 111 | R65: 116 | S65: 103 | T65: 104 | U65: 117 | V65: 114 | W65: 115 | X65: 122 | Y65: 119 | Z65: 124 | AA65: 142 | AB65: 125 | AC65: 126 | AD65: 131 | AE65: 121 | AF65: 118 | AG65: 132 | AH65: 139 | AI65: 127 | AJ65: 146 | AK65: 135 | AL65: 133 | AM65: 128 | AN65: 120 | AO65: 140 | AP65: 130 | AQ65: 138 | AR65: 143 | AS65: 145 | AT65: 129 | AU65: 137 | AV65: 144 | AW65: 123 | AX65: 134 | AY65: 141 | AZ65: 136
A66: 1 | B66: 1 | C66: 2 | D66: 2 | E66: 2 | F66: 102 | G66: =INDEX($B$3:$AW$50,$E66,G$64)&"-"&INDEX($B$3:$AW$50,G$64,$E66) -> - | H66: =INDEX($B$3:$AW$50,$E66,H$64)&"-"&INDEX($B$3:$AW$50,H$64,$E66) -> 1-1 | I66: 8-1 | J66: 2-0 | K66: 9-1 | L66: 7-1 | M66: 6-0 | N66: - | O66: 6-0 | P66: - | Q66: - | R66: - | S66: 15-0 | T66: 12-1 | U66: - | V66: - | W66: - | X66: =INDEX($B$3:$AW$50,$E66,X$64)&"-"&INDEX($B$3:$AW$50,X$64,$E66) -> - | Y66: - | Z66: - | AA66: - | AB66: - | AC66: - | AD66: - | AE66: - | AF66: - | AG66: - | AH66: - | AI66: - | AJ66: - | AK66: - | AL66: - | AM66: - | AN66: =INDEX($B$3:$AW$50,$E66,AN$64)&"-"&INDEX($B$3:$AW$50,AN$64,$E66) -> - | AO66: - | AP66: - | AQ66: - | AR66: - | AS66: - | AT66: - | AU66: - | AV66: - | AW66: - | AX66: - | AY66: - | AZ66: -
A67: 2 | B67: 2 | C67: 3 | D67: 1 | E67: 1 | F67: 101 | G67: =INDEX($B$3:$AW$50,$E67,G$64)&"-"&INDEX($B$3:$AW$50,G$64,$E67) -> 1-1 | H67: - | I67: 4-0 | J67: 4-3 | K67: - | L67: - | M67: 6-2 | N67: - | O67: - | P67: - | Q67: - | R67: - | S67: 8-0 | T67: 11-3 | U67: - | V67: - | W67: - | X67: - | Y67: - | Z67: - | AA67: - | AB67: - | AC67: - | AD67: - | AE67: - | AF67: - | AG67: - | AH67: - | AI67: - | AJ67: - | AK67: - | AL67: - | AM67: - | AN67: - | AO67: - | AP67: - | AQ67: - | AR67: - | AS67: - | AT67: - | AU67: - | AV67: - | AW67: - | AX67: - | AY67: - | AZ67: -
A68: 3 | B68: 4 | C68: 4 | D68: 6 | E68: 6 | F68: 106 | G68: 1-8 | H68: 0-4 | I68: - | J68: 7-5 | K68: - | L68: 13-1 | M68: 2-2 | N68: - | O68: - | P68: - | Q68: - | R68: - | S68: 16-0 | T68: - | U68: - | V68: 13-1 | W68: - | X68: - | Y68: - | Z68: - | AA68: - | AB68: - | AC68: - | AD68: - | AE68: - | AF68: - | AG68: - | AH68: - | AI68: - | AJ68: - | AK68: - | AL68: - | AM68: - | AN68: - | AO68: - | AP68: - | AQ68: - | AR68: - | AS68: - | AT68: - | AU68: - | AV68: - | AW68: - | AX68: - | AY68: - | AZ68: -
A69: 4 | B69: 3 | C69: 5 | D69: 48 | E69: 48 | F69: 152 | G69: 0-2 | H69: 3-4 | I69: 5-7 | J69: - | K69: - | L69: 8-2 | M69: - | N69: - | O69: 4-0 | P69: - | Q69: - | R69: - | S69: - | T69: 6-0 | U69: - | V69: - | W69: - | X69: - | Y69: - | Z69: - | AA69: - | AB69: - | AC69: - | AD69: - | AE69: - | AF69: - | AG69: - | AH69: - | AI69: - | AJ69: - | AK69: - | AL69: - | AM69: - | AN69: - | AO69: - | AP69: - | AQ69: - | AR69: - | AS69: - | AT69: - | AU69: - | AV69: - | AW69: - | AX69: - | AY69: - | AZ69: -
A70: 5 | B70: 5 | C70: 6 | D70: 8 | E70: 8 | F70: 108 | G70: 1-9 | H70: - | I70: - | J70: - | K70: - | L70: 3-5 | M70: - | N70: 4-1 | O70: - | P70: - | Q70: - | R70: 6-7 | S70: - | T70: - | U70: 8-0 | V70: - | W70: - | X70: - | Y70: - | Z70: - | AA70: - | AB70: - | AC70: - | AD70: - | AE70: - | AF70: - | AG70: - | AH70: - | AI70: - | AJ70: - | AK70: - | AL70: - | AM70: - | AN70: - | AO70: - | AP70: - | AQ70: - | AR70: - | AS70: - | AT70: - | AU70: - | AV70: - | AW70: - | AX70: - | AY70: - | AZ70: -
A71: 6 | B71: 6 | C71: 7 | D71: 9 | E71: 9 | F71: 109 | G71: 1-7 | H71: - | I71: 1-13 | J71: 2-8 | K71: 5-3 | L71: - | M71: 4-0 | N71: 4-2 | O71: 3-4 | P71: 5-1 | Q71: 9-2 | R71: - | S71: - | T71: - | U71: - | V71: - | W71: - | X71: - | Y71: - | Z71: - | AA71: - | AB71: - | AC71: - | AD71: - | AE71: - | AF71: - | AG71: - | AH71: - | AI71: - | AJ71: - | AK71: - | AL71: - | AM71: - | AN71: - | AO71: - | AP71: - | AQ71: - | AR71: - | AS71: - | AT71: - | AU71: - | AV71: - | AW71: - | AX71: - | AY71: - | AZ71: -
A72: 7 | B72: 7 | C72: 9 | D72: 7 | E72: 7 | F72: 107 | G72: 0-6 | H72: 2-6 | I72: 2-2 | J72: - | K72: - | L72: 0-4 | M72: - | N72: 4-4 | O72: - | P72: - | Q72: - | R72: 7-3 | S72: - | T72: 4-1 | U72: - | V72: - | W72: - | X72: - | Y72: - | Z72: - | AA72: - | AB72: - | AC72: - | AD72: - | AE72: - | AF72: - | AG72: - | AH72: - | AI72: - | AJ72: - | AK72: - | AL72: - | AM72: - | AN72: - | AO72: - | AP72: - | AQ72: - | AR72: - | AS72: - | AT72: - | AU72: - | AV72: - | AW72: - | AX72: - | AY72: - | AZ72: -
A73: 8 | B73: 9 | C73: 10 | D73: 10 | E73: 10 | F73: 110 | G73: - | H73: - | I73: - | J73: - | K73: 1-4 | L73: 2-4 | M73: 4-4 | N73: - | O73: 5-4 | P73: 8-4 | Q73: 5-4 | R73: - | S73: 9-2 | T73: 3-2 | U73: 4-5 | V73: - | W73: - | X73: - | Y73: - | Z73: - | AA73: - | AB73: - | AC73: - | AD73: - | AE73: - | AF73: - | AG73: - | AH73: - | AI73: - | AJ73: - | AK73: - | AL73: - | AM73: - | AN73: - | AO73: - | AP73: - | AQ73: - | AR73: - | AS73: - | AT73: - | AU73: - | AV73: - | AW73: - | AX73: - | AY73: - | AZ73: -
A74: 9 | B74: 8 | C74: 11 | D74: 12 | E74: 12 | F74: 112 | G74: 0-6 | H74: - | I74: - | J74: 0-4 | K74: - | L74: 4-3 | M74: - | N74: 4-5 | O74: - | P74: - | Q74: 6-4 | R74: - | S74: 9-8 | T74: - | U74: - | V74: 9-3 | W74: - | X74: - | Y74: - | Z74: - | AA74: - | AB74: - | AC74: - | AD74: - | AE74: - | AF74: - | AG74: - | AH74: - | AI74: - | AJ74: - | AK74: - | AL74: - | AM74: - | AN74: - | AO74: - | AP74: - | AQ74: - | AR74: - | AS74: - | AT74: - | AU74: - | AV74: - | AW74: - | AX74: - | AY74: - | AZ74: -
A75: 10 | B75: 10 | C75: 12 | D75: 13 | E75: 13 | F75: 113 | G75: - | H75: - | I75: - | J75: - | K75: - | L75: 1-5 | M75: - | N75: 4-8 | O75: - | P75: - | Q75: 2-2 | R75: 4-4 | S75: - | T75: 6-2 | U75: - | V75: 8-2 | W75: 7-0 | X75: - | Y75: - | Z75: - | AA75: - | AB75: - | AC75: - | AD75: - | AE75: - | AF75: - | AG75: - | AH75: - | AI75: - | AJ75: - | AK75: - | AL75: - | AM75: - | AN75: 22-0 | AO75: - | AP75: - | AQ75: - | AR75: - | AS75: - | AT75: - | AU75: - | AV75: - | AW75: - | AX75: - | AY75: - | AZ75: -
A76: 11 | B76: 11 | C76: 14 | D76: 11 | E76: 11 | F76: 111 | G76: - | H76: - | I76: - | J76: - | K76: - | L76: 2-9 | M76: - | N76: 4-5 | O76: 4-6 | P76: 2-2 | Q76: - | R76: 6-4 | S76: - | T76: - | U76: - | V76: 7-3 | W76: - | X76: - | Y76: 11-2 | Z76: - | AA76: - | AB76: - | AC76: - | AD76: - | AE76: - | AF76: - | AG76: - | AH76: - | AI76: - | AJ76: - | AK76: - | AL76: - | AM76: - | AN76: - | AO76: - | AP76: - | AQ76: - | AR76: - | AS76: - | AT76: - | AU76: - | AV76: - | AW76: - | AX76: - | AY76: - | AZ76: -
A77: 12 | B77: 12 | C77: 13 | D77: 16 | E77: 16 | F77: 116 | G77: - | H77: - | I77: - | J77: - | K77: 7-6 | L77: - | M77: 3-7 | N77: - | O77: - | P77: 4-4 | Q77: 4-6 | R77: - | S77: - | T77: - | U77: - | V77: 7-3 | W77: 6-8 | X77: - | Y77: 8-0 | Z77: - | AA77: - | AB77: - | AC77: - | AD77: - | AE77: - | AF77: 14-1 | AG77: - | AH77: - | AI77: - | AJ77: - | AK77: - | AL77: - | AM77: - | AN77: - | AO77: - | AP77: - | AQ77: - | AR77: - | AS77: - | AT77: - | AU77: - | AV77: - | AW77: - | AX77: - | AY77: - | AZ77: -
A78: 13 | B78: 13 | C78: 16 | D78: 3 | E78: 3 | F78: 103 | G78: 0-15 | H78: 0-8 | I78: 0-16 | J78: - | K78: - | L78: - | M78: - | N78: 2-9 | O78: 8-9 | P78: - | Q78: - | R78: - | S78: - | T78: 5-1 | U78: - | V78: - | W78: - | X78: - | Y78: - | Z78: - | AA78: - | AB78: - | AC78: - | AD78: - | AE78: - | AF78: - | AG78: - | AH78: - | AI78: - | AJ78: - | AK78: - | AL78: - | AM78: - | AN78: - | AO78: - | AP78: - | AQ78: - | AR78: - | AS78: - | AT78: - | AU78: - | AV78: - | AW78: - | AX78: - | AY78: - | AZ78: -
A79: 14 | B79: 15 | C79: 15 | D79: 4 | E79: 4 | F79: 104 | G79: 1-12 | H79: 3-11 | I79: - | J79: 0-6 | K79: - | L79: - | M79: 1-4 | N79: 2-3 | O79: - | P79: 2-6 | Q79: - | R79: - | S79: 1-5 | T79: - | U79: - | V79: - | W79: - | X79: - | Y79: - | Z79: - | AA79: - | AB79: - | AC79: - | AD79: - | AE79: - | AF79: - | AG79: - | AH79: - | AI79: - | AJ79: - | AK79: - | AL79: - | AM79: - | AN79: - | AO79: - | AP79: - | AQ79: - | AR79: - | AS79: - | AT79: - | AU79: - | AV79: - | AW79: - | AX79: - | AY79: - | AZ79: -
A80: 15 | B80: 14 | C80: 17 | D80: 17 | E80: 17 | F80: 117 | G80: - | H80: - | I80: - | J80: - | K80: 0-8 | L80: - | M80: - | N80: 5-4 | O80: - | P80: - | Q80: - | R80: - | S80: - | T80: - | U80: - | V80: 4-6 | W80: 13-3 | X80: - | Y80: 7-1 | Z80: 16-2 | AA80: - | AB80: - | AC80: - | AD80: - | AE80: - | AF80: - | AG80: - | AH80: - | AI80: - | AJ80: - | AK80: - | AL80: - | AM80: - | AN80: 16-0 | AO80: - | AP80: - | AQ80: - | AR80: - | AS80: - | AT80: - | AU80: - | AV80: - | AW80: - | AX80: - | AY80: - | AZ80: -
A81: 16 | B81: 16 | C81: 18 | D81: 14 | E81: 14 | F81: 114 | G81: - | H81: - | I81: 1-13 | J81: - | K81: - | L81: - | M81: - | N81: - | O81: 3-9 | P81: 2-8 | Q81: 3-7 | R81: 3-7 | S81: - | T81: - | U81: 6-4 | V81: - | W81: =INDEX($B$3:$AW$50,$E81,W$64)&"-"&INDEX($B$3:$AW$50,W$64,$E81) -> - | X81: - | Y81: - | Z81: - | AA81: - | AB81: - | AC81: - | AD81: - | AE81: - | AF81: - | AG81: - | AH81: - | AI81: - | AJ81: - | AK81: - | AL81: - | AM81: =INDEX($B$3:$AW$50,$E81,AM$64)&"-"&INDEX($B$3:$AW$50,AM$64,$E81) -> - | AN81: - | AO81: - | AP81: - | AQ81: - | AR81: - | AS81: - | AT81: - | AU81: - | AV81: - | AW81: - | AX81: - | AY81: - | AZ81: -
A82: 17 | B82: 17 | C82: 19 | D82: 15 | E82: 15 | F82: 115 | G82: - | H82: - | I82: - | J82: - | K82: - | L82: - | M82: - | N82: - | O82: - | P82: 0-7 | Q82: - | R82: 8-6 | S82: - | T82: - | U82: 3-13 | V82: - | W82: - | X82: 10-2 | Y82: - | Z82: - | AA82: - | AB82: - | AC82: - | AD82: - | AE82: - | AF82: - | AG82: - | AH82: - | AI82: - | AJ82: - | AK82: - | AL82: - | AM82: - | AN82: - | AO82: - | AP82: - | AQ82: - | AR82: - | AS82: - | AT82: - | AU82: - | AV82: - | AW82: - | AX82: - | AY82: - | AZ82: -
A83: 18 | B83: 20 | C83: 20 | D83: 22 | E83: 22 | F83: 122 | G83: =INDEX($B$3:$AW$50,$E83,G$64)&"-"&INDEX($B$3:$AW$50,G$64,$E83) -> - | H83: - | I83: - | J83: - | K83: - | L83: - | M83: - | N83: - | O83: - | P83: - | Q83: - | R83: - | S83: - | T83: - | U83: - | V83: - | W83: 2-10 | X83: - | Y83: 7-4 | Z83: 5-3 | AA83: - | AB83: 1-4 | AC83: 5-2 | AD83: - | AE83: 3-1 | AF83: - | AG83: - | AH83: - | AI83: - | AJ83: - | AK83: - | AL83: - | AM83: - | AN83: 10-1 | AO83: - | AP83: - | AQ83: - | AR83: - | AS83: - | AT83: - | AU83: - | AV83: - | AW83: - | AX83: - | AY83: - | AZ83: -
A84: 19 | B84: 18 | C84: 21 | D84: 19 | E84: 19 | F84: 119 | G84: - | H84: - | I84: - | J84: - | K84: - | L84: - | M84: - | N84: - | O84: - | P84: - | Q84: 2-11 | R84: 0-8 | S84: - | T84: - | U84: 1-7 | V84: - | W84: - | X84: 4-7 | Y84: - | Z84: - | AA84: - | AB84: - | AC84: - | AD84: - | AE84: 18-0 | AF84: - | AG84: - | AH84: - | AI84: 6-4 | AJ84: - | AK84: - | AL84: - | AM84: - | AN84: 11-0 | AO84: - | AP84: - | AQ84: - | AR84: - | AS84: - | AT84: - | AU84: - | AV84: - | AW84: - | AX84: - | AY84: - | AZ84: -
A85: 20 | B85: 21 | C85: 23 | D85: 24 | E85: 24 | F85: 124 | G85: - | H85: - | I85: - | J85: - | K85: - | L85: - | M85: - | N85: - | O85: - | P85: - | Q85: - | R85: - | S85: - | T85: - | U85: 2-16 | V85: - | W85: - | X85: 3-5 | Y85: - | Z85: - | AA85: - | AB85: 3-3 | AC85: 8-2 | AD85: 8-7 | AE85: 2-3 | AF85: - | AG85: - | AH85: - | AI85: 7-1 | AJ85: - | AK85: - | AL85: - | AM85: - | AN85: - | AO85: - | AP85: 17-2 | AQ85: - | AR85: - | AS85: - | AT85: - | AU85: - | AV85: - | AW85: 31-0 | AX85: - | AY85: - | AZ85: -
A86: 21 | B86: 19 | C86: 26 | D86: 42 | E86: 42 | F86: 142 | G86: - | H86: - | I86: - | J86: - | K86: - | L86: - | M86: - | N86: - | O86: - | P86: - | Q86: - | R86: - | S86: - | T86: - | U86: - | V86: - | W86: - | X86: - | Y86: - | Z86: - | AA86: - | AB86: - | AC86: - | AD86: 6-4 | AE86: - | AF86: - | AG86: 15-8 | AH86: 9-2 | AI86: 1-1 | AJ86: - | AK86: 9-3 | AL86: 11-0 | AM86: - | AN86: - | AO86: 10-2 | AP86: - | AQ86: - | AR86: - | AS86: 14-2 | AT86: - | AU86: 25-0 | AV86: 20-2 | AW86: 17-1 | AX86: - | AY86: - | AZ86: -
A87: 22 | B87: 23 | C87: 22 | D87: 25 | E87: 25 | F87: 125 | G87: - | H87: - | I87: - | J87: - | K87: - | L87: - | M87: - | N87: - | O87: - | P87: - | Q87: - | R87: - | S87: - | T87: - | U87: - | V87: - | W87: - | X87: 4-1 | Y87: - | Z87: 3-3 | AA87: - | AB87: - | AC87: 2-4 | AD87: - | AE87: - | AF87: - | AG87: 5-7 | AH87: - | AI87: - | AJ87: - | AK87: - | AL87: - | AM87: 9-4 | AN87: - | AO87: - | AP87: - | AQ87: - | AR87: - | AS87: - | AT87: - | AU87: - | AV87: - | AW87: 36-1 | AX87: - | AY87: - | AZ87: -
A88: 23 | B88: 22 | C88: 24 | D88: 26 | E88: 26 | F88: 126 | G88: - | H88: - | I88: - | J88: - | K88: - | L88: - | M88: - | N88: - | O88: - | P88: - | Q88: - | R88: - | S88: - | T88: - | U88: - | V88: - | W88: - | X88: 2-5 | Y88: - | Z88: 2-8 | AA88: - | AB88: 4-2 | AC88: - | AD88: - | AE88: - | AF88: - | AG88: - | AH88: - | AI88: 4-3 | AJ88: 6-2 | AK88: - | AL88: - | AM88: 12-2 | AN88: - | AO88: - | AP88: - | AQ88: - | AR88: - | AS88: - | AT88: - | AU88: - | AV88: - | AW88: 19-2 | AX88: - | AY88: - | AZ88: -
A89: 24 | B89: 24 | C89: 25 | D89: 31 | E89: 31 | F89: 131 | G89: - | H89: - | I89: - | J89: - | K89: - | L89: - | M89: - | N89: - | O89: - | P89: - | Q89: - | R89: - | S89: - | T89: - | U89: - | V89: - | W89: - | X89: - | Y89: - | Z89: 7-8 | AA89: 4-6 | AB89: - | AC89: - | AD89: - | AE89: - | AF89: 4-1 | AG89: 8-4 | AH89: - | AI89: - | AJ89: - | AK89: - | AL89: 2-2 | AM89: 9-8 | AN89: - | AO89: - | AP89: 5-1 | AQ89: - | AR89: - | AS89: - | AT89: 12-1 | AU89: - | AV89: - | AW89: - | AX89: - | AY89: - | AZ89: -
A90: 25 | B90: 25 | C90: 27 | D90: 21 | E90: 21 | F90: 121 | G90: - | H90: - | I90: - | J90: - | K90: - | L90: - | M90: - | N90: - | O90: - | P90: - | Q90: - | R90: - | S90: - | T90: - | U90: - | V90: - | W90: - | X90: 1-3 | Y90: 0-18 | Z90: 3-2 | AA90: - | AB90: - | AC90: - | AD90: - | AE90: - | AF90: 4-2 | AG90: - | AH90: 3-4 | AI90: - | AJ90: - | AK90: - | AL90: - | AM90: 17-3 | AN90: - | AO90: - | AP90: - | AQ90: - | AR90: - | AS90: - | AT90: - | AU90: - | AV90: - | AW90: 20-0 | AX90: - | AY90: - | AZ90: -
A91: 26 | B91: 29 | C91: 28 | D91: 18 | E91: 18 | F91: 118 | G91: - | H91: - | I91: - | J91: - | K91: - | L91: - | M91: - | N91: - | O91: - | P91: - | Q91: - | R91: 1-14 | S91: - | T91: - | U91: - | V91: - | W91: - | X91: - | Y91: - | Z91: - | AA91: - | AB91: - | AC91: - | AD91: 1-4 | AE91: 2-4 | AF91: - | AG91: - | AH91: - | AI91: - | AJ91: - | AK91: - | AL91: - | AM91: - | AN91: 5-3 | AO91: - | AP91: - | AQ91: - | AR91: - | AS91: - | AT91: - | AU91: - | AV91: - | AW91: - | AX91: - | AY91: - | AZ91: -
A92: 27 | B92: 30 | C92: 29 | D92: 32 | E92: 32 | F92: 132 | G92: - | H92: - | I92: - | J92: - | K92: - | L92: - | M92: - | N92: - | O92: - | P92: - | Q92: - | R92: - | S92: - | T92: - | U92: - | V92: - | W92: - | X92: - | Y92: - | Z92: - | AA92: 8-15 | AB92: 7-5 | AC92: - | AD92: 4-8 | AE92: - | AF92: - | AG92: - | AH92: - | AI92: - | AJ92: - | AK92: 4-5 | AL92: 5-2 | AM92: - | AN92: - | AO92: - | AP92: 1-1 | AQ92: - | AR92: - | AS92: - | AT92: 18-2 | AU92: - | AV92: - | AW92: - | AX92: - | AY92: - | AZ92: -
A93: 28 | B93: 27 | C93: 30 | D93: 39 | E93: 39 | F93: 139 | G93: - | H93: - | I93: - | J93: - | K93: - | L93: - | M93: - | N93: - | O93: - | P93: - | Q93: - | R93: - | S93: - | T93: - | U93: - | V93: - | W93: - | X93: - | Y93: - | Z93: - | AA93: 2-9 | AB93: - | AC93: - | AD93: - | AE93: 4-3 | AF93: - | AG93: - | AH93: - | AI93: - | AJ93: - | AK93: 7-2 | AL93: - | AM93: - | AN93: - | AO93: - | AP93: 11-3 | AQ93: - | AR93: 11-4 | AS93: - | AT93: - | AU93: 10-3 | AV93: - | AW93: - | AX93: - | AY93: 20-0 | AZ93: 21-0
A94: 29 | B94: 28 | C94: 31 | D94: 27 | E94: 27 | F94: 127 | G94: - | H94: - | I94: - | J94: - | K94: - | L94: - | M94: - | N94: - | O94: - | P94: - | Q94: - | R94: - | S94: - | T94: - | U94: - | V94: - | W94: - | X94: - | Y94: 4-6 | Z94: 1-7 | AA94: 1-1 | AB94: - | AC94: 3-4 | AD94: - | AE94: - | AF94: - | AG94: - | AH94: - | AI94: - | AJ94: - | AK94: - | AL94: - | AM94: - | AN94: - | AO94: - | AP94: 5-3 | AQ94: - | AR94: - | AS94: - | AT94: 12-3 | AU94: - | AV94: - | AW94: 15-1 | AX94: 9-0 | AY94: - | AZ94: -
A95: 30 | B95: 26 | C95: 34 | D95: 46 | E95: 46 | F95: 146 | G95: - | H95: - | I95: - | J95: - | K95: - | L95: - | M95: - | N95: - | O95: - | P95: - | Q95: - | R95: - | S95: - | T95: - | U95: - | V95: - | W95: - | X95: - | Y95: - | Z95: - | AA95: - | AB95: - | AC95: 2-6 | AD95: - | AE95: - | AF95: - | AG95: - | AH95: - | AI95: - | AJ95: - | AK95: - | AL95: - | AM95: - | AN95: - | AO95: 9-1 | AP95: 6-3 | AQ95: - | AR95: 4-2 | AS95: 12-1 | AT95: - | AU95: 14-1 | AV95: 15-3 | AW95: - | AX95: - | AY95: - | AZ95: -
A96: 31 | B96: 31 | C96: 32 | D96: 35 | E96: 35 | F96: 135 | G96: - | H96: - | I96: - | J96: - | K96: - | L96: - | M96: - | N96: - | O96: - | P96: - | Q96: - | R96: - | S96: - | T96: - | U96: - | V96: - | W96: - | X96: - | Y96: - | Z96: - | AA96: 3-9 | AB96: - | AC96: - | AD96: - | AE96: - | AF96: - | AG96: 5-4 | AH96: 2-7 | AI96: - | AJ96: - | AK96: - | AL96: 3-8 | AM96: 7-1 | AN96: - | AO96: - | AP96: - | AQ96: 11-1 | AR96: 16-1 | AS96: - | AT96: - | AU96: 9-4 | AV96: 17-0 | AW96: - | AX96: - | AY96: 22-1 | AZ96: -
A97: 32 | B97: 32 | C97: 33 | D97: 33 | E97: 33 | F97: 133 | G97: - | H97: - | I97: - | J97: - | K97: - | L97: - | M97: - | N97: - | O97: - | P97: - | Q97: - | R97: - | S97: - | T97: - | U97: - | V97: - | W97: =INDEX($B$3:$AW$50,$E97,W$64)&"-"&INDEX($B$3:$AW$50,W$64,$E97) -> - | X97: - | Y97: - | Z97: - | AA97: 0-11 | AB97: - | AC97: - | AD97: 2-2 | AE97: - | AF97: - | AG97: 2-5 | AH97: - | AI97: - | AJ97: - | AK97: 8-3 | AL97: - | AM97: =INDEX($B$3:$AW$50,$E97,AM$64)&"-"&INDEX($B$3:$AW$50,AM$64,$E97) -> - | AN97: - | AO97: 4-5 | AP97: - | AQ97: - | AR97: - | AS97: - | AT97: - | AU97: 12-2 | AV97: - | AW97: - | AX97: - | AY97: - | AZ97: 17-0
A98: 33 | B98: 37 | C98: 35 | D98: 28 | E98: 28 | F98: 128 | G98: - | H98: - | I98: - | J98: - | K98: - | L98: - | M98: - | N98: - | O98: - | P98: - | Q98: - | R98: - | S98: - | T98: - | U98: - | V98: =INDEX($B$3:$AW$50,$E98,V$64)&"-"&INDEX($B$3:$AW$50,V$64,$E98) -> - | W98: - | X98: - | Y98: - | Z98: - | AA98: - | AB98: 4-9 | AC98: 2-12 | AD98: 8-9 | AE98: 3-17 | AF98: - | AG98: - | AH98: - | AI98: - | AJ98: - | AK98: 1-7 | AL98: - | AM98: - | AN98: - | AO98: - | AP98: - | AQ98: - | AR98: - | AS98: - | AT98: - | AU98: - | AV98: - | AW98: 25-1 | AX98: - | AY98: - | AZ98: -
A99: 34 | B99: 33 | C99: 39 | D99: 20 | E99: 20 | F99: 120 | G99: =INDEX($B$3:$AW$50,$E99,G$64)&"-"&INDEX($B$3:$AW$50,G$64,$E99) -> - | H99: - | I99: - | J99: - | K99: - | L99: - | M99: - | N99: - | O99: - | P99: 0-22 | Q99: - | R99: - | S99: - | T99: - | U99: 0-16 | V99: - | W99: - | X99: 1-10 | Y99: 0-11 | Z99: - | AA99: - | AB99: - | AC99: - | AD99: - | AE99: - | AF99: 3-5 | AG99: - | AH99: - | AI99: - | AJ99: - | AK99: - | AL99: - | AM99: - | AN99: - | AO99: - | AP99: - | AQ99: - | AR99: - | AS99: - | AT99: - | AU99: - | AV99: - | AW99: 11-0 | AX99: - | AY99: - | AZ99: -
A100: 35 | B100: 34 | C100: 38 | D100: 40 | E100: 40 | F100: 140 | G100: - | H100: - | I100: - | J100: - | K100: - | L100: - | M100: - | N100: - | O100: - | P100: - | Q100: - | R100: - | S100: - | T100: - | U100: - | V100: - | W100: - | X100: - | Y100: - | Z100: - | AA100: 2-10 | AB100: - | AC100: - | AD100: - | AE100: - | AF100: - | AG100: - | AH100: - | AI100: - | AJ100: 1-9 | AK100: - | AL100: 5-4 | AM100: - | AN100: - | AO100: - | AP100: - | AQ100: 4-2 | AR100: 5-3 | AS100: - | AT100: - | AU100: 12-4 | AV100: 7-6 | AW100: - | AX100: 9-2 | AY100: 36-1 | AZ100: -
A101: 36 | B101: 36 | C101: 36 | D101: 30 | E101: 30 | F101: 130 | G101: - | H101: - | I101: - | J101: - | K101: - | L101: - | M101: - | N101: - | O101: - | P101: - | Q101: - | R101: - | S101: - | T101: - | U101: - | V101: - | W101: - | X101: - | Y101: - | Z101: 2-17 | AA101: - | AB101: - | AC101: - | AD101: 1-5 | AE101: - | AF101: - | AG101: 1-1 | AH101: 3-11 | AI101: 3-5 | AJ101: 3-6 | AK101: - | AL101: - | AM101: - | AN101: - | AO101: - | AP101: - | AQ101: 1-4 | AR101: - | AS101: - | AT101: - | AU101: - | AV101: - | AW101: - | AX101: 13-3 | AY101: - | AZ101: -
A102: 37 | B102: 35 | C102: 37 | D102: 38 | E102: 38 | F102: 138 | G102: - | H102: - | I102: - | J102: - | K102: - | L102: - | M102: - | N102: - | O102: - | P102: - | Q102: - | R102: - | S102: - | T102: - | U102: - | V102: - | W102: - | X102: - | Y102: - | Z102: - | AA102: - | AB102: - | AC102: - | AD102: - | AE102: - | AF102: - | AG102: - | AH102: - | AI102: - | AJ102: - | AK102: 1-11 | AL102: - | AM102: - | AN102: - | AO102: 2-4 | AP102: 4-1 | AQ102: - | AR102: 3-3 | AS102: 8-2 | AT102: - | AU102: - | AV102: - | AW102: - | AX102: 7-0 | AY102: 9-0 | AZ102: 7-0
A103: 38 | B103: 38 | C103: 40 | D103: 43 | E103: 43 | F103: 143 | G103: - | H103: - | I103: - | J103: - | K103: - | L103: - | M103: - | N103: - | O103: - | P103: - | Q103: - | R103: - | S103: - | T103: - | U103: - | V103: - | W103: - | X103: - | Y103: - | Z103: - | AA103: - | AB103: - | AC103: - | AD103: - | AE103: - | AF103: - | AG103: - | AH103: 4-11 | AI103: - | AJ103: 2-4 | AK103: 1-16 | AL103: - | AM103: - | AN103: - | AO103: 3-5 | AP103: - | AQ103: 3-3 | AR103: - | AS103: 5-8 | AT103: - | AU103: - | AV103: 7-5 | AW103: - | AX103: - | AY103: 9-0 | AZ103: -
A104: 39 | B104: 39 | C104: 42 | D104: 45 | E104: 45 | F104: 145 | G104: - | H104: - | I104: - | J104: - | K104: - | L104: - | M104: - | N104: - | O104: - | P104: - | Q104: - | R104: - | S104: - | T104: - | U104: - | V104: - | W104: - | X104: - | Y104: - | Z104: - | AA104: 2-14 | AB104: - | AC104: - | AD104: - | AE104: - | AF104: - | AG104: - | AH104: - | AI104: - | AJ104: 1-12 | AK104: - | AL104: - | AM104: - | AN104: - | AO104: - | AP104: - | AQ104: 2-8 | AR104: 8-5 | AS104: - | AT104: - | AU104: - | AV104: 8-7 | AW104: - | AX104: - | AY104: - | AZ104: -
A105: 40 | B105: 42 | C105: 41 | D105: 29 | E105: 29 | F105: 129 | G105: - | H105: - | I105: - | J105: - | K105: - | L105: - | M105: - | N105: - | O105: - | P105: - | Q105: - | R105: - | S105: - | T105: - | U105: - | V105: - | W105: - | X105: - | Y105: - | Z105: - | AA105: - | AB105: - | AC105: - | AD105: 1-12 | AE105: - | AF105: - | AG105: 2-18 | AH105: - | AI105: 3-12 | AJ105: - | AK105: - | AL105: - | AM105: - | AN105: - | AO105: - | AP105: - | AQ105: - | AR105: - | AS105: - | AT105: - | AU105: - | AV105: - | AW105: 6-2 | AX105: - | AY105: - | AZ105: -
A106: 41 | B106: 40 | C106: 43 | D106: 37 | E106: 37 | F106: 137 | G106: - | H106: - | I106: - | J106: - | K106: - | L106: - | M106: - | N106: - | O106: - | P106: - | Q106: - | R106: - | S106: - | T106: - | U106: - | V106: - | W106: - | X106: - | Y106: - | Z106: - | AA106: 0-25 | AB106: - | AC106: - | AD106: - | AE106: - | AF106: - | AG106: - | AH106: 3-10 | AI106: - | AJ106: 1-14 | AK106: 4-9 | AL106: 2-12 | AM106: - | AN106: - | AO106: 4-12 | AP106: - | AQ106: - | AR106: - | AS106: - | AT106: - | AU106: - | AV106: - | AW106: - | AX106: 11-4 | AY106: 13-1 | AZ106: -
A107: 42 | B107: 41 | C107: 44 | D107: 44 | E107: 44 | F107: 144 | G107: - | H107: - | I107: - | J107: - | K107: - | L107: - | M107: - | N107: - | O107: - | P107: - | Q107: - | R107: - | S107: - | T107: - | U107: - | V107: - | W107: - | X107: - | Y107: - | Z107: - | AA107: 2-20 | AB107: - | AC107: - | AD107: - | AE107: - | AF107: - | AG107: - | AH107: - | AI107: - | AJ107: 3-15 | AK107: 0-17 | AL107: - | AM107: - | AN107: - | AO107: 6-7 | AP107: - | AQ107: - | AR107: 5-7 | AS107: 7-8 | AT107: - | AU107: - | AV107: - | AW107: - | AX107: - | AY107: 7-4 | AZ107: -
A108: 43 | B108: 43 | C108: 45 | D108: 23 | E108: 23 | F108: 123 | G108: - | H108: - | I108: - | J108: - | K108: - | L108: - | M108: - | N108: - | O108: - | P108: - | Q108: - | R108: - | S108: - | T108: - | U108: - | V108: - | W108: - | X108: - | Y108: - | Z108: 0-31 | AA108: 1-17 | AB108: 1-36 | AC108: 2-19 | AD108: - | AE108: 0-20 | AF108: - | AG108: - | AH108: - | AI108: 1-15 | AJ108: - | AK108: - | AL108: - | AM108: 1-25 | AN108: 0-11 | AO108: - | AP108: - | AQ108: - | AR108: - | AS108: - | AT108: 2-6 | AU108: - | AV108: - | AW108: - | AX108: - | AY108: - | AZ108: -
A109: 44 | B109: 44 | C109: 46 | D109: 34 | E109: 34 | F109: 134 | G109: - | H109: - | I109: - | J109: - | K109: - | L109: - | M109: - | N109: - | O109: - | P109: - | Q109: - | R109: - | S109: - | T109: - | U109: - | V109: - | W109: - | X109: - | Y109: - | Z109: - | AA109: - | AB109: - | AC109: - | AD109: - | AE109: - | AF109: - | AG109: - | AH109: - | AI109: 0-9 | AJ109: - | AK109: - | AL109: - | AM109: - | AN109: - | AO109: 2-9 | AP109: 3-13 | AQ109: 0-7 | AR109: - | AS109: - | AT109: - | AU109: 4-11 | AV109: - | AW109: - | AX109: - | AY109: 4-0 | AZ109: 10-0
A110: 45 | B110: 46 | C110: 47 | D110: 41 | E110: 41 | F110: 141 | G110: - | H110: - | I110: - | J110: - | K110: - | L110: - | M110: - | N110: - | O110: - | P110: - | Q110: - | R110: - | S110: - | T110: - | U110: - | V110: - | W110: - | X110: - | Y110: - | Z110: - | AA110: - | AB110: - | AC110: - | AD110: - | AE110: - | AF110: - | AG110: - | AH110: 0-20 | AI110: - | AJ110: - | AK110: 1-22 | AL110: - | AM110: - | AN110: - | AO110: 1-36 | AP110: - | AQ110: 0-9 | AR110: 0-9 | AS110: - | AT110: - | AU110: 1-13 | AV110: 4-7 | AW110: - | AX110: 0-4 | AY110: - | AZ110: -
A111: 46 | B111: 45 | C111: 48 | D111: 36 | E111: 36 | F111: 136 | G111: - | H111: - | I111: - | J111: - | K111: - | L111: - | M111: - | N111: - | O111: - | P111: - | Q111: - | R111: - | S111: - | T111: - | U111: - | V111: - | W111: - | X111: - | Y111: - | Z111: - | AA111: - | AB111: - | AC111: - | AD111: - | AE111: - | AF111: - | AG111: - | AH111: 0-21 | AI111: - | AJ111: - | AK111: - | AL111: 0-17 | AM111: - | AN111: - | AO111: - | AP111: - | AQ111: 0-7 | AR111: - | AS111: - | AT111: - | AU111: - | AV111: - | AW111: - | AX111: 0-10 | AY111: - | AZ111: -

Sheet SquirtGamesMatrix
A1: Leave this blank line in here!!!!!
A2: Teams | B2: 201 | C2: 202 | D2: 203 | E2: 204 | F2: 205 | G2: 206 | H2: 207 | I2: 208 | J2: 209 | K2: 210 | L2: 211 | M2: 212 | N2: 213 | O2: 214 | P2: 215 | Q2: 216 | R2: 217 | S2: 218 | T2: 219 | U2: 220 | V2: 221 | W2: 222 | X2: 223 | Y2: 224 | Z2: 225 | AA2: 226 | AB2: 227 | AC2: 228 | AD2: 229 | AE2: 230 | AF2: 231 | AG2: 232 | AH2: 233 | AI2: 234 | AJ2: 235 | AK2: 236 | AL2: 237 | AM2: 238 | AN2: 239 | AO2: 240 | AP2: 241 | AQ2: 242
A3: 201 | C3: 11 | D3: 2 | E3: 2 | F3: 12 | G3: 5 | H3: 1
A4: 202 | B4: 2 | D4: 3 | E4: 2 | F4: 7 | G4: 2 | H4: 1 | I4: 6 | J4: 9 | M4: 6
A5: 203 | B5: 2 | C5: 4 | E5: 2 | F5: 6 | G5: 6 | H5: 4 | K5: 4 | L5: 8 | M5: 6 | P5: 10
A6: 204 | B6: 3 | C6: 7 | D6: 7 | F6: 10 | G6: 9 | H6: 7
A7: 205 | B7: 2 | C7: 1 | D7: 0 | E7: 0 | G7: 2 | I7: 3
A8: 206 | B8: 0 | C8: 3 | D8: 2 | E8: 4 | F8: 4 | H8: 3 | I8: 7 | P8: 6
A9: 207 | B9: 4 | C9: 1 | D9: 1 | E9: 1 | G9: 9 | I9: 6 | L9: 8
A10: 208 | C10: 5 | F10: 6 | G10: 5 | H10: 1 | J10: 4 | K10: 7 | N10: 9 | R10: 11
A11: 209 | C11: 3 | I11: 3 | K11: 6 | L11: 0 | M11: 1 | N11: 2 | O11: 5 | Q11: 6 | S11: 7
A12: 210 | D12: 0 | I12: 3 | J12: 6 | L12: 13 | M12: 1 | P12: 9 | Q12: 4 | T12: 8
A13: 211 | D13: 3 | H13: 2 | J13: 10 | K13: 10 | M13: 5 | N13: 10 | O13: 3 | P13: 6
A14: 212 | C14: 6 | D14: 3 | J14: 6 | K14: 8 | L14: 3 | N14: 4 | O14: 6 | P14: 8 | V14: 12
A15: 213 | I15: 2 | J15: 4 | L15: 0 | M15: 1 | O15: 1 | P15: 1 | Q15: 5 | W15: 6
A16: 214 | J16: 4 | L16: 5 | M16: 3 | N16: 8 | P16: 5 | Q16: 10 | T16: 5 | U16: 9
A17: 215 | D17: 0 | G17: 1 | K17: 3 | L17: 0 | M17: 2 | N17: 3 | O17: 4 | Q17: 6 | R17: 8
A18: 216 | J18: 0 | K18: 2 | N18: 4 | O18: 0 | P18: 1 | R18: 4 | S18: 8 | T18: 3 | W18: 2
A19: 217 | I19: 0 | P19: 0 | Q19: 1 | S19: 6 | T19: 3 | AE19: 11
A20: 218 | J20: 1 | Q20: 3 | R20: 5 | T20: 2 | U20: 2 | Y20: 8 | AD20: 5
A21: 219 | K21: 1 | O21: 2 | Q21: 0 | R21: 11 | S21: 12 | U21: 3 | V21: 2 | Y21: 0
A22: 220 | O22: 0 | S22: 3 | T22: 3 | V22: 4 | W22: 3 | X22: 3 | Y22: 3 | AA22: 9
A23: 221 | M23: 2 | T23: 3 | U23: 1 | W23: 1 | X23: 10 | AE23: 12
A24: 222 | N24: 3 | Q24: 5 | U24: 6 | V24: 7 | X24: 11 | Y24: 9 | AF24: 12
A25: 223 | U25: 0 | V25: 0 | W25: 1 | Y25: 0 | Z25: 4 | AA25: 4 | AC25: 4 | AD25: 3
A26: 224 | S26: 3 | T26: 4 | U26: 2 | W26: 1 | X26: 6 | Z26: 8 | AA26: 4 | AB26: 7 | AH26: 10
A27: 225 | X27: 4 | Y27: 0 | AA27: 3 | AB27: 7 | AC27: 0 | AD27: 3 | AF27: 4 | AI27: 1
A28: 226 | U28: 1 | X28: 1 | Y28: 1 | Z28: 0 | AB28: 6 | AC28: 3 | AD28: 0
A29: 227 | Y29: 1 | Z29: 4 | AA29: 2 | AC29: 4 | AD29: 2 | AE29: 12 | AG29: 6
A30: 228 | X30: 1 | Z30: 4 | AA30: 3 | AB30: 5 | AD30: 7 | AE30: 10 | AF30: 2 | AG30: 5 | AI30: 5
A31: 229 | S31: 4 | X31: 3 | Z31: 5 | AA31: 5 | AB31: 7 | AC31: 4 | AE31: 9 | AF31: 10 | AG31: 10 | AJ31: 1
A32: 230 | R32: 2 | V32: 0 | AB32: 3 | AC32: 0 | AD32: 0 | AF32: 4 | AG32: 5 | AJ32: 2 | AK32: 0
A33: 231 | W33: 0 | Z33: 3 | AC33: 4 | AD33: 2 | AE33: 18 | AG33: 13 | AH33: 9 | AI33: 3 | AJ33: 4 | AK33: 10
A34: 232 | AB34: 1 | AC34: 2 | AD34: 1 | AE34: 6 | AF34: 1 | AH34: 6 | AI34: 1
A35: 233 | Y35: 0 | AF35: 1 | AG35: 3 | AI35: 0 | AJ35: 0 | AK35: 0 | AO35: 9
A36: 234 | Z36: 1 | AC36: 5 | AF36: 1 | AG36: 9 | AH36: 9 | AJ36: 4 | AK36: 2 | AL36: 10 | AP36: 8
A37: 235 | AD37: 1 | AE37: 5 | AF37: 1 | AH37: 4 | AI37: 0 | AK37: 3 | AL37: 5 | AP37: 1 | AQ37: 9
A38: 236 | AE38: 7 | AF38: 2 | AH38: 9 | AI38: 5 | AJ38: 4 | AL38: 10 | AM38: 8 | AN38: 7 | AQ38: 14
A39: 237 | AI39: 0 | AJ39: 0 | AK39: 0 | AM39: 1 | AN39: 1 | AO39: 7 | AP39: 1 | AQ39: 7
A40: 238 | AK40: 2 | AL40: 7 | AN40: 2 | AO40: 9 | AP40: 1 | AQ40: 11
A41: 239 | AK41: 0 | AL41: 7 | AM41: 6 | AO41: 8 | AP41: 3 | AQ41: 4
A42: 240 | AH42: 0 | AL42: 1 | AM42: 0 | AN42: 0 | AP42: 0 | AQ42: 1
A43: 241 | AI43: 0 | AJ43: 1 | AL43: 6 | AM43: 8 | AN43: 1 | AO43: 9 | AQ43: 7
A44: 242 | AJ44: 1 | AK44: 1 | AL44: 4 | AM44: 1 | AN44: 2 | AO44: 5 | AP44: 1
J59: From | K59: b3: AJ37
J60: To | K60: b3: AQ44
F63: CSHL | G63: 1 | H63: 2 | I63: 3 | J63: 4 | K63: 5 | L63: 6 | M63: 7 | N63: 8 | O63: 9 | P63: 10 | Q63: 11 | R63: 12 | S63: 13 | T63: 14 | U63: 15 | V63: 16 | W63: 17 | X63: 18 | Y63: 19 | Z63: 20 | AA63: 21 | AB63: 22 | AC63: 23 | AD63: 24 | AE63: 25 | AF63: 26 | AG63: 27 | AH63: 28 | AI63: 29 | AJ63: 30 | AK63: 31 | AL63: 32 | AM63: 33 | AN63: 34 | AO63: 35 | AP63: 36 | AQ63: 37 | AR63: 38 | AS63: 39 | AT63: 40 | AU63: 41 | AV63: 42
F64: MW | G64: 1 | H64: 2 | I64: 3 | J64: 4 | K64: 5 | L64: 7 | M64: 6 | N64: 8 | O64: 9 | P64: 10 | Q64: 11 | R64: 12 | S64: 13 | T64: 14 | U64: 16 | V64: 15 | W64: 17 | X64: 18 | Y64: 19 | Z64: 20 | AA64: 21 | AB64: 22 | AC64: 23 | AD64: 24 | AE64: 26 | AF64: 28 | AG64: 25 | AH64: 29 | AI64: 27 | AJ64: 31 | AK64: 30 | AL64: 32 | AM64: 33 | AN64: 36 | AO64: 34 | AP64: 37 | AQ64: 35 | AR64: 38 | AS64: 39 | AT64: 41 | AU64: 40 | AV64: 42
F65: Walkush | G65: 1 | H65: 4 | I65: 2 | J65: 3 | K65: 5 | L65: 6 | M65: 7 | N65: 8 | O65: 9 | P65: 10 | Q65: 11 | R65: 13 | S65: 12 | T65: 14 | U65: 15 | V65: 16 | W65: 17 | X65: 18 | Y65: 19 | Z65: 20 | AA65: 21 | AB65: 22 | AC65: 23 | AD65: 24 | AE65: 25 | AF65: 26 | AG65: 29 | AH65: 27 | AI65: 31 | AJ65: 28 | AK65: 32 | AL65: 30 | AM65: 33 | AN65: 34 | AO65: 36 | AP65: 35 | AQ65: 37 | AR65: 38 | AS65: 39 | AT65: 40 | AU65: 41 | AV65: 42
F66: Custom | G66: 4 | H66: 1 | I66: 7 | J66: 3 | K66: 2 | L66: 6 | M66: 12 | N66: 11 | O66: 8 | P66: 14 | Q66: 10 | R66: 5 | S66: 9 | T66: 15 | U66: 13 | V66: 22 | W66: 16 | X66: 19 | Y66: 20 | Z66: 21 | AA66: 24 | AB66: 18 | AC66: 17 | AD66: 29 | AE66: 23 | AF66: 28 | AG66: 31 | AH66: 25 | AI66: 34 | AJ66: 26 | AK66: 36 | AL66: 27 | AM66: 35 | AN66: 32 | AO66: 41 | AP66: 30 | AQ66: 39 | AR66: 38 | AS66: 33 | AT66: 42 | AU66: 37 | AV66: 40
F67: Index | G67: 4 | H67: 1 | I67: 7 | J67: 3 | K67: 2 | L67: 6 | M67: 12 | N67: 11 | O67: 8 | P67: 14 | Q67: 10 | R67: 5 | S67: 9 | T67: 15 | U67: 13 | V67: 22 | W67: 16 | X67: 19 | Y67: 20 | Z67: 21 | AA67: 24 | AB67: 18 | AC67: 17 | AD67: 29 | AE67: 23 | AF67: 28 | AG67: 31 | AH67: 25 | AI67: 34 | AJ67: 26 | AK67: 36 | AL67: 27 | AM67: 35 | AN67: 32 | AO67: 41 | AP67: 30 | AQ67: 39 | AR67: 38 | AS67: 33 | AT67: 42 | AU67: 37 | AV67: 40
A68: CSHL | B68: MW | C68: Walkush | D68: Custom | E68: Index | F68: Team | G68: 204 | H68: 201 | I68: 207 | J68: 203 | K68: 202 | L68: 206 | M68: 212 | N68: 211 | O68: 208 | P68: 214 | Q68: 210 | R68: 205 | S68: 209 | T68: 215 | U68: 213 | V68: 222 | W68: 216 | X68: 219 | Y68: 220 | Z68: 221 | AA68: 224 | AB68: 218 | AC68: 217 | AD68: 229 | AE68: 223 | AF68: 228 | AG68: 231 | AH68: 225 | AI68: 234 | AJ68: 226 | AK68: 236 | AL68: 227 | AM68: 235 | AN68: 232 | AO68: 241 | AP68: 230 | AQ68: 239 | AR68: 238 | AS68: 233 | AT68: 242 | AU68: 237 | AV68: 240
A69: 1 | B69: 1 | C69: 1 | D69: 4 | E69: 4 | F69: 204 | G69: =INDEX($B$3:$AQ$44,$E69,G$67)&"-"&INDEX($B$3:$AQ$44,G$67,$E69) -> - | H69: =INDEX($B$3:$AQ$44,$E69,H$67)&"-"&INDEX($B$3:$AQ$44,H$67,$E69) -> 3-2 | I69: =INDEX($B$3:$AQ$44,$E69,I$67)&"-"&INDEX($B$3:$AQ$44,I$67,$E69) -> 7-1 | J69: =INDEX($B$3:$AQ$44,$E69,J$67)&"-"&INDEX($B$3:$AQ$44,J$67,$E69) -> 7-2 | K69: =INDEX($B$3:$AQ$44,$E69,K$67)&"-"&INDEX($B$3:$AQ$44,K$67,$E69) -> 7-2 | L69: =INDEX($B$3:$AQ$44,$E69,L$67)&"-"&INDEX($B$3:$AQ$44,L$67,$E69) -> 9-4 | M69: =INDEX($B$3:$AQ$44,$E69,M$67)&"-"&INDEX($B$3:$AQ$44,M$67,$E69) -> - | N69: =INDEX($B$3:$AQ$44,$E69,N$67)&"-"&INDEX($B$3:$AQ$44,N$67,$E69) -> - | O69: =INDEX($B$3:$AQ$44,$E69,O$67)&"-"&INDEX($B$3:$AQ$44,O$67,$E69) -> - | P69: =INDEX($B$3:$AQ$44,$E69,P$67)&"-"&INDEX($B$3:$AQ$44,P$67,$E69) -> - | Q69: =INDEX($B$3:$AQ$44,$E69,Q$67)&"-"&INDEX($B$3:$AQ$44,Q$67,$E69) -> - | R69: =INDEX($B$3:$AQ$44,$E69,R$67)&"-"&INDEX($B$3:$AQ$44,R$67,$E69) -> 10-0 | S69: =INDEX($B$3:$AQ$44,$E69,S$67)&"-"&INDEX($B$3:$AQ$44,S$67,$E69) -> - | T69: =INDEX($B$3:$AQ$44,$E69,T$67)&"-"&INDEX($B$3:$AQ$44,T$67,$E69) -> - | U69: =INDEX($B$3:$AQ$44,$E69,U$67)&"-"&INDEX($B$3:$AQ$44,U$67,$E69) -> - | V69: =INDEX($B$3:$AQ$44,$E69,V$67)&"-"&INDEX($B$3:$AQ$44,V$67,$E69) -> - | W69: =INDEX($B$3:$AQ$44,$E69,W$67)&"-"&INDEX($B$3:$AQ$44,W$67,$E69) -> - | X69: =INDEX($B$3:$AQ$44,$E69,X$67)&"-"&INDEX($B$3:$AQ$44,X$67,$E69) -> - | Y69: =INDEX($B$3:$AQ$44,$E69,Y$67)&"-"&INDEX($B$3:$AQ$44,Y$67,$E69) -> - | Z69: =INDEX($B$3:$AQ$44,$E69,Z$67)&"-"&INDEX($B$3:$AQ$44,Z$67,$E69) -> - | AA69: =INDEX($B$3:$AQ$44,$E69,AA$67)&"-"&INDEX($B$3:$AQ$44,AA$67,$E69) -> - | AB69: =INDEX($B$3:$AQ$44,$E69,AB$67)&"-"&INDEX($B$3:$AQ$44,AB$67,$E69) -> - | AC69: =INDEX($B$3:$AQ$44,$E69,AC$67)&"-"&INDEX($B$3:$AQ$44,AC$67,$E69) -> - | AD69: =INDEX($B$3:$AQ$44,$E69,AD$67)&"-"&INDEX($B$3:$AQ$44,AD$67,$E69) -> - | AE69: =INDEX($B$3:$AQ$44,$E69,AE$67)&"-"&INDEX($B$3:$AQ$44,AE$67,$E69) -> - | AF69: =INDEX($B$3:$AQ$44,$E69,AF$67)&"-"&INDEX($B$3:$AQ$44,AF$67,$E69) -> - | AG69: =INDEX($B$3:$AQ$44,$E69,AG$67)&"-"&INDEX($B$3:$AQ$44,AG$67,$E69) -> - | AH69: =INDEX($B$3:$AQ$44,$E69,AH$67)&"-"&INDEX($B$3:$AQ$44,AH$67,$E69) -> - | AI69: =INDEX($B$3:$AQ$44,$E69,AI$67)&"-"&INDEX($B$3:$AQ$44,AI$67,$E69) -> - | AJ69: =INDEX($B$3:$AQ$44,$E69,AJ$67)&"-"&INDEX($B$3:$AQ$44,AJ$67,$E69) -> - | AK69: =INDEX($B$3:$AQ$44,$E69,AK$67)&"-"&INDEX($B$3:$AQ$44,AK$67,$E69) -> - | AL69: =INDEX($B$3:$AQ$44,$E69,AL$67)&"-"&INDEX($B$3:$AQ$44,AL$67,$E69) -> - | AM69: =INDEX($B$3:$AQ$44,$E69,AM$67)&"-"&INDEX($B$3:$AQ$44,AM$67,$E69) -> - | AN69: =INDEX($B$3:$AQ$44,$E69,AN$67)&"-"&INDEX($B$3:$AQ$44,AN$67,$E69) -> - | AO69: =INDEX($B$3:$AQ$44,$E69,AO$67)&"-"&INDEX($B$3:$AQ$44,AO$67,$E69) -> - | AP69: =INDEX($B$3:$AQ$44,$E69,AP$67)&"-"&INDEX($B$3:$AQ$44,AP$67,$E69) -> - | AQ69: - | AR69: - | AS69: - | AT69: - | AU69: - | AV69: -
A70: 2 | B70: 2 | C70: 4 | D70: 1 | E70: 1 | F70: 201 | G70: =INDEX($B$3:$AQ$44,$E70,G$67)&"-"&INDEX($B$3:$AQ$44,G$67,$E70) -> 2-3 | H70: =INDEX($B$3:$AQ$44,$E70,H$67)&"-"&INDEX($B$3:$AQ$44,H$67,$E70) -> - | I70: =INDEX($B$3:$AQ$44,$E70,I$67)&"-"&INDEX($B$3:$AQ$44,I$67,$E70) -> 1-4 | J70: =INDEX($B$3:$AQ$44,$E70,J$67)&"-"&INDEX($B$3:$AQ$44,J$67,$E70) -> 2-2 | K70: =INDEX($B$3:$AQ$44,$E70,K$67)&"-"&INDEX($B$3:$AQ$44,K$67,$E70) -> 11-2 | L70: =INDEX($B$3:$AQ$44,$E70,L$67)&"-"&INDEX($B$3:$AQ$44,L$67,$E70) -> 5-0 | M70: =INDEX($B$3:$AQ$44,$E70,M$67)&"-"&INDEX($B$3:$AQ$44,M$67,$E70) -> - | N70: =INDEX($B$3:$AQ$44,$E70,N$67)&"-"&INDEX($B$3:$AQ$44,N$67,$E70) -> - | O70: =INDEX($B$3:$AQ$44,$E70,O$67)&"-"&INDEX($B$3:$AQ$44,O$67,$E70) -> - | P70: =INDEX($B$3:$AQ$44,$E70,P$67)&"-"&INDEX($B$3:$AQ$44,P$67,$E70) -> - | Q70: =INDEX($B$3:$AQ$44,$E70,Q$67)&"-"&INDEX($B$3:$AQ$44,Q$67,$E70) -> - | R70: =INDEX($B$3:$AQ$44,$E70,R$67)&"-"&INDEX($B$3:$AQ$44,R$67,$E70) -> 12-2 | S70: =INDEX($B$3:$AQ$44,$E70,S$67)&"-"&INDEX($B$3:$AQ$44,S$67,$E70) -> - | T70: =INDEX($B$3:$AQ$44,$E70,T$67)&"-"&INDEX($B$3:$AQ$44,T$67,$E70) -> - | U70: =INDEX($B$3:$AQ$44,$E70,U$67)&"-"&INDEX($B$3:$AQ$44,U$67,$E70) -> - | V70: =INDEX($B$3:$AQ$44,$E70,V$67)&"-"&INDEX($B$3:$AQ$44,V$67,$E70) -> - | W70: =INDEX($B$3:$AQ$44,$E70,W$67)&"-"&INDEX($B$3:$AQ$44,W$67,$E70) -> - | X70: =INDEX($B$3:$AQ$44,$E70,X$67)&"-"&INDEX($B$3:$AQ$44,X$67,$E70) -> - | Y70: =INDEX($B$3:$AQ$44,$E70,Y$67)&"-"&INDEX($B$3:$AQ$44,Y$67,$E70) -> - | Z70: =INDEX($B$3:$AQ$44,$E70,Z$67)&"-"&INDEX($B$3:$AQ$44,Z$67,$E70) -> - | AA70: =INDEX($B$3:$AQ$44,$E70,AA$67)&"-"&INDEX($B$3:$AQ$44,AA$67,$E70) -> - | AB70: =INDEX($B$3:$AQ$44,$E70,AB$67)&"-"&INDEX($B$3:$AQ$44,AB$67,$E70) -> - | AC70: =INDEX($B$3:$AQ$44,$E70,AC$67)&"-"&INDEX($B$3:$AQ$44,AC$67,$E70) -> - | AD70: =INDEX($B$3:$AQ$44,$E70,AD$67)&"-"&INDEX($B$3:$AQ$44,AD$67,$E70) -> - | AE70: =INDEX($B$3:$AQ$44,$E70,AE$67)&"-"&INDEX($B$3:$AQ$44,AE$67,$E70) -> - | AF70: =INDEX($B$3:$AQ$44,$E70,AF$67)&"-"&INDEX($B$3:$AQ$44,AF$67,$E70) -> - | AG70: =INDEX($B$3:$AQ$44,$E70,AG$67)&"-"&INDEX($B$3:$AQ$44,AG$67,$E70) -> - | AH70: =INDEX($B$3:$AQ$44,$E70,AH$67)&"-"&INDEX($B$3:$AQ$44,AH$67,$E70) -> - | AI70: =INDEX($B$3:$AQ$44,$E70,AI$67)&"-"&INDEX($B$3:$AQ$44,AI$67,$E70) -> - | AJ70: =INDEX($B$3:$AQ$44,$E70,AJ$67)&"-"&INDEX($B$3:$AQ$44,AJ$67,$E70) -> - | AK70: =INDEX($B$3:$AQ$44,$E70,AK$67)&"-"&INDEX($B$3:$AQ$44,AK$67,$E70) -> - | AL70: =INDEX($B$3:$AQ$44,$E70,AL$67)&"-"&INDEX($B$3:$AQ$44,AL$67,$E70) -> - | AM70: =INDEX($B$3:$AQ$44,$E70,AM$67)&"-"&INDEX($B$3:$AQ$44,AM$67,$E70) -> - | AN70: =INDEX($B$3:$AQ$44,$E70,AN$67)&"-"&INDEX($B$3:$AQ$44,AN$67,$E70) -> - | AO70: =INDEX($B$3:$AQ$44,$E70,AO$67)&"-"&INDEX($B$3:$AQ$44,AO$67,$E70) -> - | AP70: - | AQ70: - | AR70: - | AS70: - | AT70: - | AU70: - | AV70: -
A71: 3 | B71: 3 | C71: 2 | D71: 7 | E71: 7 | F71: 207 | G71: =INDEX($B$3:$AQ$44,$E71,G$67)&"-"&INDEX($B$3:$AQ$44,G$67,$E71) -> 1-7 | H71: =INDEX($B$3:$AQ$44,$E71,H$67)&"-"&INDEX($B$3:$AQ$44,H$67,$E71) -> 4-1 | I71: =INDEX($B$3:$AQ$44,$E71,I$67)&"-"&INDEX($B$3:$AQ$44,I$67,$E71) -> - | J71: =INDEX($B$3:$AQ$44,$E71,J$67)&"-"&INDEX($B$3:$AQ$44,J$67,$E71) -> 1-4 | K71: =INDEX($B$3:$AQ$44,$E71,K$67)&"-"&INDEX($B$3:$AQ$44,K$67,$E71) -> 1-1 | L71: =INDEX($B$3:$AQ$44,$E71,L$67)&"-"&INDEX($B$3:$AQ$44,L$67,$E71) -> 9-3 | M71: =INDEX($B$3:$AQ$44,$E71,M$67)&"-"&INDEX($B$3:$AQ$44,M$67,$E71) -> - | N71: =INDEX($B$3:$AQ$44,$E71,N$67)&"-"&INDEX($B$3:$AQ$44,N$67,$E71) -> 8-2 | O71: =INDEX($B$3:$AQ$44,$E71,O$67)&"-"&INDEX($B$3:$AQ$44,O$67,$E71) -> 6-1 | P71: =INDEX($B$3:$AQ$44,$E71,P$67)&"-"&INDEX($B$3:$AQ$44,P$67,$E71) -> - | Q71: =INDEX($B$3:$AQ$44,$E71,Q$67)&"-"&INDEX($B$3:$AQ$44,Q$67,$E71) -> - | R71: =INDEX($B$3:$AQ$44,$E71,R$67)&"-"&INDEX($B$3:$AQ$44,R$67,$E71) -> - | S71: =INDEX($B$3:$AQ$44,$E71,S$67)&"-"&INDEX($B$3:$AQ$44,S$67,$E71) -> - | T71: =INDEX($B$3:$AQ$44,$E71,T$67)&"-"&INDEX($B$3:$AQ$44,T$67,$E71) -> - | U71: =INDEX($B$3:$AQ$44,$E71,U$67)&"-"&INDEX($B$3:$AQ$44,U$67,$E71) -> - | V71: =INDEX($B$3:$AQ$44,$E71,V$67)&"-"&INDEX($B$3:$AQ$44,V$67,$E71) -> - | W71: =INDEX($B$3:$AQ$44,$E71,W$67)&"-"&INDEX($B$3:$AQ$44,W$67,$E71) -> - | X71: =INDEX($B$3:$AQ$44,$E71,X$67)&"-"&INDEX($B$3:$AQ$44,X$67,$E71) -> - | Y71: =INDEX($B$3:$AQ$44,$E71,Y$67)&"-"&INDEX($B$3:$AQ$44,Y$67,$E71) -> - | Z71: =INDEX($B$3:$AQ$44,$E71,Z$67)&"-"&INDEX($B$3:$AQ$44,Z$67,$E71) -> - | AA71: =INDEX($B$3:$AQ$44,$E71,AA$67)&"-"&INDEX($B$3:$AQ$44,AA$67,$E71) -> - | AB71: =INDEX($B$3:$AQ$44,$E71,AB$67)&"-"&INDEX($B$3:$AQ$44,AB$67,$E71) -> - | AC71: =INDEX($B$3:$AQ$44,$E71,AC$67)&"-"&INDEX($B$3:$AQ$44,AC$67,$E71) -> - | AD71: =INDEX($B$3:$AQ$44,$E71,AD$67)&"-"&INDEX($B$3:$AQ$44,AD$67,$E71) -> - | AE71: =INDEX($B$3:$AQ$44,$E71,AE$67)&"-"&INDEX($B$3:$AQ$44,AE$67,$E71) -> - | AF71: =INDEX($B$3:$AQ$44,$E71,AF$67)&"-"&INDEX($B$3:$AQ$44,AF$67,$E71) -> - | AG71: =INDEX($B$3:$AQ$44,$E71,AG$67)&"-"&INDEX($B$3:$AQ$44,AG$67,$E71) -> - | AH71: =INDEX($B$3:$AQ$44,$E71,AH$67)&"-"&INDEX($B$3:$AQ$44,AH$67,$E71) -> - | AI71: =INDEX($B$3:$AQ$44,$E71,AI$67)&"-"&INDEX($B$3:$AQ$44,AI$67,$E71) -> - | AJ71: =INDEX($B$3:$AQ$44,$E71,AJ$67)&"-"&INDEX($B$3:$AQ$44,AJ$67,$E71) -> - | AK71: =INDEX($B$3:$AQ$44,$E71,AK$67)&"-"&INDEX($B$3:$AQ$44,AK$67,$E71) -> - | AL71: =INDEX($B$3:$AQ$44,$E71,AL$67)&"-"&INDEX($B$3:$AQ$44,AL$67,$E71) -> - | AM71: =INDEX($B$3:$AQ$44,$E71,AM$67)&"-"&INDEX($B$3:$AQ$44,AM$67,$E71) -> - | AN71: =INDEX($B$3:$AQ$44,$E71,AN$67)&"-"&INDEX($B$3:$AQ$44,AN$67,$E71) -> - | AO71: =INDEX($B$3:$AQ$44,$E71,AO$67)&"-"&INDEX($B$3:$AQ$44,AO$67,$E71) -> - | AP71: - | AQ71: - | AR71: - | AS71: - | AT71: - | AU71: - | AV71: -
A72: 4 | B72: 4 | C72: 3 | D72: 3 | E72: 3 | F72: 203 | G72: =INDEX($B$3:$AQ$44,$E72,G$67)&"-"&INDEX($B$3:$AQ$44,G$67,$E72) -> 2-7 | H72: =INDEX($B$3:$AQ$44,$E72,H$67)&"-"&INDEX($B$3:$AQ$44,H$67,$E72) -> 2-2 | I72: =INDEX($B$3:$AQ$44,$E72,I$67)&"-"&INDEX($B$3:$AQ$44,I$67,$E72) -> 4-1 | J72: =INDEX($B$3:$AQ$44,$E72,J$67)&"-"&INDEX($B$3:$AQ$44,J$67,$E72) -> - | K72: =INDEX($B$3:$AQ$44,$E72,K$67)&"-"&INDEX($B$3:$AQ$44,K$67,$E72) -> 4-3 | L72: =INDEX($B$3:$AQ$44,$E72,L$67)&"-"&INDEX($B$3:$AQ$44,L$67,$E72) -> 6-2 | M72: =INDEX($B$3:$AQ$44,$E72,M$67)&"-"&INDEX($B$3:$AQ$44,M$67,$E72) -> 6-3 | N72: =INDEX($B$3:$AQ$44,$E72,N$67)&"-"&INDEX($B$3:$AQ$44,N$67,$E72) -> 8-3 | O72: =INDEX($B$3:$AQ$44,$E72,O$67)&"-"&INDEX($B$3:$AQ$44,O$67,$E72) -> - | P72: =INDEX($B$3:$AQ$44,$E72,P$67)&"-"&INDEX($B$3:$AQ$44,P$67,$E72) -> - | Q72: =INDEX($B$3:$AQ$44,$E72,Q$67)&"-"&INDEX($B$3:$AQ$44,Q$67,$E72) -> 4-0 | R72: =INDEX($B$3:$AQ$44,$E72,R$67)&"-"&INDEX($B$3:$AQ$44,R$67,$E72) -> 6-0 | S72: =INDEX($B$3:$AQ$44,$E72,S$67)&"-"&INDEX($B$3:$AQ$44,S$67,$E72) -> - | T72: =INDEX($B$3:$AQ$44,$E72,T$67)&"-"&INDEX($B$3:$AQ$44,T$67,$E72) -> 10-0 | U72: =INDEX($B$3:$AQ$44,$E72,U$67)&"-"&INDEX($B$3:$AQ$44,U$67,$E72) -> - | V72: =INDEX($B$3:$AQ$44,$E72,V$67)&"-"&INDEX($B$3:$AQ$44,V$67,$E72) -> - | W72: =INDEX($B$3:$AQ$44,$E72,W$67)&"-"&INDEX($B$3:$AQ$44,W$67,$E72) -> - | X72: =INDEX($B$3:$AQ$44,$E72,X$67)&"-"&INDEX($B$3:$AQ$44,X$67,$E72) -> - | Y72: =INDEX($B$3:$AQ$44,$E72,Y$67)&"-"&INDEX($B$3:$AQ$44,Y$67,$E72) -> - | Z72: =INDEX($B$3:$AQ$44,$E72,Z$67)&"-"&INDEX($B$3:$AQ$44,Z$67,$E72) -> - | AA72: =INDEX($B$3:$AQ$44,$E72,AA$67)&"-"&INDEX($B$3:$AQ$44,AA$67,$E72) -> - | AB72: =INDEX($B$3:$AQ$44,$E72,AB$67)&"-"&INDEX($B$3:$AQ$44,AB$67,$E72) -> - | AC72: =INDEX($B$3:$AQ$44,$E72,AC$67)&"-"&INDEX($B$3:$AQ$44,AC$67,$E72) -> - | AD72: =INDEX($B$3:$AQ$44,$E72,AD$67)&"-"&INDEX($B$3:$AQ$44,AD$67,$E72) -> - | AE72: =INDEX($B$3:$AQ$44,$E72,AE$67)&"-"&INDEX($B$3:$AQ$44,AE$67,$E72) -> - | AF72: =INDEX($B$3:$AQ$44,$E72,AF$67)&"-"&INDEX($B$3:$AQ$44,AF$67,$E72) -> - | AG72: =INDEX($B$3:$AQ$44,$E72,AG$67)&"-"&INDEX($B$3:$AQ$44,AG$67,$E72) -> - | AH72: =INDEX($B$3:$AQ$44,$E72,AH$67)&"-"&INDEX($B$3:$AQ$44,AH$67,$E72) -> - | AI72: =INDEX($B$3:$AQ$44,$E72,AI$67)&"-"&INDEX($B$3:$AQ$44,AI$67,$E72) -> - | AJ72: =INDEX($B$3:$AQ$44,$E72,AJ$67)&"-"&INDEX($B$3:$AQ$44,AJ$67,$E72) -> - | AK72: =INDEX($B$3:$AQ$44,$E72,AK$67)&"-"&INDEX($B$3:$AQ$44,AK$67,$E72) -> - | AL72: =INDEX($B$3:$AQ$44,$E72,AL$67)&"-"&INDEX($B$3:$AQ$44,AL$67,$E72) -> - | AM72: =INDEX($B$3:$AQ$44,$E72,AM$67)&"-"&INDEX($B$3:$AQ$44,AM$67,$E72) -> - | AN72: =INDEX($B$3:$AQ$44,$E72,AN$67)&"-"&INDEX($B$3:$AQ$44,AN$67,$E72) -> - | AO72: =INDEX($B$3:$AQ$44,$E72,AO$67)&"-"&INDEX($B$3:$AQ$44,AO$67,$E72) -> - | AP72: - | AQ72: - | AR72: - | AS72: - | AT72: - | AU72: - | AV72: -
A73: 5 | B73: 5 | C73: 5 | D73: 2 | E73: 2 | F73: 202 | G73: =INDEX($B$3:$AQ$44,$E73,G$67)&"-"&INDEX($B$3:$AQ$44,G$67,$E73) -> 2-7 | H73: =INDEX($B$3:$AQ$44,$E73,H$67)&"-"&INDEX($B$3:$AQ$44,H$67,$E73) -> 2-11 | I73: =INDEX($B$3:$AQ$44,$E73,I$67)&"-"&INDEX($B$3:$AQ$44,I$67,$E73) -> 1-1 | J73: =INDEX($B$3:$AQ$44,$E73,J$67)&"-"&INDEX($B$3:$AQ$44,J$67,$E73) -> 3-4 | K73: =INDEX($B$3:$AQ$44,$E73,K$67)&"-"&INDEX($B$3:$AQ$44,K$67,$E73) -> - | L73: =INDEX($B$3:$AQ$44,$E73,L$67)&"-"&INDEX($B$3:$AQ$44,L$67,$E73) -> 2-3 | M73: =INDEX($B$3:$AQ$44,$E73,M$67)&"-"&INDEX($B$3:$AQ$44,M$67,$E73) -> 6-6 | N73: =INDEX($B$3:$AQ$44,$E73,N$67)&"-"&INDEX($B$3:$AQ$44,N$67,$E73) -> - | O73: =INDEX($B$3:$AQ$44,$E73,O$67)&"-"&INDEX($B$3:$AQ$44,O$67,$E73) -> 6-5 | P73: =INDEX($B$3:$AQ$44,$E73,P$67)&"-"&INDEX($B$3:$AQ$44,P$67,$E73) -> - | Q73: =INDEX($B$3:$AQ$44,$E73,Q$67)&"-"&INDEX($B$3:$AQ$44,Q$67,$E73) -> - | R73: =INDEX($B$3:$AQ$44,$E73,R$67)&"-"&INDEX($B$3:$AQ$44,R$67,$E73) -> 7-1 | S73: =INDEX($B$3:$AQ$44,$E73,S$67)&"-"&INDEX($B$3:$AQ$44,S$67,$E73) -> 9-3 | T73: =INDEX($B$3:$AQ$44,$E73,T$67)&"-"&INDEX($B$3:$AQ$44,T$67,$E73) -> - | U73: =INDEX($B$3:$AQ$44,$E73,U$67)&"-"&INDEX($B$3:$AQ$44,U$67,$E73) -> - | V73: =INDEX($B$3:$AQ$44,$E73,V$67)&"-"&INDEX($B$3:$AQ$44,V$67,$E73) -> - | W73: =INDEX($B$3:$AQ$44,$E73,W$67)&"-"&INDEX($B$3:$AQ$44,W$67,$E73) -> - | X73: =INDEX($B$3:$AQ$44,$E73,X$67)&"-"&INDEX($B$3:$AQ$44,X$67,$E73) -> - | Y73: =INDEX($B$3:$AQ$44,$E73,Y$67)&"-"&INDEX($B$3:$AQ$44,Y$67,$E73) -> - | Z73: =INDEX($B$3:$AQ$44,$E73,Z$67)&"-"&INDEX($B$3:$AQ$44,Z$67,$E73) -> - | AA73: =INDEX($B$3:$AQ$44,$E73,AA$67)&"-"&INDEX($B$3:$AQ$44,AA$67,$E73) -> - | AB73: =INDEX($B$3:$AQ$44,$E73,AB$67)&"-"&INDEX($B$3:$AQ$44,AB$67,$E73) -> - | AC73: =INDEX($B$3:$AQ$44,$E73,AC$67)&"-"&INDEX($B$3:$AQ$44,AC$67,$E73) -> - | AD73: =INDEX($B$3:$AQ$44,$E73,AD$67)&"-"&INDEX($B$3:$AQ$44,AD$67,$E73) -> - | AE73: =INDEX($B$3:$AQ$44,$E73,AE$67)&"-"&INDEX($B$3:$AQ$44,AE$67,$E73) -> - | AF73: =INDEX($B$3:$AQ$44,$E73,AF$67)&"-"&INDEX($B$3:$AQ$44,AF$67,$E73) -> - | AG73: =INDEX($B$3:$AQ$44,$E73,AG$67)&"-"&INDEX($B$3:$AQ$44,AG$67,$E73) -> - | AH73: =INDEX($B$3:$AQ$44,$E73,AH$67)&"-"&INDEX($B$3:$AQ$44,AH$67,$E73) -> - | AI73: =INDEX($B$3:$AQ$44,$E73,AI$67)&"-"&INDEX($B$3:$AQ$44,AI$67,$E73) -> - | AJ73: =INDEX($B$3:$AQ$44,$E73,AJ$67)&"-"&INDEX($B$3:$AQ$44,AJ$67,$E73) -> - | AK73: =INDEX($B$3:$AQ$44,$E73,AK$67)&"-"&INDEX($B$3:$AQ$44,AK$67,$E73) -> - | AL73: =INDEX($B$3:$AQ$44,$E73,AL$67)&"-"&INDEX($B$3:$AQ$44,AL$67,$E73) -> - | AM73: =INDEX($B$3:$AQ$44,$E73,AM$67)&"-"&INDEX($B$3:$AQ$44,AM$67,$E73) -> - | AN73: =INDEX($B$3:$AQ$44,$E73,AN$67)&"-"&INDEX($B$3:$AQ$44,AN$67,$E73) -> - | AO73: =INDEX($B$3:$AQ$44,$E73,AO$67)&"-"&INDEX($B$3:$AQ$44,AO$67,$E73) -> - | AP73: - | AQ73: - | AR73: - | AS73: - | AT73: - | AU73: - | AV73: -
A74: 6 | B74: 7 | C74: 6 | D74: 6 | E74: 6 | F74: 206 | G74: =INDEX($B$3:$AQ$44,$E74,G$67)&"-"&INDEX($B$3:$AQ$44,G$67,$E74) -> 4-9 | H74: =INDEX($B$3:$AQ$44,$E74,H$67)&"-"&INDEX($B$3:$AQ$44,H$67,$E74) -> 0-5 | I74: =INDEX($B$3:$AQ$44,$E74,I$67)&"-"&INDEX($B$3:$AQ$44,I$67,$E74) -> 3-9 | J74: =INDEX($B$3:$AQ$44,$E74,J$67)&"-"&INDEX($B$3:$AQ$44,J$67,$E74) -> 2-6 | K74: =INDEX($B$3:$AQ$44,$E74,K$67)&"-"&INDEX($B$3:$AQ$44,K$67,$E74) -> 3-2 | L74: =INDEX($B$3:$AQ$44,$E74,L$67)&"-"&INDEX($B$3:$AQ$44,L$67,$E74) -> - | M74: =INDEX($B$3:$AQ$44,$E74,M$67)&"-"&INDEX($B$3:$AQ$44,M$67,$E74) -> - | N74: =INDEX($B$3:$AQ$44,$E74,N$67)&"-"&INDEX($B$3:$AQ$44,N$67,$E74) -> - | O74: =INDEX($B$3:$AQ$44,$E74,O$67)&"-"&INDEX($B$3:$AQ$44,O$67,$E74) -> 7-5 | P74: =INDEX($B$3:$AQ$44,$E74,P$67)&"-"&INDEX($B$3:$AQ$44,P$67,$E74) -> - | Q74: =INDEX($B$3:$AQ$44,$E74,Q$67)&"-"&INDEX($B$3:$AQ$44,Q$67,$E74) -> - | R74: =INDEX($B$3:$AQ$44,$E74,R$67)&"-"&INDEX($B$3:$AQ$44,R$67,$E74) -> 4-2 | S74: =INDEX($B$3:$AQ$44,$E74,S$67)&"-"&INDEX($B$3:$AQ$44,S$67,$E74) -> - | T74: =INDEX($B$3:$AQ$44,$E74,T$67)&"-"&INDEX($B$3:$AQ$44,T$67,$E74) -> 6-1 | U74: =INDEX($B$3:$AQ$44,$E74,U$67)&"-"&INDEX($B$3:$AQ$44,U$67,$E74) -> - | V74: =INDEX($B$3:$AQ$44,$E74,V$67)&"-"&INDEX($B$3:$AQ$44,V$67,$E74) -> - | W74: =INDEX($B$3:$AQ$44,$E74,W$67)&"-"&INDEX($B$3:$AQ$44,W$67,$E74) -> - | X74: =INDEX($B$3:$AQ$44,$E74,X$67)&"-"&INDEX($B$3:$AQ$44,X$67,$E74) -> - | Y74: =INDEX($B$3:$AQ$44,$E74,Y$67)&"-"&INDEX($B$3:$AQ$44,Y$67,$E74) -> - | Z74: =INDEX($B$3:$AQ$44,$E74,Z$67)&"-"&INDEX($B$3:$AQ$44,Z$67,$E74) -> - | AA74: =INDEX($B$3:$AQ$44,$E74,AA$67)&"-"&INDEX($B$3:$AQ$44,AA$67,$E74) -> - | AB74: =INDEX($B$3:$AQ$44,$E74,AB$67)&"-"&INDEX($B$3:$AQ$44,AB$67,$E74) -> - | AC74: =INDEX($B$3:$AQ$44,$E74,AC$67)&"-"&INDEX($B$3:$AQ$44,AC$67,$E74) -> - | AD74: =INDEX($B$3:$AQ$44,$E74,AD$67)&"-"&INDEX($B$3:$AQ$44,AD$67,$E74) -> - | AE74: =INDEX($B$3:$AQ$44,$E74,AE$67)&"-"&INDEX($B$3:$AQ$44,AE$67,$E74) -> - | AF74: =INDEX($B$3:$AQ$44,$E74,AF$67)&"-"&INDEX($B$3:$AQ$44,AF$67,$E74) -> - | AG74: =INDEX($B$3:$AQ$44,$E74,AG$67)&"-"&INDEX($B$3:$AQ$44,AG$67,$E74) -> - | AH74: =INDEX($B$3:$AQ$44,$E74,AH$67)&"-"&INDEX($B$3:$AQ$44,AH$67,$E74) -> - | AI74: =INDEX($B$3:$AQ$44,$E74,AI$67)&"-"&INDEX($B$3:$AQ$44,AI$67,$E74) -> - | AJ74: =INDEX($B$3:$AQ$44,$E74,AJ$67)&"-"&INDEX($B$3:$AQ$44,AJ$67,$E74) -> - | AK74: =INDEX($B$3:$AQ$44,$E74,AK$67)&"-"&INDEX($B$3:$AQ$44,AK$67,$E74) -> - | AL74: =INDEX($B$3:$AQ$44,$E74,AL$67)&"-"&INDEX($B$3:$AQ$44,AL$67,$E74) -> - | AM74: =INDEX($B$3:$AQ$44,$E74,AM$67)&"-"&INDEX($B$3:$AQ$44,AM$67,$E74) -> - | AN74: =INDEX($B$3:$AQ$44,$E74,AN$67)&"-"&INDEX($B$3:$AQ$44,AN$67,$E74) -> - | AO74: =INDEX($B$3:$AQ$44,$E74,AO$67)&"-"&INDEX($B$3:$AQ$44,AO$67,$E74) -> - | AP74: - | AQ74: - | AR74: - | AS74: - | AT74: - | AU74: - | AV74: -
A75: 7 | B75: 6 | C75: 7 | D75: 12 | E75: 12 | F75: 212 | G75: =INDEX($B$3:$AQ$44,$E75,G$67)&"-"&INDEX($B$3:$AQ$44,G$67,$E75) -> - | H75: =INDEX($B$3:$AQ$44,$E75,H$67)&"-"&INDEX($B$3:$AQ$44,H$67,$E75) -> - | I75: =INDEX($B$3:$AQ$44,$E75,I$67)&"-"&INDEX($B$3:$AQ$44,I$67,$E75) -> - | J75: =INDEX($B$3:$AQ$44,$E75,J$67)&"-"&INDEX($B$3:$AQ$44,J$67,$E75) -> 3-6 | K75: =INDEX($B$3:$AQ$44,$E75,K$67)&"-"&INDEX($B$3:$AQ$44,K$67,$E75) -> 6-6 | L75: =INDEX($B$3:$AQ$44,$E75,L$67)&"-"&INDEX($B$3:$AQ$44,L$67,$E75) -> - | M75: =INDEX($B$3:$AQ$44,$E75,M$67)&"-"&INDEX($B$3:$AQ$44,M$67,$E75) -> - | N75: =INDEX($B$3:$AQ$44,$E75,N$67)&"-"&INDEX($B$3:$AQ$44,N$67,$E75) -> 3-5 | O75: =INDEX($B$3:$AQ$44,$E75,O$67)&"-"&INDEX($B$3:$AQ$44,O$67,$E75) -> - | P75: =INDEX($B$3:$AQ$44,$E75,P$67)&"-"&INDEX($B$3:$AQ$44,P$67,$E75) -> 6-3 | Q75: =INDEX($B$3:$AQ$44,$E75,Q$67)&"-"&INDEX($B$3:$AQ$44,Q$67,$E75) -> 8-1 | R75: =INDEX($B$3:$AQ$44,$E75,R$67)&"-"&INDEX($B$3:$AQ$44,R$67,$E75) -> - | S75: =INDEX($B$3:$AQ$44,$E75,S$67)&"-"&INDEX($B$3:$AQ$44,S$67,$E75) -> 6-1 | T75: =INDEX($B$3:$AQ$44,$E75,T$67)&"-"&INDEX($B$3:$AQ$44,T$67,$E75) -> 8-2 | U75: =INDEX($B$3:$AQ$44,$E75,U$67)&"-"&INDEX($B$3:$AQ$44,U$67,$E75) -> 4-1 | V75: =INDEX($B$3:$AQ$44,$E75,V$67)&"-"&INDEX($B$3:$AQ$44,V$67,$E75) -> - | W75: =INDEX($B$3:$AQ$44,$E75,W$67)&"-"&INDEX($B$3:$AQ$44,W$67,$E75) -> - | X75: =INDEX($B$3:$AQ$44,$E75,X$67)&"-"&INDEX($B$3:$AQ$44,X$67,$E75) -> - | Y75: =INDEX($B$3:$AQ$44,$E75,Y$67)&"-"&INDEX($B$3:$AQ$44,Y$67,$E75) -> - | Z75: =INDEX($B$3:$AQ$44,$E75,Z$67)&"-"&INDEX($B$3:$AQ$44,Z$67,$E75) -> 12-2 | AA75: =INDEX($B$3:$AQ$44,$E75,AA$67)&"-"&INDEX($B$3:$AQ$44,AA$67,$E75) -> - | AB75: =INDEX($B$3:$AQ$44,$E75,AB$67)&"-"&INDEX($B$3:$AQ$44,AB$67,$E75) -> - | AC75: =INDEX($B$3:$AQ$44,$E75,AC$67)&"-"&INDEX($B$3:$AQ$44,AC$67,$E75) -> - | AD75: =INDEX($B$3:$AQ$44,$E75,AD$67)&"-"&INDEX($B$3:$AQ$44,AD$67,$E75) -> - | AE75: =INDEX($B$3:$AQ$44,$E75,AE$67)&"-"&INDEX($B$3:$AQ$44,AE$67,$E75) -> - | AF75: =INDEX($B$3:$AQ$44,$E75,AF$67)&"-"&INDEX($B$3:$AQ$44,AF$67,$E75) -> - | AG75: =INDEX($B$3:$AQ$44,$E75,AG$67)&"-"&INDEX($B$3:$AQ$44,AG$67,$E75) -> - | AH75: =INDEX($B$3:$AQ$44,$E75,AH$67)&"-"&INDEX($B$3:$AQ$44,AH$67,$E75) -> - | AI75: =INDEX($B$3:$AQ$44,$E75,AI$67)&"-"&INDEX($B$3:$AQ$44,AI$67,$E75) -> - | AJ75: =INDEX($B$3:$AQ$44,$E75,AJ$67)&"-"&INDEX($B$3:$AQ$44,AJ$67,$E75) -> - | AK75: =INDEX($B$3:$AQ$44,$E75,AK$67)&"-"&INDEX($B$3:$AQ$44,AK$67,$E75) -> - | AL75: =INDEX($B$3:$AQ$44,$E75,AL$67)&"-"&INDEX($B$3:$AQ$44,AL$67,$E75) -> - | AM75: =INDEX($B$3:$AQ$44,$E75,AM$67)&"-"&INDEX($B$3:$AQ$44,AM$67,$E75) -> - | AN75: =INDEX($B$3:$AQ$44,$E75,AN$67)&"-"&INDEX($B$3:$AQ$44,AN$67,$E75) -> - | AO75: =INDEX($B$3:$AQ$44,$E75,AO$67)&"-"&INDEX($B$3:$AQ$44,AO$67,$E75) -> - | AP75: - | AQ75: - | AR75: - | AS75: - | AT75: - | AU75: - | AV75: -
A76: 8 | B76: 8 | C76: 8 | D76: 11 | E76: 11 | F76: 211 | G76: =INDEX($B$3:$AQ$44,$E76,G$67)&"-"&INDEX($B$3:$AQ$44,G$67,$E76) -> - | H76: =INDEX($B$3:$AQ$44,$E76,H$67)&"-"&INDEX($B$3:$AQ$44,H$67,$E76) -> - | I76: =INDEX($B$3:$AQ$44,$E76,I$67)&"-"&INDEX($B$3:$AQ$44,I$67,$E76) -> 2-8 | J76: =INDEX($B$3:$AQ$44,$E76,J$67)&"-"&INDEX($B$3:$AQ$44,J$67,$E76) -> 3-8 | K76: =INDEX($B$3:$AQ$44,$E76,K$67)&"-"&INDEX($B$3:$AQ$44,K$67,$E76) -> - | L76: =INDEX($B$3:$AQ$44,$E76,L$67)&"-"&INDEX($B$3:$AQ$44,L$67,$E76) -> - | M76: =INDEX($B$3:$AQ$44,$E76,M$67)&"-"&INDEX($B$3:$AQ$44,M$67,$E76) -> 5-3 | N76: =INDEX($B$3:$AQ$44,$E76,N$67)&"-"&INDEX($B$3:$AQ$44,N$67,$E76) -> - | O76: =INDEX($B$3:$AQ$44,$E76,O$67)&"-"&INDEX($B$3:$AQ$44,O$67,$E76) -> - | P76: =INDEX($B$3:$AQ$44,$E76,P$67)&"-"&INDEX($B$3:$AQ$44,P$67,$E76) -> 3-5 | Q76: =INDEX($B$3:$AQ$44,$E76,Q$67)&"-"&INDEX($B$3:$AQ$44,Q$67,$E76) -> 10-13 | R76: =INDEX($B$3:$AQ$44,$E76,R$67)&"-"&INDEX($B$3:$AQ$44,R$67,$E76) -> - | S76: =INDEX($B$3:$AQ$44,$E76,S$67)&"-"&INDEX($B$3:$AQ$44,S$67,$E76) -> 10-0 | T76: =INDEX($B$3:$AQ$44,$E76,T$67)&"-"&INDEX($B$3:$AQ$44,T$67,$E76) -> 6-0 | U76: =INDEX($B$3:$AQ$44,$E76,U$67)&"-"&INDEX($B$3:$AQ$44,U$67,$E76) -> 10-0 | V76: =INDEX($B$3:$AQ$44,$E76,V$67)&"-"&INDEX($B$3:$AQ$44,V$67,$E76) -> - | W76: =INDEX($B$3:$AQ$44,$E76,W$67)&"-"&INDEX($B$3:$AQ$44,W$67,$E76) -> - | X76: =INDEX($B$3:$AQ$44,$E76,X$67)&"-"&INDEX($B$3:$AQ$44,X$67,$E76) -> - | Y76: =INDEX($B$3:$AQ$44,$E76,Y$67)&"-"&INDEX($B$3:$AQ$44,Y$67,$E76) -> - | Z76: =INDEX($B$3:$AQ$44,$E76,Z$67)&"-"&INDEX($B$3:$AQ$44,Z$67,$E76) -> - | AA76: =INDEX($B$3:$AQ$44,$E76,AA$67)&"-"&INDEX($B$3:$AQ$44,AA$67,$E76) -> - | AB76: =INDEX($B$3:$AQ$44,$E76,AB$67)&"-"&INDEX($B$3:$AQ$44,AB$67,$E76) -> - | AC76: =INDEX($B$3:$AQ$44,$E76,AC$67)&"-"&INDEX($B$3:$AQ$44,AC$67,$E76) -> - | AD76: =INDEX($B$3:$AQ$44,$E76,AD$67)&"-"&INDEX($B$3:$AQ$44,AD$67,$E76) -> - | AE76: =INDEX($B$3:$AQ$44,$E76,AE$67)&"-"&INDEX($B$3:$AQ$44,AE$67,$E76) -> - | AF76: =INDEX($B$3:$AQ$44,$E76,AF$67)&"-"&INDEX($B$3:$AQ$44,AF$67,$E76) -> - | AG76: =INDEX($B$3:$AQ$44,$E76,AG$67)&"-"&INDEX($B$3:$AQ$44,AG$67,$E76) -> - | AH76: =INDEX($B$3:$AQ$44,$E76,AH$67)&"-"&INDEX($B$3:$AQ$44,AH$67,$E76) -> - | AI76: =INDEX($B$3:$AQ$44,$E76,AI$67)&"-"&INDEX($B$3:$AQ$44,AI$67,$E76) -> - | AJ76: =INDEX($B$3:$AQ$44,$E76,AJ$67)&"-"&INDEX($B$3:$AQ$44,AJ$67,$E76) -> - | AK76: =INDEX($B$3:$AQ$44,$E76,AK$67)&"-"&INDEX($B$3:$AQ$44,AK$67,$E76) -> - | AL76: =INDEX($B$3:$AQ$44,$E76,AL$67)&"-"&INDEX($B$3:$AQ$44,AL$67,$E76) -> - | AM76: =INDEX($B$3:$AQ$44,$E76,AM$67)&"-"&INDEX($B$3:$AQ$44,AM$67,$E76) -> - | AN76: =INDEX($B$3:$AQ$44,$E76,AN$67)&"-"&INDEX($B$3:$AQ$44,AN$67,$E76) -> - | AO76: =INDEX($B$3:$AQ$44,$E76,AO$67)&"-"&INDEX($B$3:$AQ$44,AO$67,$E76) -> - | AP76: - | AQ76: - | AR76: - | AS76: - | AT76: - | AU76: - | AV76: -
A77: 9 | B77: 9 | C77: 9 | D77: 8 | E77: 8 | F77: 208 | G77: =INDEX($B$3:$AQ$44,$E77,G$67)&"-"&INDEX($B$3:$AQ$44,G$67,$E77) -> - | H77: =INDEX($B$3:$AQ$44,$E77,H$67)&"-"&INDEX($B$3:$AQ$44,H$67,$E77) -> - | I77: =INDEX($B$3:$AQ$44,$E77,I$67)&"-"&INDEX($B$3:$AQ$44,I$67,$E77) -> 1-6 | J77: =INDEX($B$3:$AQ$44,$E77,J$67)&"-"&INDEX($B$3:$AQ$44,J$67,$E77) -> - | K77: =INDEX($B$3:$AQ$44,$E77,K$67)&"-"&INDEX($B$3:$AQ$44,K$67,$E77) -> 5-6 | L77: =INDEX($B$3:$AQ$44,$E77,L$67)&"-"&INDEX($B$3:$AQ$44,L$67,$E77) -> 5-7 | M77: =INDEX($B$3:$AQ$44,$E77,M$67)&"-"&INDEX($B$3:$AQ$44,M$67,$E77) -> - | N77: =INDEX($B$3:$AQ$44,$E77,N$67)&"-"&INDEX($B$3:$AQ$44,N$67,$E77) -> - | O77: =INDEX($B$3:$AQ$44,$E77,O$67)&"-"&INDEX($B$3:$AQ$44,O$67,$E77) -> - | P77: =INDEX($B$3:$AQ$44,$E77,P$67)&"-"&INDEX($B$3:$AQ$44,P$67,$E77) -> - | Q77: =INDEX($B$3:$AQ$44,$E77,Q$67)&"-"&INDEX($B$3:$AQ$44,Q$67,$E77) -> 7-3 | R77: =INDEX($B$3:$AQ$44,$E77,R$67)&"-"&INDEX($B$3:$AQ$44,R$67,$E77) -> 6-3 | S77: =INDEX($B$3:$AQ$44,$E77,S$67)&"-"&INDEX($B$3:$AQ$44,S$67,$E77) -> 4-3 | T77: =INDEX($B$3:$AQ$44,$E77,T$67)&"-"&INDEX($B$3:$AQ$44,T$67,$E77) -> - | U77: =INDEX($B$3:$AQ$44,$E77,U$67)&"-"&INDEX($B$3:$AQ$44,U$67,$E77) -> 9-2 | V77: =INDEX($B$3:$AQ$44,$E77,V$67)&"-"&INDEX($B$3:$AQ$44,V$67,$E77) -> - | W77: =INDEX($B$3:$AQ$44,$E77,W$67)&"-"&INDEX($B$3:$AQ$44,W$67,$E77) -> - | X77: =INDEX($B$3:$AQ$44,$E77,X$67)&"-"&INDEX($B$3:$AQ$44,X$67,$E77) -> - | Y77: =INDEX($B$3:$AQ$44,$E77,Y$67)&"-"&INDEX($B$3:$AQ$44,Y$67,$E77) -> - | Z77: =INDEX($B$3:$AQ$44,$E77,Z$67)&"-"&INDEX($B$3:$AQ$44,Z$67,$E77) -> - | AA77: =INDEX($B$3:$AQ$44,$E77,AA$67)&"-"&INDEX($B$3:$AQ$44,AA$67,$E77) -> - | AB77: =INDEX($B$3:$AQ$44,$E77,AB$67)&"-"&INDEX($B$3:$AQ$44,AB$67,$E77) -> - | AC77: =INDEX($B$3:$AQ$44,$E77,AC$67)&"-"&INDEX($B$3:$AQ$44,AC$67,$E77) -> 11-0 | AD77: =INDEX($B$3:$AQ$44,$E77,AD$67)&"-"&INDEX($B$3:$AQ$44,AD$67,$E77) -> - | AE77: =INDEX($B$3:$AQ$44,$E77,AE$67)&"-"&INDEX($B$3:$AQ$44,AE$67,$E77) -> - | AF77: =INDEX($B$3:$AQ$44,$E77,AF$67)&"-"&INDEX($B$3:$AQ$44,AF$67,$E77) -> - | AG77: =INDEX($B$3:$AQ$44,$E77,AG$67)&"-"&INDEX($B$3:$AQ$44,AG$67,$E77) -> - | AH77: =INDEX($B$3:$AQ$44,$E77,AH$67)&"-"&INDEX($B$3:$AQ$44,AH$67,$E77) -> - | AI77: =INDEX($B$3:$AQ$44,$E77,AI$67)&"-"&INDEX($B$3:$AQ$44,AI$67,$E77) -> - | AJ77: =INDEX($B$3:$AQ$44,$E77,AJ$67)&"-"&INDEX($B$3:$AQ$44,AJ$67,$E77) -> - | AK77: =INDEX($B$3:$AQ$44,$E77,AK$67)&"-"&INDEX($B$3:$AQ$44,AK$67,$E77) -> - | AL77: =INDEX($B$3:$AQ$44,$E77,AL$67)&"-"&INDEX($B$3:$AQ$44,AL$67,$E77) -> - | AM77: =INDEX($B$3:$AQ$44,$E77,AM$67)&"-"&INDEX($B$3:$AQ$44,AM$67,$E77) -> - | AN77: =INDEX($B$3:$AQ$44,$E77,AN$67)&"-"&INDEX($B$3:$AQ$44,AN$67,$E77) -> - | AO77: =INDEX($B$3:$AQ$44,$E77,AO$67)&"-"&INDEX($B$3:$AQ$44,AO$67,$E77) -> - | AP77: - | AQ77: - | AR77: - | AS77: - | AT77: - | AU77: - | AV77: -
A78: 10 | B78: 10 | C78: 10 | D78: 14 | E78: 14 | F78: 214 | G78: =INDEX($B$3:$AQ$44,$E78,G$67)&"-"&INDEX($B$3:$AQ$44,G$67,$E78) -> - | H78: =INDEX($B$3:$AQ$44,$E78,H$67)&"-"&INDEX($B$3:$AQ$44,H$67,$E78) -> - | I78: =INDEX($B$3:$AQ$44,$E78,I$67)&"-"&INDEX($B$3:$AQ$44,I$67,$E78) -> - | J78: =INDEX($B$3:$AQ$44,$E78,J$67)&"-"&INDEX($B$3:$AQ$44,J$67,$E78) -> - | K78: =INDEX($B$3:$AQ$44,$E78,K$67)&"-"&INDEX($B$3:$AQ$44,K$67,$E78) -> - | L78: =INDEX($B$3:$AQ$44,$E78,L$67)&"-"&INDEX($B$3:$AQ$44,L$67,$E78) -> - | M78: =INDEX($B$3:$AQ$44,$E78,M$67)&"-"&INDEX($B$3:$AQ$44,M$67,$E78) -> 3-6 | N78: =INDEX($B$3:$AQ$44,$E78,N$67)&"-"&INDEX($B$3:$AQ$44,N$67,$E78) -> 5-3 | O78: =INDEX($B$3:$AQ$44,$E78,O$67)&"-"&INDEX($B$3:$AQ$44,O$67,$E78) -> - | P78: =INDEX($B$3:$AQ$44,$E78,P$67)&"-"&INDEX($B$3:$AQ$44,P$67,$E78) -> - | Q78: =INDEX($B$3:$AQ$44,$E78,Q$67)&"-"&INDEX($B$3:$AQ$44,Q$67,$E78) -> - | R78: =INDEX($B$3:$AQ$44,$E78,R$67)&"-"&INDEX($B$3:$AQ$44,R$67,$E78) -> - | S78: =INDEX($B$3:$AQ$44,$E78,S$67)&"-"&INDEX($B$3:$AQ$44,S$67,$E78) -> 4-5 | T78: =INDEX($B$3:$AQ$44,$E78,T$67)&"-"&INDEX($B$3:$AQ$44,T$67,$E78) -> 5-4 | U78: =INDEX($B$3:$AQ$44,$E78,U$67)&"-"&INDEX($B$3:$AQ$44,U$67,$E78) -> 8-1 | V78: =INDEX($B$3:$AQ$44,$E78,V$67)&"-"&INDEX($B$3:$AQ$44,V$67,$E78) -> - | W78: =INDEX($B$3:$AQ$44,$E78,W$67)&"-"&INDEX($B$3:$AQ$44,W$67,$E78) -> 10-0 | X78: =INDEX($B$3:$AQ$44,$E78,X$67)&"-"&INDEX($B$3:$AQ$44,X$67,$E78) -> 5-2 | Y78: =INDEX($B$3:$AQ$44,$E78,Y$67)&"-"&INDEX($B$3:$AQ$44,Y$67,$E78) -> 9-0 | Z78: =INDEX($B$3:$AQ$44,$E78,Z$67)&"-"&INDEX($B$3:$AQ$44,Z$67,$E78) -> - | AA78: =INDEX($B$3:$AQ$44,$E78,AA$67)&"-"&INDEX($B$3:$AQ$44,AA$67,$E78) -> - | AB78: =INDEX($B$3:$AQ$44,$E78,AB$67)&"-"&INDEX($B$3:$AQ$44,AB$67,$E78) -> - | AC78: =INDEX($B$3:$AQ$44,$E78,AC$67)&"-"&INDEX($B$3:$AQ$44,AC$67,$E78) -> - | AD78: =INDEX($B$3:$AQ$44,$E78,AD$67)&"-"&INDEX($B$3:$AQ$44,AD$67,$E78) -> - | AE78: =INDEX($B$3:$AQ$44,$E78,AE$67)&"-"&INDEX($B$3:$AQ$44,AE$67,$E78) -> - | AF78: =INDEX($B$3:$AQ$44,$E78,AF$67)&"-"&INDEX($B$3:$AQ$44,AF$67,$E78) -> - | AG78: =INDEX($B$3:$AQ$44,$E78,AG$67)&"-"&INDEX($B$3:$AQ$44,AG$67,$E78) -> - | AH78: =INDEX($B$3:$AQ$44,$E78,AH$67)&"-"&INDEX($B$3:$AQ$44,AH$67,$E78) -> - | AI78: =INDEX($B$3:$AQ$44,$E78,AI$67)&"-"&INDEX($B$3:$AQ$44,AI$67,$E78) -> - | AJ78: =INDEX($B$3:$AQ$44,$E78,AJ$67)&"-"&INDEX($B$3:$AQ$44,AJ$67,$E78) -> - | AK78: =INDEX($B$3:$AQ$44,$E78,AK$67)&"-"&INDEX($B$3:$AQ$44,AK$67,$E78) -> - | AL78: =INDEX($B$3:$AQ$44,$E78,AL$67)&"-"&INDEX($B$3:$AQ$44,AL$67,$E78) -> - | AM78: =INDEX($B$3:$AQ$44,$E78,AM$67)&"-"&INDEX($B$3:$AQ$44,AM$67,$E78) -> - | AN78: =INDEX($B$3:$AQ$44,$E78,AN$67)&"-"&INDEX($B$3:$AQ$44,AN$67,$E78) -> - | AO78: =INDEX($B$3:$AQ$44,$E78,AO$67)&"-"&INDEX($B$3:$AQ$44,AO$67,$E78) -> - | AP78: - | AQ78: - | AR78: - | AS78: - | AT78: - | AU78: - | AV78: -
A79: 11 | B79: 11 | C79: 11 | D79: 10 | E79: 10 | F79: 210 | G79: =INDEX($B$3:$AQ$44,$E79,G$67)&"-"&INDEX($B$3:$AQ$44,G$67,$E79) -> - | H79: =INDEX($B$3:$AQ$44,$E79,H$67)&"-"&INDEX($B$3:$AQ$44,H$67,$E79) -> - | I79: =INDEX($B$3:$AQ$44,$E79,I$67)&"-"&INDEX($B$3:$AQ$44,I$67,$E79) -> - | J79: =INDEX($B$3:$AQ$44,$E79,J$67)&"-"&INDEX($B$3:$AQ$44,J$67,$E79) -> 0-4 | K79: =INDEX($B$3:$AQ$44,$E79,K$67)&"-"&INDEX($B$3:$AQ$44,K$67,$E79) -> - | L79: =INDEX($B$3:$AQ$44,$E79,L$67)&"-"&INDEX($B$3:$AQ$44,L$67,$E79) -> - | M79: =INDEX($B$3:$AQ$44,$E79,M$67)&"-"&INDEX($B$3:$AQ$44,M$67,$E79) -> 1-8 | N79: =INDEX($B$3:$AQ$44,$E79,N$67)&"-"&INDEX($B$3:$AQ$44,N$67,$E79) -> 13-10 | O79: =INDEX($B$3:$AQ$44,$E79,O$67)&"-"&INDEX($B$3:$AQ$44,O$67,$E79) -> 3-7 | P79: =INDEX($B$3:$AQ$44,$E79,P$67)&"-"&INDEX($B$3:$AQ$44,P$67,$E79) -> - | Q79: =INDEX($B$3:$AQ$44,$E79,Q$67)&"-"&INDEX($B$3:$AQ$44,Q$67,$E79) -> - | R79: =INDEX($B$3:$AQ$44,$E79,R$67)&"-"&INDEX($B$3:$AQ$44,R$67,$E79) -> - | S79: =INDEX($B$3:$AQ$44,$E79,S$67)&"-"&INDEX($B$3:$AQ$44,S$67,$E79) -> 6-6 | T79: =INDEX($B$3:$AQ$44,$E79,T$67)&"-"&INDEX($B$3:$AQ$44,T$67,$E79) -> 9-3 | U79: =INDEX($B$3:$AQ$44,$E79,U$67)&"-"&INDEX($B$3:$AQ$44,U$67,$E79) -> - | V79: =INDEX($B$3:$AQ$44,$E79,V$67)&"-"&INDEX($B$3:$AQ$44,V$67,$E79) -> - | W79: =INDEX($B$3:$AQ$44,$E79,W$67)&"-"&INDEX($B$3:$AQ$44,W$67,$E79) -> 4-2 | X79: =INDEX($B$3:$AQ$44,$E79,X$67)&"-"&INDEX($B$3:$AQ$44,X$67,$E79) -> 8-1 | Y79: =INDEX($B$3:$AQ$44,$E79,Y$67)&"-"&INDEX($B$3:$AQ$44,Y$67,$E79) -> - | Z79: =INDEX($B$3:$AQ$44,$E79,Z$67)&"-"&INDEX($B$3:$AQ$44,Z$67,$E79) -> - | AA79: =INDEX($B$3:$AQ$44,$E79,AA$67)&"-"&INDEX($B$3:$AQ$44,AA$67,$E79) -> - | AB79: =INDEX($B$3:$AQ$44,$E79,AB$67)&"-"&INDEX($B$3:$AQ$44,AB$67,$E79) -> - | AC79: =INDEX($B$3:$AQ$44,$E79,AC$67)&"-"&INDEX($B$3:$AQ$44,AC$67,$E79) -> - | AD79: =INDEX($B$3:$AQ$44,$E79,AD$67)&"-"&INDEX($B$3:$AQ$44,AD$67,$E79) -> - | AE79: =INDEX($B$3:$AQ$44,$E79,AE$67)&"-"&INDEX($B$3:$AQ$44,AE$67,$E79) -> - | AF79: =INDEX($B$3:$AQ$44,$E79,AF$67)&"-"&INDEX($B$3:$AQ$44,AF$67,$E79) -> - | AG79: =INDEX($B$3:$AQ$44,$E79,AG$67)&"-"&INDEX($B$3:$AQ$44,AG$67,$E79) -> - | AH79: =INDEX($B$3:$AQ$44,$E79,AH$67)&"-"&INDEX($B$3:$AQ$44,AH$67,$E79) -> - | AI79: =INDEX($B$3:$AQ$44,$E79,AI$67)&"-"&INDEX($B$3:$AQ$44,AI$67,$E79) -> - | AJ79: =INDEX($B$3:$AQ$44,$E79,AJ$67)&"-"&INDEX($B$3:$AQ$44,AJ$67,$E79) -> - | AK79: =INDEX($B$3:$AQ$44,$E79,AK$67)&"-"&INDEX($B$3:$AQ$44,AK$67,$E79) -> - | AL79: =INDEX($B$3:$AQ$44,$E79,AL$67)&"-"&INDEX($B$3:$AQ$44,AL$67,$E79) -> - | AM79: =INDEX($B$3:$AQ$44,$E79,AM$67)&"-"&INDEX($B$3:$AQ$44,AM$67,$E79) -> - | AN79: =INDEX($B$3:$AQ$44,$E79,AN$67)&"-"&INDEX($B$3:$AQ$44,AN$67,$E79) -> - | AO79: =INDEX($B$3:$AQ$44,$E79,AO$67)&"-"&INDEX($B$3:$AQ$44,AO$67,$E79) -> - | AP79: - | AQ79: - | AR79: - | AS79: - | AT79: - | AU79: - | AV79: -
A80: 12 | B80: 12 | C80: 13 | D80: 5 | E80: 5 | F80: 205 | G80: =INDEX($B$3:$AQ$44,$E80,G$67)&"-"&INDEX($B$3:$AQ$44,G$67,$E80) -> 0-10 | H80: =INDEX($B$3:$AQ$44,$E80,H$67)&"-"&INDEX($B$3:$AQ$44,H$67,$E80) -> 2-12 | I80: =INDEX($B$3:$AQ$44,$E80,I$67)&"-"&INDEX($B$3:$AQ$44,I$67,$E80) -> - | J80: =INDEX($B$3:$AQ$44,$E80,J$67)&"-"&INDEX($B$3:$AQ$44,J$67,$E80) -> 0-6 | K80: =INDEX($B$3:$AQ$44,$E80,K$67)&"-"&INDEX($B$3:$AQ$44,K$67,$E80) -> 1-7 | L80: =INDEX($B$3:$AQ$44,$E80,L$67)&"-"&INDEX($B$3:$AQ$44,L$67,$E80) -> 2-4 | M80: =INDEX($B$3:$AQ$44,$E80,M$67)&"-"&INDEX($B$3:$AQ$44,M$67,$E80) -> - | N80: =INDEX($B$3:$AQ$44,$E80,N$67)&"-"&INDEX($B$3:$AQ$44,N$67,$E80) -> - | O80: =INDEX($B$3:$AQ$44,$E80,O$67)&"-"&INDEX($B$3:$AQ$44,O$67,$E80) -> 3-6 | P80: =INDEX($B$3:$AQ$44,$E80,P$67)&"-"&INDEX($B$3:$AQ$44,P$67,$E80) -> - | Q80: =INDEX($B$3:$AQ$44,$E80,Q$67)&"-"&INDEX($B$3:$AQ$44,Q$67,$E80) -> - | R80: =INDEX($B$3:$AQ$44,$E80,R$67)&"-"&INDEX($B$3:$AQ$44,R$67,$E80) -> - | S80: =INDEX($B$3:$AQ$44,$E80,S$67)&"-"&INDEX($B$3:$AQ$44,S$67,$E80) -> - | T80: =INDEX($B$3:$AQ$44,$E80,T$67)&"-"&INDEX($B$3:$AQ$44,T$67,$E80) -> - | U80: =INDEX($B$3:$AQ$44,$E80,U$67)&"-"&INDEX($B$3:$AQ$44,U$67,$E80) -> - | V80: =INDEX($B$3:$AQ$44,$E80,V$67)&"-"&INDEX($B$3:$AQ$44,V$67,$E80) -> - | W80: =INDEX($B$3:$AQ$44,$E80,W$67)&"-"&INDEX($B$3:$AQ$44,W$67,$E80) -> - | X80: =INDEX($B$3:$AQ$44,$E80,X$67)&"-"&INDEX($B$3:$AQ$44,X$67,$E80) -> - | Y80: =INDEX($B$3:$AQ$44,$E80,Y$67)&"-"&INDEX($B$3:$AQ$44,Y$67,$E80) -> - | Z80: =INDEX($B$3:$AQ$44,$E80,Z$67)&"-"&INDEX($B$3:$AQ$44,Z$67,$E80) -> - | AA80: =INDEX($B$3:$AQ$44,$E80,AA$67)&"-"&INDEX($B$3:$AQ$44,AA$67,$E80) -> - | AB80: =INDEX($B$3:$AQ$44,$E80,AB$67)&"-"&INDEX($B$3:$AQ$44,AB$67,$E80) -> - | AC80: =INDEX($B$3:$AQ$44,$E80,AC$67)&"-"&INDEX($B$3:$AQ$44,AC$67,$E80) -> - | AD80: =INDEX($B$3:$AQ$44,$E80,AD$67)&"-"&INDEX($B$3:$AQ$44,AD$67,$E80) -> - | AE80: =INDEX($B$3:$AQ$44,$E80,AE$67)&"-"&INDEX($B$3:$AQ$44,AE$67,$E80) -> - | AF80: =INDEX($B$3:$AQ$44,$E80,AF$67)&"-"&INDEX($B$3:$AQ$44,AF$67,$E80) -> - | AG80: =INDEX($B$3:$AQ$44,$E80,AG$67)&"-"&INDEX($B$3:$AQ$44,AG$67,$E80) -> - | AH80: =INDEX($B$3:$AQ$44,$E80,AH$67)&"-"&INDEX($B$3:$AQ$44,AH$67,$E80) -> - | AI80: =INDEX($B$3:$AQ$44,$E80,AI$67)&"-"&INDEX($B$3:$AQ$44,AI$67,$E80) -> - | AJ80: =INDEX($B$3:$AQ$44,$E80,AJ$67)&"-"&INDEX($B$3:$AQ$44,AJ$67,$E80) -> - | AK80: =INDEX($B$3:$AQ$44,$E80,AK$67)&"-"&INDEX($B$3:$AQ$44,AK$67,$E80) -> - | AL80: =INDEX($B$3:$AQ$44,$E80,AL$67)&"-"&INDEX($B$3:$AQ$44,AL$67,$E80) -> - | AM80: =INDEX($B$3:$AQ$44,$E80,AM$67)&"-"&INDEX($B$3:$AQ$44,AM$67,$E80) -> - | AN80: =INDEX($B$3:$AQ$44,$E80,AN$67)&"-"&INDEX($B$3:$AQ$44,AN$67,$E80) -> - | AO80: =INDEX($B$3:$AQ$44,$E80,AO$67)&"-"&INDEX($B$3:$AQ$44,AO$67,$E80) -> - | AP80: - | AQ80: - | AR80: - | AS80: - | AT80: - | AU80: - | AV80: -
A81: 13 | B81: 13 | C81: 12 | D81: 9 | E81: 9 | F81: 209 | G81: =INDEX($B$3:$AQ$44,$E81,G$67)&"-"&INDEX($B$3:$AQ$44,G$67,$E81) -> - | H81: =INDEX($B$3:$AQ$44,$E81,H$67)&"-"&INDEX($B$3:$AQ$44,H$67,$E81) -> - | I81: =INDEX($B$3:$AQ$44,$E81,I$67)&"-"&INDEX($B$3:$AQ$44,I$67,$E81) -> - | J81: =INDEX($B$3:$AQ$44,$E81,J$67)&"-"&INDEX($B$3:$AQ$44,J$67,$E81) -> - | K81: =INDEX($B$3:$AQ$44,$E81,K$67)&"-"&INDEX($B$3:$AQ$44,K$67,$E81) -> 3-9 | L81: =INDEX($B$3:$AQ$44,$E81,L$67)&"-"&INDEX($B$3:$AQ$44,L$67,$E81) -> - | M81: =INDEX($B$3:$AQ$44,$E81,M$67)&"-"&INDEX($B$3:$AQ$44,M$67,$E81) -> 1-6 | N81: =INDEX($B$3:$AQ$44,$E81,N$67)&"-"&INDEX($B$3:$AQ$44,N$67,$E81) -> 0-10 | O81: =INDEX($B$3:$AQ$44,$E81,O$67)&"-"&INDEX($B$3:$AQ$44,O$67,$E81) -> 3-4 | P81: =INDEX($B$3:$AQ$44,$E81,P$67)&"-"&INDEX($B$3:$AQ$44,P$67,$E81) -> 5-4 | Q81: =INDEX($B$3:$AQ$44,$E81,Q$67)&"-"&INDEX($B$3:$AQ$44,Q$67,$E81) -> 6-6 | R81: =INDEX($B$3:$AQ$44,$E81,R$67)&"-"&INDEX($B$3:$AQ$44,R$67,$E81) -> - | S81: =INDEX($B$3:$AQ$44,$E81,S$67)&"-"&INDEX($B$3:$AQ$44,S$67,$E81) -> - | T81: =INDEX($B$3:$AQ$44,$E81,T$67)&"-"&INDEX($B$3:$AQ$44,T$67,$E81) -> - | U81: =INDEX($B$3:$AQ$44,$E81,U$67)&"-"&INDEX($B$3:$AQ$44,U$67,$E81) -> 2-4 | V81: =INDEX($B$3:$AQ$44,$E81,V$67)&"-"&INDEX($B$3:$AQ$44,V$67,$E81) -> - | W81: =INDEX($B$3:$AQ$44,$E81,W$67)&"-"&INDEX($B$3:$AQ$44,W$67,$E81) -> 6-0 | X81: =INDEX($B$3:$AQ$44,$E81,X$67)&"-"&INDEX($B$3:$AQ$44,X$67,$E81) -> - | Y81: =INDEX($B$3:$AQ$44,$E81,Y$67)&"-"&INDEX($B$3:$AQ$44,Y$67,$E81) -> - | Z81: =INDEX($B$3:$AQ$44,$E81,Z$67)&"-"&INDEX($B$3:$AQ$44,Z$67,$E81) -> - | AA81: =INDEX($B$3:$AQ$44,$E81,AA$67)&"-"&INDEX($B$3:$AQ$44,AA$67,$E81) -> - | AB81: =INDEX($B$3:$AQ$44,$E81,AB$67)&"-"&INDEX($B$3:$AQ$44,AB$67,$E81) -> 7-1 | AC81: =INDEX($B$3:$AQ$44,$E81,AC$67)&"-"&INDEX($B$3:$AQ$44,AC$67,$E81) -> - | AD81: =INDEX($B$3:$AQ$44,$E81,AD$67)&"-"&INDEX($B$3:$AQ$44,AD$67,$E81) -> - | AE81: =INDEX($B$3:$AQ$44,$E81,AE$67)&"-"&INDEX($B$3:$AQ$44,AE$67,$E81) -> - | AF81: =INDEX($B$3:$AQ$44,$E81,AF$67)&"-"&INDEX($B$3:$AQ$44,AF$67,$E81) -> - | AG81: =INDEX($B$3:$AQ$44,$E81,AG$67)&"-"&INDEX($B$3:$AQ$44,AG$67,$E81) -> - | AH81: =INDEX($B$3:$AQ$44,$E81,AH$67)&"-"&INDEX($B$3:$AQ$44,AH$67,$E81) -> - | AI81: =INDEX($B$3:$AQ$44,$E81,AI$67)&"-"&INDEX($B$3:$AQ$44,AI$67,$E81) -> - | AJ81: =INDEX($B$3:$AQ$44,$E81,AJ$67)&"-"&INDEX($B$3:$AQ$44,AJ$67,$E81) -> - | AK81: =INDEX($B$3:$AQ$44,$E81,AK$67)&"-"&INDEX($B$3:$AQ$44,AK$67,$E81) -> - | AL81: =INDEX($B$3:$AQ$44,$E81,AL$67)&"-"&INDEX($B$3:$AQ$44,AL$67,$E81) -> - | AM81: =INDEX($B$3:$AQ$44,$E81,AM$67)&"-"&INDEX($B$3:$AQ$44,AM$67,$E81) -> - | AN81: =INDEX($B$3:$AQ$44,$E81,AN$67)&"-"&INDEX($B$3:$AQ$44,AN$67,$E81) -> - | AO81: =INDEX($B$3:$AQ$44,$E81,AO$67)&"-"&INDEX($B$3:$AQ$44,AO$67,$E81) -> - | AP81: - | AQ81: - | AR81: - | AS81: - | AT81: - | AU81: - | AV81: -
A82: 14 | B82: 14 | C82: 14 | D82: 15 | E82: 15 | F82: 215 | G82: =INDEX($B$3:$AQ$44,$E82,G$67)&"-"&INDEX($B$3:$AQ$44,G$67,$E82) -> - | H82: =INDEX($B$3:$AQ$44,$E82,H$67)&"-"&INDEX($B$3:$AQ$44,H$67,$E82) -> - | I82: =INDEX($B$3:$AQ$44,$E82,I$67)&"-"&INDEX($B$3:$AQ$44,I$67,$E82) -> - | J82: =INDEX($B$3:$AQ$44,$E82,J$67)&"-"&INDEX($B$3:$AQ$44,J$67,$E82) -> 0-10 | K82: =INDEX($B$3:$AQ$44,$E82,K$67)&"-"&INDEX($B$3:$AQ$44,K$67,$E82) -> - | L82: =INDEX($B$3:$AQ$44,$E82,L$67)&"-"&INDEX($B$3:$AQ$44,L$67,$E82) -> 1-6 | M82: =INDEX($B$3:$AQ$44,$E82,M$67)&"-"&INDEX($B$3:$AQ$44,M$67,$E82) -> 2-8 | N82: =INDEX($B$3:$AQ$44,$E82,N$67)&"-"&INDEX($B$3:$AQ$44,N$67,$E82) -> 0-6 | O82: =INDEX($B$3:$AQ$44,$E82,O$67)&"-"&INDEX($B$3:$AQ$44,O$67,$E82) -> - | P82: =INDEX($B$3:$AQ$44,$E82,P$67)&"-"&INDEX($B$3:$AQ$44,P$67,$E82) -> 4-5 | Q82: =INDEX($B$3:$AQ$44,$E82,Q$67)&"-"&INDEX($B$3:$AQ$44,Q$67,$E82) -> 3-9 | R82: =INDEX($B$3:$AQ$44,$E82,R$67)&"-"&INDEX($B$3:$AQ$44,R$67,$E82) -> - | S82: =INDEX($B$3:$AQ$44,$E82,S$67)&"-"&INDEX($B$3:$AQ$44,S$67,$E82) -> - | T82: =INDEX($B$3:$AQ$44,$E82,T$67)&"-"&INDEX($B$3:$AQ$44,T$67,$E82) -> - | U82: =INDEX($B$3:$AQ$44,$E82,U$67)&"-"&INDEX($B$3:$AQ$44,U$67,$E82) -> 3-1 | V82: =INDEX($B$3:$AQ$44,$E82,V$67)&"-"&INDEX($B$3:$AQ$44,V$67,$E82) -> - | W82: =INDEX($B$3:$AQ$44,$E82,W$67)&"-"&INDEX($B$3:$AQ$44,W$67,$E82) -> 6-1 | X82: =INDEX($B$3:$AQ$44,$E82,X$67)&"-"&INDEX($B$3:$AQ$44,X$67,$E82) -> - | Y82: =INDEX($B$3:$AQ$44,$E82,Y$67)&"-"&INDEX($B$3:$AQ$44,Y$67,$E82) -> - | Z82: =INDEX($B$3:$AQ$44,$E82,Z$67)&"-"&INDEX($B$3:$AQ$44,Z$67,$E82) -> - | AA82: =INDEX($B$3:$AQ$44,$E82,AA$67)&"-"&INDEX($B$3:$AQ$44,AA$67,$E82) -> - | AB82: =INDEX($B$3:$AQ$44,$E82,AB$67)&"-"&INDEX($B$3:$AQ$44,AB$67,$E82) -> - | AC82: =INDEX($B$3:$AQ$44,$E82,AC$67)&"-"&INDEX($B$3:$AQ$44,AC$67,$E82) -> 8-0 | AD82: =INDEX($B$3:$AQ$44,$E82,AD$67)&"-"&INDEX($B$3:$AQ$44,AD$67,$E82) -> - | AE82: =INDEX($B$3:$AQ$44,$E82,AE$67)&"-"&INDEX($B$3:$AQ$44,AE$67,$E82) -> - | AF82: =INDEX($B$3:$AQ$44,$E82,AF$67)&"-"&INDEX($B$3:$AQ$44,AF$67,$E82) -> - | AG82: =INDEX($B$3:$AQ$44,$E82,AG$67)&"-"&INDEX($B$3:$AQ$44,AG$67,$E82) -> - | AH82: =INDEX($B$3:$AQ$44,$E82,AH$67)&"-"&INDEX($B$3:$AQ$44,AH$67,$E82) -> - | AI82: =INDEX($B$3:$AQ$44,$E82,AI$67)&"-"&INDEX($B$3:$AQ$44,AI$67,$E82) -> - | AJ82: =INDEX($B$3:$AQ$44,$E82,AJ$67)&"-"&INDEX($B$3:$AQ$44,AJ$67,$E82) -> - | AK82: =INDEX($B$3:$AQ$44,$E82,AK$67)&"-"&INDEX($B$3:$AQ$44,AK$67,$E82) -> - | AL82: =INDEX($B$3:$AQ$44,$E82,AL$67)&"-"&INDEX($B$3:$AQ$44,AL$67,$E82) -> - | AM82: =INDEX($B$3:$AQ$44,$E82,AM$67)&"-"&INDEX($B$3:$AQ$44,AM$67,$E82) -> - | AN82: =INDEX($B$3:$AQ$44,$E82,AN$67)&"-"&INDEX($B$3:$AQ$44,AN$67,$E82) -> - | AO82: =INDEX($B$3:$AQ$44,$E82,AO$67)&"-"&INDEX($B$3:$AQ$44,AO$67,$E82) -> - | AP82: - | AQ82: - | AR82: - | AS82: - | AT82: - | AU82: - | AV82: -
A83: 15 | B83: 16 | C83: 15 | D83: 13 | E83: 13 | F83: 213 | G83: =INDEX($B$3:$AQ$44,$E83,G$67)&"-"&INDEX($B$3:$AQ$44,G$67,$E83) -> - | H83: =INDEX($B$3:$AQ$44,$E83,H$67)&"-"&INDEX($B$3:$AQ$44,H$67,$E83) -> - | I83: =INDEX($B$3:$AQ$44,$E83,I$67)&"-"&INDEX($B$3:$AQ$44,I$67,$E83) -> - | J83: =INDEX($B$3:$AQ$44,$E83,J$67)&"-"&INDEX($B$3:$AQ$44,J$67,$E83) -> - | K83: =INDEX($B$3:$AQ$44,$E83,K$67)&"-"&INDEX($B$3:$AQ$44,K$67,$E83) -> - | L83: =INDEX($B$3:$AQ$44,$E83,L$67)&"-"&INDEX($B$3:$AQ$44,L$67,$E83) -> - | M83: =INDEX($B$3:$AQ$44,$E83,M$67)&"-"&INDEX($B$3:$AQ$44,M$67,$E83) -> 1-4 | N83: =INDEX($B$3:$AQ$44,$E83,N$67)&"-"&INDEX($B$3:$AQ$44,N$67,$E83) -> 0-10 | O83: =INDEX($B$3:$AQ$44,$E83,O$67)&"-"&INDEX($B$3:$AQ$44,O$67,$E83) -> 2-9 | P83: =INDEX($B$3:$AQ$44,$E83,P$67)&"-"&INDEX($B$3:$AQ$44,P$67,$E83) -> 1-8 | Q83: =INDEX($B$3:$AQ$44,$E83,Q$67)&"-"&INDEX($B$3:$AQ$44,Q$67,$E83) -> - | R83: =INDEX($B$3:$AQ$44,$E83,R$67)&"-"&INDEX($B$3:$AQ$44,R$67,$E83) -> - | S83: =INDEX($B$3:$AQ$44,$E83,S$67)&"-"&INDEX($B$3:$AQ$44,S$67,$E83) -> 4-2 | T83: =INDEX($B$3:$AQ$44,$E83,T$67)&"-"&INDEX($B$3:$AQ$44,T$67,$E83) -> 1-3 | U83: =INDEX($B$3:$AQ$44,$E83,U$67)&"-"&INDEX($B$3:$AQ$44,U$67,$E83) -> - | V83: =INDEX($B$3:$AQ$44,$E83,V$67)&"-"&INDEX($B$3:$AQ$44,V$67,$E83) -> 6-3 | W83: =INDEX($B$3:$AQ$44,$E83,W$67)&"-"&INDEX($B$3:$AQ$44,W$67,$E83) -> 5-4 | X83: =INDEX($B$3:$AQ$44,$E83,X$67)&"-"&INDEX($B$3:$AQ$44,X$67,$E83) -> - | Y83: =INDEX($B$3:$AQ$44,$E83,Y$67)&"-"&INDEX($B$3:$AQ$44,Y$67,$E83) -> - | Z83: =INDEX($B$3:$AQ$44,$E83,Z$67)&"-"&INDEX($B$3:$AQ$44,Z$67,$E83) -> - | AA83: =INDEX($B$3:$AQ$44,$E83,AA$67)&"-"&INDEX($B$3:$AQ$44,AA$67,$E83) -> - | AB83: =INDEX($B$3:$AQ$44,$E83,AB$67)&"-"&INDEX($B$3:$AQ$44,AB$67,$E83) -> - | AC83: =INDEX($B$3:$AQ$44,$E83,AC$67)&"-"&INDEX($B$3:$AQ$44,AC$67,$E83) -> - | AD83: =INDEX($B$3:$AQ$44,$E83,AD$67)&"-"&INDEX($B$3:$AQ$44,AD$67,$E83) -> - | AE83: =INDEX($B$3:$AQ$44,$E83,AE$67)&"-"&INDEX($B$3:$AQ$44,AE$67,$E83) -> - | AF83: =INDEX($B$3:$AQ$44,$E83,AF$67)&"-"&INDEX($B$3:$AQ$44,AF$67,$E83) -> - | AG83: =INDEX($B$3:$AQ$44,$E83,AG$67)&"-"&INDEX($B$3:$AQ$44,AG$67,$E83) -> - | AH83: =INDEX($B$3:$AQ$44,$E83,AH$67)&"-"&INDEX($B$3:$AQ$44,AH$67,$E83) -> - | AI83: =INDEX($B$3:$AQ$44,$E83,AI$67)&"-"&INDEX($B$3:$AQ$44,AI$67,$E83) -> - | AJ83: =INDEX($B$3:$AQ$44,$E83,AJ$67)&"-"&INDEX($B$3:$AQ$44,AJ$67,$E83) -> - | AK83: =INDEX($B$3:$AQ$44,$E83,AK$67)&"-"&INDEX($B$3:$AQ$44,AK$67,$E83) -> - | AL83: =INDEX($B$3:$AQ$44,$E83,AL$67)&"-"&INDEX($B$3:$AQ$44,AL$67,$E83) -> - | AM83: =INDEX($B$3:$AQ$44,$E83,AM$67)&"-"&INDEX($B$3:$AQ$44,AM$67,$E83) -> - | AN83: =INDEX($B$3:$AQ$44,$E83,AN$67)&"-"&INDEX($B$3:$AQ$44,AN$67,$E83) -> - | AO83: =INDEX($B$3:$AQ$44,$E83,AO$67)&"-"&INDEX($B$3:$AQ$44,AO$67,$E83) -> - | AP83: - | AQ83: - | AR83: - | AS83: - | AT83: - | AU83: - | AV83: -
A84: 16 | B84: 15 | C84: 16 | D84: 22 | E84: 22 | F84: 222 | G84: =INDEX($B$3:$AQ$44,$E84,G$67)&"-"&INDEX($B$3:$AQ$44,G$67,$E84) -> - | H84: =INDEX($B$3:$AQ$44,$E84,H$67)&"-"&INDEX($B$3:$AQ$44,H$67,$E84) -> - | I84: =INDEX($B$3:$AQ$44,$E84,I$67)&"-"&INDEX($B$3:$AQ$44,I$67,$E84) -> - | J84: =INDEX($B$3:$AQ$44,$E84,J$67)&"-"&INDEX($B$3:$AQ$44,J$67,$E84) -> - | K84: =INDEX($B$3:$AQ$44,$E84,K$67)&"-"&INDEX($B$3:$AQ$44,K$67,$E84) -> - | L84: =INDEX($B$3:$AQ$44,$E84,L$67)&"-"&INDEX($B$3:$AQ$44,L$67,$E84) -> - | M84: =INDEX($B$3:$AQ$44,$E84,M$67)&"-"&INDEX($B$3:$AQ$44,M$67,$E84) -> - | N84: =INDEX($B$3:$AQ$44,$E84,N$67)&"-"&INDEX($B$3:$AQ$44,N$67,$E84) -> - | O84: =INDEX($B$3:$AQ$44,$E84,O$67)&"-"&INDEX($B$3:$AQ$44,O$67,$E84) -> - | P84: =INDEX($B$3:$AQ$44,$E84,P$67)&"-"&INDEX($B$3:$AQ$44,P$67,$E84) -> - | Q84: =INDEX($B$3:$AQ$44,$E84,Q$67)&"-"&INDEX($B$3:$AQ$44,Q$67,$E84) -> - | R84: =INDEX($B$3:$AQ$44,$E84,R$67)&"-"&INDEX($B$3:$AQ$44,R$67,$E84) -> - | S84: =INDEX($B$3:$AQ$44,$E84,S$67)&"-"&INDEX($B$3:$AQ$44,S$67,$E84) -> - | T84: =INDEX($B$3:$AQ$44,$E84,T$67)&"-"&INDEX($B$3:$AQ$44,T$67,$E84) -> - | U84: =INDEX($B$3:$AQ$44,$E84,U$67)&"-"&INDEX($B$3:$AQ$44,U$67,$E84) -> 3-6 | V84: =INDEX($B$3:$AQ$44,$E84,V$67)&"-"&INDEX($B$3:$AQ$44,V$67,$E84) -> - | W84: =INDEX($B$3:$AQ$44,$E84,W$67)&"-"&INDEX($B$3:$AQ$44,W$67,$E84) -> 5-2 | X84: =INDEX($B$3:$AQ$44,$E84,X$67)&"-"&INDEX($B$3:$AQ$44,X$67,$E84) -> - | Y84: =INDEX($B$3:$AQ$44,$E84,Y$67)&"-"&INDEX($B$3:$AQ$44,Y$67,$E84) -> 6-3 | Z84: =INDEX($B$3:$AQ$44,$E84,Z$67)&"-"&INDEX($B$3:$AQ$44,Z$67,$E84) -> 7-1 | AA84: =INDEX($B$3:$AQ$44,$E84,AA$67)&"-"&INDEX($B$3:$AQ$44,AA$67,$E84) -> 9-1 | AB84: =INDEX($B$3:$AQ$44,$E84,AB$67)&"-"&INDEX($B$3:$AQ$44,AB$67,$E84) -> - | AC84: =INDEX($B$3:$AQ$44,$E84,AC$67)&"-"&INDEX($B$3:$AQ$44,AC$67,$E84) -> - | AD84: =INDEX($B$3:$AQ$44,$E84,AD$67)&"-"&INDEX($B$3:$AQ$44,AD$67,$E84) -> - | AE84: =INDEX($B$3:$AQ$44,$E84,AE$67)&"-"&INDEX($B$3:$AQ$44,AE$67,$E84) -> 11-1 | AF84: =INDEX($B$3:$AQ$44,$E84,AF$67)&"-"&INDEX($B$3:$AQ$44,AF$67,$E84) -> - | AG84: =INDEX($B$3:$AQ$44,$E84,AG$67)&"-"&INDEX($B$3:$AQ$44,AG$67,$E84) -> 12-0 | AH84: =INDEX($B$3:$AQ$44,$E84,AH$67)&"-"&INDEX($B$3:$AQ$44,AH$67,$E84) -> - | AI84: =INDEX($B$3:$AQ$44,$E84,AI$67)&"-"&INDEX($B$3:$AQ$44,AI$67,$E84) -> - | AJ84: =INDEX($B$3:$AQ$44,$E84,AJ$67)&"-"&INDEX($B$3:$AQ$44,AJ$67,$E84) -> - | AK84: =INDEX($B$3:$AQ$44,$E84,AK$67)&"-"&INDEX($B$3:$AQ$44,AK$67,$E84) -> - | AL84: =INDEX($B$3:$AQ$44,$E84,AL$67)&"-"&INDEX($B$3:$AQ$44,AL$67,$E84) -> - | AM84: =INDEX($B$3:$AQ$44,$E84,AM$67)&"-"&INDEX($B$3:$AQ$44,AM$67,$E84) -> - | AN84: =INDEX($B$3:$AQ$44,$E84,AN$67)&"-"&INDEX($B$3:$AQ$44,AN$67,$E84) -> - | AO84: =INDEX($B$3:$AQ$44,$E84,AO$67)&"-"&INDEX($B$3:$AQ$44,AO$67,$E84) -> - | AP84: - | AQ84: - | AR84: - | AS84: - | AT84: - | AU84: - | AV84: -
A85: 17 | B85: 17 | C85: 17 | D85: 16 | E85: 16 | F85: 216 | G85: =INDEX($B$3:$AQ$44,$E85,G$67)&"-"&INDEX($B$3:$AQ$44,G$67,$E85) -> - | H85: =INDEX($B$3:$AQ$44,$E85,H$67)&"-"&INDEX($B$3:$AQ$44,H$67,$E85) -> - | I85: =INDEX($B$3:$AQ$44,$E85,I$67)&"-"&INDEX($B$3:$AQ$44,I$67,$E85) -> - | J85: =INDEX($B$3:$AQ$44,$E85,J$67)&"-"&INDEX($B$3:$AQ$44,J$67,$E85) -> - | K85: =INDEX($B$3:$AQ$44,$E85,K$67)&"-"&INDEX($B$3:$AQ$44,K$67,$E85) -> - | L85: =INDEX($B$3:$AQ$44,$E85,L$67)&"-"&INDEX($B$3:$AQ$44,L$67,$E85) -> - | M85: =INDEX($B$3:$AQ$44,$E85,M$67)&"-"&INDEX($B$3:$AQ$44,M$67,$E85) -> - | N85: =INDEX($B$3:$AQ$44,$E85,N$67)&"-"&INDEX($B$3:$AQ$44,N$67,$E85) -> - | O85: =INDEX($B$3:$AQ$44,$E85,O$67)&"-"&INDEX($B$3:$AQ$44,O$67,$E85) -> - | P85: =INDEX($B$3:$AQ$44,$E85,P$67)&"-"&INDEX($B$3:$AQ$44,P$67,$E85) -> 0-10 | Q85: =INDEX($B$3:$AQ$44,$E85,Q$67)&"-"&INDEX($B$3:$AQ$44,Q$67,$E85) -> 2-4 | R85: =INDEX($B$3:$AQ$44,$E85,R$67)&"-"&INDEX($B$3:$AQ$44,R$67,$E85) -> - | S85: =INDEX($B$3:$AQ$44,$E85,S$67)&"-"&INDEX($B$3:$AQ$44,S$67,$E85) -> 0-6 | T85: =INDEX($B$3:$AQ$44,$E85,T$67)&"-"&INDEX($B$3:$AQ$44,T$67,$E85) -> 1-6 | U85: =INDEX($B$3:$AQ$44,$E85,U$67)&"-"&INDEX($B$3:$AQ$44,U$67,$E85) -> 4-5 | V85: =INDEX($B$3:$AQ$44,$E85,V$67)&"-"&INDEX($B$3:$AQ$44,V$67,$E85) -> 2-5 | W85: =INDEX($B$3:$AQ$44,$E85,W$67)&"-"&INDEX($B$3:$AQ$44,W$67,$E85) -> - | X85: =INDEX($B$3:$AQ$44,$E85,X$67)&"-"&INDEX($B$3:$AQ$44,X$67,$E85) -> 3-0 | Y85: =INDEX($B$3:$AQ$44,$E85,Y$67)&"-"&INDEX($B$3:$AQ$44,Y$67,$E85) -> - | Z85: =INDEX($B$3:$AQ$44,$E85,Z$67)&"-"&INDEX($B$3:$AQ$44,Z$67,$E85) -> - | AA85: =INDEX($B$3:$AQ$44,$E85,AA$67)&"-"&INDEX($B$3:$AQ$44,AA$67,$E85) -> - | AB85: =INDEX($B$3:$AQ$44,$E85,AB$67)&"-"&INDEX($B$3:$AQ$44,AB$67,$E85) -> 8-3 | AC85: =INDEX($B$3:$AQ$44,$E85,AC$67)&"-"&INDEX($B$3:$AQ$44,AC$67,$E85) -> 4-1 | AD85: =INDEX($B$3:$AQ$44,$E85,AD$67)&"-"&INDEX($B$3:$AQ$44,AD$67,$E85) -> - | AE85: =INDEX($B$3:$AQ$44,$E85,AE$67)&"-"&INDEX($B$3:$AQ$44,AE$67,$E85) -> - | AF85: =INDEX($B$3:$AQ$44,$E85,AF$67)&"-"&INDEX($B$3:$AQ$44,AF$67,$E85) -> - | AG85: =INDEX($B$3:$AQ$44,$E85,AG$67)&"-"&INDEX($B$3:$AQ$44,AG$67,$E85) -> - | AH85: =INDEX($B$3:$AQ$44,$E85,AH$67)&"-"&INDEX($B$3:$AQ$44,AH$67,$E85) -> - | AI85: =INDEX($B$3:$AQ$44,$E85,AI$67)&"-"&INDEX($B$3:$AQ$44,AI$67,$E85) -> - | AJ85: =INDEX($B$3:$AQ$44,$E85,AJ$67)&"-"&INDEX($B$3:$AQ$44,AJ$67,$E85) -> - | AK85: =INDEX($B$3:$AQ$44,$E85,AK$67)&"-"&INDEX($B$3:$AQ$44,AK$67,$E85) -> - | AL85: =INDEX($B$3:$AQ$44,$E85,AL$67)&"-"&INDEX($B$3:$AQ$44,AL$67,$E85) -> - | AM85: =INDEX($B$3:$AQ$44,$E85,AM$67)&"-"&INDEX($B$3:$AQ$44,AM$67,$E85) -> - | AN85: =INDEX($B$3:$AQ$44,$E85,AN$67)&"-"&INDEX($B$3:$AQ$44,AN$67,$E85) -> - | AO85: =INDEX($B$3:$AQ$44,$E85,AO$67)&"-"&INDEX($B$3:$AQ$44,AO$67,$E85) -> - | AP85: =INDEX($B$3:$AQ$44,$E85,AP$67)&"-"&INDEX($B$3:$AQ$44,AP$67,$E85) -> - | AQ85: - | AR85: - | AS85: - | AT85: - | AU85: - | AV85: -
A86: 18 | B86: 18 | C86: 18 | D86: 19 | E86: 19 | F86: 219 | G86: =INDEX($B$3:$AQ$44,$E86,G$67)&"-"&INDEX($B$3:$AQ$44,G$67,$E86) -> - | H86: =INDEX($B$3:$AQ$44,$E86,H$67)&"-"&INDEX($B$3:$AQ$44,H$67,$E86) -> - | I86: =INDEX($B$3:$AQ$44,$E86,I$67)&"-"&INDEX($B$3:$AQ$44,I$67,$E86) -> - | J86: =INDEX($B$3:$AQ$44,$E86,J$67)&"-"&INDEX($B$3:$AQ$44,J$67,$E86) -> - | K86: =INDEX($B$3:$AQ$44,$E86,K$67)&"-"&INDEX($B$3:$AQ$44,K$67,$E86) -> - | L86: =INDEX($B$3:$AQ$44,$E86,L$67)&"-"&INDEX($B$3:$AQ$44,L$67,$E86) -> - | M86: =INDEX($B$3:$AQ$44,$E86,M$67)&"-"&INDEX($B$3:$AQ$44,M$67,$E86) -> - | N86: =INDEX($B$3:$AQ$44,$E86,N$67)&"-"&INDEX($B$3:$AQ$44,N$67,$E86) -> - | O86: =INDEX($B$3:$AQ$44,$E86,O$67)&"-"&INDEX($B$3:$AQ$44,O$67,$E86) -> - | P86: =INDEX($B$3:$AQ$44,$E86,P$67)&"-"&INDEX($B$3:$AQ$44,P$67,$E86) -> 2-5 | Q86: =INDEX($B$3:$AQ$44,$E86,Q$67)&"-"&INDEX($B$3:$AQ$44,Q$67,$E86) -> 1-8 | R86: =INDEX($B$3:$AQ$44,$E86,R$67)&"-"&INDEX($B$3:$AQ$44,R$67,$E86) -> - | S86: =INDEX($B$3:$AQ$44,$E86,S$67)&"-"&INDEX($B$3:$AQ$44,S$67,$E86) -> - | T86: =INDEX($B$3:$AQ$44,$E86,T$67)&"-"&INDEX($B$3:$AQ$44,T$67,$E86) -> - | U86: =INDEX($B$3:$AQ$44,$E86,U$67)&"-"&INDEX($B$3:$AQ$44,U$67,$E86) -> - | V86: =INDEX($B$3:$AQ$44,$E86,V$67)&"-"&INDEX($B$3:$AQ$44,V$67,$E86) -> - | W86: =INDEX($B$3:$AQ$44,$E86,W$67)&"-"&INDEX($B$3:$AQ$44,W$67,$E86) -> 0-3 | X86: =INDEX($B$3:$AQ$44,$E86,X$67)&"-"&INDEX($B$3:$AQ$44,X$67,$E86) -> - | Y86: =INDEX($B$3:$AQ$44,$E86,Y$67)&"-"&INDEX($B$3:$AQ$44,Y$67,$E86) -> 3-3 | Z86: =INDEX($B$3:$AQ$44,$E86,Z$67)&"-"&INDEX($B$3:$AQ$44,Z$67,$E86) -> 2-3 | AA86: =INDEX($B$3:$AQ$44,$E86,AA$67)&"-"&INDEX($B$3:$AQ$44,AA$67,$E86) -> 0-4 | AB86: =INDEX($B$3:$AQ$44,$E86,AB$67)&"-"&INDEX($B$3:$AQ$44,AB$67,$E86) -> 12-2 | AC86: =INDEX($B$3:$AQ$44,$E86,AC$67)&"-"&INDEX($B$3:$AQ$44,AC$67,$E86) -> 11-3 | AD86: =INDEX($B$3:$AQ$44,$E86,AD$67)&"-"&INDEX($B$3:$AQ$44,AD$67,$E86) -> - | AE86: =INDEX($B$3:$AQ$44,$E86,AE$67)&"-"&INDEX($B$3:$AQ$44,AE$67,$E86) -> - | AF86: =INDEX($B$3:$AQ$44,$E86,AF$67)&"-"&INDEX($B$3:$AQ$44,AF$67,$E86) -> - | AG86: =INDEX($B$3:$AQ$44,$E86,AG$67)&"-"&INDEX($B$3:$AQ$44,AG$67,$E86) -> - | AH86: =INDEX($B$3:$AQ$44,$E86,AH$67)&"-"&INDEX($B$3:$AQ$44,AH$67,$E86) -> - | AI86: =INDEX($B$3:$AQ$44,$E86,AI$67)&"-"&INDEX($B$3:$AQ$44,AI$67,$E86) -> - | AJ86: =INDEX($B$3:$AQ$44,$E86,AJ$67)&"-"&INDEX($B$3:$AQ$44,AJ$67,$E86) -> - | AK86: =INDEX($B$3:$AQ$44,$E86,AK$67)&"-"&INDEX($B$3:$AQ$44,AK$67,$E86) -> - | AL86: =INDEX($B$3:$AQ$44,$E86,AL$67)&"-"&INDEX($B$3:$AQ$44,AL$67,$E86) -> - | AM86: =INDEX($B$3:$AQ$44,$E86,AM$67)&"-"&INDEX($B$3:$AQ$44,AM$67,$E86) -> - | AN86: =INDEX($B$3:$AQ$44,$E86,AN$67)&"-"&INDEX($B$3:$AQ$44,AN$67,$E86) -> - | AO86: =INDEX($B$3:$AQ$44,$E86,AO$67)&"-"&INDEX($B$3:$AQ$44,AO$67,$E86) -> - | AP86: - | AQ86: - | AR86: - | AS86: - | AT86: - | AU86: - | AV86: -
A87: 19 | B87: 19 | C87: 19 | D87: 20 | E87: 20 | F87: 220 | G87: =INDEX($B$3:$AQ$44,$E87,G$67)&"-"&INDEX($B$3:$AQ$44,G$67,$E87) -> - | H87: =INDEX($B$3:$AQ$44,$E87,H$67)&"-"&INDEX($B$3:$AQ$44,H$67,$E87) -> - | I87: =INDEX($B$3:$AQ$44,$E87,I$67)&"-"&INDEX($B$3:$AQ$44,I$67,$E87) -> - | J87: =INDEX($B$3:$AQ$44,$E87,J$67)&"-"&INDEX($B$3:$AQ$44,J$67,$E87) -> - | K87: =INDEX($B$3:$AQ$44,$E87,K$67)&"-"&INDEX($B$3:$AQ$44,K$67,$E87) -> - | L87: =INDEX($B$3:$AQ$44,$E87,L$67)&"-"&INDEX($B$3:$AQ$44,L$67,$E87) -> - | M87: =INDEX($B$3:$AQ$44,$E87,M$67)&"-"&INDEX($B$3:$AQ$44,M$67,$E87) -> - | N87: =INDEX($B$3:$AQ$44,$E87,N$67)&"-"&INDEX($B$3:$AQ$44,N$67,$E87) -> - | O87: =INDEX($B$3:$AQ$44,$E87,O$67)&"-"&INDEX($B$3:$AQ$44,O$67,$E87) -> - | P87: =INDEX($B$3:$AQ$44,$E87,P$67)&"-"&INDEX($B$3:$AQ$44,P$67,$E87) -> 0-9 | Q87: =INDEX($B$3:$AQ$44,$E87,Q$67)&"-"&INDEX($B$3:$AQ$44,Q$67,$E87) -> - | R87: =INDEX($B$3:$AQ$44,$E87,R$67)&"-"&INDEX($B$3:$AQ$44,R$67,$E87) -> - | S87: =INDEX($B$3:$AQ$44,$E87,S$67)&"-"&INDEX($B$3:$AQ$44,S$67,$E87) -> - | T87: =INDEX($B$3:$AQ$44,$E87,T$67)&"-"&INDEX($B$3:$AQ$44,T$67,$E87) -> - | U87: =INDEX($B$3:$AQ$44,$E87,U$67)&"-"&INDEX($B$3:$AQ$44,U$67,$E87) -> - | V87: =INDEX($B$3:$AQ$44,$E87,V$67)&"-"&INDEX($B$3:$AQ$44,V$67,$E87) -> 3-6 | W87: =INDEX($B$3:$AQ$44,$E87,W$67)&"-"&INDEX($B$3:$AQ$44,W$67,$E87) -> - | X87: =INDEX($B$3:$AQ$44,$E87,X$67)&"-"&INDEX($B$3:$AQ$44,X$67,$E87) -> 3-3 | Y87: =INDEX($B$3:$AQ$44,$E87,Y$67)&"-"&INDEX($B$3:$AQ$44,Y$67,$E87) -> - | Z87: =INDEX($B$3:$AQ$44,$E87,Z$67)&"-"&INDEX($B$3:$AQ$44,Z$67,$E87) -> 4-1 | AA87: =INDEX($B$3:$AQ$44,$E87,AA$67)&"-"&INDEX($B$3:$AQ$44,AA$67,$E87) -> 3-2 | AB87: =INDEX($B$3:$AQ$44,$E87,AB$67)&"-"&INDEX($B$3:$AQ$44,AB$67,$E87) -> 3-2 | AC87: =INDEX($B$3:$AQ$44,$E87,AC$67)&"-"&INDEX($B$3:$AQ$44,AC$67,$E87) -> - | AD87: =INDEX($B$3:$AQ$44,$E87,AD$67)&"-"&INDEX($B$3:$AQ$44,AD$67,$E87) -> - | AE87: =INDEX($B$3:$AQ$44,$E87,AE$67)&"-"&INDEX($B$3:$AQ$44,AE$67,$E87) -> 3-0 | AF87: =INDEX($B$3:$AQ$44,$E87,AF$67)&"-"&INDEX($B$3:$AQ$44,AF$67,$E87) -> - | AG87: =INDEX($B$3:$AQ$44,$E87,AG$67)&"-"&INDEX($B$3:$AQ$44,AG$67,$E87) -> - | AH87: =INDEX($B$3:$AQ$44,$E87,AH$67)&"-"&INDEX($B$3:$AQ$44,AH$67,$E87) -> - | AI87: =INDEX($B$3:$AQ$44,$E87,AI$67)&"-"&INDEX($B$3:$AQ$44,AI$67,$E87) -> - | AJ87: =INDEX($B$3:$AQ$44,$E87,AJ$67)&"-"&INDEX($B$3:$AQ$44,AJ$67,$E87) -> 9-1 | AK87: =INDEX($B$3:$AQ$44,$E87,AK$67)&"-"&INDEX($B$3:$AQ$44,AK$67,$E87) -> - | AL87: =INDEX($B$3:$AQ$44,$E87,AL$67)&"-"&INDEX($B$3:$AQ$44,AL$67,$E87) -> - | AM87: =INDEX($B$3:$AQ$44,$E87,AM$67)&"-"&INDEX($B$3:$AQ$44,AM$67,$E87) -> - | AN87: =INDEX($B$3:$AQ$44,$E87,AN$67)&"-"&INDEX($B$3:$AQ$44,AN$67,$E87) -> - | AO87: =INDEX($B$3:$AQ$44,$E87,AO$67)&"-"&INDEX($B$3:$AQ$44,AO$67,$E87) -> - | AP87: - | AQ87: - | AR87: - | AS87: - | AT87: - | AU87: - | AV87: -
A88: 20 | B88: 20 | C88: 20 | D88: 21 | E88: 21 | F88: 221 | G88: =INDEX($B$3:$AQ$44,$E88,G$67)&"-"&INDEX($B$3:$AQ$44,G$67,$E88) -> - | H88: =INDEX($B$3:$AQ$44,$E88,H$67)&"-"&INDEX($B$3:$AQ$44,H$67,$E88) -> - | I88: =INDEX($B$3:$AQ$44,$E88,I$67)&"-"&INDEX($B$3:$AQ$44,I$67,$E88) -> - | J88: =INDEX($B$3:$AQ$44,$E88,J$67)&"-"&INDEX($B$3:$AQ$44,J$67,$E88) -> - | K88: =INDEX($B$3:$AQ$44,$E88,K$67)&"-"&INDEX($B$3:$AQ$44,K$67,$E88) -> - | L88: =INDEX($B$3:$AQ$44,$E88,L$67)&"-"&INDEX($B$3:$AQ$44,L$67,$E88) -> - | M88: =INDEX($B$3:$AQ$44,$E88,M$67)&"-"&INDEX($B$3:$AQ$44,M$67,$E88) -> 2-12 | N88: =INDEX($B$3:$AQ$44,$E88,N$67)&"-"&INDEX($B$3:$AQ$44,N$67,$E88) -> - | O88: =INDEX($B$3:$AQ$44,$E88,O$67)&"-"&INDEX($B$3:$AQ$44,O$67,$E88) -> - | P88: =INDEX($B$3:$AQ$44,$E88,P$67)&"-"&INDEX($B$3:$AQ$44,P$67,$E88) -> - | Q88: =INDEX($B$3:$AQ$44,$E88,Q$67)&"-"&INDEX($B$3:$AQ$44,Q$67,$E88) -> - | R88: =INDEX($B$3:$AQ$44,$E88,R$67)&"-"&INDEX($B$3:$AQ$44,R$67,$E88) -> - | S88: =INDEX($B$3:$AQ$44,$E88,S$67)&"-"&INDEX($B$3:$AQ$44,S$67,$E88) -> - | T88: =INDEX($B$3:$AQ$44,$E88,T$67)&"-"&INDEX($B$3:$AQ$44,T$67,$E88) -> - | U88: =INDEX($B$3:$AQ$44,$E88,U$67)&"-"&INDEX($B$3:$AQ$44,U$67,$E88) -> - | V88: =INDEX($B$3:$AQ$44,$E88,V$67)&"-"&INDEX($B$3:$AQ$44,V$67,$E88) -> 1-7 | W88: =INDEX($B$3:$AQ$44,$E88,W$67)&"-"&INDEX($B$3:$AQ$44,W$67,$E88) -> - | X88: =INDEX($B$3:$AQ$44,$E88,X$67)&"-"&INDEX($B$3:$AQ$44,X$67,$E88) -> 3-2 | Y88: =INDEX($B$3:$AQ$44,$E88,Y$67)&"-"&INDEX($B$3:$AQ$44,Y$67,$E88) -> 1-4 | Z88: =INDEX($B$3:$AQ$44,$E88,Z$67)&"-"&INDEX($B$3:$AQ$44,Z$67,$E88) -> - | AA88: =INDEX($B$3:$AQ$44,$E88,AA$67)&"-"&INDEX($B$3:$AQ$44,AA$67,$E88) -> - | AB88: =INDEX($B$3:$AQ$44,$E88,AB$67)&"-"&INDEX($B$3:$AQ$44,AB$67,$E88) -> - | AC88: =INDEX($B$3:$AQ$44,$E88,AC$67)&"-"&INDEX($B$3:$AQ$44,AC$67,$E88) -> - | AD88: =INDEX($B$3:$AQ$44,$E88,AD$67)&"-"&INDEX($B$3:$AQ$44,AD$67,$E88) -> - | AE88: =INDEX($B$3:$AQ$44,$E88,AE$67)&"-"&INDEX($B$3:$AQ$44,AE$67,$E88) -> 10-0 | AF88: =INDEX($B$3:$AQ$44,$E88,AF$67)&"-"&INDEX($B$3:$AQ$44,AF$67,$E88) -> - | AG88: =INDEX($B$3:$AQ$44,$E88,AG$67)&"-"&INDEX($B$3:$AQ$44,AG$67,$E88) -> - | AH88: =INDEX($B$3:$AQ$44,$E88,AH$67)&"-"&INDEX($B$3:$AQ$44,AH$67,$E88) -> - | AI88: =INDEX($B$3:$AQ$44,$E88,AI$67)&"-"&INDEX($B$3:$AQ$44,AI$67,$E88) -> - | AJ88: =INDEX($B$3:$AQ$44,$E88,AJ$67)&"-"&INDEX($B$3:$AQ$44,AJ$67,$E88) -> - | AK88: =INDEX($B$3:$AQ$44,$E88,AK$67)&"-"&INDEX($B$3:$AQ$44,AK$67,$E88) -> - | AL88: =INDEX($B$3:$AQ$44,$E88,AL$67)&"-"&INDEX($B$3:$AQ$44,AL$67,$E88) -> - | AM88: =INDEX($B$3:$AQ$44,$E88,AM$67)&"-"&INDEX($B$3:$AQ$44,AM$67,$E88) -> - | AN88: =INDEX($B$3:$AQ$44,$E88,AN$67)&"-"&INDEX($B$3:$AQ$44,AN$67,$E88) -> - | AO88: =INDEX($B$3:$AQ$44,$E88,AO$67)&"-"&INDEX($B$3:$AQ$44,AO$67,$E88) -> - | AP88: 12-0 | AQ88: - | AR88: - | AS88: - | AT88: - | AU88: - | AV88: -
A89: 21 | B89: 21 | C89: 21 | D89: 24 | E89: 24 | F89: 224 | G89: =INDEX($B$3:$AQ$44,$E89,G$67)&"-"&INDEX($B$3:$AQ$44,G$67,$E89) -> - | H89: =INDEX($B$3:$AQ$44,$E89,H$67)&"-"&INDEX($B$3:$AQ$44,H$67,$E89) -> - | I89: =INDEX($B$3:$AQ$44,$E89,I$67)&"-"&INDEX($B$3:$AQ$44,I$67,$E89) -> - | J89: =INDEX($B$3:$AQ$44,$E89,J$67)&"-"&INDEX($B$3:$AQ$44,J$67,$E89) -> - | K89: =INDEX($B$3:$AQ$44,$E89,K$67)&"-"&INDEX($B$3:$AQ$44,K$67,$E89) -> - | L89: =INDEX($B$3:$AQ$44,$E89,L$67)&"-"&INDEX($B$3:$AQ$44,L$67,$E89) -> - | M89: =INDEX($B$3:$AQ$44,$E89,M$67)&"-"&INDEX($B$3:$AQ$44,M$67,$E89) -> - | N89: =INDEX($B$3:$AQ$44,$E89,N$67)&"-"&INDEX($B$3:$AQ$44,N$67,$E89) -> - | O89: =INDEX($B$3:$AQ$44,$E89,O$67)&"-"&INDEX($B$3:$AQ$44,O$67,$E89) -> - | P89: =INDEX($B$3:$AQ$44,$E89,P$67)&"-"&INDEX($B$3:$AQ$44,P$67,$E89) -> - | Q89: =INDEX($B$3:$AQ$44,$E89,Q$67)&"-"&INDEX($B$3:$AQ$44,Q$67,$E89) -> - | R89: =INDEX($B$3:$AQ$44,$E89,R$67)&"-"&INDEX($B$3:$AQ$44,R$67,$E89) -> - | S89: =INDEX($B$3:$AQ$44,$E89,S$67)&"-"&INDEX($B$3:$AQ$44,S$67,$E89) -> - | T89: =INDEX($B$3:$AQ$44,$E89,T$67)&"-"&INDEX($B$3:$AQ$44,T$67,$E89) -> - | U89: =INDEX($B$3:$AQ$44,$E89,U$67)&"-"&INDEX($B$3:$AQ$44,U$67,$E89) -> - | V89: =INDEX($B$3:$AQ$44,$E89,V$67)&"-"&INDEX($B$3:$AQ$44,V$67,$E89) -> 1-9 | W89: =INDEX($B$3:$AQ$44,$E89,W$67)&"-"&INDEX($B$3:$AQ$44,W$67,$E89) -> - | X89: =INDEX($B$3:$AQ$44,$E89,X$67)&"-"&INDEX($B$3:$AQ$44,X$67,$E89) -> 4-0 | Y89: =INDEX($B$3:$AQ$44,$E89,Y$67)&"-"&INDEX($B$3:$AQ$44,Y$67,$E89) -> 2-3 | Z89: =INDEX($B$3:$AQ$44,$E89,Z$67)&"-"&INDEX($B$3:$AQ$44,Z$67,$E89) -> - | AA89: =INDEX($B$3:$AQ$44,$E89,AA$67)&"-"&INDEX($B$3:$AQ$44,AA$67,$E89) -> - | AB89: =INDEX($B$3:$AQ$44,$E89,AB$67)&"-"&INDEX($B$3:$AQ$44,AB$67,$E89) -> 3-8 | AC89: =INDEX($B$3:$AQ$44,$E89,AC$67)&"-"&INDEX($B$3:$AQ$44,AC$67,$E89) -> - | AD89: =INDEX($B$3:$AQ$44,$E89,AD$67)&"-"&INDEX($B$3:$AQ$44,AD$67,$E89) -> - | AE89: =INDEX($B$3:$AQ$44,$E89,AE$67)&"-"&INDEX($B$3:$AQ$44,AE$67,$E89) -> 6-0 | AF89: =INDEX($B$3:$AQ$44,$E89,AF$67)&"-"&INDEX($B$3:$AQ$44,AF$67,$E89) -> - | AG89: =INDEX($B$3:$AQ$44,$E89,AG$67)&"-"&INDEX($B$3:$AQ$44,AG$67,$E89) -> - | AH89: =INDEX($B$3:$AQ$44,$E89,AH$67)&"-"&INDEX($B$3:$AQ$44,AH$67,$E89) -> 8-0 | AI89: =INDEX($B$3:$AQ$44,$E89,AI$67)&"-"&INDEX($B$3:$AQ$44,AI$67,$E89) -> - | AJ89: =INDEX($B$3:$AQ$44,$E89,AJ$67)&"-"&INDEX($B$3:$AQ$44,AJ$67,$E89) -> 4-1 | AK89: =INDEX($B$3:$AQ$44,$E89,AK$67)&"-"&INDEX($B$3:$AQ$44,AK$67,$E89) -> - | AL89: =INDEX($B$3:$AQ$44,$E89,AL$67)&"-"&INDEX($B$3:$AQ$44,AL$67,$E89) -> 7-1 | AM89: =INDEX($B$3:$AQ$44,$E89,AM$67)&"-"&INDEX($B$3:$AQ$44,AM$67,$E89) -> - | AN89: =INDEX($B$3:$AQ$44,$E89,AN$67)&"-"&INDEX($B$3:$AQ$44,AN$67,$E89) -> - | AO89: =INDEX($B$3:$AQ$44,$E89,AO$67)&"-"&INDEX($B$3:$AQ$44,AO$67,$E89) -> - | AP89: - | AQ89: - | AR89: - | AS89: 10-0 | AT89: - | AU89: - | AV89: -
A90: 22 | B90: 22 | C90: 22 | D90: 18 | E90: 18 | F90: 218 | G90: =INDEX($B$3:$AQ$44,$E90,G$67)&"-"&INDEX($B$3:$AQ$44,G$67,$E90) -> - | H90: =INDEX($B$3:$AQ$44,$E90,H$67)&"-"&INDEX($B$3:$AQ$44,H$67,$E90) -> - | I90: =INDEX($B$3:$AQ$44,$E90,I$67)&"-"&INDEX($B$3:$AQ$44,I$67,$E90) -> - | J90: =INDEX($B$3:$AQ$44,$E90,J$67)&"-"&INDEX($B$3:$AQ$44,J$67,$E90) -> - | K90: =INDEX($B$3:$AQ$44,$E90,K$67)&"-"&INDEX($B$3:$AQ$44,K$67,$E90) -> - | L90: =INDEX($B$3:$AQ$44,$E90,L$67)&"-"&INDEX($B$3:$AQ$44,L$67,$E90) -> - | M90: =INDEX($B$3:$AQ$44,$E90,M$67)&"-"&INDEX($B$3:$AQ$44,M$67,$E90) -> - | N90: =INDEX($B$3:$AQ$44,$E90,N$67)&"-"&INDEX($B$3:$AQ$44,N$67,$E90) -> - | O90: =INDEX($B$3:$AQ$44,$E90,O$67)&"-"&INDEX($B$3:$AQ$44,O$67,$E90) -> - | P90: =INDEX($B$3:$AQ$44,$E90,P$67)&"-"&INDEX($B$3:$AQ$44,P$67,$E90) -> - | Q90: =INDEX($B$3:$AQ$44,$E90,Q$67)&"-"&INDEX($B$3:$AQ$44,Q$67,$E90) -> - | R90: =INDEX($B$3:$AQ$44,$E90,R$67)&"-"&INDEX($B$3:$AQ$44,R$67,$E90) -> - | S90: =INDEX($B$3:$AQ$44,$E90,S$67)&"-"&INDEX($B$3:$AQ$44,S$67,$E90) -> 1-7 | T90: =INDEX($B$3:$AQ$44,$E90,T$67)&"-"&INDEX($B$3:$AQ$44,T$67,$E90) -> - | U90: =INDEX($B$3:$AQ$44,$E90,U$67)&"-"&INDEX($B$3:$AQ$44,U$67,$E90) -> - | V90: =INDEX($B$3:$AQ$44,$E90,V$67)&"-"&INDEX($B$3:$AQ$44,V$67,$E90) -> - | W90: =INDEX($B$3:$AQ$44,$E90,W$67)&"-"&INDEX($B$3:$AQ$44,W$67,$E90) -> 3-8 | X90: =INDEX($B$3:$AQ$44,$E90,X$67)&"-"&INDEX($B$3:$AQ$44,X$67,$E90) -> 2-12 | Y90: =INDEX($B$3:$AQ$44,$E90,Y$67)&"-"&INDEX($B$3:$AQ$44,Y$67,$E90) -> 2-3 | Z90: =INDEX($B$3:$AQ$44,$E90,Z$67)&"-"&INDEX($B$3:$AQ$44,Z$67,$E90) -> - | AA90: =INDEX($B$3:$AQ$44,$E90,AA$67)&"-"&INDEX($B$3:$AQ$44,AA$67,$E90) -> 8-3 | AB90: =INDEX($B$3:$AQ$44,$E90,AB$67)&"-"&INDEX($B$3:$AQ$44,AB$67,$E90) -> - | AC90: =INDEX($B$3:$AQ$44,$E90,AC$67)&"-"&INDEX($B$3:$AQ$44,AC$67,$E90) -> 5-6 | AD90: =INDEX($B$3:$AQ$44,$E90,AD$67)&"-"&INDEX($B$3:$AQ$44,AD$67,$E90) -> 5-4 | AE90: =INDEX($B$3:$AQ$44,$E90,AE$67)&"-"&INDEX($B$3:$AQ$44,AE$67,$E90) -> - | AF90: =INDEX($B$3:$AQ$44,$E90,AF$67)&"-"&INDEX($B$3:$AQ$44,AF$67,$E90) -> - | AG90: =INDEX($B$3:$AQ$44,$E90,AG$67)&"-"&INDEX($B$3:$AQ$44,AG$67,$E90) -> - | AH90: =INDEX($B$3:$AQ$44,$E90,AH$67)&"-"&INDEX($B$3:$AQ$44,AH$67,$E90) -> - | AI90: =INDEX($B$3:$AQ$44,$E90,AI$67)&"-"&INDEX($B$3:$AQ$44,AI$67,$E90) -> - | AJ90: =INDEX($B$3:$AQ$44,$E90,AJ$67)&"-"&INDEX($B$3:$AQ$44,AJ$67,$E90) -> - | AK90: =INDEX($B$3:$AQ$44,$E90,AK$67)&"-"&INDEX($B$3:$AQ$44,AK$67,$E90) -> - | AL90: =INDEX($B$3:$AQ$44,$E90,AL$67)&"-"&INDEX($B$3:$AQ$44,AL$67,$E90) -> - | AM90: =INDEX($B$3:$AQ$44,$E90,AM$67)&"-"&INDEX($B$3:$AQ$44,AM$67,$E90) -> - | AN90: =INDEX($B$3:$AQ$44,$E90,AN$67)&"-"&INDEX($B$3:$AQ$44,AN$67,$E90) -> - | AO90: =INDEX($B$3:$AQ$44,$E90,AO$67)&"-"&INDEX($B$3:$AQ$44,AO$67,$E90) -> - | AP90: - | AQ90: - | AR90: - | AS90: - | AT90: - | AU90: - | AV90: -
A91: 23 | B91: 23 | C91: 23 | D91: 17 | E91: 17 | F91: 217 | G91: =INDEX($B$3:$AQ$44,$E91,G$67)&"-"&INDEX($B$3:$AQ$44,G$67,$E91) -> - | H91: =INDEX($B$3:$AQ$44,$E91,H$67)&"-"&INDEX($B$3:$AQ$44,H$67,$E91) -> - | I91: =INDEX($B$3:$AQ$44,$E91,I$67)&"-"&INDEX($B$3:$AQ$44,I$67,$E91) -> - | J91: =INDEX($B$3:$AQ$44,$E91,J$67)&"-"&INDEX($B$3:$AQ$44,J$67,$E91) -> - | K91: =INDEX($B$3:$AQ$44,$E91,K$67)&"-"&INDEX($B$3:$AQ$44,K$67,$E91) -> - | L91: =INDEX($B$3:$AQ$44,$E91,L$67)&"-"&INDEX($B$3:$AQ$44,L$67,$E91) -> - | M91: =INDEX($B$3:$AQ$44,$E91,M$67)&"-"&INDEX($B$3:$AQ$44,M$67,$E91) -> - | N91: =INDEX($B$3:$AQ$44,$E91,N$67)&"-"&INDEX($B$3:$AQ$44,N$67,$E91) -> - | O91: =INDEX($B$3:$AQ$44,$E91,O$67)&"-"&INDEX($B$3:$AQ$44,O$67,$E91) -> 0-11 | P91: =INDEX($B$3:$AQ$44,$E91,P$67)&"-"&INDEX($B$3:$AQ$44,P$67,$E91) -> - | Q91: =INDEX($B$3:$AQ$44,$E91,Q$67)&"-"&INDEX($B$3:$AQ$44,Q$67,$E91) -> - | R91: =INDEX($B$3:$AQ$44,$E91,R$67)&"-"&INDEX($B$3:$AQ$44,R$67,$E91) -> - | S91: =INDEX($B$3:$AQ$44,$E91,S$67)&"-"&INDEX($B$3:$AQ$44,S$67,$E91) -> - | T91: =INDEX($B$3:$AQ$44,$E91,T$67)&"-"&INDEX($B$3:$AQ$44,T$67,$E91) -> 0-8 | U91: =INDEX($B$3:$AQ$44,$E91,U$67)&"-"&INDEX($B$3:$AQ$44,U$67,$E91) -> - | V91: =INDEX($B$3:$AQ$44,$E91,V$67)&"-"&INDEX($B$3:$AQ$44,V$67,$E91) -> - | W91: =INDEX($B$3:$AQ$44,$E91,W$67)&"-"&INDEX($B$3:$AQ$44,W$67,$E91) -> 1-4 | X91: =INDEX($B$3:$AQ$44,$E91,X$67)&"-"&INDEX($B$3:$AQ$44,X$67,$E91) -> 3-11 | Y91: =INDEX($B$3:$AQ$44,$E91,Y$67)&"-"&INDEX($B$3:$AQ$44,Y$67,$E91) -> - | Z91: =INDEX($B$3:$AQ$44,$E91,Z$67)&"-"&INDEX($B$3:$AQ$44,Z$67,$E91) -> - | AA91: =INDEX($B$3:$AQ$44,$E91,AA$67)&"-"&INDEX($B$3:$AQ$44,AA$67,$E91) -> - | AB91: =INDEX($B$3:$AQ$44,$E91,AB$67)&"-"&INDEX($B$3:$AQ$44,AB$67,$E91) -> 6-5 | AC91: =INDEX($B$3:$AQ$44,$E91,AC$67)&"-"&INDEX($B$3:$AQ$44,AC$67,$E91) -> - | AD91: =INDEX($B$3:$AQ$44,$E91,AD$67)&"-"&INDEX($B$3:$AQ$44,AD$67,$E91) -> - | AE91: =INDEX($B$3:$AQ$44,$E91,AE$67)&"-"&INDEX($B$3:$AQ$44,AE$67,$E91) -> - | AF91: =INDEX($B$3:$AQ$44,$E91,AF$67)&"-"&INDEX($B$3:$AQ$44,AF$67,$E91) -> - | AG91: =INDEX($B$3:$AQ$44,$E91,AG$67)&"-"&INDEX($B$3:$AQ$44,AG$67,$E91) -> - | AH91: =INDEX($B$3:$AQ$44,$E91,AH$67)&"-"&INDEX($B$3:$AQ$44,AH$67,$E91) -> - | AI91: =INDEX($B$3:$AQ$44,$E91,AI$67)&"-"&INDEX($B$3:$AQ$44,AI$67,$E91) -> - | AJ91: =INDEX($B$3:$AQ$44,$E91,AJ$67)&"-"&INDEX($B$3:$AQ$44,AJ$67,$E91) -> - | AK91: =INDEX($B$3:$AQ$44,$E91,AK$67)&"-"&INDEX($B$3:$AQ$44,AK$67,$E91) -> - | AL91: =INDEX($B$3:$AQ$44,$E91,AL$67)&"-"&INDEX($B$3:$AQ$44,AL$67,$E91) -> - | AM91: =INDEX($B$3:$AQ$44,$E91,AM$67)&"-"&INDEX($B$3:$AQ$44,AM$67,$E91) -> - | AN91: =INDEX($B$3:$AQ$44,$E91,AN$67)&"-"&INDEX($B$3:$AQ$44,AN$67,$E91) -> - | AO91: =INDEX($B$3:$AQ$44,$E91,AO$67)&"-"&INDEX($B$3:$AQ$44,AO$67,$E91) -> - | AP91: 11-2 | AQ91: - | AR91: - | AS91: - | AT91: - | AU91: - | AV91: -
A92: 24 | B92: 24 | C92: 24 | D92: 29 | E92: 29 | F92: 229 | G92: =INDEX($B$3:$AQ$44,$E92,G$67)&"-"&INDEX($B$3:$AQ$44,G$67,$E92) -> - | H92: =INDEX($B$3:$AQ$44,$E92,H$67)&"-"&INDEX($B$3:$AQ$44,H$67,$E92) -> - | I92: =INDEX($B$3:$AQ$44,$E92,I$67)&"-"&INDEX($B$3:$AQ$44,I$67,$E92) -> - | J92: =INDEX($B$3:$AQ$44,$E92,J$67)&"-"&INDEX($B$3:$AQ$44,J$67,$E92) -> - | K92: =INDEX($B$3:$AQ$44,$E92,K$67)&"-"&INDEX($B$3:$AQ$44,K$67,$E92) -> - | L92: =INDEX($B$3:$AQ$44,$E92,L$67)&"-"&INDEX($B$3:$AQ$44,L$67,$E92) -> - | M92: =INDEX($B$3:$AQ$44,$E92,M$67)&"-"&INDEX($B$3:$AQ$44,M$67,$E92) -> - | N92: =INDEX($B$3:$AQ$44,$E92,N$67)&"-"&INDEX($B$3:$AQ$44,N$67,$E92) -> - | O92: =INDEX($B$3:$AQ$44,$E92,O$67)&"-"&INDEX($B$3:$AQ$44,O$67,$E92) -> - | P92: =INDEX($B$3:$AQ$44,$E92,P$67)&"-"&INDEX($B$3:$AQ$44,P$67,$E92) -> - | Q92: =INDEX($B$3:$AQ$44,$E92,Q$67)&"-"&INDEX($B$3:$AQ$44,Q$67,$E92) -> - | R92: =INDEX($B$3:$AQ$44,$E92,R$67)&"-"&INDEX($B$3:$AQ$44,R$67,$E92) -> - | S92: =INDEX($B$3:$AQ$44,$E92,S$67)&"-"&INDEX($B$3:$AQ$44,S$67,$E92) -> - | T92: =INDEX($B$3:$AQ$44,$E92,T$67)&"-"&INDEX($B$3:$AQ$44,T$67,$E92) -> - | U92: =INDEX($B$3:$AQ$44,$E92,U$67)&"-"&INDEX($B$3:$AQ$44,U$67,$E92) -> - | V92: =INDEX($B$3:$AQ$44,$E92,V$67)&"-"&INDEX($B$3:$AQ$44,V$67,$E92) -> - | W92: =INDEX($B$3:$AQ$44,$E92,W$67)&"-"&INDEX($B$3:$AQ$44,W$67,$E92) -> - | X92: =INDEX($B$3:$AQ$44,$E92,X$67)&"-"&INDEX($B$3:$AQ$44,X$67,$E92) -> - | Y92: =INDEX($B$3:$AQ$44,$E92,Y$67)&"-"&INDEX($B$3:$AQ$44,Y$67,$E92) -> - | Z92: =INDEX($B$3:$AQ$44,$E92,Z$67)&"-"&INDEX($B$3:$AQ$44,Z$67,$E92) -> - | AA92: =INDEX($B$3:$AQ$44,$E92,AA$67)&"-"&INDEX($B$3:$AQ$44,AA$67,$E92) -> - | AB92: =INDEX($B$3:$AQ$44,$E92,AB$67)&"-"&INDEX($B$3:$AQ$44,AB$67,$E92) -> 4-5 | AC92: =INDEX($B$3:$AQ$44,$E92,AC$67)&"-"&INDEX($B$3:$AQ$44,AC$67,$E92) -> - | AD92: =INDEX($B$3:$AQ$44,$E92,AD$67)&"-"&INDEX($B$3:$AQ$44,AD$67,$E92) -> - | AE92: =INDEX($B$3:$AQ$44,$E92,AE$67)&"-"&INDEX($B$3:$AQ$44,AE$67,$E92) -> 3-3 | AF92: =INDEX($B$3:$AQ$44,$E92,AF$67)&"-"&INDEX($B$3:$AQ$44,AF$67,$E92) -> 4-7 | AG92: =INDEX($B$3:$AQ$44,$E92,AG$67)&"-"&INDEX($B$3:$AQ$44,AG$67,$E92) -> 10-2 | AH92: =INDEX($B$3:$AQ$44,$E92,AH$67)&"-"&INDEX($B$3:$AQ$44,AH$67,$E92) -> 5-3 | AI92: =INDEX($B$3:$AQ$44,$E92,AI$67)&"-"&INDEX($B$3:$AQ$44,AI$67,$E92) -> - | AJ92: =INDEX($B$3:$AQ$44,$E92,AJ$67)&"-"&INDEX($B$3:$AQ$44,AJ$67,$E92) -> 5-0 | AK92: =INDEX($B$3:$AQ$44,$E92,AK$67)&"-"&INDEX($B$3:$AQ$44,AK$67,$E92) -> - | AL92: =INDEX($B$3:$AQ$44,$E92,AL$67)&"-"&INDEX($B$3:$AQ$44,AL$67,$E92) -> 7-2 | AM92: =INDEX($B$3:$AQ$44,$E92,AM$67)&"-"&INDEX($B$3:$AQ$44,AM$67,$E92) -> 1-1 | AN92: =INDEX($B$3:$AQ$44,$E92,AN$67)&"-"&INDEX($B$3:$AQ$44,AN$67,$E92) -> 10-1 | AO92: =INDEX($B$3:$AQ$44,$E92,AO$67)&"-"&INDEX($B$3:$AQ$44,AO$67,$E92) -> - | AP92: 9-0 | AQ92: - | AR92: - | AS92: - | AT92: - | AU92: - | AV92: -
A93: 25 | B93: 26 | C93: 25 | D93: 23 | E93: 23 | F93: 223 | G93: =INDEX($B$3:$AQ$44,$E93,G$67)&"-"&INDEX($B$3:$AQ$44,G$67,$E93) -> - | H93: =INDEX($B$3:$AQ$44,$E93,H$67)&"-"&INDEX($B$3:$AQ$44,H$67,$E93) -> - | I93: =INDEX($B$3:$AQ$44,$E93,I$67)&"-"&INDEX($B$3:$AQ$44,I$67,$E93) -> - | J93: =INDEX($B$3:$AQ$44,$E93,J$67)&"-"&INDEX($B$3:$AQ$44,J$67,$E93) -> - | K93: =INDEX($B$3:$AQ$44,$E93,K$67)&"-"&INDEX($B$3:$AQ$44,K$67,$E93) -> - | L93: =INDEX($B$3:$AQ$44,$E93,L$67)&"-"&INDEX($B$3:$AQ$44,L$67,$E93) -> - | M93: =INDEX($B$3:$AQ$44,$E93,M$67)&"-"&INDEX($B$3:$AQ$44,M$67,$E93) -> - | N93: =INDEX($B$3:$AQ$44,$E93,N$67)&"-"&INDEX($B$3:$AQ$44,N$67,$E93) -> - | O93: =INDEX($B$3:$AQ$44,$E93,O$67)&"-"&INDEX($B$3:$AQ$44,O$67,$E93) -> - | P93: =INDEX($B$3:$AQ$44,$E93,P$67)&"-"&INDEX($B$3:$AQ$44,P$67,$E93) -> - | Q93: =INDEX($B$3:$AQ$44,$E93,Q$67)&"-"&INDEX($B$3:$AQ$44,Q$67,$E93) -> - | R93: =INDEX($B$3:$AQ$44,$E93,R$67)&"-"&INDEX($B$3:$AQ$44,R$67,$E93) -> - | S93: =INDEX($B$3:$AQ$44,$E93,S$67)&"-"&INDEX($B$3:$AQ$44,S$67,$E93) -> - | T93: =INDEX($B$3:$AQ$44,$E93,T$67)&"-"&INDEX($B$3:$AQ$44,T$67,$E93) -> - | U93: =INDEX($B$3:$AQ$44,$E93,U$67)&"-"&INDEX($B$3:$AQ$44,U$67,$E93) -> - | V93: =INDEX($B$3:$AQ$44,$E93,V$67)&"-"&INDEX($B$3:$AQ$44,V$67,$E93) -> 1-11 | W93: =INDEX($B$3:$AQ$44,$E93,W$67)&"-"&INDEX($B$3:$AQ$44,W$67,$E93) -> - | X93: =INDEX($B$3:$AQ$44,$E93,X$67)&"-"&INDEX($B$3:$AQ$44,X$67,$E93) -> - | Y93: =INDEX($B$3:$AQ$44,$E93,Y$67)&"-"&INDEX($B$3:$AQ$44,Y$67,$E93) -> 0-3 | Z93: =INDEX($B$3:$AQ$44,$E93,Z$67)&"-"&INDEX($B$3:$AQ$44,Z$67,$E93) -> 0-10 | AA93: =INDEX($B$3:$AQ$44,$E93,AA$67)&"-"&INDEX($B$3:$AQ$44,AA$67,$E93) -> 0-6 | AB93: =INDEX($B$3:$AQ$44,$E93,AB$67)&"-"&INDEX($B$3:$AQ$44,AB$67,$E93) -> - | AC93: =INDEX($B$3:$AQ$44,$E93,AC$67)&"-"&INDEX($B$3:$AQ$44,AC$67,$E93) -> - | AD93: =INDEX($B$3:$AQ$44,$E93,AD$67)&"-"&INDEX($B$3:$AQ$44,AD$67,$E93) -> 3-3 | AE93: =INDEX($B$3:$AQ$44,$E93,AE$67)&"-"&INDEX($B$3:$AQ$44,AE$67,$E93) -> - | AF93: =INDEX($B$3:$AQ$44,$E93,AF$67)&"-"&INDEX($B$3:$AQ$44,AF$67,$E93) -> 4-1 | AG93: =INDEX($B$3:$AQ$44,$E93,AG$67)&"-"&INDEX($B$3:$AQ$44,AG$67,$E93) -> - | AH93: =INDEX($B$3:$AQ$44,$E93,AH$67)&"-"&INDEX($B$3:$AQ$44,AH$67,$E93) -> 4-4 | AI93: =INDEX($B$3:$AQ$44,$E93,AI$67)&"-"&INDEX($B$3:$AQ$44,AI$67,$E93) -> - | AJ93: =INDEX($B$3:$AQ$44,$E93,AJ$67)&"-"&INDEX($B$3:$AQ$44,AJ$67,$E93) -> 4-1 | AK93: =INDEX($B$3:$AQ$44,$E93,AK$67)&"-"&INDEX($B$3:$AQ$44,AK$67,$E93) -> - | AL93: =INDEX($B$3:$AQ$44,$E93,AL$67)&"-"&INDEX($B$3:$AQ$44,AL$67,$E93) -> - | AM93: =INDEX($B$3:$AQ$44,$E93,AM$67)&"-"&INDEX($B$3:$AQ$44,AM$67,$E93) -> - | AN93: =INDEX($B$3:$AQ$44,$E93,AN$67)&"-"&INDEX($B$3:$AQ$44,AN$67,$E93) -> - | AO93: =INDEX($B$3:$AQ$44,$E93,AO$67)&"-"&INDEX($B$3:$AQ$44,AO$67,$E93) -> - | AP93: - | AQ93: - | AR93: - | AS93: - | AT93: - | AU93: - | AV93: -
A94: 26 | B94: 28 | C94: 26 | D94: 28 | E94: 28 | F94: 228 | G94: =INDEX($B$3:$AQ$44,$E94,G$67)&"-"&INDEX($B$3:$AQ$44,G$67,$E94) -> - | H94: =INDEX($B$3:$AQ$44,$E94,H$67)&"-"&INDEX($B$3:$AQ$44,H$67,$E94) -> - | I94: =INDEX($B$3:$AQ$44,$E94,I$67)&"-"&INDEX($B$3:$AQ$44,I$67,$E94) -> - | J94: =INDEX($B$3:$AQ$44,$E94,J$67)&"-"&INDEX($B$3:$AQ$44,J$67,$E94) -> - | K94: =INDEX($B$3:$AQ$44,$E94,K$67)&"-"&INDEX($B$3:$AQ$44,K$67,$E94) -> - | L94: =INDEX($B$3:$AQ$44,$E94,L$67)&"-"&INDEX($B$3:$AQ$44,L$67,$E94) -> - | M94: =INDEX($B$3:$AQ$44,$E94,M$67)&"-"&INDEX($B$3:$AQ$44,M$67,$E94) -> - | N94: =INDEX($B$3:$AQ$44,$E94,N$67)&"-"&INDEX($B$3:$AQ$44,N$67,$E94) -> - | O94: =INDEX($B$3:$AQ$44,$E94,O$67)&"-"&INDEX($B$3:$AQ$44,O$67,$E94) -> - | P94: =INDEX($B$3:$AQ$44,$E94,P$67)&"-"&INDEX($B$3:$AQ$44,P$67,$E94) -> - | Q94: =INDEX($B$3:$AQ$44,$E94,Q$67)&"-"&INDEX($B$3:$AQ$44,Q$67,$E94) -> - | R94: =INDEX($B$3:$AQ$44,$E94,R$67)&"-"&INDEX($B$3:$AQ$44,R$67,$E94) -> - | S94: =INDEX($B$3:$AQ$44,$E94,S$67)&"-"&INDEX($B$3:$AQ$44,S$67,$E94) -> - | T94: =INDEX($B$3:$AQ$44,$E94,T$67)&"-"&INDEX($B$3:$AQ$44,T$67,$E94) -> - | U94: =INDEX($B$3:$AQ$44,$E94,U$67)&"-"&INDEX($B$3:$AQ$44,U$67,$E94) -> - | V94: =INDEX($B$3:$AQ$44,$E94,V$67)&"-"&INDEX($B$3:$AQ$44,V$67,$E94) -> - | W94: =INDEX($B$3:$AQ$44,$E94,W$67)&"-"&INDEX($B$3:$AQ$44,W$67,$E94) -> - | X94: =INDEX($B$3:$AQ$44,$E94,X$67)&"-"&INDEX($B$3:$AQ$44,X$67,$E94) -> - | Y94: =INDEX($B$3:$AQ$44,$E94,Y$67)&"-"&INDEX($B$3:$AQ$44,Y$67,$E94) -> - | Z94: =INDEX($B$3:$AQ$44,$E94,Z$67)&"-"&INDEX($B$3:$AQ$44,Z$67,$E94) -> - | AA94: =INDEX($B$3:$AQ$44,$E94,AA$67)&"-"&INDEX($B$3:$AQ$44,AA$67,$E94) -> - | AB94: =INDEX($B$3:$AQ$44,$E94,AB$67)&"-"&INDEX($B$3:$AQ$44,AB$67,$E94) -> - | AC94: =INDEX($B$3:$AQ$44,$E94,AC$67)&"-"&INDEX($B$3:$AQ$44,AC$67,$E94) -> - | AD94: =INDEX($B$3:$AQ$44,$E94,AD$67)&"-"&INDEX($B$3:$AQ$44,AD$67,$E94) -> 7-4 | AE94: =INDEX($B$3:$AQ$44,$E94,AE$67)&"-"&INDEX($B$3:$AQ$44,AE$67,$E94) -> 1-4 | AF94: =INDEX($B$3:$AQ$44,$E94,AF$67)&"-"&INDEX($B$3:$AQ$44,AF$67,$E94) -> - | AG94: =INDEX($B$3:$AQ$44,$E94,AG$67)&"-"&INDEX($B$3:$AQ$44,AG$67,$E94) -> 2-4 | AH94: =INDEX($B$3:$AQ$44,$E94,AH$67)&"-"&INDEX($B$3:$AQ$44,AH$67,$E94) -> 4-0 | AI94: =INDEX($B$3:$AQ$44,$E94,AI$67)&"-"&INDEX($B$3:$AQ$44,AI$67,$E94) -> 5-5 | AJ94: =INDEX($B$3:$AQ$44,$E94,AJ$67)&"-"&INDEX($B$3:$AQ$44,AJ$67,$E94) -> 3-3 | AK94: =INDEX($B$3:$AQ$44,$E94,AK$67)&"-"&INDEX($B$3:$AQ$44,AK$67,$E94) -> - | AL94: =INDEX($B$3:$AQ$44,$E94,AL$67)&"-"&INDEX($B$3:$AQ$44,AL$67,$E94) -> 5-4 | AM94: =INDEX($B$3:$AQ$44,$E94,AM$67)&"-"&INDEX($B$3:$AQ$44,AM$67,$E94) -> - | AN94: =INDEX($B$3:$AQ$44,$E94,AN$67)&"-"&INDEX($B$3:$AQ$44,AN$67,$E94) -> 5-2 | AO94: =INDEX($B$3:$AQ$44,$E94,AO$67)&"-"&INDEX($B$3:$AQ$44,AO$67,$E94) -> - | AP94: 10-0 | AQ94: - | AR94: - | AS94: - | AT94: - | AU94: - | AV94: -
A95: 27 | B95: 25 | C95: 29 | D95: 31 | E95: 31 | F95: 231 | G95: =INDEX($B$3:$AQ$44,$E95,G$67)&"-"&INDEX($B$3:$AQ$44,G$67,$E95) -> - | H95: =INDEX($B$3:$AQ$44,$E95,H$67)&"-"&INDEX($B$3:$AQ$44,H$67,$E95) -> - | I95: =INDEX($B$3:$AQ$44,$E95,I$67)&"-"&INDEX($B$3:$AQ$44,I$67,$E95) -> - | J95: =INDEX($B$3:$AQ$44,$E95,J$67)&"-"&INDEX($B$3:$AQ$44,J$67,$E95) -> - | K95: =INDEX($B$3:$AQ$44,$E95,K$67)&"-"&INDEX($B$3:$AQ$44,K$67,$E95) -> - | L95: =INDEX($B$3:$AQ$44,$E95,L$67)&"-"&INDEX($B$3:$AQ$44,L$67,$E95) -> - | M95: =INDEX($B$3:$AQ$44,$E95,M$67)&"-"&INDEX($B$3:$AQ$44,M$67,$E95) -> - | N95: =INDEX($B$3:$AQ$44,$E95,N$67)&"-"&INDEX($B$3:$AQ$44,N$67,$E95) -> - | O95: =INDEX($B$3:$AQ$44,$E95,O$67)&"-"&INDEX($B$3:$AQ$44,O$67,$E95) -> - | P95: =INDEX($B$3:$AQ$44,$E95,P$67)&"-"&INDEX($B$3:$AQ$44,P$67,$E95) -> - | Q95: =INDEX($B$3:$AQ$44,$E95,Q$67)&"-"&INDEX($B$3:$AQ$44,Q$67,$E95) -> - | R95: =INDEX($B$3:$AQ$44,$E95,R$67)&"-"&INDEX($B$3:$AQ$44,R$67,$E95) -> - | S95: =INDEX($B$3:$AQ$44,$E95,S$67)&"-"&INDEX($B$3:$AQ$44,S$67,$E95) -> - | T95: =INDEX($B$3:$AQ$44,$E95,T$67)&"-"&INDEX($B$3:$AQ$44,T$67,$E95) -> - | U95: =INDEX($B$3:$AQ$44,$E95,U$67)&"-"&INDEX($B$3:$AQ$44,U$67,$E95) -> - | V95: =INDEX($B$3:$AQ$44,$E95,V$67)&"-"&INDEX($B$3:$AQ$44,V$67,$E95) -> 0-12 | W95: =INDEX($B$3:$AQ$44,$E95,W$67)&"-"&INDEX($B$3:$AQ$44,W$67,$E95) -> - | X95: =INDEX($B$3:$AQ$44,$E95,X$67)&"-"&INDEX($B$3:$AQ$44,X$67,$E95) -> - | Y95: =INDEX($B$3:$AQ$44,$E95,Y$67)&"-"&INDEX($B$3:$AQ$44,Y$67,$E95) -> - | Z95: =INDEX($B$3:$AQ$44,$E95,Z$67)&"-"&INDEX($B$3:$AQ$44,Z$67,$E95) -> - | AA95: =INDEX($B$3:$AQ$44,$E95,AA$67)&"-"&INDEX($B$3:$AQ$44,AA$67,$E95) -> - | AB95: =INDEX($B$3:$AQ$44,$E95,AB$67)&"-"&INDEX($B$3:$AQ$44,AB$67,$E95) -> - | AC95: =INDEX($B$3:$AQ$44,$E95,AC$67)&"-"&INDEX($B$3:$AQ$44,AC$67,$E95) -> - | AD95: =INDEX($B$3:$AQ$44,$E95,AD$67)&"-"&INDEX($B$3:$AQ$44,AD$67,$E95) -> 2-10 | AE95: =INDEX($B$3:$AQ$44,$E95,AE$67)&"-"&INDEX($B$3:$AQ$44,AE$67,$E95) -> - | AF95: =INDEX($B$3:$AQ$44,$E95,AF$67)&"-"&INDEX($B$3:$AQ$44,AF$67,$E95) -> 4-2 | AG95: =INDEX($B$3:$AQ$44,$E95,AG$67)&"-"&INDEX($B$3:$AQ$44,AG$67,$E95) -> - | AH95: =INDEX($B$3:$AQ$44,$E95,AH$67)&"-"&INDEX($B$3:$AQ$44,AH$67,$E95) -> 3-4 | AI95: =INDEX($B$3:$AQ$44,$E95,AI$67)&"-"&INDEX($B$3:$AQ$44,AI$67,$E95) -> 3-1 | AJ95: =INDEX($B$3:$AQ$44,$E95,AJ$67)&"-"&INDEX($B$3:$AQ$44,AJ$67,$E95) -> - | AK95: =INDEX($B$3:$AQ$44,$E95,AK$67)&"-"&INDEX($B$3:$AQ$44,AK$67,$E95) -> 10-2 | AL95: =INDEX($B$3:$AQ$44,$E95,AL$67)&"-"&INDEX($B$3:$AQ$44,AL$67,$E95) -> - | AM95: =INDEX($B$3:$AQ$44,$E95,AM$67)&"-"&INDEX($B$3:$AQ$44,AM$67,$E95) -> 4-1 | AN95: =INDEX($B$3:$AQ$44,$E95,AN$67)&"-"&INDEX($B$3:$AQ$44,AN$67,$E95) -> 13-1 | AO95: =INDEX($B$3:$AQ$44,$E95,AO$67)&"-"&INDEX($B$3:$AQ$44,AO$67,$E95) -> - | AP95: 18-4 | AQ95: - | AR95: - | AS95: 9-1 | AT95: - | AU95: - | AV95: -
A96: 28 | B96: 29 | C96: 27 | D96: 25 | E96: 25 | F96: 225 | G96: =INDEX($B$3:$AQ$44,$E96,G$67)&"-"&INDEX($B$3:$AQ$44,G$67,$E96) -> - | H96: =INDEX($B$3:$AQ$44,$E96,H$67)&"-"&INDEX($B$3:$AQ$44,H$67,$E96) -> - | I96: =INDEX($B$3:$AQ$44,$E96,I$67)&"-"&INDEX($B$3:$AQ$44,I$67,$E96) -> - | J96: =INDEX($B$3:$AQ$44,$E96,J$67)&"-"&INDEX($B$3:$AQ$44,J$67,$E96) -> - | K96: =INDEX($B$3:$AQ$44,$E96,K$67)&"-"&INDEX($B$3:$AQ$44,K$67,$E96) -> - | L96: =INDEX($B$3:$AQ$44,$E96,L$67)&"-"&INDEX($B$3:$AQ$44,L$67,$E96) -> - | M96: =INDEX($B$3:$AQ$44,$E96,M$67)&"-"&INDEX($B$3:$AQ$44,M$67,$E96) -> - | N96: =INDEX($B$3:$AQ$44,$E96,N$67)&"-"&INDEX($B$3:$AQ$44,N$67,$E96) -> - | O96: =INDEX($B$3:$AQ$44,$E96,O$67)&"-"&INDEX($B$3:$AQ$44,O$67,$E96) -> - | P96: =INDEX($B$3:$AQ$44,$E96,P$67)&"-"&INDEX($B$3:$AQ$44,P$67,$E96) -> - | Q96: =INDEX($B$3:$AQ$44,$E96,Q$67)&"-"&INDEX($B$3:$AQ$44,Q$67,$E96) -> - | R96: =INDEX($B$3:$AQ$44,$E96,R$67)&"-"&INDEX($B$3:$AQ$44,R$67,$E96) -> - | S96: =INDEX($B$3:$AQ$44,$E96,S$67)&"-"&INDEX($B$3:$AQ$44,S$67,$E96) -> - | T96: =INDEX($B$3:$AQ$44,$E96,T$67)&"-"&INDEX($B$3:$AQ$44,T$67,$E96) -> - | U96: =INDEX($B$3:$AQ$44,$E96,U$67)&"-"&INDEX($B$3:$AQ$44,U$67,$E96) -> - | V96: =INDEX($B$3:$AQ$44,$E96,V$67)&"-"&INDEX($B$3:$AQ$44,V$67,$E96) -> - | W96: =INDEX($B$3:$AQ$44,$E96,W$67)&"-"&INDEX($B$3:$AQ$44,W$67,$E96) -> - | X96: =INDEX($B$3:$AQ$44,$E96,X$67)&"-"&INDEX($B$3:$AQ$44,X$67,$E96) -> - | Y96: =INDEX($B$3:$AQ$44,$E96,Y$67)&"-"&INDEX($B$3:$AQ$44,Y$67,$E96) -> - | Z96: =INDEX($B$3:$AQ$44,$E96,Z$67)&"-"&INDEX($B$3:$AQ$44,Z$67,$E96) -> - | AA96: =INDEX($B$3:$AQ$44,$E96,AA$67)&"-"&INDEX($B$3:$AQ$44,AA$67,$E96) -> 0-8 | AB96: =INDEX($B$3:$AQ$44,$E96,AB$67)&"-"&INDEX($B$3:$AQ$44,AB$67,$E96) -> - | AC96: =INDEX($B$3:$AQ$44,$E96,AC$67)&"-"&INDEX($B$3:$AQ$44,AC$67,$E96) -> - | AD96: =INDEX($B$3:$AQ$44,$E96,AD$67)&"-"&INDEX($B$3:$AQ$44,AD$67,$E96) -> 3-5 | AE96: =INDEX($B$3:$AQ$44,$E96,AE$67)&"-"&INDEX($B$3:$AQ$44,AE$67,$E96) -> 4-4 | AF96: =INDEX($B$3:$AQ$44,$E96,AF$67)&"-"&INDEX($B$3:$AQ$44,AF$67,$E96) -> 0-4 | AG96: =INDEX($B$3:$AQ$44,$E96,AG$67)&"-"&INDEX($B$3:$AQ$44,AG$67,$E96) -> 4-3 | AH96: =INDEX($B$3:$AQ$44,$E96,AH$67)&"-"&INDEX($B$3:$AQ$44,AH$67,$E96) -> - | AI96: =INDEX($B$3:$AQ$44,$E96,AI$67)&"-"&INDEX($B$3:$AQ$44,AI$67,$E96) -> 1-1 | AJ96: =INDEX($B$3:$AQ$44,$E96,AJ$67)&"-"&INDEX($B$3:$AQ$44,AJ$67,$E96) -> 3-0 | AK96: =INDEX($B$3:$AQ$44,$E96,AK$67)&"-"&INDEX($B$3:$AQ$44,AK$67,$E96) -> - | AL96: =INDEX($B$3:$AQ$44,$E96,AL$67)&"-"&INDEX($B$3:$AQ$44,AL$67,$E96) -> 7-4 | AM96: =INDEX($B$3:$AQ$44,$E96,AM$67)&"-"&INDEX($B$3:$AQ$44,AM$67,$E96) -> - | AN96: =INDEX($B$3:$AQ$44,$E96,AN$67)&"-"&INDEX($B$3:$AQ$44,AN$67,$E96) -> - | AO96: =INDEX($B$3:$AQ$44,$E96,AO$67)&"-"&INDEX($B$3:$AQ$44,AO$67,$E96) -> - | AP96: - | AQ96: - | AR96: - | AS96: - | AT96: - | AU96: - | AV96: -
A97: 29 | B97: 27 | C97: 31 | D97: 34 | E97: 34 | F97: 234 | G97: =INDEX($B$3:$AQ$44,$E97,G$67)&"-"&INDEX($B$3:$AQ$44,G$67,$E97) -> - | H97: =INDEX($B$3:$AQ$44,$E97,H$67)&"-"&INDEX($B$3:$AQ$44,H$67,$E97) -> - | I97: =INDEX($B$3:$AQ$44,$E97,I$67)&"-"&INDEX($B$3:$AQ$44,I$67,$E97) -> - | J97: =INDEX($B$3:$AQ$44,$E97,J$67)&"-"&INDEX($B$3:$AQ$44,J$67,$E97) -> - | K97: =INDEX($B$3:$AQ$44,$E97,K$67)&"-"&INDEX($B$3:$AQ$44,K$67,$E97) -> - | L97: =INDEX($B$3:$AQ$44,$E97,L$67)&"-"&INDEX($B$3:$AQ$44,L$67,$E97) -> - | M97: =INDEX($B$3:$AQ$44,$E97,M$67)&"-"&INDEX($B$3:$AQ$44,M$67,$E97) -> - | N97: =INDEX($B$3:$AQ$44,$E97,N$67)&"-"&INDEX($B$3:$AQ$44,N$67,$E97) -> - | O97: =INDEX($B$3:$AQ$44,$E97,O$67)&"-"&INDEX($B$3:$AQ$44,O$67,$E97) -> - | P97: =INDEX($B$3:$AQ$44,$E97,P$67)&"-"&INDEX($B$3:$AQ$44,P$67,$E97) -> - | Q97: =INDEX($B$3:$AQ$44,$E97,Q$67)&"-"&INDEX($B$3:$AQ$44,Q$67,$E97) -> - | R97: =INDEX($B$3:$AQ$44,$E97,R$67)&"-"&INDEX($B$3:$AQ$44,R$67,$E97) -> - | S97: =INDEX($B$3:$AQ$44,$E97,S$67)&"-"&INDEX($B$3:$AQ$44,S$67,$E97) -> - | T97: =INDEX($B$3:$AQ$44,$E97,T$67)&"-"&INDEX($B$3:$AQ$44,T$67,$E97) -> - | U97: =INDEX($B$3:$AQ$44,$E97,U$67)&"-"&INDEX($B$3:$AQ$44,U$67,$E97) -> - | V97: =INDEX($B$3:$AQ$44,$E97,V$67)&"-"&INDEX($B$3:$AQ$44,V$67,$E97) -> - | W97: =INDEX($B$3:$AQ$44,$E97,W$67)&"-"&INDEX($B$3:$AQ$44,W$67,$E97) -> - | X97: =INDEX($B$3:$AQ$44,$E97,X$67)&"-"&INDEX($B$3:$AQ$44,X$67,$E97) -> - | Y97: =INDEX($B$3:$AQ$44,$E97,Y$67)&"-"&INDEX($B$3:$AQ$44,Y$67,$E97) -> - | Z97: =INDEX($B$3:$AQ$44,$E97,Z$67)&"-"&INDEX($B$3:$AQ$44,Z$67,$E97) -> - | AA97: =INDEX($B$3:$AQ$44,$E97,AA$67)&"-"&INDEX($B$3:$AQ$44,AA$67,$E97) -> - | AB97: =INDEX($B$3:$AQ$44,$E97,AB$67)&"-"&INDEX($B$3:$AQ$44,AB$67,$E97) -> - | AC97: =INDEX($B$3:$AQ$44,$E97,AC$67)&"-"&INDEX($B$3:$AQ$44,AC$67,$E97) -> - | AD97: =INDEX($B$3:$AQ$44,$E97,AD$67)&"-"&INDEX($B$3:$AQ$44,AD$67,$E97) -> - | AE97: =INDEX($B$3:$AQ$44,$E97,AE$67)&"-"&INDEX($B$3:$AQ$44,AE$67,$E97) -> - | AF97: =INDEX($B$3:$AQ$44,$E97,AF$67)&"-"&INDEX($B$3:$AQ$44,AF$67,$E97) -> 5-5 | AG97: =INDEX($B$3:$AQ$44,$E97,AG$67)&"-"&INDEX($B$3:$AQ$44,AG$67,$E97) -> 1-3 | AH97: =INDEX($B$3:$AQ$44,$E97,AH$67)&"-"&INDEX($B$3:$AQ$44,AH$67,$E97) -> 1-1 | AI97: =INDEX($B$3:$AQ$44,$E97,AI$67)&"-"&INDEX($B$3:$AQ$44,AI$67,$E97) -> - | AJ97: =INDEX($B$3:$AQ$44,$E97,AJ$67)&"-"&INDEX($B$3:$AQ$44,AJ$67,$E97) -> - | AK97: =INDEX($B$3:$AQ$44,$E97,AK$67)&"-"&INDEX($B$3:$AQ$44,AK$67,$E97) -> 2-5 | AL97: =INDEX($B$3:$AQ$44,$E97,AL$67)&"-"&INDEX($B$3:$AQ$44,AL$67,$E97) -> - | AM97: =INDEX($B$3:$AQ$44,$E97,AM$67)&"-"&INDEX($B$3:$AQ$44,AM$67,$E97) -> 4-0 | AN97: =INDEX($B$3:$AQ$44,$E97,AN$67)&"-"&INDEX($B$3:$AQ$44,AN$67,$E97) -> 9-1 | AO97: =INDEX($B$3:$AQ$44,$E97,AO$67)&"-"&INDEX($B$3:$AQ$44,AO$67,$E97) -> 8-0 | AP97: - | AQ97: - | AR97: - | AS97: 9-0 | AT97: - | AU97: 10-0 | AV97: -
A98: 30 | B98: 31 | C98: 28 | D98: 26 | E98: 26 | F98: 226 | G98: =INDEX($B$3:$AQ$44,$E98,G$67)&"-"&INDEX($B$3:$AQ$44,G$67,$E98) -> - | H98: =INDEX($B$3:$AQ$44,$E98,H$67)&"-"&INDEX($B$3:$AQ$44,H$67,$E98) -> - | I98: =INDEX($B$3:$AQ$44,$E98,I$67)&"-"&INDEX($B$3:$AQ$44,I$67,$E98) -> - | J98: =INDEX($B$3:$AQ$44,$E98,J$67)&"-"&INDEX($B$3:$AQ$44,J$67,$E98) -> - | K98: =INDEX($B$3:$AQ$44,$E98,K$67)&"-"&INDEX($B$3:$AQ$44,K$67,$E98) -> - | L98: =INDEX($B$3:$AQ$44,$E98,L$67)&"-"&INDEX($B$3:$AQ$44,L$67,$E98) -> - | M98: =INDEX($B$3:$AQ$44,$E98,M$67)&"-"&INDEX($B$3:$AQ$44,M$67,$E98) -> - | N98: =INDEX($B$3:$AQ$44,$E98,N$67)&"-"&INDEX($B$3:$AQ$44,N$67,$E98) -> - | O98: =INDEX($B$3:$AQ$44,$E98,O$67)&"-"&INDEX($B$3:$AQ$44,O$67,$E98) -> - | P98: =INDEX($B$3:$AQ$44,$E98,P$67)&"-"&INDEX($B$3:$AQ$44,P$67,$E98) -> - | Q98: =INDEX($B$3:$AQ$44,$E98,Q$67)&"-"&INDEX($B$3:$AQ$44,Q$67,$E98) -> - | R98: =INDEX($B$3:$AQ$44,$E98,R$67)&"-"&INDEX($B$3:$AQ$44,R$67,$E98) -> - | S98: =INDEX($B$3:$AQ$44,$E98,S$67)&"-"&INDEX($B$3:$AQ$44,S$67,$E98) -> - | T98: =INDEX($B$3:$AQ$44,$E98,T$67)&"-"&INDEX($B$3:$AQ$44,T$67,$E98) -> - | U98: =INDEX($B$3:$AQ$44,$E98,U$67)&"-"&INDEX($B$3:$AQ$44,U$67,$E98) -> - | V98: =INDEX($B$3:$AQ$44,$E98,V$67)&"-"&INDEX($B$3:$AQ$44,V$67,$E98) -> - | W98: =INDEX($B$3:$AQ$44,$E98,W$67)&"-"&INDEX($B$3:$AQ$44,W$67,$E98) -> - | X98: =INDEX($B$3:$AQ$44,$E98,X$67)&"-"&INDEX($B$3:$AQ$44,X$67,$E98) -> - | Y98: =INDEX($B$3:$AQ$44,$E98,Y$67)&"-"&INDEX($B$3:$AQ$44,Y$67,$E98) -> 1-9 | Z98: =INDEX($B$3:$AQ$44,$E98,Z$67)&"-"&INDEX($B$3:$AQ$44,Z$67,$E98) -> - | AA98: =INDEX($B$3:$AQ$44,$E98,AA$67)&"-"&INDEX($B$3:$AQ$44,AA$67,$E98) -> 1-4 | AB98: =INDEX($B$3:$AQ$44,$E98,AB$67)&"-"&INDEX($B$3:$AQ$44,AB$67,$E98) -> - | AC98: =INDEX($B$3:$AQ$44,$E98,AC$67)&"-"&INDEX($B$3:$AQ$44,AC$67,$E98) -> - | AD98: =INDEX($B$3:$AQ$44,$E98,AD$67)&"-"&INDEX($B$3:$AQ$44,AD$67,$E98) -> 0-5 | AE98: =INDEX($B$3:$AQ$44,$E98,AE$67)&"-"&INDEX($B$3:$AQ$44,AE$67,$E98) -> 1-4 | AF98: =INDEX($B$3:$AQ$44,$E98,AF$67)&"-"&INDEX($B$3:$AQ$44,AF$67,$E98) -> 3-3 | AG98: =INDEX($B$3:$AQ$44,$E98,AG$67)&"-"&INDEX($B$3:$AQ$44,AG$67,$E98) -> - | AH98: =INDEX($B$3:$AQ$44,$E98,AH$67)&"-"&INDEX($B$3:$AQ$44,AH$67,$E98) -> 0-3 | AI98: =INDEX($B$3:$AQ$44,$E98,AI$67)&"-"&INDEX($B$3:$AQ$44,AI$67,$E98) -> - | AJ98: =INDEX($B$3:$AQ$44,$E98,AJ$67)&"-"&INDEX($B$3:$AQ$44,AJ$67,$E98) -> - | AK98: =INDEX($B$3:$AQ$44,$E98,AK$67)&"-"&INDEX($B$3:$AQ$44,AK$67,$E98) -> - | AL98: =INDEX($B$3:$AQ$44,$E98,AL$67)&"-"&INDEX($B$3:$AQ$44,AL$67,$E98) -> 6-2 | AM98: =INDEX($B$3:$AQ$44,$E98,AM$67)&"-"&INDEX($B$3:$AQ$44,AM$67,$E98) -> - | AN98: =INDEX($B$3:$AQ$44,$E98,AN$67)&"-"&INDEX($B$3:$AQ$44,AN$67,$E98) -> - | AO98: =INDEX($B$3:$AQ$44,$E98,AO$67)&"-"&INDEX($B$3:$AQ$44,AO$67,$E98) -> - | AP98: - | AQ98: - | AR98: - | AS98: - | AT98: - | AU98: - | AV98: -
A99: 31 | B99: 30 | C99: 32 | D99: 36 | E99: 36 | F99: 236 | G99: =INDEX($B$3:$AQ$44,$E99,G$67)&"-"&INDEX($B$3:$AQ$44,G$67,$E99) -> - | H99: =INDEX($B$3:$AQ$44,$E99,H$67)&"-"&INDEX($B$3:$AQ$44,H$67,$E99) -> - | I99: =INDEX($B$3:$AQ$44,$E99,I$67)&"-"&INDEX($B$3:$AQ$44,I$67,$E99) -> - | J99: =INDEX($B$3:$AQ$44,$E99,J$67)&"-"&INDEX($B$3:$AQ$44,J$67,$E99) -> - | K99: =INDEX($B$3:$AQ$44,$E99,K$67)&"-"&INDEX($B$3:$AQ$44,K$67,$E99) -> - | L99: =INDEX($B$3:$AQ$44,$E99,L$67)&"-"&INDEX($B$3:$AQ$44,L$67,$E99) -> - | M99: =INDEX($B$3:$AQ$44,$E99,M$67)&"-"&INDEX($B$3:$AQ$44,M$67,$E99) -> - | N99: =INDEX($B$3:$AQ$44,$E99,N$67)&"-"&INDEX($B$3:$AQ$44,N$67,$E99) -> - | O99: =INDEX($B$3:$AQ$44,$E99,O$67)&"-"&INDEX($B$3:$AQ$44,O$67,$E99) -> - | P99: =INDEX($B$3:$AQ$44,$E99,P$67)&"-"&INDEX($B$3:$AQ$44,P$67,$E99) -> - | Q99: =INDEX($B$3:$AQ$44,$E99,Q$67)&"-"&INDEX($B$3:$AQ$44,Q$67,$E99) -> - | R99: =INDEX($B$3:$AQ$44,$E99,R$67)&"-"&INDEX($B$3:$AQ$44,R$67,$E99) -> - | S99: =INDEX($B$3:$AQ$44,$E99,S$67)&"-"&INDEX($B$3:$AQ$44,S$67,$E99) -> - | T99: =INDEX($B$3:$AQ$44,$E99,T$67)&"-"&INDEX($B$3:$AQ$44,T$67,$E99) -> - | U99: =INDEX($B$3:$AQ$44,$E99,U$67)&"-"&INDEX($B$3:$AQ$44,U$67,$E99) -> - | V99: =INDEX($B$3:$AQ$44,$E99,V$67)&"-"&INDEX($B$3:$AQ$44,V$67,$E99) -> - | W99: =INDEX($B$3:$AQ$44,$E99,W$67)&"-"&INDEX($B$3:$AQ$44,W$67,$E99) -> - | X99: =INDEX($B$3:$AQ$44,$E99,X$67)&"-"&INDEX($B$3:$AQ$44,X$67,$E99) -> - | Y99: =INDEX($B$3:$AQ$44,$E99,Y$67)&"-"&INDEX($B$3:$AQ$44,Y$67,$E99) -> - | Z99: =INDEX($B$3:$AQ$44,$E99,Z$67)&"-"&INDEX($B$3:$AQ$44,Z$67,$E99) -> - | AA99: =INDEX($B$3:$AQ$44,$E99,AA$67)&"-"&INDEX($B$3:$AQ$44,AA$67,$E99) -> - | AB99: =INDEX($B$3:$AQ$44,$E99,AB$67)&"-"&INDEX($B$3:$AQ$44,AB$67,$E99) -> - | AC99: =INDEX($B$3:$AQ$44,$E99,AC$67)&"-"&INDEX($B$3:$AQ$44,AC$67,$E99) -> - | AD99: =INDEX($B$3:$AQ$44,$E99,AD$67)&"-"&INDEX($B$3:$AQ$44,AD$67,$E99) -> - | AE99: =INDEX($B$3:$AQ$44,$E99,AE$67)&"-"&INDEX($B$3:$AQ$44,AE$67,$E99) -> - | AF99: =INDEX($B$3:$AQ$44,$E99,AF$67)&"-"&INDEX($B$3:$AQ$44,AF$67,$E99) -> - | AG99: =INDEX($B$3:$AQ$44,$E99,AG$67)&"-"&INDEX($B$3:$AQ$44,AG$67,$E99) -> 2-10 | AH99: =INDEX($B$3:$AQ$44,$E99,AH$67)&"-"&INDEX($B$3:$AQ$44,AH$67,$E99) -> - | AI99: =INDEX($B$3:$AQ$44,$E99,AI$67)&"-"&INDEX($B$3:$AQ$44,AI$67,$E99) -> 5-2 | AJ99: =INDEX($B$3:$AQ$44,$E99,AJ$67)&"-"&INDEX($B$3:$AQ$44,AJ$67,$E99) -> - | AK99: =INDEX($B$3:$AQ$44,$E99,AK$67)&"-"&INDEX($B$3:$AQ$44,AK$67,$E99) -> - | AL99: =INDEX($B$3:$AQ$44,$E99,AL$67)&"-"&INDEX($B$3:$AQ$44,AL$67,$E99) -> - | AM99: =INDEX($B$3:$AQ$44,$E99,AM$67)&"-"&INDEX($B$3:$AQ$44,AM$67,$E99) -> 4-3 | AN99: =INDEX($B$3:$AQ$44,$E99,AN$67)&"-"&INDEX($B$3:$AQ$44,AN$67,$E99) -> - | AO99: =INDEX($B$3:$AQ$44,$E99,AO$67)&"-"&INDEX($B$3:$AQ$44,AO$67,$E99) -> - | AP99: 7-0 | AQ99: 7-0 | AR99: 8-2 | AS99: 9-0 | AT99: 14-1 | AU99: 10-0 | AV99: -
A100: 32 | B100: 32 | C100: 30 | D100: 27 | E100: 27 | F100: 227 | G100: =INDEX($B$3:$AQ$44,$E100,G$67)&"-"&INDEX($B$3:$AQ$44,G$67,$E100) -> - | H100: =INDEX($B$3:$AQ$44,$E100,H$67)&"-"&INDEX($B$3:$AQ$44,H$67,$E100) -> - | I100: =INDEX($B$3:$AQ$44,$E100,I$67)&"-"&INDEX($B$3:$AQ$44,I$67,$E100) -> - | J100: =INDEX($B$3:$AQ$44,$E100,J$67)&"-"&INDEX($B$3:$AQ$44,J$67,$E100) -> - | K100: =INDEX($B$3:$AQ$44,$E100,K$67)&"-"&INDEX($B$3:$AQ$44,K$67,$E100) -> - | L100: =INDEX($B$3:$AQ$44,$E100,L$67)&"-"&INDEX($B$3:$AQ$44,L$67,$E100) -> - | M100: =INDEX($B$3:$AQ$44,$E100,M$67)&"-"&INDEX($B$3:$AQ$44,M$67,$E100) -> - | N100: =INDEX($B$3:$AQ$44,$E100,N$67)&"-"&INDEX($B$3:$AQ$44,N$67,$E100) -> - | O100: =INDEX($B$3:$AQ$44,$E100,O$67)&"-"&INDEX($B$3:$AQ$44,O$67,$E100) -> - | P100: =INDEX($B$3:$AQ$44,$E100,P$67)&"-"&INDEX($B$3:$AQ$44,P$67,$E100) -> - | Q100: =INDEX($B$3:$AQ$44,$E100,Q$67)&"-"&INDEX($B$3:$AQ$44,Q$67,$E100) -> - | R100: =INDEX($B$3:$AQ$44,$E100,R$67)&"-"&INDEX($B$3:$AQ$44,R$67,$E100) -> - | S100: =INDEX($B$3:$AQ$44,$E100,S$67)&"-"&INDEX($B$3:$AQ$44,S$67,$E100) -> - | T100: =INDEX($B$3:$AQ$44,$E100,T$67)&"-"&INDEX($B$3:$AQ$44,T$67,$E100) -> - | U100: =INDEX($B$3:$AQ$44,$E100,U$67)&"-"&INDEX($B$3:$AQ$44,U$67,$E100) -> - | V100: =INDEX($B$3:$AQ$44,$E100,V$67)&"-"&INDEX($B$3:$AQ$44,V$67,$E100) -> - | W100: =INDEX($B$3:$AQ$44,$E100,W$67)&"-"&INDEX($B$3:$AQ$44,W$67,$E100) -> - | X100: =INDEX($B$3:$AQ$44,$E100,X$67)&"-"&INDEX($B$3:$AQ$44,X$67,$E100) -> - | Y100: =INDEX($B$3:$AQ$44,$E100,Y$67)&"-"&INDEX($B$3:$AQ$44,Y$67,$E100) -> - | Z100: =INDEX($B$3:$AQ$44,$E100,Z$67)&"-"&INDEX($B$3:$AQ$44,Z$67,$E100) -> - | AA100: =INDEX($B$3:$AQ$44,$E100,AA$67)&"-"&INDEX($B$3:$AQ$44,AA$67,$E100) -> 1-7 | AB100: =INDEX($B$3:$AQ$44,$E100,AB$67)&"-"&INDEX($B$3:$AQ$44,AB$67,$E100) -> - | AC100: =INDEX($B$3:$AQ$44,$E100,AC$67)&"-"&INDEX($B$3:$AQ$44,AC$67,$E100) -> - | AD100: =INDEX($B$3:$AQ$44,$E100,AD$67)&"-"&INDEX($B$3:$AQ$44,AD$67,$E100) -> 2-7 | AE100: =INDEX($B$3:$AQ$44,$E100,AE$67)&"-"&INDEX($B$3:$AQ$44,AE$67,$E100) -> - | AF100: =INDEX($B$3:$AQ$44,$E100,AF$67)&"-"&INDEX($B$3:$AQ$44,AF$67,$E100) -> 4-5 | AG100: =INDEX($B$3:$AQ$44,$E100,AG$67)&"-"&INDEX($B$3:$AQ$44,AG$67,$E100) -> - | AH100: =INDEX($B$3:$AQ$44,$E100,AH$67)&"-"&INDEX($B$3:$AQ$44,AH$67,$E100) -> 4-7 | AI100: =INDEX($B$3:$AQ$44,$E100,AI$67)&"-"&INDEX($B$3:$AQ$44,AI$67,$E100) -> - | AJ100: =INDEX($B$3:$AQ$44,$E100,AJ$67)&"-"&INDEX($B$3:$AQ$44,AJ$67,$E100) -> 2-6 | AK100: =INDEX($B$3:$AQ$44,$E100,AK$67)&"-"&INDEX($B$3:$AQ$44,AK$67,$E100) -> - | AL100: =INDEX($B$3:$AQ$44,$E100,AL$67)&"-"&INDEX($B$3:$AQ$44,AL$67,$E100) -> - | AM100: =INDEX($B$3:$AQ$44,$E100,AM$67)&"-"&INDEX($B$3:$AQ$44,AM$67,$E100) -> - | AN100: =INDEX($B$3:$AQ$44,$E100,AN$67)&"-"&INDEX($B$3:$AQ$44,AN$67,$E100) -> 6-1 | AO100: =INDEX($B$3:$AQ$44,$E100,AO$67)&"-"&INDEX($B$3:$AQ$44,AO$67,$E100) -> - | AP100: 12-3 | AQ100: - | AR100: - | AS100: - | AT100: - | AU100: - | AV100: -
A101: 33 | B101: 33 | C101: 33 | D101: 35 | E101: 35 | F101: 235 | G101: =INDEX($B$3:$AQ$44,$E101,G$67)&"-"&INDEX($B$3:$AQ$44,G$67,$E101) -> - | H101: =INDEX($B$3:$AQ$44,$E101,H$67)&"-"&INDEX($B$3:$AQ$44,H$67,$E101) -> - | I101: =INDEX($B$3:$AQ$44,$E101,I$67)&"-"&INDEX($B$3:$AQ$44,I$67,$E101) -> - | J101: =INDEX($B$3:$AQ$44,$E101,J$67)&"-"&INDEX($B$3:$AQ$44,J$67,$E101) -> - | K101: =INDEX($B$3:$AQ$44,$E101,K$67)&"-"&INDEX($B$3:$AQ$44,K$67,$E101) -> - | L101: =INDEX($B$3:$AQ$44,$E101,L$67)&"-"&INDEX($B$3:$AQ$44,L$67,$E101) -> - | M101: =INDEX($B$3:$AQ$44,$E101,M$67)&"-"&INDEX($B$3:$AQ$44,M$67,$E101) -> - | N101: =INDEX($B$3:$AQ$44,$E101,N$67)&"-"&INDEX($B$3:$AQ$44,N$67,$E101) -> - | O101: =INDEX($B$3:$AQ$44,$E101,O$67)&"-"&INDEX($B$3:$AQ$44,O$67,$E101) -> - | P101: =INDEX($B$3:$AQ$44,$E101,P$67)&"-"&INDEX($B$3:$AQ$44,P$67,$E101) -> - | Q101: =INDEX($B$3:$AQ$44,$E101,Q$67)&"-"&INDEX($B$3:$AQ$44,Q$67,$E101) -> - | R101: =INDEX($B$3:$AQ$44,$E101,R$67)&"-"&INDEX($B$3:$AQ$44,R$67,$E101) -> - | S101: =INDEX($B$3:$AQ$44,$E101,S$67)&"-"&INDEX($B$3:$AQ$44,S$67,$E101) -> - | T101: =INDEX($B$3:$AQ$44,$E101,T$67)&"-"&INDEX($B$3:$AQ$44,T$67,$E101) -> - | U101: =INDEX($B$3:$AQ$44,$E101,U$67)&"-"&INDEX($B$3:$AQ$44,U$67,$E101) -> - | V101: =INDEX($B$3:$AQ$44,$E101,V$67)&"-"&INDEX($B$3:$AQ$44,V$67,$E101) -> - | W101: =INDEX($B$3:$AQ$44,$E101,W$67)&"-"&INDEX($B$3:$AQ$44,W$67,$E101) -> - | X101: =INDEX($B$3:$AQ$44,$E101,X$67)&"-"&INDEX($B$3:$AQ$44,X$67,$E101) -> - | Y101: =INDEX($B$3:$AQ$44,$E101,Y$67)&"-"&INDEX($B$3:$AQ$44,Y$67,$E101) -> - | Z101: =INDEX($B$3:$AQ$44,$E101,Z$67)&"-"&INDEX($B$3:$AQ$44,Z$67,$E101) -> - | AA101: =INDEX($B$3:$AQ$44,$E101,AA$67)&"-"&INDEX($B$3:$AQ$44,AA$67,$E101) -> - | AB101: =INDEX($B$3:$AQ$44,$E101,AB$67)&"-"&INDEX($B$3:$AQ$44,AB$67,$E101) -> - | AC101: =INDEX($B$3:$AQ$44,$E101,AC$67)&"-"&INDEX($B$3:$AQ$44,AC$67,$E101) -> - | AD101: =INDEX($B$3:$AQ$44,$E101,AD$67)&"-"&INDEX($B$3:$AQ$44,AD$67,$E101) -> 1-1 | AE101: =INDEX($B$3:$AQ$44,$E101,AE$67)&"-"&INDEX($B$3:$AQ$44,AE$67,$E101) -> - | AF101: =INDEX($B$3:$AQ$44,$E101,AF$67)&"-"&INDEX($B$3:$AQ$44,AF$67,$E101) -> - | AG101: =INDEX($B$3:$AQ$44,$E101,AG$67)&"-"&INDEX($B$3:$AQ$44,AG$67,$E101) -> 1-4 | AH101: =INDEX($B$3:$AQ$44,$E101,AH$67)&"-"&INDEX($B$3:$AQ$44,AH$67,$E101) -> - | AI101: =INDEX($B$3:$AQ$44,$E101,AI$67)&"-"&INDEX($B$3:$AQ$44,AI$67,$E101) -> 0-4 | AJ101: =INDEX($B$3:$AQ$44,$E101,AJ$67)&"-"&INDEX($B$3:$AQ$44,AJ$67,$E101) -> - | AK101: =INDEX($B$3:$AQ$44,$E101,AK$67)&"-"&INDEX($B$3:$AQ$44,AK$67,$E101) -> 3-4 | AL101: =INDEX($B$3:$AQ$44,$E101,AL$67)&"-"&INDEX($B$3:$AQ$44,AL$67,$E101) -> - | AM101: =INDEX($B$3:$AQ$44,$E101,AM$67)&"-"&INDEX($B$3:$AQ$44,AM$67,$E101) -> - | AN101: =INDEX($B$3:$AQ$44,$E101,AN$67)&"-"&INDEX($B$3:$AQ$44,AN$67,$E101) -> - | AO101: =INDEX($B$3:$AQ$44,$E101,AO$67)&"-"&INDEX($B$3:$AQ$44,AO$67,$E101) -> 1-1 | AP101: =INDEX($B$3:$AQ$44,$E101,AP$67)&"-"&INDEX($B$3:$AQ$44,AP$67,$E101) -> 5-2 | AQ101: - | AR101: - | AS101: 4-0 | AT101: 9-1 | AU101: 5-0 | AV101: -
A102: 34 | B102: 36 | C102: 34 | D102: 32 | E102: 32 | F102: 232 | G102: =INDEX($B$3:$AQ$44,$E102,G$67)&"-"&INDEX($B$3:$AQ$44,G$67,$E102) -> - | H102: =INDEX($B$3:$AQ$44,$E102,H$67)&"-"&INDEX($B$3:$AQ$44,H$67,$E102) -> - | I102: =INDEX($B$3:$AQ$44,$E102,I$67)&"-"&INDEX($B$3:$AQ$44,I$67,$E102) -> - | J102: =INDEX($B$3:$AQ$44,$E102,J$67)&"-"&INDEX($B$3:$AQ$44,J$67,$E102) -> - | K102: =INDEX($B$3:$AQ$44,$E102,K$67)&"-"&INDEX($B$3:$AQ$44,K$67,$E102) -> - | L102: =INDEX($B$3:$AQ$44,$E102,L$67)&"-"&INDEX($B$3:$AQ$44,L$67,$E102) -> - | M102: =INDEX($B$3:$AQ$44,$E102,M$67)&"-"&INDEX($B$3:$AQ$44,M$67,$E102) -> - | N102: =INDEX($B$3:$AQ$44,$E102,N$67)&"-"&INDEX($B$3:$AQ$44,N$67,$E102) -> - | O102: =INDEX($B$3:$AQ$44,$E102,O$67)&"-"&INDEX($B$3:$AQ$44,O$67,$E102) -> - | P102: =INDEX($B$3:$AQ$44,$E102,P$67)&"-"&INDEX($B$3:$AQ$44,P$67,$E102) -> - | Q102: =INDEX($B$3:$AQ$44,$E102,Q$67)&"-"&INDEX($B$3:$AQ$44,Q$67,$E102) -> - | R102: =INDEX($B$3:$AQ$44,$E102,R$67)&"-"&INDEX($B$3:$AQ$44,R$67,$E102) -> - | S102: =INDEX($B$3:$AQ$44,$E102,S$67)&"-"&INDEX($B$3:$AQ$44,S$67,$E102) -> - | T102: =INDEX($B$3:$AQ$44,$E102,T$67)&"-"&INDEX($B$3:$AQ$44,T$67,$E102) -> - | U102: =INDEX($B$3:$AQ$44,$E102,U$67)&"-"&INDEX($B$3:$AQ$44,U$67,$E102) -> - | V102: =INDEX($B$3:$AQ$44,$E102,V$67)&"-"&INDEX($B$3:$AQ$44,V$67,$E102) -> - | W102: =INDEX($B$3:$AQ$44,$E102,W$67)&"-"&INDEX($B$3:$AQ$44,W$67,$E102) -> - | X102: =INDEX($B$3:$AQ$44,$E102,X$67)&"-"&INDEX($B$3:$AQ$44,X$67,$E102) -> - | Y102: =INDEX($B$3:$AQ$44,$E102,Y$67)&"-"&INDEX($B$3:$AQ$44,Y$67,$E102) -> - | Z102: =INDEX($B$3:$AQ$44,$E102,Z$67)&"-"&INDEX($B$3:$AQ$44,Z$67,$E102) -> - | AA102: =INDEX($B$3:$AQ$44,$E102,AA$67)&"-"&INDEX($B$3:$AQ$44,AA$67,$E102) -> - | AB102: =INDEX($B$3:$AQ$44,$E102,AB$67)&"-"&INDEX($B$3:$AQ$44,AB$67,$E102) -> - | AC102: =INDEX($B$3:$AQ$44,$E102,AC$67)&"-"&INDEX($B$3:$AQ$44,AC$67,$E102) -> - | AD102: =INDEX($B$3:$AQ$44,$E102,AD$67)&"-"&INDEX($B$3:$AQ$44,AD$67,$E102) -> 1-10 | AE102: =INDEX($B$3:$AQ$44,$E102,AE$67)&"-"&INDEX($B$3:$AQ$44,AE$67,$E102) -> - | AF102: =INDEX($B$3:$AQ$44,$E102,AF$67)&"-"&INDEX($B$3:$AQ$44,AF$67,$E102) -> 2-5 | AG102: =INDEX($B$3:$AQ$44,$E102,AG$67)&"-"&INDEX($B$3:$AQ$44,AG$67,$E102) -> 1-13 | AH102: =INDEX($B$3:$AQ$44,$E102,AH$67)&"-"&INDEX($B$3:$AQ$44,AH$67,$E102) -> - | AI102: =INDEX($B$3:$AQ$44,$E102,AI$67)&"-"&INDEX($B$3:$AQ$44,AI$67,$E102) -> 1-9 | AJ102: =INDEX($B$3:$AQ$44,$E102,AJ$67)&"-"&INDEX($B$3:$AQ$44,AJ$67,$E102) -> - | AK102: =INDEX($B$3:$AQ$44,$E102,AK$67)&"-"&INDEX($B$3:$AQ$44,AK$67,$E102) -> - | AL102: =INDEX($B$3:$AQ$44,$E102,AL$67)&"-"&INDEX($B$3:$AQ$44,AL$67,$E102) -> 1-6 | AM102: =INDEX($B$3:$AQ$44,$E102,AM$67)&"-"&INDEX($B$3:$AQ$44,AM$67,$E102) -> - | AN102: =INDEX($B$3:$AQ$44,$E102,AN$67)&"-"&INDEX($B$3:$AQ$44,AN$67,$E102) -> - | AO102: =INDEX($B$3:$AQ$44,$E102,AO$67)&"-"&INDEX($B$3:$AQ$44,AO$67,$E102) -> - | AP102: 6-5 | AQ102: - | AR102: - | AS102: 6-3 | AT102: - | AU102: - | AV102: -
A103: 35 | B103: 34 | C103: 36 | D103: 41 | E103: 41 | F103: 241 | G103: =INDEX($B$3:$AQ$44,$E103,G$67)&"-"&INDEX($B$3:$AQ$44,G$67,$E103) -> - | H103: =INDEX($B$3:$AQ$44,$E103,H$67)&"-"&INDEX($B$3:$AQ$44,H$67,$E103) -> - | I103: =INDEX($B$3:$AQ$44,$E103,I$67)&"-"&INDEX($B$3:$AQ$44,I$67,$E103) -> - | J103: =INDEX($B$3:$AQ$44,$E103,J$67)&"-"&INDEX($B$3:$AQ$44,J$67,$E103) -> - | K103: =INDEX($B$3:$AQ$44,$E103,K$67)&"-"&INDEX($B$3:$AQ$44,K$67,$E103) -> - | L103: =INDEX($B$3:$AQ$44,$E103,L$67)&"-"&INDEX($B$3:$AQ$44,L$67,$E103) -> - | M103: =INDEX($B$3:$AQ$44,$E103,M$67)&"-"&INDEX($B$3:$AQ$44,M$67,$E103) -> - | N103: =INDEX($B$3:$AQ$44,$E103,N$67)&"-"&INDEX($B$3:$AQ$44,N$67,$E103) -> - | O103: =INDEX($B$3:$AQ$44,$E103,O$67)&"-"&INDEX($B$3:$AQ$44,O$67,$E103) -> - | P103: =INDEX($B$3:$AQ$44,$E103,P$67)&"-"&INDEX($B$3:$AQ$44,P$67,$E103) -> - | Q103: =INDEX($B$3:$AQ$44,$E103,Q$67)&"-"&INDEX($B$3:$AQ$44,Q$67,$E103) -> - | R103: =INDEX($B$3:$AQ$44,$E103,R$67)&"-"&INDEX($B$3:$AQ$44,R$67,$E103) -> - | S103: =INDEX($B$3:$AQ$44,$E103,S$67)&"-"&INDEX($B$3:$AQ$44,S$67,$E103) -> - | T103: =INDEX($B$3:$AQ$44,$E103,T$67)&"-"&INDEX($B$3:$AQ$44,T$67,$E103) -> - | U103: =INDEX($B$3:$AQ$44,$E103,U$67)&"-"&INDEX($B$3:$AQ$44,U$67,$E103) -> - | V103: =INDEX($B$3:$AQ$44,$E103,V$67)&"-"&INDEX($B$3:$AQ$44,V$67,$E103) -> - | W103: =INDEX($B$3:$AQ$44,$E103,W$67)&"-"&INDEX($B$3:$AQ$44,W$67,$E103) -> - | X103: =INDEX($B$3:$AQ$44,$E103,X$67)&"-"&INDEX($B$3:$AQ$44,X$67,$E103) -> - | Y103: =INDEX($B$3:$AQ$44,$E103,Y$67)&"-"&INDEX($B$3:$AQ$44,Y$67,$E103) -> - | Z103: =INDEX($B$3:$AQ$44,$E103,Z$67)&"-"&INDEX($B$3:$AQ$44,Z$67,$E103) -> - | AA103: =INDEX($B$3:$AQ$44,$E103,AA$67)&"-"&INDEX($B$3:$AQ$44,AA$67,$E103) -> - | AB103: =INDEX($B$3:$AQ$44,$E103,AB$67)&"-"&INDEX($B$3:$AQ$44,AB$67,$E103) -> - | AC103: =INDEX($B$3:$AQ$44,$E103,AC$67)&"-"&INDEX($B$3:$AQ$44,AC$67,$E103) -> - | AD103: =INDEX($B$3:$AQ$44,$E103,AD$67)&"-"&INDEX($B$3:$AQ$44,AD$67,$E103) -> - | AE103: =INDEX($B$3:$AQ$44,$E103,AE$67)&"-"&INDEX($B$3:$AQ$44,AE$67,$E103) -> - | AF103: =INDEX($B$3:$AQ$44,$E103,AF$67)&"-"&INDEX($B$3:$AQ$44,AF$67,$E103) -> - | AG103: =INDEX($B$3:$AQ$44,$E103,AG$67)&"-"&INDEX($B$3:$AQ$44,AG$67,$E103) -> - | AH103: =INDEX($B$3:$AQ$44,$E103,AH$67)&"-"&INDEX($B$3:$AQ$44,AH$67,$E103) -> - | AI103: =INDEX($B$3:$AQ$44,$E103,AI$67)&"-"&INDEX($B$3:$AQ$44,AI$67,$E103) -> 0-8 | AJ103: =INDEX($B$3:$AQ$44,$E103,AJ$67)&"-"&INDEX($B$3:$AQ$44,AJ$67,$E103) -> - | AK103: =INDEX($B$3:$AQ$44,$E103,AK$67)&"-"&INDEX($B$3:$AQ$44,AK$67,$E103) -> - | AL103: =INDEX($B$3:$AQ$44,$E103,AL$67)&"-"&INDEX($B$3:$AQ$44,AL$67,$E103) -> - | AM103: =INDEX($B$3:$AQ$44,$E103,AM$67)&"-"&INDEX($B$3:$AQ$44,AM$67,$E103) -> 1-1 | AN103: =INDEX($B$3:$AQ$44,$E103,AN$67)&"-"&INDEX($B$3:$AQ$44,AN$67,$E103) -> - | AO103: =INDEX($B$3:$AQ$44,$E103,AO$67)&"-"&INDEX($B$3:$AQ$44,AO$67,$E103) -> - | AP103: - | AQ103: 1-3 | AR103: 8-1 | AS103: - | AT103: 7-1 | AU103: 6-1 | AV103: 9-0
A104: 36 | B104: 37 | C104: 35 | D104: 30 | E104: 30 | F104: 230 | G104: =INDEX($B$3:$AQ$44,$E104,G$67)&"-"&INDEX($B$3:$AQ$44,G$67,$E104) -> - | H104: - | I104: - | J104: - | K104: - | L104: - | M104: - | N104: - | O104: - | P104: - | Q104: - | R104: - | S104: - | T104: - | U104: - | V104: - | W104: =INDEX($B$3:$AQ$44,$E104,W$67)&"-"&INDEX($B$3:$AQ$44,W$67,$E104) -> - | X104: - | Y104: - | Z104: 0-12 | AA104: - | AB104: - | AC104: 2-11 | AD104: 0-9 | AE104: - | AF104: 0-10 | AG104: 4-18 | AH104: - | AI104: - | AJ104: - | AK104: 0-7 | AL104: 3-12 | AM104: =INDEX($B$3:$AQ$44,$E104,AM$67)&"-"&INDEX($B$3:$AQ$44,AM$67,$E104) -> 2-5 | AN104: 5-6 | AO104: - | AP104: =INDEX($B$3:$AQ$44,$E104,AP$67)&"-"&INDEX($B$3:$AQ$44,AP$67,$E104) -> - | AQ104: - | AR104: - | AS104: - | AT104: - | AU104: - | AV104: -
A105: 37 | B105: 35 | C105: 37 | D105: 39 | E105: 39 | F105: 239 | G105: - | H105: - | I105: - | J105: - | K105: - | L105: - | M105: - | N105: - | O105: - | P105: - | Q105: - | R105: - | S105: - | T105: - | U105: - | V105: - | W105: - | X105: - | Y105: - | Z105: - | AA105: - | AB105: - | AC105: - | AD105: - | AE105: - | AF105: - | AG105: - | AH105: - | AI105: - | AJ105: - | AK105: 0-7 | AL105: - | AM105: - | AN105: - | AO105: 3-1 | AP105: - | AQ105: =INDEX($B$3:$AQ$44,$E105,AQ$67)&"-"&INDEX($B$3:$AQ$44,AQ$67,$E105) -> - | AR105: 6-2 | AS105: - | AT105: 4-2 | AU105: 7-1 | AV105: 8-0
A106: 38 | B106: 38 | C106: 38 | D106: 38 | E106: 38 | F106: 238 | G106: - | H106: - | I106: - | J106: - | K106: - | L106: - | M106: - | N106: - | O106: - | P106: - | Q106: - | R106: - | S106: - | T106: - | U106: - | V106: - | W106: - | X106: - | Y106: - | Z106: - | AA106: - | AB106: - | AC106: - | AD106: - | AE106: - | AF106: - | AG106: - | AH106: - | AI106: - | AJ106: - | AK106: 2-8 | AL106: - | AM106: - | AN106: - | AO106: 1-8 | AP106: - | AQ106: 2-6 | AR106: =INDEX($B$3:$AQ$44,$E106,AR$67)&"-"&INDEX($B$3:$AQ$44,AR$67,$E106) -> - | AS106: - | AT106: 11-1 | AU106: 7-1 | AV106: 9-0
A107: 39 | B107: 39 | C107: 39 | D107: 33 | E107: 33 | F107: 233 | G107: - | H107: - | I107: - | J107: - | K107: - | L107: - | M107: - | N107: - | O107: - | P107: - | Q107: - | R107: - | S107: - | T107: - | U107: - | V107: - | W107: - | X107: - | Y107: - | Z107: - | AA107: 0-10 | AB107: - | AC107: - | AD107: - | AE107: - | AF107: - | AG107: 1-9 | AH107: - | AI107: 0-9 | AJ107: - | AK107: 0-9 | AL107: - | AM107: 0-4 | AN107: 3-6 | AO107: - | AP107: - | AQ107: - | AR107: - | AS107: =INDEX($B$3:$AQ$44,$E107,AS$67)&"-"&INDEX($B$3:$AQ$44,AS$67,$E107) -> - | AT107: - | AU107: - | AV107: 9-0
A108: 40 | B108: 41 | C108: 40 | D108: 42 | E108: 42 | F108: 242 | G108: - | H108: - | I108: - | J108: - | K108: - | L108: - | M108: - | N108: - | O108: - | P108: - | Q108: - | R108: - | S108: - | T108: - | U108: - | V108: - | W108: - | X108: - | Y108: - | Z108: - | AA108: - | AB108: - | AC108: - | AD108: - | AE108: - | AF108: - | AG108: - | AH108: - | AI108: - | AJ108: - | AK108: 1-14 | AL108: - | AM108: 1-9 | AN108: - | AO108: 1-7 | AP108: - | AQ108: 2-4 | AR108: 1-11 | AS108: - | AT108: =INDEX($B$3:$AQ$44,$E108,AT$67)&"-"&INDEX($B$3:$AQ$44,AT$67,$E108) -> - | AU108: 4-7 | AV108: 5-1
A109: 41 | B109: 40 | C109: 41 | D109: 37 | E109: 37 | F109: 237 | G109: - | H109: - | I109: - | J109: - | K109: - | L109: - | M109: - | N109: - | O109: - | P109: - | Q109: - | R109: - | S109: - | T109: - | U109: - | V109: - | W109: - | X109: - | Y109: - | Z109: - | AA109: - | AB109: - | AC109: - | AD109: - | AE109: - | AF109: - | AG109: - | AH109: - | AI109: 0-10 | AJ109: - | AK109: 0-10 | AL109: - | AM109: 0-5 | AN109: - | AO109: 1-6 | AP109: - | AQ109: 1-7 | AR109: 1-7 | AS109: - | AT109: 7-4 | AU109: =INDEX($B$3:$AQ$44,$E109,AU$67)&"-"&INDEX($B$3:$AQ$44,AU$67,$E109) -> - | AV109: 7-1
A110: 42 | B110: 42 | C110: 42 | D110: 40 | E110: 40 | F110: 240 | G110: - | H110: - | I110: - | J110: - | K110: - | L110: - | M110: - | N110: - | O110: - | P110: - | Q110: - | R110: - | S110: - | T110: - | U110: - | V110: - | W110: - | X110: - | Y110: - | Z110: - | AA110: - | AB110: - | AC110: - | AD110: - | AE110: - | AF110: - | AG110: - | AH110: - | AI110: - | AJ110: - | AK110: - | AL110: - | AM110: - | AN110: - | AO110: 0-9 | AP110: - | AQ110: 0-8 | AR110: 0-9 | AS110: 0-9 | AT110: 1-5 | AU110: 1-7 | AV110: =INDEX($B$3:$AQ$44,$E110,AV$67)&"-"&INDEX($B$3:$AQ$44,AV$67,$E110) -> -

Sheet PeeWeeGamesMatrix
A1: Leave this blank line in here!!!!!
A2: Teams | B2: 301 | C2: 302 | D2: 303 | E2: 304 | F2: 305 | G2: 306 | H2: 307 | I2: 308 | J2: 309 | K2: 310 | L2: 311 | M2: 312 | N2: 313 | O2: 314 | P2: 315 | Q2: 316 | R2: 317 | S2: 318 | T2: 319 | U2: 320 | V2: 321 | W2: 322 | X2: 323 | Y2: 324 | Z2: 325 | AA2: 326 | AB2: 327 | AC2: 328 | AD2: 329 | AE2: 330 | AF2: 331 | AG2: 332 | AH2: 333 | AI2: 334
A3: 301 | C3: 5 | D3: 2 | E3: 0 | F3: 3 | H3: 6 | I3: 4
A4: 302 | B4: 1 | D4: 5 | E4: 2 | F4: 2 | I4: 3 | J4: 6 | L4: 7 | M4: 6 | P4: 6
A5: 303 | B5: 10 | C5: 10 | E5: 8 | F5: 3 | G5: 7 | I5: 10 | L5: 7
A6: 304 | B6: 0 | C6: 4 | D6: 0 | G6: 3 | H6: 4 | L6: 5
A7: 305 | B7: 1 | C7: 5 | D7: 1 | G7: 3 | H7: 6 | I7: 4 | K7: 8 | O7: 3 | P7: 3
A8: 306 | D8: 3 | E8: 4 | F8: 3 | H8: 9 | I8: 2 | J8: 7 | K8: 8 | L8: 6 | M8: 2
A9: 307 | B9: 1 | E9: 3 | F9: 2 | G9: 1 | I9: 1 | J9: 7 | K9: 5 | L9: 1 | M9: 3 | O9: 6
A10: 308 | B10: 1 | C10: 6 | D10: 0 | F10: 2 | G10: 1 | H10: 2 | J10: 3 | K10: 3 | L10: 2
A11: 309 | C11: 1 | G11: 1 | H11: 4 | I11: 2 | K11: 2 | L11: 3 | M11: 1 | O11: 7 | P11: 0
A12: 310 | F12: 4 | G12: 1 | H12: 2 | I12: 2 | J12: 3 | L12: 0 | M12: 5 | N12: 7 | P12: 4 | T12: 12
A13: 311 | C13: 3 | D13: 1 | E13: 3 | G13: 3 | H13: 10 | I13: 2 | J13: 5 | K13: 6 | M13: 0 | S13: 6
A14: 312 | C14: 5 | G14: 1 | H14: 6 | J14: 3 | K14: 7 | L14: 2 | N14: 5 | O14: 8 | R14: 9
A15: 313 | K15: 1 | M15: 1 | O15: 3 | P15: 3 | Q15: 4 | R15: 7 | S15: 3 | T15: 7 | U15: 7
A16: 314 | F16: 0 | H16: 3 | J16: 0 | M16: 2 | N16: 2 | Q16: 5 | R16: 1 | S16: 3 | X16: 5
A17: 315 | C17: 0 | F17: 2 | J17: 6 | K17: 1 | N17: 9 | Q17: 6 | R17: 10 | S17: 8
A18: 316 | N18: 0 | O18: 3 | P18: 0 | R18: 4 | S18: 0 | T18: 2 | Z18: 1
A19: 317 | M19: 3 | N19: 0 | O19: 8 | P19: 1 | Q19: 3 | S19: 2 | T19: 4 | U19: 8 | V19: 10 | W19: 7
A20: 318 | L20: 5 | N20: 1 | O20: 6 | P20: 4 | Q20: 10 | R20: 7 | T20: 8 | U20: 5 | AA20: 12
A21: 319 | K21: 2 | N21: 6 | Q21: 10 | R21: 6 | S21: 3 | U21: 10 | V21: 8 | W21: 11 | Z21: 10
A22: 320 | N22: 3 | R22: 1 | S22: 1 | T22: 3 | V22: 5 | W22: 4 | AD22: 7
A23: 321 | R23: 0 | T23: 3 | U23: 1 | W23: 2 | X23: 2 | Y23: 14 | Z23: 3 | AF23: 2
A24: 322 | R24: 3 | T24: 1 | U24: 3 | V24: 2 | X24: 0 | Y24: 5
A25: 323 | O25: 3 | V25: 2 | W25: 2 | Y25: 4 | Z25: 2
A26: 324 | V26: 1 | W26: 0 | X26: 2 | Z26: 0 | AA26: 2 | AB26: 8 | AC26: 1
A27: 325 | Q27: 1 | T27: 8 | V27: 6 | X27: 6 | Y27: 10 | AB27: 12 | AE27: 8 | AG27: 10
A28: 326 | S28: 0 | Y28: 3 | AB28: 0 | AC28: 1 | AD28: 1 | AH28: 1
A29: 327 | Y29: 1 | Z29: 2 | AA29: 2 | AC29: 0 | AD29: 2 | AE29: 3 | AF29: 1 | AH29: 1 | AI29: 8
A30: 328 | Y30: 9 | AA30: 17 | AB30: 12 | AE30: 1 | AF30: 9 | AG30: 10 | AI30: 9
A31: 329 | U31: 1 | AA31: 5 | AB31: 11 | AE31: 11 | AF31: 5 | AG31: 8 | AI31: 7
A32: 330 | Z32: 1 | AB32: 6 | AC32: 0 | AD32: 1 | AF32: 4 | AG32: 2 | AH32: 1 | AI32: 1
A33: 331 | V33: 4 | AB33: 7 | AC33: 1 | AD33: 2 | AE33: 1 | AG33: 10 | AH33: 9 | AI33: 3
A34: 332 | Z34: 0 | AC34: 0 | AD34: 0 | AE34: 4 | AF34: 1 | AH34: 1 | AI34: 0
A35: 333 | AA35: 9 | AB35: 10 | AE35: 20 | AF35: 4 | AG35: 8 | AI35: 9
A36: 334 | AB36: 7 | AC36: 1 | AD36: 2 | AE36: 0 | AF36: 4 | AG36: 10 | AH36: 1
M49: From --> | N49: B3:AJ37
M50: To --> | N50: B3:AI36
G54: 1 | H54: 2 | I54: 3 | J54: 4 | K54: 5 | L54: 6 | M54: 7 | N54: 8 | O54: 9 | P54: 10 | Q54: 11 | R54: 12 | S54: 13 | T54: 14 | U54: 15 | V54: 16 | W54: 17 | X54: 18 | Y54: 19 | Z54: 20 | AA54: 21 | AB54: 22 | AC54: 23 | AD54: 24 | AE54: 25 | AF54: 26 | AG54: 27 | AH54: 28 | AI54: 29 | AJ54: 30 | AK54: 31 | AL54: 32 | AM54: 33 | AN54: 34
F55: CSHL | G55: 1 | H55: 2 | I55: 3 | J55: 4 | K55: 5 | L55: 6 | M55: 7 | N55: 8 | O55: 9 | P55: 10 | Q55: 11 | R55: 12 | S55: 13 | T55: 14 | U55: 15 | V55: 16 | W55: 17 | X55: 18 | Y55: 19 | Z55: 20 | AA55: 21 | AB55: 22 | AC55: 23 | AD55: 24 | AE55: 25 | AF55: 26 | AG55: 27 | AH55: 28 | AI55: 29 | AJ55: 30 | AK55: 31 | AL55: 32 | AM55: 33 | AN55: 34
F56: MW | G56: 1 | H56: 2 | I56: 3 | J56: 4 | K56: 6 | L56: 5 | M56: 7 | N56: 8 | O56: 9 | P56: 10 | Q56: 11 | R56: 12 | S56: 13 | T56: 14 | U56: 15 | V56: 16 | W56: 17 | X56: 18 | Y56: 19 | Z56: 22 | AA56: 21 | AB56: 20 | AC56: 25 | AD56: 23 | AE56: 24 | AF56: 26 | AG56: 27 | AH56: 28 | AI56: 29 | AJ56: 30 | AK56: 31 | AL56: 33 | AM56: 32 | AN56: 34
F57: Walkush | G57: 1 | H57: 2 | I57: 3 | J57: 4 | K57: 5 | L57: 6 | M57: 7 | N57: 9 | O57: 8 | P57: 11 | Q57: 10 | R57: 12 | S57: 13 | T57: 14 | U57: 15 | V57: 16 | W57: 17 | X57: 18 | Y57: 20 | Z57: 19 | AA57: 21 | AB57: 27 | AC57: 22 | AD57: 24 | AE57: 26 | AF57: 23 | AG57: 25 | AH57: 28 | AI57: 29 | AJ57: 30 | AK57: 31 | AL57: 32 | AM57: 34 | AN57: 33
F58: Custom | G58: 3 | H58: 1 | I58: 6 | J58: 5 | K58: 2 | L58: 4 | M58: 12 | N58: 11 | O58: 8 | P58: 15 | Q58: 10 | R58: 7 | S58: 9 | T58: 18 | U58: 13 | V58: 19 | W58: 17 | X58: 14 | Y58: 25 | Z58: 20 | AA58: 16 | AB58: 28 | AC58: 23 | AD58: 33 | AE58: 29 | AF58: 22 | AG58: 21 | AH58: 31 | AI58: 30 | AJ58: 34 | AK58: 24 | AL58: 27 | AM58: 26 | AN58: 32
F59: Index | G59: 3 | H59: 1 | I59: 6 | J59: 5 | K59: 2 | L59: 4 | M59: 12 | N59: 11 | O59: 8 | P59: 15 | Q59: 10 | R59: 7 | S59: 9 | T59: 18 | U59: 13 | V59: 19 | W59: 17 | X59: 14 | Y59: 25 | Z59: 20 | AA59: 16 | AB59: 28 | AC59: 23 | AD59: 33 | AE59: 29 | AF59: 22 | AG59: 21 | AH59: 31 | AI59: 30 | AJ59: 34 | AK59: 24 | AL59: 27 | AM59: 26 | AN59: 32
A60: CSHL | B60: MW | C60: Walkush | D60: Custom | E60: Index | F60: Team | G60: 303 | H60: 301 | I60: 306 | J60: 305 | K60: 302 | L60: 304 | M60: 312 | N60: 311 | O60: 308 | P60: 315 | Q60: 310 | R60: 307 | S60: 309 | T60: 318 | U60: 313 | V60: 319 | W60: 317 | X60: 314 | Y60: 325 | Z60: 320 | AA60: 316 | AB60: 328 | AC60: 323 | AD60: 333 | AE60: 329 | AF60: 322 | AG60: 321 | AH60: 331 | AI60: 330 | AJ60: 334 | AK60: 324 | AL60: 327 | AM60: 326 | AN60: 332
A61: 1 | B61: 1 | C61: 1 | D61: 3 | E61: 3 | F61: 303 | G61: =INDEX($B$3:$AI$36,$E61,G$59)&"-"&INDEX($B$3:$AI$36,G$59,$E61) -> - | H61: =INDEX($B$3:$AI$36,$E61,H$59)&"-"&INDEX($B$3:$AI$36,H$59,$E61) -> 10-2 | I61: =INDEX($B$3:$AI$36,$E61,I$59)&"-"&INDEX($B$3:$AI$36,I$59,$E61) -> 7-3 | J61: =INDEX($B$3:$AI$36,$E61,J$59)&"-"&INDEX($B$3:$AI$36,J$59,$E61) -> 3-1 | K61: =INDEX($B$3:$AI$36,$E61,K$59)&"-"&INDEX($B$3:$AI$36,K$59,$E61) -> 10-5 | L61: =INDEX($B$3:$AI$36,$E61,L$59)&"-"&INDEX($B$3:$AI$36,L$59,$E61) -> 8-0 | M61: =INDEX($B$3:$AI$36,$E61,M$59)&"-"&INDEX($B$3:$AI$36,M$59,$E61) -> - | N61: =INDEX($B$3:$AI$36,$E61,N$59)&"-"&INDEX($B$3:$AI$36,N$59,$E61) -> 7-1 | O61: =INDEX($B$3:$AI$36,$E61,O$59)&"-"&INDEX($B$3:$AI$36,O$59,$E61) -> 10-0 | P61: =INDEX($B$3:$AI$36,$E61,P$59)&"-"&INDEX($B$3:$AI$36,P$59,$E61) -> - | Q61: =INDEX($B$3:$AI$36,$E61,Q$59)&"-"&INDEX($B$3:$AI$36,Q$59,$E61) -> - | R61: =INDEX($B$3:$AI$36,$E61,R$59)&"-"&INDEX($B$3:$AI$36,R$59,$E61) -> - | S61: =INDEX($B$3:$AI$36,$E61,S$59)&"-"&INDEX($B$3:$AI$36,S$59,$E61) -> - | T61: =INDEX($B$3:$AI$36,$E61,T$59)&"-"&INDEX($B$3:$AI$36,T$59,$E61) -> - | U61: =INDEX($B$3:$AI$36,$E61,U$59)&"-"&INDEX($B$3:$AI$36,U$59,$E61) -> - | V61: =INDEX($B$3:$AI$36,$E61,V$59)&"-"&INDEX($B$3:$AI$36,V$59,$E61) -> - | W61: =INDEX($B$3:$AI$36,$E61,W$59)&"-"&INDEX($B$3:$AI$36,W$59,$E61) -> - | X61: =INDEX($B$3:$AI$36,$E61,X$59)&"-"&INDEX($B$3:$AI$36,X$59,$E61) -> - | Y61: =INDEX($B$3:$AI$36,$E61,Y$59)&"-"&INDEX($B$3:$AI$36,Y$59,$E61) -> - | Z61: =INDEX($B$3:$AI$36,$E61,Z$59)&"-"&INDEX($B$3:$AI$36,Z$59,$E61) -> - | AA61: =INDEX($B$3:$AI$36,$E61,AA$59)&"-"&INDEX($B$3:$AI$36,AA$59,$E61) -> - | AB61: =INDEX($B$3:$AI$36,$E61,AB$59)&"-"&INDEX($B$3:$AI$36,AB$59,$E61) -> - | AC61: =INDEX($B$3:$AI$36,$E61,AC$59)&"-"&INDEX($B$3:$AI$36,AC$59,$E61) -> - | AD61: =INDEX($B$3:$AI$36,$E61,AD$59)&"-"&INDEX($B$3:$AI$36,AD$59,$E61) -> - | AE61: =INDEX($B$3:$AI$36,$E61,AE$59)&"-"&INDEX($B$3:$AI$36,AE$59,$E61) -> - | AF61: =INDEX($B$3:$AI$36,$E61,AF$59)&"-"&INDEX($B$3:$AI$36,AF$59,$E61) -> - | AG61: =INDEX($B$3:$AI$36,$E61,AG$59)&"-"&INDEX($B$3:$AI$36,AG$59,$E61) -> - | AH61: =INDEX($B$3:$AI$36,$E61,AH$59)&"-"&INDEX($B$3:$AI$36,AH$59,$E61) -> - | AI61: =INDEX($B$3:$AI$36,$E61,AI$59)&"-"&INDEX($B$3:$AI$36,AI$59,$E61) -> - | AJ61: =INDEX($B$3:$AI$36,$E61,AJ$59)&"-"&INDEX($B$3:$AI$36,AJ$59,$E61) -> - | AK61: =INDEX($B$3:$AI$36,$E61,AK$59)&"-"&INDEX($B$3:$AI$36,AK$59,$E61) -> - | AL61: =INDEX($B$3:$AI$36,$E61,AL$59)&"-"&INDEX($B$3:$AI$36,AL$59,$E61) -> - | AM61: =INDEX($B$3:$AI$36,$E61,AM$59)&"-"&INDEX($B$3:$AI$36,AM$59,$E61) -> - | AN61: =INDEX($B$3:$AI$36,$E61,AN$59)&"-"&INDEX($B$3:$AI$36,AN$59,$E61) -> -
A62: 2 | B62: 2 | C62: 2 | D62: 1 | E62: 1 | F62: 301 | G62: =INDEX($B$3:$AI$36,$E62,G$59)&"-"&INDEX($B$3:$AI$36,G$59,$E62) -> 2-10 | H62: =INDEX($B$3:$AI$36,$E62,H$59)&"-"&INDEX($B$3:$AI$36,H$59,$E62) -> - | I62: =INDEX($B$3:$AI$36,$E62,I$59)&"-"&INDEX($B$3:$AI$36,I$59,$E62) -> - | J62: =INDEX($B$3:$AI$36,$E62,J$59)&"-"&INDEX($B$3:$AI$36,J$59,$E62) -> 3-1 | K62: =INDEX($B$3:$AI$36,$E62,K$59)&"-"&INDEX($B$3:$AI$36,K$59,$E62) -> 5-1 | L62: =INDEX($B$3:$AI$36,$E62,L$59)&"-"&INDEX($B$3:$AI$36,L$59,$E62) -> 0-0 | M62: =INDEX($B$3:$AI$36,$E62,M$59)&"-"&INDEX($B$3:$AI$36,M$59,$E62) -> - | N62: =INDEX($B$3:$AI$36,$E62,N$59)&"-"&INDEX($B$3:$AI$36,N$59,$E62) -> - | O62: =INDEX($B$3:$AI$36,$E62,O$59)&"-"&INDEX($B$3:$AI$36,O$59,$E62) -> 4-1 | P62: =INDEX($B$3:$AI$36,$E62,P$59)&"-"&INDEX($B$3:$AI$36,P$59,$E62) -> - | Q62: =INDEX($B$3:$AI$36,$E62,Q$59)&"-"&INDEX($B$3:$AI$36,Q$59,$E62) -> - | R62: =INDEX($B$3:$AI$36,$E62,R$59)&"-"&INDEX($B$3:$AI$36,R$59,$E62) -> 6-1 | S62: =INDEX($B$3:$AI$36,$E62,S$59)&"-"&INDEX($B$3:$AI$36,S$59,$E62) -> - | T62: =INDEX($B$3:$AI$36,$E62,T$59)&"-"&INDEX($B$3:$AI$36,T$59,$E62) -> - | U62: =INDEX($B$3:$AI$36,$E62,U$59)&"-"&INDEX($B$3:$AI$36,U$59,$E62) -> - | V62: =INDEX($B$3:$AI$36,$E62,V$59)&"-"&INDEX($B$3:$AI$36,V$59,$E62) -> - | W62: =INDEX($B$3:$AI$36,$E62,W$59)&"-"&INDEX($B$3:$AI$36,W$59,$E62) -> - | X62: =INDEX($B$3:$AI$36,$E62,X$59)&"-"&INDEX($B$3:$AI$36,X$59,$E62) -> - | Y62: =INDEX($B$3:$AI$36,$E62,Y$59)&"-"&INDEX($B$3:$AI$36,Y$59,$E62) -> - | Z62: =INDEX($B$3:$AI$36,$E62,Z$59)&"-"&INDEX($B$3:$AI$36,Z$59,$E62) -> - | AA62: =INDEX($B$3:$AI$36,$E62,AA$59)&"-"&INDEX($B$3:$AI$36,AA$59,$E62) -> - | AB62: =INDEX($B$3:$AI$36,$E62,AB$59)&"-"&INDEX($B$3:$AI$36,AB$59,$E62) -> - | AC62: =INDEX($B$3:$AI$36,$E62,AC$59)&"-"&INDEX($B$3:$AI$36,AC$59,$E62) -> - | AD62: =INDEX($B$3:$AI$36,$E62,AD$59)&"-"&INDEX($B$3:$AI$36,AD$59,$E62) -> - | AE62: =INDEX($B$3:$AI$36,$E62,AE$59)&"-"&INDEX($B$3:$AI$36,AE$59,$E62) -> - | AF62: =INDEX($B$3:$AI$36,$E62,AF$59)&"-"&INDEX($B$3:$AI$36,AF$59,$E62) -> - | AG62: =INDEX($B$3:$AI$36,$E62,AG$59)&"-"&INDEX($B$3:$AI$36,AG$59,$E62) -> - | AH62: =INDEX($B$3:$AI$36,$E62,AH$59)&"-"&INDEX($B$3:$AI$36,AH$59,$E62) -> - | AI62: =INDEX($B$3:$AI$36,$E62,AI$59)&"-"&INDEX($B$3:$AI$36,AI$59,$E62) -> - | AJ62: =INDEX($B$3:$AI$36,$E62,AJ$59)&"-"&INDEX($B$3:$AI$36,AJ$59,$E62) -> - | AK62: =INDEX($B$3:$AI$36,$E62,AK$59)&"-"&INDEX($B$3:$AI$36,AK$59,$E62) -> - | AL62: =INDEX($B$3:$AI$36,$E62,AL$59)&"-"&INDEX($B$3:$AI$36,AL$59,$E62) -> - | AM62: =INDEX($B$3:$AI$36,$E62,AM$59)&"-"&INDEX($B$3:$AI$36,AM$59,$E62) -> - | AN62: =INDEX($B$3:$AI$36,$E62,AN$59)&"-"&INDEX($B$3:$AI$36,AN$59,$E62) -> -
A63: 3 | B63: 3 | C63: 3 | D63: 6 | E63: 6 | F63: 306 | G63: =INDEX($B$3:$AI$36,$E63,G$59)&"-"&INDEX($B$3:$AI$36,G$59,$E63) -> 3-7 | H63: =INDEX($B$3:$AI$36,$E63,H$59)&"-"&INDEX($B$3:$AI$36,H$59,$E63) -> - | I63: =INDEX($B$3:$AI$36,$E63,I$59)&"-"&INDEX($B$3:$AI$36,I$59,$E63) -> - | J63: =INDEX($B$3:$AI$36,$E63,J$59)&"-"&INDEX($B$3:$AI$36,J$59,$E63) -> 3-3 | K63: =INDEX($B$3:$AI$36,$E63,K$59)&"-"&INDEX($B$3:$AI$36,K$59,$E63) -> - | L63: =INDEX($B$3:$AI$36,$E63,L$59)&"-"&INDEX($B$3:$AI$36,L$59,$E63) -> 4-3 | M63: =INDEX($B$3:$AI$36,$E63,M$59)&"-"&INDEX($B$3:$AI$36,M$59,$E63) -> 2-1 | N63: =INDEX($B$3:$AI$36,$E63,N$59)&"-"&INDEX($B$3:$AI$36,N$59,$E63) -> 6-3 | O63: =INDEX($B$3:$AI$36,$E63,O$59)&"-"&INDEX($B$3:$AI$36,O$59,$E63) -> 2-1 | P63: =INDEX($B$3:$AI$36,$E63,P$59)&"-"&INDEX($B$3:$AI$36,P$59,$E63) -> - | Q63: =INDEX($B$3:$AI$36,$E63,Q$59)&"-"&INDEX($B$3:$AI$36,Q$59,$E63) -> 8-1 | R63: =INDEX($B$3:$AI$36,$E63,R$59)&"-"&INDEX($B$3:$AI$36,R$59,$E63) -> 9-1 | S63: =INDEX($B$3:$AI$36,$E63,S$59)&"-"&INDEX($B$3:$AI$36,S$59,$E63) -> 7-1 | T63: =INDEX($B$3:$AI$36,$E63,T$59)&"-"&INDEX($B$3:$AI$36,T$59,$E63) -> - | U63: =INDEX($B$3:$AI$36,$E63,U$59)&"-"&INDEX($B$3:$AI$36,U$59,$E63) -> - | V63: =INDEX($B$3:$AI$36,$E63,V$59)&"-"&INDEX($B$3:$AI$36,V$59,$E63) -> - | W63: =INDEX($B$3:$AI$36,$E63,W$59)&"-"&INDEX($B$3:$AI$36,W$59,$E63) -> - | X63: =INDEX($B$3:$AI$36,$E63,X$59)&"-"&INDEX($B$3:$AI$36,X$59,$E63) -> - | Y63: =INDEX($B$3:$AI$36,$E63,Y$59)&"-"&INDEX($B$3:$AI$36,Y$59,$E63) -> - | Z63: =INDEX($B$3:$AI$36,$E63,Z$59)&"-"&INDEX($B$3:$AI$36,Z$59,$E63) -> - | AA63: =INDEX($B$3:$AI$36,$E63,AA$59)&"-"&INDEX($B$3:$AI$36,AA$59,$E63) -> - | AB63: =INDEX($B$3:$AI$36,$E63,AB$59)&"-"&INDEX($B$3:$AI$36,AB$59,$E63) -> - | AC63: =INDEX($B$3:$AI$36,$E63,AC$59)&"-"&INDEX($B$3:$AI$36,AC$59,$E63) -> - | AD63: =INDEX($B$3:$AI$36,$E63,AD$59)&"-"&INDEX($B$3:$AI$36,AD$59,$E63) -> - | AE63: =INDEX($B$3:$AI$36,$E63,AE$59)&"-"&INDEX($B$3:$AI$36,AE$59,$E63) -> - | AF63: =INDEX($B$3:$AI$36,$E63,AF$59)&"-"&INDEX($B$3:$AI$36,AF$59,$E63) -> - | AG63: =INDEX($B$3:$AI$36,$E63,AG$59)&"-"&INDEX($B$3:$AI$36,AG$59,$E63) -> - | AH63: =INDEX($B$3:$AI$36,$E63,AH$59)&"-"&INDEX($B$3:$AI$36,AH$59,$E63) -> - | AI63: =INDEX($B$3:$AI$36,$E63,AI$59)&"-"&INDEX($B$3:$AI$36,AI$59,$E63) -> - | AJ63: =INDEX($B$3:$AI$36,$E63,AJ$59)&"-"&INDEX($B$3:$AI$36,AJ$59,$E63) -> - | AK63: =INDEX($B$3:$AI$36,$E63,AK$59)&"-"&INDEX($B$3:$AI$36,AK$59,$E63) -> - | AL63: =INDEX($B$3:$AI$36,$E63,AL$59)&"-"&INDEX($B$3:$AI$36,AL$59,$E63) -> - | AM63: =INDEX($B$3:$AI$36,$E63,AM$59)&"-"&INDEX($B$3:$AI$36,AM$59,$E63) -> - | AN63: =INDEX($B$3:$AI$36,$E63,AN$59)&"-"&INDEX($B$3:$AI$36,AN$59,$E63) -> -
A64: 4 | B64: 4 | C64: 4 | D64: 5 | E64: 5 | F64: 305 | G64: =INDEX($B$3:$AI$36,$E64,G$59)&"-"&INDEX($B$3:$AI$36,G$59,$E64) -> 1-3 | H64: =INDEX($B$3:$AI$36,$E64,H$59)&"-"&INDEX($B$3:$AI$36,H$59,$E64) -> 1-3 | I64: =INDEX($B$3:$AI$36,$E64,I$59)&"-"&INDEX($B$3:$AI$36,I$59,$E64) -> 3-3 | J64: =INDEX($B$3:$AI$36,$E64,J$59)&"-"&INDEX($B$3:$AI$36,J$59,$E64) -> - | K64: =INDEX($B$3:$AI$36,$E64,K$59)&"-"&INDEX($B$3:$AI$36,K$59,$E64) -> 5-2 | L64: =INDEX($B$3:$AI$36,$E64,L$59)&"-"&INDEX($B$3:$AI$36,L$59,$E64) -> - | M64: =INDEX($B$3:$AI$36,$E64,M$59)&"-"&INDEX($B$3:$AI$36,M$59,$E64) -> - | N64: =INDEX($B$3:$AI$36,$E64,N$59)&"-"&INDEX($B$3:$AI$36,N$59,$E64) -> - | O64: =INDEX($B$3:$AI$36,$E64,O$59)&"-"&INDEX($B$3:$AI$36,O$59,$E64) -> 4-2 | P64: =INDEX($B$3:$AI$36,$E64,P$59)&"-"&INDEX($B$3:$AI$36,P$59,$E64) -> 3-2 | Q64: =INDEX($B$3:$AI$36,$E64,Q$59)&"-"&INDEX($B$3:$AI$36,Q$59,$E64) -> 8-4 | R64: =INDEX($B$3:$AI$36,$E64,R$59)&"-"&INDEX($B$3:$AI$36,R$59,$E64) -> 6-2 | S64: =INDEX($B$3:$AI$36,$E64,S$59)&"-"&INDEX($B$3:$AI$36,S$59,$E64) -> - | T64: =INDEX($B$3:$AI$36,$E64,T$59)&"-"&INDEX($B$3:$AI$36,T$59,$E64) -> - | U64: =INDEX($B$3:$AI$36,$E64,U$59)&"-"&INDEX($B$3:$AI$36,U$59,$E64) -> - | V64: =INDEX($B$3:$AI$36,$E64,V$59)&"-"&INDEX($B$3:$AI$36,V$59,$E64) -> - | W64: =INDEX($B$3:$AI$36,$E64,W$59)&"-"&INDEX($B$3:$AI$36,W$59,$E64) -> - | X64: =INDEX($B$3:$AI$36,$E64,X$59)&"-"&INDEX($B$3:$AI$36,X$59,$E64) -> 3-0 | Y64: =INDEX($B$3:$AI$36,$E64,Y$59)&"-"&INDEX($B$3:$AI$36,Y$59,$E64) -> - | Z64: =INDEX($B$3:$AI$36,$E64,Z$59)&"-"&INDEX($B$3:$AI$36,Z$59,$E64) -> - | AA64: =INDEX($B$3:$AI$36,$E64,AA$59)&"-"&INDEX($B$3:$AI$36,AA$59,$E64) -> - | AB64: =INDEX($B$3:$AI$36,$E64,AB$59)&"-"&INDEX($B$3:$AI$36,AB$59,$E64) -> - | AC64: =INDEX($B$3:$AI$36,$E64,AC$59)&"-"&INDEX($B$3:$AI$36,AC$59,$E64) -> - | AD64: =INDEX($B$3:$AI$36,$E64,AD$59)&"-"&INDEX($B$3:$AI$36,AD$59,$E64) -> - | AE64: =INDEX($B$3:$AI$36,$E64,AE$59)&"-"&INDEX($B$3:$AI$36,AE$59,$E64) -> - | AF64: =INDEX($B$3:$AI$36,$E64,AF$59)&"-"&INDEX($B$3:$AI$36,AF$59,$E64) -> - | AG64: =INDEX($B$3:$AI$36,$E64,AG$59)&"-"&INDEX($B$3:$AI$36,AG$59,$E64) -> - | AH64: =INDEX($B$3:$AI$36,$E64,AH$59)&"-"&INDEX($B$3:$AI$36,AH$59,$E64) -> - | AI64: =INDEX($B$3:$AI$36,$E64,AI$59)&"-"&INDEX($B$3:$AI$36,AI$59,$E64) -> - | AJ64: =INDEX($B$3:$AI$36,$E64,AJ$59)&"-"&INDEX($B$3:$AI$36,AJ$59,$E64) -> - | AK64: =INDEX($B$3:$AI$36,$E64,AK$59)&"-"&INDEX($B$3:$AI$36,AK$59,$E64) -> - | AL64: =INDEX($B$3:$AI$36,$E64,AL$59)&"-"&INDEX($B$3:$AI$36,AL$59,$E64) -> - | AM64: =INDEX($B$3:$AI$36,$E64,AM$59)&"-"&INDEX($B$3:$AI$36,AM$59,$E64) -> - | AN64: =INDEX($B$3:$AI$36,$E64,AN$59)&"-"&INDEX($B$3:$AI$36,AN$59,$E64) -> -
A65: 5 | B65: 6 | C65: 5 | D65: 2 | E65: 2 | F65: 302 | G65: =INDEX($B$3:$AI$36,$E65,G$59)&"-"&INDEX($B$3:$AI$36,G$59,$E65) -> 5-10 | H65: =INDEX($B$3:$AI$36,$E65,H$59)&"-"&INDEX($B$3:$AI$36,H$59,$E65) -> 1-5 | I65: =INDEX($B$3:$AI$36,$E65,I$59)&"-"&INDEX($B$3:$AI$36,I$59,$E65) -> - | J65: =INDEX($B$3:$AI$36,$E65,J$59)&"-"&INDEX($B$3:$AI$36,J$59,$E65) -> 2-5 | K65: =INDEX($B$3:$AI$36,$E65,K$59)&"-"&INDEX($B$3:$AI$36,K$59,$E65) -> - | L65: =INDEX($B$3:$AI$36,$E65,L$59)&"-"&INDEX($B$3:$AI$36,L$59,$E65) -> 2-4 | M65: =INDEX($B$3:$AI$36,$E65,M$59)&"-"&INDEX($B$3:$AI$36,M$59,$E65) -> 6-5 | N65: =INDEX($B$3:$AI$36,$E65,N$59)&"-"&INDEX($B$3:$AI$36,N$59,$E65) -> 7-3 | O65: =INDEX($B$3:$AI$36,$E65,O$59)&"-"&INDEX($B$3:$AI$36,O$59,$E65) -> 3-6 | P65: =INDEX($B$3:$AI$36,$E65,P$59)&"-"&INDEX($B$3:$AI$36,P$59,$E65) -> 6-0 | Q65: =INDEX($B$3:$AI$36,$E65,Q$59)&"-"&INDEX($B$3:$AI$36,Q$59,$E65) -> - | R65: =INDEX($B$3:$AI$36,$E65,R$59)&"-"&INDEX($B$3:$AI$36,R$59,$E65) -> - | S65: =INDEX($B$3:$AI$36,$E65,S$59)&"-"&INDEX($B$3:$AI$36,S$59,$E65) -> 6-1 | T65: =INDEX($B$3:$AI$36,$E65,T$59)&"-"&INDEX($B$3:$AI$36,T$59,$E65) -> - | U65: =INDEX($B$3:$AI$36,$E65,U$59)&"-"&INDEX($B$3:$AI$36,U$59,$E65) -> - | V65: =INDEX($B$3:$AI$36,$E65,V$59)&"-"&INDEX($B$3:$AI$36,V$59,$E65) -> - | W65: =INDEX($B$3:$AI$36,$E65,W$59)&"-"&INDEX($B$3:$AI$36,W$59,$E65) -> - | X65: =INDEX($B$3:$AI$36,$E65,X$59)&"-"&INDEX($B$3:$AI$36,X$59,$E65) -> - | Y65: =INDEX($B$3:$AI$36,$E65,Y$59)&"-"&INDEX($B$3:$AI$36,Y$59,$E65) -> - | Z65: =INDEX($B$3:$AI$36,$E65,Z$59)&"-"&INDEX($B$3:$AI$36,Z$59,$E65) -> - | AA65: =INDEX($B$3:$AI$36,$E65,AA$59)&"-"&INDEX($B$3:$AI$36,AA$59,$E65) -> - | AB65: =INDEX($B$3:$AI$36,$E65,AB$59)&"-"&INDEX($B$3:$AI$36,AB$59,$E65) -> - | AC65: =INDEX($B$3:$AI$36,$E65,AC$59)&"-"&INDEX($B$3:$AI$36,AC$59,$E65) -> - | AD65: =INDEX($B$3:$AI$36,$E65,AD$59)&"-"&INDEX($B$3:$AI$36,AD$59,$E65) -> - | AE65: =INDEX($B$3:$AI$36,$E65,AE$59)&"-"&INDEX($B$3:$AI$36,AE$59,$E65) -> - | AF65: =INDEX($B$3:$AI$36,$E65,AF$59)&"-"&INDEX($B$3:$AI$36,AF$59,$E65) -> - | AG65: =INDEX($B$3:$AI$36,$E65,AG$59)&"-"&INDEX($B$3:$AI$36,AG$59,$E65) -> - | AH65: =INDEX($B$3:$AI$36,$E65,AH$59)&"-"&INDEX($B$3:$AI$36,AH$59,$E65) -> - | AI65: =INDEX($B$3:$AI$36,$E65,AI$59)&"-"&INDEX($B$3:$AI$36,AI$59,$E65) -> - | AJ65: =INDEX($B$3:$AI$36,$E65,AJ$59)&"-"&INDEX($B$3:$AI$36,AJ$59,$E65) -> - | AK65: =INDEX($B$3:$AI$36,$E65,AK$59)&"-"&INDEX($B$3:$AI$36,AK$59,$E65) -> - | AL65: =INDEX($B$3:$AI$36,$E65,AL$59)&"-"&INDEX($B$3:$AI$36,AL$59,$E65) -> - | AM65: =INDEX($B$3:$AI$36,$E65,AM$59)&"-"&INDEX($B$3:$AI$36,AM$59,$E65) -> - | AN65: =INDEX($B$3:$AI$36,$E65,AN$59)&"-"&INDEX($B$3:$AI$36,AN$59,$E65) -> -
A66: 6 | B66: 5 | C66: 6 | D66: 4 | E66: 4 | F66: 304 | G66: =INDEX($B$3:$AI$36,$E66,G$59)&"-"&INDEX($B$3:$AI$36,G$59,$E66) -> 0-8 | H66: =INDEX($B$3:$AI$36,$E66,H$59)&"-"&INDEX($B$3:$AI$36,H$59,$E66) -> 0-0 | I66: =INDEX($B$3:$AI$36,$E66,I$59)&"-"&INDEX($B$3:$AI$36,I$59,$E66) -> 3-4 | J66: =INDEX($B$3:$AI$36,$E66,J$59)&"-"&INDEX($B$3:$AI$36,J$59,$E66) -> - | K66: =INDEX($B$3:$AI$36,$E66,K$59)&"-"&INDEX($B$3:$AI$36,K$59,$E66) -> 4-2 | L66: =INDEX($B$3:$AI$36,$E66,L$59)&"-"&INDEX($B$3:$AI$36,L$59,$E66) -> - | M66: =INDEX($B$3:$AI$36,$E66,M$59)&"-"&INDEX($B$3:$AI$36,M$59,$E66) -> - | N66: =INDEX($B$3:$AI$36,$E66,N$59)&"-"&INDEX($B$3:$AI$36,N$59,$E66) -> 5-3 | O66: =INDEX($B$3:$AI$36,$E66,O$59)&"-"&INDEX($B$3:$AI$36,O$59,$E66) -> - | P66: =INDEX($B$3:$AI$36,$E66,P$59)&"-"&INDEX($B$3:$AI$36,P$59,$E66) -> - | Q66: =INDEX($B$3:$AI$36,$E66,Q$59)&"-"&INDEX($B$3:$AI$36,Q$59,$E66) -> - | R66: =INDEX($B$3:$AI$36,$E66,R$59)&"-"&INDEX($B$3:$AI$36,R$59,$E66) -> 4-3 | S66: =INDEX($B$3:$AI$36,$E66,S$59)&"-"&INDEX($B$3:$AI$36,S$59,$E66) -> - | T66: =INDEX($B$3:$AI$36,$E66,T$59)&"-"&INDEX($B$3:$AI$36,T$59,$E66) -> - | U66: =INDEX($B$3:$AI$36,$E66,U$59)&"-"&INDEX($B$3:$AI$36,U$59,$E66) -> - | V66: =INDEX($B$3:$AI$36,$E66,V$59)&"-"&INDEX($B$3:$AI$36,V$59,$E66) -> - | W66: =INDEX($B$3:$AI$36,$E66,W$59)&"-"&INDEX($B$3:$AI$36,W$59,$E66) -> - | X66: =INDEX($B$3:$AI$36,$E66,X$59)&"-"&INDEX($B$3:$AI$36,X$59,$E66) -> - | Y66: =INDEX($B$3:$AI$36,$E66,Y$59)&"-"&INDEX($B$3:$AI$36,Y$59,$E66) -> - | Z66: =INDEX($B$3:$AI$36,$E66,Z$59)&"-"&INDEX($B$3:$AI$36,Z$59,$E66) -> - | AA66: =INDEX($B$3:$AI$36,$E66,AA$59)&"-"&INDEX($B$3:$AI$36,AA$59,$E66) -> - | AB66: =INDEX($B$3:$AI$36,$E66,AB$59)&"-"&INDEX($B$3:$AI$36,AB$59,$E66) -> - | AC66: =INDEX($B$3:$AI$36,$E66,AC$59)&"-"&INDEX($B$3:$AI$36,AC$59,$E66) -> - | AD66: =INDEX($B$3:$AI$36,$E66,AD$59)&"-"&INDEX($B$3:$AI$36,AD$59,$E66) -> - | AE66: =INDEX($B$3:$AI$36,$E66,AE$59)&"-"&INDEX($B$3:$AI$36,AE$59,$E66) -> - | AF66: =INDEX($B$3:$AI$36,$E66,AF$59)&"-"&INDEX($B$3:$AI$36,AF$59,$E66) -> - | AG66: =INDEX($B$3:$AI$36,$E66,AG$59)&"-"&INDEX($B$3:$AI$36,AG$59,$E66) -> - | AH66: =INDEX($B$3:$AI$36,$E66,AH$59)&"-"&INDEX($B$3:$AI$36,AH$59,$E66) -> - | AI66: =INDEX($B$3:$AI$36,$E66,AI$59)&"-"&INDEX($B$3:$AI$36,AI$59,$E66) -> - | AJ66: =INDEX($B$3:$AI$36,$E66,AJ$59)&"-"&INDEX($B$3:$AI$36,AJ$59,$E66) -> - | AK66: =INDEX($B$3:$AI$36,$E66,AK$59)&"-"&INDEX($B$3:$AI$36,AK$59,$E66) -> - | AL66: =INDEX($B$3:$AI$36,$E66,AL$59)&"-"&INDEX($B$3:$AI$36,AL$59,$E66) -> - | AM66: =INDEX($B$3:$AI$36,$E66,AM$59)&"-"&INDEX($B$3:$AI$36,AM$59,$E66) -> - | AN66: =INDEX($B$3:$AI$36,$E66,AN$59)&"-"&INDEX($B$3:$AI$36,AN$59,$E66) -> -
A67: 7 | B67: 7 | C67: 7 | D67: 12 | E67: 12 | F67: 312 | G67: =INDEX($B$3:$AI$36,$E67,G$59)&"-"&INDEX($B$3:$AI$36,G$59,$E67) -> - | H67: =INDEX($B$3:$AI$36,$E67,H$59)&"-"&INDEX($B$3:$AI$36,H$59,$E67) -> - | I67: =INDEX($B$3:$AI$36,$E67,I$59)&"-"&INDEX($B$3:$AI$36,I$59,$E67) -> 1-2 | J67: =INDEX($B$3:$AI$36,$E67,J$59)&"-"&INDEX($B$3:$AI$36,J$59,$E67) -> - | K67: =INDEX($B$3:$AI$36,$E67,K$59)&"-"&INDEX($B$3:$AI$36,K$59,$E67) -> 5-6 | L67: =INDEX($B$3:$AI$36,$E67,L$59)&"-"&INDEX($B$3:$AI$36,L$59,$E67) -> - | M67: =INDEX($B$3:$AI$36,$E67,M$59)&"-"&INDEX($B$3:$AI$36,M$59,$E67) -> - | N67: =INDEX($B$3:$AI$36,$E67,N$59)&"-"&INDEX($B$3:$AI$36,N$59,$E67) -> 2-0 | O67: =INDEX($B$3:$AI$36,$E67,O$59)&"-"&INDEX($B$3:$AI$36,O$59,$E67) -> - | P67: =INDEX($B$3:$AI$36,$E67,P$59)&"-"&INDEX($B$3:$AI$36,P$59,$E67) -> - | Q67: =INDEX($B$3:$AI$36,$E67,Q$59)&"-"&INDEX($B$3:$AI$36,Q$59,$E67) -> 7-5 | R67: =INDEX($B$3:$AI$36,$E67,R$59)&"-"&INDEX($B$3:$AI$36,R$59,$E67) -> 6-3 | S67: =INDEX($B$3:$AI$36,$E67,S$59)&"-"&INDEX($B$3:$AI$36,S$59,$E67) -> 3-1 | T67: =INDEX($B$3:$AI$36,$E67,T$59)&"-"&INDEX($B$3:$AI$36,T$59,$E67) -> - | U67: =INDEX($B$3:$AI$36,$E67,U$59)&"-"&INDEX($B$3:$AI$36,U$59,$E67) -> 5-1 | V67: =INDEX($B$3:$AI$36,$E67,V$59)&"-"&INDEX($B$3:$AI$36,V$59,$E67) -> - | W67: =INDEX($B$3:$AI$36,$E67,W$59)&"-"&INDEX($B$3:$AI$36,W$59,$E67) -> 9-3 | X67: =INDEX($B$3:$AI$36,$E67,X$59)&"-"&INDEX($B$3:$AI$36,X$59,$E67) -> 8-2 | Y67: =INDEX($B$3:$AI$36,$E67,Y$59)&"-"&INDEX($B$3:$AI$36,Y$59,$E67) -> - | Z67: =INDEX($B$3:$AI$36,$E67,Z$59)&"-"&INDEX($B$3:$AI$36,Z$59,$E67) -> - | AA67: =INDEX($B$3:$AI$36,$E67,AA$59)&"-"&INDEX($B$3:$AI$36,AA$59,$E67) -> - | AB67: =INDEX($B$3:$AI$36,$E67,AB$59)&"-"&INDEX($B$3:$AI$36,AB$59,$E67) -> - | AC67: =INDEX($B$3:$AI$36,$E67,AC$59)&"-"&INDEX($B$3:$AI$36,AC$59,$E67) -> - | AD67: =INDEX($B$3:$AI$36,$E67,AD$59)&"-"&INDEX($B$3:$AI$36,AD$59,$E67) -> - | AE67: =INDEX($B$3:$AI$36,$E67,AE$59)&"-"&INDEX($B$3:$AI$36,AE$59,$E67) -> - | AF67: =INDEX($B$3:$AI$36,$E67,AF$59)&"-"&INDEX($B$3:$AI$36,AF$59,$E67) -> - | AG67: =INDEX($B$3:$AI$36,$E67,AG$59)&"-"&INDEX($B$3:$AI$36,AG$59,$E67) -> - | AH67: =INDEX($B$3:$AI$36,$E67,AH$59)&"-"&INDEX($B$3:$AI$36,AH$59,$E67) -> - | AI67: =INDEX($B$3:$AI$36,$E67,AI$59)&"-"&INDEX($B$3:$AI$36,AI$59,$E67) -> - | AJ67: =INDEX($B$3:$AI$36,$E67,AJ$59)&"-"&INDEX($B$3:$AI$36,AJ$59,$E67) -> - | AK67: =INDEX($B$3:$AI$36,$E67,AK$59)&"-"&INDEX($B$3:$AI$36,AK$59,$E67) -> - | AL67: =INDEX($B$3:$AI$36,$E67,AL$59)&"-"&INDEX($B$3:$AI$36,AL$59,$E67) -> - | AM67: =INDEX($B$3:$AI$36,$E67,AM$59)&"-"&INDEX($B$3:$AI$36,AM$59,$E67) -> - | AN67: =INDEX($B$3:$AI$36,$E67,AN$59)&"-"&INDEX($B$3:$AI$36,AN$59,$E67) -> -
A68: 8 | B68: 8 | C68: 9 | D68: 11 | E68: 11 | F68: 311 | G68: =INDEX($B$3:$AI$36,$E68,G$59)&"-"&INDEX($B$3:$AI$36,G$59,$E68) -> 1-7 | H68: =INDEX($B$3:$AI$36,$E68,H$59)&"-"&INDEX($B$3:$AI$36,H$59,$E68) -> - | I68: =INDEX($B$3:$AI$36,$E68,I$59)&"-"&INDEX($B$3:$AI$36,I$59,$E68) -> 3-6 | J68: =INDEX($B$3:$AI$36,$E68,J$59)&"-"&INDEX($B$3:$AI$36,J$59,$E68) -> - | K68: =INDEX($B$3:$AI$36,$E68,K$59)&"-"&INDEX($B$3:$AI$36,K$59,$E68) -> 3-7 | L68: =INDEX($B$3:$AI$36,$E68,L$59)&"-"&INDEX($B$3:$AI$36,L$59,$E68) -> 3-5 | M68: =INDEX($B$3:$AI$36,$E68,M$59)&"-"&INDEX($B$3:$AI$36,M$59,$E68) -> 0-2 | N68: =INDEX($B$3:$AI$36,$E68,N$59)&"-"&INDEX($B$3:$AI$36,N$59,$E68) -> - | O68: =INDEX($B$3:$AI$36,$E68,O$59)&"-"&INDEX($B$3:$AI$36,O$59,$E68) -> 2-2 | P68: =INDEX($B$3:$AI$36,$E68,P$59)&"-"&INDEX($B$3:$AI$36,P$59,$E68) -> - | Q68: =INDEX($B$3:$AI$36,$E68,Q$59)&"-"&INDEX($B$3:$AI$36,Q$59,$E68) -> 6-0 | R68: =INDEX($B$3:$AI$36,$E68,R$59)&"-"&INDEX($B$3:$AI$36,R$59,$E68) -> 10-1 | S68: =INDEX($B$3:$AI$36,$E68,S$59)&"-"&INDEX($B$3:$AI$36,S$59,$E68) -> 5-3 | T68: =INDEX($B$3:$AI$36,$E68,T$59)&"-"&INDEX($B$3:$AI$36,T$59,$E68) -> 6-5 | U68: =INDEX($B$3:$AI$36,$E68,U$59)&"-"&INDEX($B$3:$AI$36,U$59,$E68) -> - | V68: =INDEX($B$3:$AI$36,$E68,V$59)&"-"&INDEX($B$3:$AI$36,V$59,$E68) -> - | W68: =INDEX($B$3:$AI$36,$E68,W$59)&"-"&INDEX($B$3:$AI$36,W$59,$E68) -> - | X68: =INDEX($B$3:$AI$36,$E68,X$59)&"-"&INDEX($B$3:$AI$36,X$59,$E68) -> - | Y68: =INDEX($B$3:$AI$36,$E68,Y$59)&"-"&INDEX($B$3:$AI$36,Y$59,$E68) -> - | Z68: =INDEX($B$3:$AI$36,$E68,Z$59)&"-"&INDEX($B$3:$AI$36,Z$59,$E68) -> - | AA68: =INDEX($B$3:$AI$36,$E68,AA$59)&"-"&INDEX($B$3:$AI$36,AA$59,$E68) -> - | AB68: =INDEX($B$3:$AI$36,$E68,AB$59)&"-"&INDEX($B$3:$AI$36,AB$59,$E68) -> - | AC68: =INDEX($B$3:$AI$36,$E68,AC$59)&"-"&INDEX($B$3:$AI$36,AC$59,$E68) -> - | AD68: =INDEX($B$3:$AI$36,$E68,AD$59)&"-"&INDEX($B$3:$AI$36,AD$59,$E68) -> - | AE68: =INDEX($B$3:$AI$36,$E68,AE$59)&"-"&INDEX($B$3:$AI$36,AE$59,$E68) -> - | AF68: =INDEX($B$3:$AI$36,$E68,AF$59)&"-"&INDEX($B$3:$AI$36,AF$59,$E68) -> - | AG68: =INDEX($B$3:$AI$36,$E68,AG$59)&"-"&INDEX($B$3:$AI$36,AG$59,$E68) -> - | AH68: =INDEX($B$3:$AI$36,$E68,AH$59)&"-"&INDEX($B$3:$AI$36,AH$59,$E68) -> - | AI68: =INDEX($B$3:$AI$36,$E68,AI$59)&"-"&INDEX($B$3:$AI$36,AI$59,$E68) -> - | AJ68: =INDEX($B$3:$AI$36,$E68,AJ$59)&"-"&INDEX($B$3:$AI$36,AJ$59,$E68) -> - | AK68: =INDEX($B$3:$AI$36,$E68,AK$59)&"-"&INDEX($B$3:$AI$36,AK$59,$E68) -> - | AL68: =INDEX($B$3:$AI$36,$E68,AL$59)&"-"&INDEX($B$3:$AI$36,AL$59,$E68) -> - | AM68: =INDEX($B$3:$AI$36,$E68,AM$59)&"-"&INDEX($B$3:$AI$36,AM$59,$E68) -> - | AN68: =INDEX($B$3:$AI$36,$E68,AN$59)&"-"&INDEX($B$3:$AI$36,AN$59,$E68) -> -
A69: 9 | B69: 9 | C69: 8 | D69: 8 | E69: 8 | F69: 308 | G69: =INDEX($B$3:$AI$36,$E69,G$59)&"-"&INDEX($B$3:$AI$36,G$59,$E69) -> 0-10 | H69: =INDEX($B$3:$AI$36,$E69,H$59)&"-"&INDEX($B$3:$AI$36,H$59,$E69) -> 1-4 | I69: =INDEX($B$3:$AI$36,$E69,I$59)&"-"&INDEX($B$3:$AI$36,I$59,$E69) -> 1-2 | J69: =INDEX($B$3:$AI$36,$E69,J$59)&"-"&INDEX($B$3:$AI$36,J$59,$E69) -> 2-4 | K69: =INDEX($B$3:$AI$36,$E69,K$59)&"-"&INDEX($B$3:$AI$36,K$59,$E69) -> 6-3 | L69: =INDEX($B$3:$AI$36,$E69,L$59)&"-"&INDEX($B$3:$AI$36,L$59,$E69) -> - | M69: =INDEX($B$3:$AI$36,$E69,M$59)&"-"&INDEX($B$3:$AI$36,M$59,$E69) -> - | N69: =INDEX($B$3:$AI$36,$E69,N$59)&"-"&INDEX($B$3:$AI$36,N$59,$E69) -> 2-2 | O69: =INDEX($B$3:$AI$36,$E69,O$59)&"-"&INDEX($B$3:$AI$36,O$59,$E69) -> - | P69: =INDEX($B$3:$AI$36,$E69,P$59)&"-"&INDEX($B$3:$AI$36,P$59,$E69) -> - | Q69: =INDEX($B$3:$AI$36,$E69,Q$59)&"-"&INDEX($B$3:$AI$36,Q$59,$E69) -> 3-2 | R69: =INDEX($B$3:$AI$36,$E69,R$59)&"-"&INDEX($B$3:$AI$36,R$59,$E69) -> 2-1 | S69: =INDEX($B$3:$AI$36,$E69,S$59)&"-"&INDEX($B$3:$AI$36,S$59,$E69) -> 3-2 | T69: =INDEX($B$3:$AI$36,$E69,T$59)&"-"&INDEX($B$3:$AI$36,T$59,$E69) -> - | U69: =INDEX($B$3:$AI$36,$E69,U$59)&"-"&INDEX($B$3:$AI$36,U$59,$E69) -> - | V69: =INDEX($B$3:$AI$36,$E69,V$59)&"-"&INDEX($B$3:$AI$36,V$59,$E69) -> - | W69: =INDEX($B$3:$AI$36,$E69,W$59)&"-"&INDEX($B$3:$AI$36,W$59,$E69) -> - | X69: =INDEX($B$3:$AI$36,$E69,X$59)&"-"&INDEX($B$3:$AI$36,X$59,$E69) -> - | Y69: =INDEX($B$3:$AI$36,$E69,Y$59)&"-"&INDEX($B$3:$AI$36,Y$59,$E69) -> - | Z69: =INDEX($B$3:$AI$36,$E69,Z$59)&"-"&INDEX($B$3:$AI$36,Z$59,$E69) -> - | AA69: =INDEX($B$3:$AI$36,$E69,AA$59)&"-"&INDEX($B$3:$AI$36,AA$59,$E69) -> - | AB69: =INDEX($B$3:$AI$36,$E69,AB$59)&"-"&INDEX($B$3:$AI$36,AB$59,$E69) -> - | AC69: =INDEX($B$3:$AI$36,$E69,AC$59)&"-"&INDEX($B$3:$AI$36,AC$59,$E69) -> - | AD69: =INDEX($B$3:$AI$36,$E69,AD$59)&"-"&INDEX($B$3:$AI$36,AD$59,$E69) -> - | AE69: =INDEX($B$3:$AI$36,$E69,AE$59)&"-"&INDEX($B$3:$AI$36,AE$59,$E69) -> - | AF69: =INDEX($B$3:$AI$36,$E69,AF$59)&"-"&INDEX($B$3:$AI$36,AF$59,$E69) -> - | AG69: =INDEX($B$3:$AI$36,$E69,AG$59)&"-"&INDEX($B$3:$AI$36,AG$59,$E69) -> - | AH69: =INDEX($B$3:$AI$36,$E69,AH$59)&"-"&INDEX($B$3:$AI$36,AH$59,$E69) -> - | AI69: =INDEX($B$3:$AI$36,$E69,AI$59)&"-"&INDEX($B$3:$AI$36,AI$59,$E69) -> - | AJ69: =INDEX($B$3:$AI$36,$E69,AJ$59)&"-"&INDEX($B$3:$AI$36,AJ$59,$E69) -> - | AK69: =INDEX($B$3:$AI$36,$E69,AK$59)&"-"&INDEX($B$3:$AI$36,AK$59,$E69) -> - | AL69: =INDEX($B$3:$AI$36,$E69,AL$59)&"-"&INDEX($B$3:$AI$36,AL$59,$E69) -> - | AM69: =INDEX($B$3:$AI$36,$E69,AM$59)&"-"&INDEX($B$3:$AI$36,AM$59,$E69) -> - | AN69: =INDEX($B$3:$AI$36,$E69,AN$59)&"-"&INDEX($B$3:$AI$36,AN$59,$E69) -> -
A70: 10 | B70: 10 | C70: 11 | D70: 15 | E70: 15 | F70: 315 | G70: =INDEX($B$3:$AI$36,$E70,G$59)&"-"&INDEX($B$3:$AI$36,G$59,$E70) -> - | H70: =INDEX($B$3:$AI$36,$E70,H$59)&"-"&INDEX($B$3:$AI$36,H$59,$E70) -> - | I70: =INDEX($B$3:$AI$36,$E70,I$59)&"-"&INDEX($B$3:$AI$36,I$59,$E70) -> - | J70: =INDEX($B$3:$AI$36,$E70,J$59)&"-"&INDEX($B$3:$AI$36,J$59,$E70) -> 2-3 | K70: =INDEX($B$3:$AI$36,$E70,K$59)&"-"&INDEX($B$3:$AI$36,K$59,$E70) -> 0-6 | L70: =INDEX($B$3:$AI$36,$E70,L$59)&"-"&INDEX($B$3:$AI$36,L$59,$E70) -> - | M70: =INDEX($B$3:$AI$36,$E70,M$59)&"-"&INDEX($B$3:$AI$36,M$59,$E70) -> - | N70: =INDEX($B$3:$AI$36,$E70,N$59)&"-"&INDEX($B$3:$AI$36,N$59,$E70) -> - | O70: =INDEX($B$3:$AI$36,$E70,O$59)&"-"&INDEX($B$3:$AI$36,O$59,$E70) -> - | P70: =INDEX($B$3:$AI$36,$E70,P$59)&"-"&INDEX($B$3:$AI$36,P$59,$E70) -> - | Q70: =INDEX($B$3:$AI$36,$E70,Q$59)&"-"&INDEX($B$3:$AI$36,Q$59,$E70) -> 1-4 | R70: =INDEX($B$3:$AI$36,$E70,R$59)&"-"&INDEX($B$3:$AI$36,R$59,$E70) -> - | S70: =INDEX($B$3:$AI$36,$E70,S$59)&"-"&INDEX($B$3:$AI$36,S$59,$E70) -> 6-0 | T70: =INDEX($B$3:$AI$36,$E70,T$59)&"-"&INDEX($B$3:$AI$36,T$59,$E70) -> 8-4 | U70: =INDEX($B$3:$AI$36,$E70,U$59)&"-"&INDEX($B$3:$AI$36,U$59,$E70) -> 9-3 | V70: =INDEX($B$3:$AI$36,$E70,V$59)&"-"&INDEX($B$3:$AI$36,V$59,$E70) -> - | W70: =INDEX($B$3:$AI$36,$E70,W$59)&"-"&INDEX($B$3:$AI$36,W$59,$E70) -> 10-1 | X70: =INDEX($B$3:$AI$36,$E70,X$59)&"-"&INDEX($B$3:$AI$36,X$59,$E70) -> - | Y70: =INDEX($B$3:$AI$36,$E70,Y$59)&"-"&INDEX($B$3:$AI$36,Y$59,$E70) -> - | Z70: =INDEX($B$3:$AI$36,$E70,Z$59)&"-"&INDEX($B$3:$AI$36,Z$59,$E70) -> - | AA70: =INDEX($B$3:$AI$36,$E70,AA$59)&"-"&INDEX($B$3:$AI$36,AA$59,$E70) -> 6-0 | AB70: =INDEX($B$3:$AI$36,$E70,AB$59)&"-"&INDEX($B$3:$AI$36,AB$59,$E70) -> - | AC70: =INDEX($B$3:$AI$36,$E70,AC$59)&"-"&INDEX($B$3:$AI$36,AC$59,$E70) -> - | AD70: =INDEX($B$3:$AI$36,$E70,AD$59)&"-"&INDEX($B$3:$AI$36,AD$59,$E70) -> - | AE70: =INDEX($B$3:$AI$36,$E70,AE$59)&"-"&INDEX($B$3:$AI$36,AE$59,$E70) -> - | AF70: =INDEX($B$3:$AI$36,$E70,AF$59)&"-"&INDEX($B$3:$AI$36,AF$59,$E70) -> - | AG70: =INDEX($B$3:$AI$36,$E70,AG$59)&"-"&INDEX($B$3:$AI$36,AG$59,$E70) -> - | AH70: =INDEX($B$3:$AI$36,$E70,AH$59)&"-"&INDEX($B$3:$AI$36,AH$59,$E70) -> - | AI70: =INDEX($B$3:$AI$36,$E70,AI$59)&"-"&INDEX($B$3:$AI$36,AI$59,$E70) -> - | AJ70: =INDEX($B$3:$AI$36,$E70,AJ$59)&"-"&INDEX($B$3:$AI$36,AJ$59,$E70) -> - | AK70: =INDEX($B$3:$AI$36,$E70,AK$59)&"-"&INDEX($B$3:$AI$36,AK$59,$E70) -> - | AL70: =INDEX($B$3:$AI$36,$E70,AL$59)&"-"&INDEX($B$3:$AI$36,AL$59,$E70) -> - | AM70: =INDEX($B$3:$AI$36,$E70,AM$59)&"-"&INDEX($B$3:$AI$36,AM$59,$E70) -> - | AN70: =INDEX($B$3:$AI$36,$E70,AN$59)&"-"&INDEX($B$3:$AI$36,AN$59,$E70) -> -
A71: 11 | B71: 11 | C71: 10 | D71: 10 | E71: 10 | F71: 310 | G71: =INDEX($B$3:$AI$36,$E71,G$59)&"-"&INDEX($B$3:$AI$36,G$59,$E71) -> - | H71: =INDEX($B$3:$AI$36,$E71,H$59)&"-"&INDEX($B$3:$AI$36,H$59,$E71) -> - | I71: =INDEX($B$3:$AI$36,$E71,I$59)&"-"&INDEX($B$3:$AI$36,I$59,$E71) -> 1-8 | J71: =INDEX($B$3:$AI$36,$E71,J$59)&"-"&INDEX($B$3:$AI$36,J$59,$E71) -> 4-8 | K71: =INDEX($B$3:$AI$36,$E71,K$59)&"-"&INDEX($B$3:$AI$36,K$59,$E71) -> - | L71: =INDEX($B$3:$AI$36,$E71,L$59)&"-"&INDEX($B$3:$AI$36,L$59,$E71) -> - | M71: =INDEX($B$3:$AI$36,$E71,M$59)&"-"&INDEX($B$3:$AI$36,M$59,$E71) -> 5-7 | N71: =INDEX($B$3:$AI$36,$E71,N$59)&"-"&INDEX($B$3:$AI$36,N$59,$E71) -> 0-6 | O71: =INDEX($B$3:$AI$36,$E71,O$59)&"-"&INDEX($B$3:$AI$36,O$59,$E71) -> 2-3 | P71: =INDEX($B$3:$AI$36,$E71,P$59)&"-"&INDEX($B$3:$AI$36,P$59,$E71) -> 4-1 | Q71: =INDEX($B$3:$AI$36,$E71,Q$59)&"-"&INDEX($B$3:$AI$36,Q$59,$E71) -> - | R71: =INDEX($B$3:$AI$36,$E71,R$59)&"-"&INDEX($B$3:$AI$36,R$59,$E71) -> 2-5 | S71: =INDEX($B$3:$AI$36,$E71,S$59)&"-"&INDEX($B$3:$AI$36,S$59,$E71) -> 3-2 | T71: =INDEX($B$3:$AI$36,$E71,T$59)&"-"&INDEX($B$3:$AI$36,T$59,$E71) -> - | U71: =INDEX($B$3:$AI$36,$E71,U$59)&"-"&INDEX($B$3:$AI$36,U$59,$E71) -> 7-1 | V71: =INDEX($B$3:$AI$36,$E71,V$59)&"-"&INDEX($B$3:$AI$36,V$59,$E71) -> 12-2 | W71: =INDEX($B$3:$AI$36,$E71,W$59)&"-"&INDEX($B$3:$AI$36,W$59,$E71) -> - | X71: =INDEX($B$3:$AI$36,$E71,X$59)&"-"&INDEX($B$3:$AI$36,X$59,$E71) -> - | Y71: =INDEX($B$3:$AI$36,$E71,Y$59)&"-"&INDEX($B$3:$AI$36,Y$59,$E71) -> - | Z71: =INDEX($B$3:$AI$36,$E71,Z$59)&"-"&INDEX($B$3:$AI$36,Z$59,$E71) -> - | AA71: =INDEX($B$3:$AI$36,$E71,AA$59)&"-"&INDEX($B$3:$AI$36,AA$59,$E71) -> - | AB71: =INDEX($B$3:$AI$36,$E71,AB$59)&"-"&INDEX($B$3:$AI$36,AB$59,$E71) -> - | AC71: =INDEX($B$3:$AI$36,$E71,AC$59)&"-"&INDEX($B$3:$AI$36,AC$59,$E71) -> - | AD71: =INDEX($B$3:$AI$36,$E71,AD$59)&"-"&INDEX($B$3:$AI$36,AD$59,$E71) -> - | AE71: =INDEX($B$3:$AI$36,$E71,AE$59)&"-"&INDEX($B$3:$AI$36,AE$59,$E71) -> - | AF71: =INDEX($B$3:$AI$36,$E71,AF$59)&"-"&INDEX($B$3:$AI$36,AF$59,$E71) -> - | AG71: =INDEX($B$3:$AI$36,$E71,AG$59)&"-"&INDEX($B$3:$AI$36,AG$59,$E71) -> - | AH71: =INDEX($B$3:$AI$36,$E71,AH$59)&"-"&INDEX($B$3:$AI$36,AH$59,$E71) -> - | AI71: =INDEX($B$3:$AI$36,$E71,AI$59)&"-"&INDEX($B$3:$AI$36,AI$59,$E71) -> - | AJ71: =INDEX($B$3:$AI$36,$E71,AJ$59)&"-"&INDEX($B$3:$AI$36,AJ$59,$E71) -> - | AK71: =INDEX($B$3:$AI$36,$E71,AK$59)&"-"&INDEX($B$3:$AI$36,AK$59,$E71) -> - | AL71: =INDEX($B$3:$AI$36,$E71,AL$59)&"-"&INDEX($B$3:$AI$36,AL$59,$E71) -> - | AM71: =INDEX($B$3:$AI$36,$E71,AM$59)&"-"&INDEX($B$3:$AI$36,AM$59,$E71) -> - | AN71: =INDEX($B$3:$AI$36,$E71,AN$59)&"-"&INDEX($B$3:$AI$36,AN$59,$E71) -> -
A72: 12 | B72: 12 | C72: 12 | D72: 7 | E72: 7 | F72: 307 | G72: =INDEX($B$3:$AI$36,$E72,G$59)&"-"&INDEX($B$3:$AI$36,G$59,$E72) -> - | H72: =INDEX($B$3:$AI$36,$E72,H$59)&"-"&INDEX($B$3:$AI$36,H$59,$E72) -> 1-6 | I72: =INDEX($B$3:$AI$36,$E72,I$59)&"-"&INDEX($B$3:$AI$36,I$59,$E72) -> 1-9 | J72: =INDEX($B$3:$AI$36,$E72,J$59)&"-"&INDEX($B$3:$AI$36,J$59,$E72) -> 2-6 | K72: =INDEX($B$3:$AI$36,$E72,K$59)&"-"&INDEX($B$3:$AI$36,K$59,$E72) -> - | L72: =INDEX($B$3:$AI$36,$E72,L$59)&"-"&INDEX($B$3:$AI$36,L$59,$E72) -> 3-4 | M72: =INDEX($B$3:$AI$36,$E72,M$59)&"-"&INDEX($B$3:$AI$36,M$59,$E72) -> 3-6 | N72: =INDEX($B$3:$AI$36,$E72,N$59)&"-"&INDEX($B$3:$AI$36,N$59,$E72) -> 1-10 | O72: =INDEX($B$3:$AI$36,$E72,O$59)&"-"&INDEX($B$3:$AI$36,O$59,$E72) -> 1-2 | P72: =INDEX($B$3:$AI$36,$E72,P$59)&"-"&INDEX($B$3:$AI$36,P$59,$E72) -> - | Q72: =INDEX($B$3:$AI$36,$E72,Q$59)&"-"&INDEX($B$3:$AI$36,Q$59,$E72) -> 5-2 | R72: =INDEX($B$3:$AI$36,$E72,R$59)&"-"&INDEX($B$3:$AI$36,R$59,$E72) -> - | S72: =INDEX($B$3:$AI$36,$E72,S$59)&"-"&INDEX($B$3:$AI$36,S$59,$E72) -> 7-4 | T72: =INDEX($B$3:$AI$36,$E72,T$59)&"-"&INDEX($B$3:$AI$36,T$59,$E72) -> - | U72: =INDEX($B$3:$AI$36,$E72,U$59)&"-"&INDEX($B$3:$AI$36,U$59,$E72) -> - | V72: =INDEX($B$3:$AI$36,$E72,V$59)&"-"&INDEX($B$3:$AI$36,V$59,$E72) -> - | W72: =INDEX($B$3:$AI$36,$E72,W$59)&"-"&INDEX($B$3:$AI$36,W$59,$E72) -> - | X72: =INDEX($B$3:$AI$36,$E72,X$59)&"-"&INDEX($B$3:$AI$36,X$59,$E72) -> 6-3 | Y72: =INDEX($B$3:$AI$36,$E72,Y$59)&"-"&INDEX($B$3:$AI$36,Y$59,$E72) -> - | Z72: =INDEX($B$3:$AI$36,$E72,Z$59)&"-"&INDEX($B$3:$AI$36,Z$59,$E72) -> - | AA72: =INDEX($B$3:$AI$36,$E72,AA$59)&"-"&INDEX($B$3:$AI$36,AA$59,$E72) -> - | AB72: =INDEX($B$3:$AI$36,$E72,AB$59)&"-"&INDEX($B$3:$AI$36,AB$59,$E72) -> - | AC72: =INDEX($B$3:$AI$36,$E72,AC$59)&"-"&INDEX($B$3:$AI$36,AC$59,$E72) -> - | AD72: =INDEX($B$3:$AI$36,$E72,AD$59)&"-"&INDEX($B$3:$AI$36,AD$59,$E72) -> - | AE72: =INDEX($B$3:$AI$36,$E72,AE$59)&"-"&INDEX($B$3:$AI$36,AE$59,$E72) -> - | AF72: =INDEX($B$3:$AI$36,$E72,AF$59)&"-"&INDEX($B$3:$AI$36,AF$59,$E72) -> - | AG72: =INDEX($B$3:$AI$36,$E72,AG$59)&"-"&INDEX($B$3:$AI$36,AG$59,$E72) -> - | AH72: =INDEX($B$3:$AI$36,$E72,AH$59)&"-"&INDEX($B$3:$AI$36,AH$59,$E72) -> - | AI72: =INDEX($B$3:$AI$36,$E72,AI$59)&"-"&INDEX($B$3:$AI$36,AI$59,$E72) -> - | AJ72: =INDEX($B$3:$AI$36,$E72,AJ$59)&"-"&INDEX($B$3:$AI$36,AJ$59,$E72) -> - | AK72: =INDEX($B$3:$AI$36,$E72,AK$59)&"-"&INDEX($B$3:$AI$36,AK$59,$E72) -> - | AL72: =INDEX($B$3:$AI$36,$E72,AL$59)&"-"&INDEX($B$3:$AI$36,AL$59,$E72) -> - | AM72: =INDEX($B$3:$AI$36,$E72,AM$59)&"-"&INDEX($B$3:$AI$36,AM$59,$E72) -> - | AN72: =INDEX($B$3:$AI$36,$E72,AN$59)&"-"&INDEX($B$3:$AI$36,AN$59,$E72) -> -
A73: 13 | B73: 13 | C73: 13 | D73: 9 | E73: 9 | F73: 309 | G73: =INDEX($B$3:$AI$36,$E73,G$59)&"-"&INDEX($B$3:$AI$36,G$59,$E73) -> - | H73: =INDEX($B$3:$AI$36,$E73,H$59)&"-"&INDEX($B$3:$AI$36,H$59,$E73) -> - | I73: =INDEX($B$3:$AI$36,$E73,I$59)&"-"&INDEX($B$3:$AI$36,I$59,$E73) -> 1-7 | J73: =INDEX($B$3:$AI$36,$E73,J$59)&"-"&INDEX($B$3:$AI$36,J$59,$E73) -> - | K73: =INDEX($B$3:$AI$36,$E73,K$59)&"-"&INDEX($B$3:$AI$36,K$59,$E73) -> 1-6 | L73: =INDEX($B$3:$AI$36,$E73,L$59)&"-"&INDEX($B$3:$AI$36,L$59,$E73) -> - | M73: =INDEX($B$3:$AI$36,$E73,M$59)&"-"&INDEX($B$3:$AI$36,M$59,$E73) -> 1-3 | N73: =INDEX($B$3:$AI$36,$E73,N$59)&"-"&INDEX($B$3:$AI$36,N$59,$E73) -> 3-5 | O73: =INDEX($B$3:$AI$36,$E73,O$59)&"-"&INDEX($B$3:$AI$36,O$59,$E73) -> 2-3 | P73: =INDEX($B$3:$AI$36,$E73,P$59)&"-"&INDEX($B$3:$AI$36,P$59,$E73) -> 0-6 | Q73: =INDEX($B$3:$AI$36,$E73,Q$59)&"-"&INDEX($B$3:$AI$36,Q$59,$E73) -> 2-3 | R73: =INDEX($B$3:$AI$36,$E73,R$59)&"-"&INDEX($B$3:$AI$36,R$59,$E73) -> 4-7 | S73: =INDEX($B$3:$AI$36,$E73,S$59)&"-"&INDEX($B$3:$AI$36,S$59,$E73) -> - | T73: =INDEX($B$3:$AI$36,$E73,T$59)&"-"&INDEX($B$3:$AI$36,T$59,$E73) -> - | U73: =INDEX($B$3:$AI$36,$E73,U$59)&"-"&INDEX($B$3:$AI$36,U$59,$E73) -> - | V73: =INDEX($B$3:$AI$36,$E73,V$59)&"-"&INDEX($B$3:$AI$36,V$59,$E73) -> - | W73: =INDEX($B$3:$AI$36,$E73,W$59)&"-"&INDEX($B$3:$AI$36,W$59,$E73) -> - | X73: =INDEX($B$3:$AI$36,$E73,X$59)&"-"&INDEX($B$3:$AI$36,X$59,$E73) -> 7-0 | Y73: =INDEX($B$3:$AI$36,$E73,Y$59)&"-"&INDEX($B$3:$AI$36,Y$59,$E73) -> - | Z73: =INDEX($B$3:$AI$36,$E73,Z$59)&"-"&INDEX($B$3:$AI$36,Z$59,$E73) -> - | AA73: =INDEX($B$3:$AI$36,$E73,AA$59)&"-"&INDEX($B$3:$AI$36,AA$59,$E73) -> - | AB73: =INDEX($B$3:$AI$36,$E73,AB$59)&"-"&INDEX($B$3:$AI$36,AB$59,$E73) -> - | AC73: =INDEX($B$3:$AI$36,$E73,AC$59)&"-"&INDEX($B$3:$AI$36,AC$59,$E73) -> - | AD73: =INDEX($B$3:$AI$36,$E73,AD$59)&"-"&INDEX($B$3:$AI$36,AD$59,$E73) -> - | AE73: =INDEX($B$3:$AI$36,$E73,AE$59)&"-"&INDEX($B$3:$AI$36,AE$59,$E73) -> - | AF73: =INDEX($B$3:$AI$36,$E73,AF$59)&"-"&INDEX($B$3:$AI$36,AF$59,$E73) -> - | AG73: =INDEX($B$3:$AI$36,$E73,AG$59)&"-"&INDEX($B$3:$AI$36,AG$59,$E73) -> - | AH73: =INDEX($B$3:$AI$36,$E73,AH$59)&"-"&INDEX($B$3:$AI$36,AH$59,$E73) -> - | AI73: =INDEX($B$3:$AI$36,$E73,AI$59)&"-"&INDEX($B$3:$AI$36,AI$59,$E73) -> - | AJ73: =INDEX($B$3:$AI$36,$E73,AJ$59)&"-"&INDEX($B$3:$AI$36,AJ$59,$E73) -> - | AK73: =INDEX($B$3:$AI$36,$E73,AK$59)&"-"&INDEX($B$3:$AI$36,AK$59,$E73) -> - | AL73: =INDEX($B$3:$AI$36,$E73,AL$59)&"-"&INDEX($B$3:$AI$36,AL$59,$E73) -> - | AM73: =INDEX($B$3:$AI$36,$E73,AM$59)&"-"&INDEX($B$3:$AI$36,AM$59,$E73) -> - | AN73: =INDEX($B$3:$AI$36,$E73,AN$59)&"-"&INDEX($B$3:$AI$36,AN$59,$E73) -> -
A74: 14 | B74: 14 | C74: 14 | D74: 18 | E74: 18 | F74: 318 | G74: =INDEX($B$3:$AI$36,$E74,G$59)&"-"&INDEX($B$3:$AI$36,G$59,$E74) -> - | H74: =INDEX($B$3:$AI$36,$E74,H$59)&"-"&INDEX($B$3:$AI$36,H$59,$E74) -> - | I74: =INDEX($B$3:$AI$36,$E74,I$59)&"-"&INDEX($B$3:$AI$36,I$59,$E74) -> - | J74: =INDEX($B$3:$AI$36,$E74,J$59)&"-"&INDEX($B$3:$AI$36,J$59,$E74) -> - | K74: =INDEX($B$3:$AI$36,$E74,K$59)&"-"&INDEX($B$3:$AI$36,K$59,$E74) -> - | L74: =INDEX($B$3:$AI$36,$E74,L$59)&"-"&INDEX($B$3:$AI$36,L$59,$E74) -> - | M74: =INDEX($B$3:$AI$36,$E74,M$59)&"-"&INDEX($B$3:$AI$36,M$59,$E74) -> - | N74: =INDEX($B$3:$AI$36,$E74,N$59)&"-"&INDEX($B$3:$AI$36,N$59,$E74) -> 5-6 | O74: =INDEX($B$3:$AI$36,$E74,O$59)&"-"&INDEX($B$3:$AI$36,O$59,$E74) -> - | P74: =INDEX($B$3:$AI$36,$E74,P$59)&"-"&INDEX($B$3:$AI$36,P$59,$E74) -> 4-8 | Q74: =INDEX($B$3:$AI$36,$E74,Q$59)&"-"&INDEX($B$3:$AI$36,Q$59,$E74) -> - | R74: =INDEX($B$3:$AI$36,$E74,R$59)&"-"&INDEX($B$3:$AI$36,R$59,$E74) -> - | S74: =INDEX($B$3:$AI$36,$E74,S$59)&"-"&INDEX($B$3:$AI$36,S$59,$E74) -> - | T74: =INDEX($B$3:$AI$36,$E74,T$59)&"-"&INDEX($B$3:$AI$36,T$59,$E74) -> - | U74: =INDEX($B$3:$AI$36,$E74,U$59)&"-"&INDEX($B$3:$AI$36,U$59,$E74) -> 1-3 | V74: =INDEX($B$3:$AI$36,$E74,V$59)&"-"&INDEX($B$3:$AI$36,V$59,$E74) -> 8-3 | W74: =INDEX($B$3:$AI$36,$E74,W$59)&"-"&INDEX($B$3:$AI$36,W$59,$E74) -> 7-2 | X74: =INDEX($B$3:$AI$36,$E74,X$59)&"-"&INDEX($B$3:$AI$36,X$59,$E74) -> 6-3 | Y74: =INDEX($B$3:$AI$36,$E74,Y$59)&"-"&INDEX($B$3:$AI$36,Y$59,$E74) -> - | Z74: =INDEX($B$3:$AI$36,$E74,Z$59)&"-"&INDEX($B$3:$AI$36,Z$59,$E74) -> 5-1 | AA74: =INDEX($B$3:$AI$36,$E74,AA$59)&"-"&INDEX($B$3:$AI$36,AA$59,$E74) -> 10-0 | AB74: =INDEX($B$3:$AI$36,$E74,AB$59)&"-"&INDEX($B$3:$AI$36,AB$59,$E74) -> - | AC74: =INDEX($B$3:$AI$36,$E74,AC$59)&"-"&INDEX($B$3:$AI$36,AC$59,$E74) -> - | AD74: =INDEX($B$3:$AI$36,$E74,AD$59)&"-"&INDEX($B$3:$AI$36,AD$59,$E74) -> - | AE74: =INDEX($B$3:$AI$36,$E74,AE$59)&"-"&INDEX($B$3:$AI$36,AE$59,$E74) -> - | AF74: =INDEX($B$3:$AI$36,$E74,AF$59)&"-"&INDEX($B$3:$AI$36,AF$59,$E74) -> - | AG74: =INDEX($B$3:$AI$36,$E74,AG$59)&"-"&INDEX($B$3:$AI$36,AG$59,$E74) -> - | AH74: =INDEX($B$3:$AI$36,$E74,AH$59)&"-"&INDEX($B$3:$AI$36,AH$59,$E74) -> - | AI74: =INDEX($B$3:$AI$36,$E74,AI$59)&"-"&INDEX($B$3:$AI$36,AI$59,$E74) -> - | AJ74: =INDEX($B$3:$AI$36,$E74,AJ$59)&"-"&INDEX($B$3:$AI$36,AJ$59,$E74) -> - | AK74: =INDEX($B$3:$AI$36,$E74,AK$59)&"-"&INDEX($B$3:$AI$36,AK$59,$E74) -> - | AL74: =INDEX($B$3:$AI$36,$E74,AL$59)&"-"&INDEX($B$3:$AI$36,AL$59,$E74) -> - | AM74: =INDEX($B$3:$AI$36,$E74,AM$59)&"-"&INDEX($B$3:$AI$36,AM$59,$E74) -> 12-0 | AN74: =INDEX($B$3:$AI$36,$E74,AN$59)&"-"&INDEX($B$3:$AI$36,AN$59,$E74) -> -
A75: 15 | B75: 15 | C75: 15 | D75: 13 | E75: 13 | F75: 313 | G75: =INDEX($B$3:$AI$36,$E75,G$59)&"-"&INDEX($B$3:$AI$36,G$59,$E75) -> - | H75: =INDEX($B$3:$AI$36,$E75,H$59)&"-"&INDEX($B$3:$AI$36,H$59,$E75) -> - | I75: =INDEX($B$3:$AI$36,$E75,I$59)&"-"&INDEX($B$3:$AI$36,I$59,$E75) -> - | J75: =INDEX($B$3:$AI$36,$E75,J$59)&"-"&INDEX($B$3:$AI$36,J$59,$E75) -> - | K75: =INDEX($B$3:$AI$36,$E75,K$59)&"-"&INDEX($B$3:$AI$36,K$59,$E75) -> - | L75: =INDEX($B$3:$AI$36,$E75,L$59)&"-"&INDEX($B$3:$AI$36,L$59,$E75) -> - | M75: =INDEX($B$3:$AI$36,$E75,M$59)&"-"&INDEX($B$3:$AI$36,M$59,$E75) -> 1-5 | N75: =INDEX($B$3:$AI$36,$E75,N$59)&"-"&INDEX($B$3:$AI$36,N$59,$E75) -> - | O75: =INDEX($B$3:$AI$36,$E75,O$59)&"-"&INDEX($B$3:$AI$36,O$59,$E75) -> - | P75: =INDEX($B$3:$AI$36,$E75,P$59)&"-"&INDEX($B$3:$AI$36,P$59,$E75) -> 3-9 | Q75: =INDEX($B$3:$AI$36,$E75,Q$59)&"-"&INDEX($B$3:$AI$36,Q$59,$E75) -> 1-7 | R75: =INDEX($B$3:$AI$36,$E75,R$59)&"-"&INDEX($B$3:$AI$36,R$59,$E75) -> - | S75: =INDEX($B$3:$AI$36,$E75,S$59)&"-"&INDEX($B$3:$AI$36,S$59,$E75) -> - | T75: =INDEX($B$3:$AI$36,$E75,T$59)&"-"&INDEX($B$3:$AI$36,T$59,$E75) -> 3-1 | U75: =INDEX($B$3:$AI$36,$E75,U$59)&"-"&INDEX($B$3:$AI$36,U$59,$E75) -> - | V75: =INDEX($B$3:$AI$36,$E75,V$59)&"-"&INDEX($B$3:$AI$36,V$59,$E75) -> 7-6 | W75: =INDEX($B$3:$AI$36,$E75,W$59)&"-"&INDEX($B$3:$AI$36,W$59,$E75) -> 7-0 | X75: =INDEX($B$3:$AI$36,$E75,X$59)&"-"&INDEX($B$3:$AI$36,X$59,$E75) -> 3-2 | Y75: =INDEX($B$3:$AI$36,$E75,Y$59)&"-"&INDEX($B$3:$AI$36,Y$59,$E75) -> - | Z75: =INDEX($B$3:$AI$36,$E75,Z$59)&"-"&INDEX($B$3:$AI$36,Z$59,$E75) -> 7-3 | AA75: =INDEX($B$3:$AI$36,$E75,AA$59)&"-"&INDEX($B$3:$AI$36,AA$59,$E75) -> 4-0 | AB75: =INDEX($B$3:$AI$36,$E75,AB$59)&"-"&INDEX($B$3:$AI$36,AB$59,$E75) -> - | AC75: =INDEX($B$3:$AI$36,$E75,AC$59)&"-"&INDEX($B$3:$AI$36,AC$59,$E75) -> - | AD75: =INDEX($B$3:$AI$36,$E75,AD$59)&"-"&INDEX($B$3:$AI$36,AD$59,$E75) -> - | AE75: =INDEX($B$3:$AI$36,$E75,AE$59)&"-"&INDEX($B$3:$AI$36,AE$59,$E75) -> - | AF75: =INDEX($B$3:$AI$36,$E75,AF$59)&"-"&INDEX($B$3:$AI$36,AF$59,$E75) -> - | AG75: =INDEX($B$3:$AI$36,$E75,AG$59)&"-"&INDEX($B$3:$AI$36,AG$59,$E75) -> - | AH75: =INDEX($B$3:$AI$36,$E75,AH$59)&"-"&INDEX($B$3:$AI$36,AH$59,$E75) -> - | AI75: =INDEX($B$3:$AI$36,$E75,AI$59)&"-"&INDEX($B$3:$AI$36,AI$59,$E75) -> - | AJ75: =INDEX($B$3:$AI$36,$E75,AJ$59)&"-"&INDEX($B$3:$AI$36,AJ$59,$E75) -> - | AK75: =INDEX($B$3:$AI$36,$E75,AK$59)&"-"&INDEX($B$3:$AI$36,AK$59,$E75) -> - | AL75: =INDEX($B$3:$AI$36,$E75,AL$59)&"-"&INDEX($B$3:$AI$36,AL$59,$E75) -> - | AM75: =INDEX($B$3:$AI$36,$E75,AM$59)&"-"&INDEX($B$3:$AI$36,AM$59,$E75) -> - | AN75: =INDEX($B$3:$AI$36,$E75,AN$59)&"-"&INDEX($B$3:$AI$36,AN$59,$E75) -> -
A76: 16 | B76: 16 | C76: 16 | D76: 19 | E76: 19 | F76: 319 | G76: =INDEX($B$3:$AI$36,$E76,G$59)&"-"&INDEX($B$3:$AI$36,G$59,$E76) -> - | H76: =INDEX($B$3:$AI$36,$E76,H$59)&"-"&INDEX($B$3:$AI$36,H$59,$E76) -> - | I76: =INDEX($B$3:$AI$36,$E76,I$59)&"-"&INDEX($B$3:$AI$36,I$59,$E76) -> - | J76: =INDEX($B$3:$AI$36,$E76,J$59)&"-"&INDEX($B$3:$AI$36,J$59,$E76) -> - | K76: =INDEX($B$3:$AI$36,$E76,K$59)&"-"&INDEX($B$3:$AI$36,K$59,$E76) -> - | L76: =INDEX($B$3:$AI$36,$E76,L$59)&"-"&INDEX($B$3:$AI$36,L$59,$E76) -> - | M76: =INDEX($B$3:$AI$36,$E76,M$59)&"-"&INDEX($B$3:$AI$36,M$59,$E76) -> - | N76: =INDEX($B$3:$AI$36,$E76,N$59)&"-"&INDEX($B$3:$AI$36,N$59,$E76) -> - | O76: =INDEX($B$3:$AI$36,$E76,O$59)&"-"&INDEX($B$3:$AI$36,O$59,$E76) -> - | P76: =INDEX($B$3:$AI$36,$E76,P$59)&"-"&INDEX($B$3:$AI$36,P$59,$E76) -> - | Q76: =INDEX($B$3:$AI$36,$E76,Q$59)&"-"&INDEX($B$3:$AI$36,Q$59,$E76) -> 2-12 | R76: =INDEX($B$3:$AI$36,$E76,R$59)&"-"&INDEX($B$3:$AI$36,R$59,$E76) -> - | S76: =INDEX($B$3:$AI$36,$E76,S$59)&"-"&INDEX($B$3:$AI$36,S$59,$E76) -> - | T76: =INDEX($B$3:$AI$36,$E76,T$59)&"-"&INDEX($B$3:$AI$36,T$59,$E76) -> 3-8 | U76: =INDEX($B$3:$AI$36,$E76,U$59)&"-"&INDEX($B$3:$AI$36,U$59,$E76) -> 6-7 | V76: =INDEX($B$3:$AI$36,$E76,V$59)&"-"&INDEX($B$3:$AI$36,V$59,$E76) -> - | W76: =INDEX($B$3:$AI$36,$E76,W$59)&"-"&INDEX($B$3:$AI$36,W$59,$E76) -> 6-4 | X76: =INDEX($B$3:$AI$36,$E76,X$59)&"-"&INDEX($B$3:$AI$36,X$59,$E76) -> - | Y76: =INDEX($B$3:$AI$36,$E76,Y$59)&"-"&INDEX($B$3:$AI$36,Y$59,$E76) -> 10-8 | Z76: =INDEX($B$3:$AI$36,$E76,Z$59)&"-"&INDEX($B$3:$AI$36,Z$59,$E76) -> 10-3 | AA76: =INDEX($B$3:$AI$36,$E76,AA$59)&"-"&INDEX($B$3:$AI$36,AA$59,$E76) -> 10-2 | AB76: =INDEX($B$3:$AI$36,$E76,AB$59)&"-"&INDEX($B$3:$AI$36,AB$59,$E76) -> - | AC76: =INDEX($B$3:$AI$36,$E76,AC$59)&"-"&INDEX($B$3:$AI$36,AC$59,$E76) -> - | AD76: =INDEX($B$3:$AI$36,$E76,AD$59)&"-"&INDEX($B$3:$AI$36,AD$59,$E76) -> - | AE76: =INDEX($B$3:$AI$36,$E76,AE$59)&"-"&INDEX($B$3:$AI$36,AE$59,$E76) -> - | AF76: =INDEX($B$3:$AI$36,$E76,AF$59)&"-"&INDEX($B$3:$AI$36,AF$59,$E76) -> 11-1 | AG76: =INDEX($B$3:$AI$36,$E76,AG$59)&"-"&INDEX($B$3:$AI$36,AG$59,$E76) -> 8-3 | AH76: =INDEX($B$3:$AI$36,$E76,AH$59)&"-"&INDEX($B$3:$AI$36,AH$59,$E76) -> - | AI76: =INDEX($B$3:$AI$36,$E76,AI$59)&"-"&INDEX($B$3:$AI$36,AI$59,$E76) -> - | AJ76: =INDEX($B$3:$AI$36,$E76,AJ$59)&"-"&INDEX($B$3:$AI$36,AJ$59,$E76) -> - | AK76: =INDEX($B$3:$AI$36,$E76,AK$59)&"-"&INDEX($B$3:$AI$36,AK$59,$E76) -> - | AL76: =INDEX($B$3:$AI$36,$E76,AL$59)&"-"&INDEX($B$3:$AI$36,AL$59,$E76) -> - | AM76: =INDEX($B$3:$AI$36,$E76,AM$59)&"-"&INDEX($B$3:$AI$36,AM$59,$E76) -> - | AN76: =INDEX($B$3:$AI$36,$E76,AN$59)&"-"&INDEX($B$3:$AI$36,AN$59,$E76) -> -
A77: 17 | B77: 17 | C77: 17 | D77: 17 | E77: 17 | F77: 317 | G77: =INDEX($B$3:$AI$36,$E77,G$59)&"-"&INDEX($B$3:$AI$36,G$59,$E77) -> - | H77: =INDEX($B$3:$AI$36,$E77,H$59)&"-"&INDEX($B$3:$AI$36,H$59,$E77) -> - | I77: =INDEX($B$3:$AI$36,$E77,I$59)&"-"&INDEX($B$3:$AI$36,I$59,$E77) -> - | J77: =INDEX($B$3:$AI$36,$E77,J$59)&"-"&INDEX($B$3:$AI$36,J$59,$E77) -> - | K77: =INDEX($B$3:$AI$36,$E77,K$59)&"-"&INDEX($B$3:$AI$36,K$59,$E77) -> - | L77: =INDEX($B$3:$AI$36,$E77,L$59)&"-"&INDEX($B$3:$AI$36,L$59,$E77) -> - | M77: =INDEX($B$3:$AI$36,$E77,M$59)&"-"&INDEX($B$3:$AI$36,M$59,$E77) -> 3-9 | N77: =INDEX($B$3:$AI$36,$E77,N$59)&"-"&INDEX($B$3:$AI$36,N$59,$E77) -> - | O77: =INDEX($B$3:$AI$36,$E77,O$59)&"-"&INDEX($B$3:$AI$36,O$59,$E77) -> - | P77: =INDEX($B$3:$AI$36,$E77,P$59)&"-"&INDEX($B$3:$AI$36,P$59,$E77) -> 1-10 | Q77: =INDEX($B$3:$AI$36,$E77,Q$59)&"-"&INDEX($B$3:$AI$36,Q$59,$E77) -> - | R77: =INDEX($B$3:$AI$36,$E77,R$59)&"-"&INDEX($B$3:$AI$36,R$59,$E77) -> - | S77: =INDEX($B$3:$AI$36,$E77,S$59)&"-"&INDEX($B$3:$AI$36,S$59,$E77) -> - | T77: =INDEX($B$3:$AI$36,$E77,T$59)&"-"&INDEX($B$3:$AI$36,T$59,$E77) -> 2-7 | U77: =INDEX($B$3:$AI$36,$E77,U$59)&"-"&INDEX($B$3:$AI$36,U$59,$E77) -> 0-7 | V77: =INDEX($B$3:$AI$36,$E77,V$59)&"-"&INDEX($B$3:$AI$36,V$59,$E77) -> 4-6 | W77: =INDEX($B$3:$AI$36,$E77,W$59)&"-"&INDEX($B$3:$AI$36,W$59,$E77) -> - | X77: =INDEX($B$3:$AI$36,$E77,X$59)&"-"&INDEX($B$3:$AI$36,X$59,$E77) -> 8-1 | Y77: =INDEX($B$3:$AI$36,$E77,Y$59)&"-"&INDEX($B$3:$AI$36,Y$59,$E77) -> - | Z77: =INDEX($B$3:$AI$36,$E77,Z$59)&"-"&INDEX($B$3:$AI$36,Z$59,$E77) -> 8-1 | AA77: =INDEX($B$3:$AI$36,$E77,AA$59)&"-"&INDEX($B$3:$AI$36,AA$59,$E77) -> 3-4 | AB77: =INDEX($B$3:$AI$36,$E77,AB$59)&"-"&INDEX($B$3:$AI$36,AB$59,$E77) -> - | AC77: =INDEX($B$3:$AI$36,$E77,AC$59)&"-"&INDEX($B$3:$AI$36,AC$59,$E77) -> - | AD77: =INDEX($B$3:$AI$36,$E77,AD$59)&"-"&INDEX($B$3:$AI$36,AD$59,$E77) -> - | AE77: =INDEX($B$3:$AI$36,$E77,AE$59)&"-"&INDEX($B$3:$AI$36,AE$59,$E77) -> - | AF77: =INDEX($B$3:$AI$36,$E77,AF$59)&"-"&INDEX($B$3:$AI$36,AF$59,$E77) -> 7-3 | AG77: =INDEX($B$3:$AI$36,$E77,AG$59)&"-"&INDEX($B$3:$AI$36,AG$59,$E77) -> 10-0 | AH77: =INDEX($B$3:$AI$36,$E77,AH$59)&"-"&INDEX($B$3:$AI$36,AH$59,$E77) -> - | AI77: =INDEX($B$3:$AI$36,$E77,AI$59)&"-"&INDEX($B$3:$AI$36,AI$59,$E77) -> - | AJ77: =INDEX($B$3:$AI$36,$E77,AJ$59)&"-"&INDEX($B$3:$AI$36,AJ$59,$E77) -> - | AK77: =INDEX($B$3:$AI$36,$E77,AK$59)&"-"&INDEX($B$3:$AI$36,AK$59,$E77) -> - | AL77: =INDEX($B$3:$AI$36,$E77,AL$59)&"-"&INDEX($B$3:$AI$36,AL$59,$E77) -> - | AM77: =INDEX($B$3:$AI$36,$E77,AM$59)&"-"&INDEX($B$3:$AI$36,AM$59,$E77) -> - | AN77: =INDEX($B$3:$AI$36,$E77,AN$59)&"-"&INDEX($B$3:$AI$36,AN$59,$E77) -> -
A78: 18 | B78: 18 | C78: 18 | D78: 14 | E78: 14 | F78: 314 | G78: =INDEX($B$3:$AI$36,$E78,G$59)&"-"&INDEX($B$3:$AI$36,G$59,$E78) -> - | H78: =INDEX($B$3:$AI$36,$E78,H$59)&"-"&INDEX($B$3:$AI$36,H$59,$E78) -> - | I78: =INDEX($B$3:$AI$36,$E78,I$59)&"-"&INDEX($B$3:$AI$36,I$59,$E78) -> - | J78: =INDEX($B$3:$AI$36,$E78,J$59)&"-"&INDEX($B$3:$AI$36,J$59,$E78) -> 0-3 | K78: =INDEX($B$3:$AI$36,$E78,K$59)&"-"&INDEX($B$3:$AI$36,K$59,$E78) -> - | L78: =INDEX($B$3:$AI$36,$E78,L$59)&"-"&INDEX($B$3:$AI$36,L$59,$E78) -> - | M78: =INDEX($B$3:$AI$36,$E78,M$59)&"-"&INDEX($B$3:$AI$36,M$59,$E78) -> 2-8 | N78: =INDEX($B$3:$AI$36,$E78,N$59)&"-"&INDEX($B$3:$AI$36,N$59,$E78) -> - | O78: =INDEX($B$3:$AI$36,$E78,O$59)&"-"&INDEX($B$3:$AI$36,O$59,$E78) -> - | P78: =INDEX($B$3:$AI$36,$E78,P$59)&"-"&INDEX($B$3:$AI$36,P$59,$E78) -> - | Q78: =INDEX($B$3:$AI$36,$E78,Q$59)&"-"&INDEX($B$3:$AI$36,Q$59,$E78) -> - | R78: =INDEX($B$3:$AI$36,$E78,R$59)&"-"&INDEX($B$3:$AI$36,R$59,$E78) -> 3-6 | S78: =INDEX($B$3:$AI$36,$E78,S$59)&"-"&INDEX($B$3:$AI$36,S$59,$E78) -> 0-7 | T78: =INDEX($B$3:$AI$36,$E78,T$59)&"-"&INDEX($B$3:$AI$36,T$59,$E78) -> 3-6 | U78: =INDEX($B$3:$AI$36,$E78,U$59)&"-"&INDEX($B$3:$AI$36,U$59,$E78) -> 2-3 | V78: =INDEX($B$3:$AI$36,$E78,V$59)&"-"&INDEX($B$3:$AI$36,V$59,$E78) -> - | W78: =INDEX($B$3:$AI$36,$E78,W$59)&"-"&INDEX($B$3:$AI$36,W$59,$E78) -> 1-8 | X78: =INDEX($B$3:$AI$36,$E78,X$59)&"-"&INDEX($B$3:$AI$36,X$59,$E78) -> - | Y78: =INDEX($B$3:$AI$36,$E78,Y$59)&"-"&INDEX($B$3:$AI$36,Y$59,$E78) -> - | Z78: =INDEX($B$3:$AI$36,$E78,Z$59)&"-"&INDEX($B$3:$AI$36,Z$59,$E78) -> - | AA78: =INDEX($B$3:$AI$36,$E78,AA$59)&"-"&INDEX($B$3:$AI$36,AA$59,$E78) -> 5-3 | AB78: =INDEX($B$3:$AI$36,$E78,AB$59)&"-"&INDEX($B$3:$AI$36,AB$59,$E78) -> - | AC78: =INDEX($B$3:$AI$36,$E78,AC$59)&"-"&INDEX($B$3:$AI$36,AC$59,$E78) -> 5-3 | AD78: =INDEX($B$3:$AI$36,$E78,AD$59)&"-"&INDEX($B$3:$AI$36,AD$59,$E78) -> - | AE78: =INDEX($B$3:$AI$36,$E78,AE$59)&"-"&INDEX($B$3:$AI$36,AE$59,$E78) -> - | AF78: =INDEX($B$3:$AI$36,$E78,AF$59)&"-"&INDEX($B$3:$AI$36,AF$59,$E78) -> - | AG78: =INDEX($B$3:$AI$36,$E78,AG$59)&"-"&INDEX($B$3:$AI$36,AG$59,$E78) -> - | AH78: =INDEX($B$3:$AI$36,$E78,AH$59)&"-"&INDEX($B$3:$AI$36,AH$59,$E78) -> - | AI78: =INDEX($B$3:$AI$36,$E78,AI$59)&"-"&INDEX($B$3:$AI$36,AI$59,$E78) -> - | AJ78: =INDEX($B$3:$AI$36,$E78,AJ$59)&"-"&INDEX($B$3:$AI$36,AJ$59,$E78) -> - | AK78: =INDEX($B$3:$AI$36,$E78,AK$59)&"-"&INDEX($B$3:$AI$36,AK$59,$E78) -> - | AL78: =INDEX($B$3:$AI$36,$E78,AL$59)&"-"&INDEX($B$3:$AI$36,AL$59,$E78) -> - | AM78: =INDEX($B$3:$AI$36,$E78,AM$59)&"-"&INDEX($B$3:$AI$36,AM$59,$E78) -> - | AN78: =INDEX($B$3:$AI$36,$E78,AN$59)&"-"&INDEX($B$3:$AI$36,AN$59,$E78) -> -
A79: 19 | B79: 19 | C79: 20 | D79: 25 | E79: 25 | F79: 325 | G79: =INDEX($B$3:$AI$36,$E79,G$59)&"-"&INDEX($B$3:$AI$36,G$59,$E79) -> - | H79: =INDEX($B$3:$AI$36,$E79,H$59)&"-"&INDEX($B$3:$AI$36,H$59,$E79) -> - | I79: =INDEX($B$3:$AI$36,$E79,I$59)&"-"&INDEX($B$3:$AI$36,I$59,$E79) -> - | J79: =INDEX($B$3:$AI$36,$E79,J$59)&"-"&INDEX($B$3:$AI$36,J$59,$E79) -> - | K79: =INDEX($B$3:$AI$36,$E79,K$59)&"-"&INDEX($B$3:$AI$36,K$59,$E79) -> - | L79: =INDEX($B$3:$AI$36,$E79,L$59)&"-"&INDEX($B$3:$AI$36,L$59,$E79) -> - | M79: =INDEX($B$3:$AI$36,$E79,M$59)&"-"&INDEX($B$3:$AI$36,M$59,$E79) -> - | N79: =INDEX($B$3:$AI$36,$E79,N$59)&"-"&INDEX($B$3:$AI$36,N$59,$E79) -> - | O79: =INDEX($B$3:$AI$36,$E79,O$59)&"-"&INDEX($B$3:$AI$36,O$59,$E79) -> - | P79: =INDEX($B$3:$AI$36,$E79,P$59)&"-"&INDEX($B$3:$AI$36,P$59,$E79) -> - | Q79: =INDEX($B$3:$AI$36,$E79,Q$59)&"-"&INDEX($B$3:$AI$36,Q$59,$E79) -> - | R79: =INDEX($B$3:$AI$36,$E79,R$59)&"-"&INDEX($B$3:$AI$36,R$59,$E79) -> - | S79: =INDEX($B$3:$AI$36,$E79,S$59)&"-"&INDEX($B$3:$AI$36,S$59,$E79) -> - | T79: =INDEX($B$3:$AI$36,$E79,T$59)&"-"&INDEX($B$3:$AI$36,T$59,$E79) -> - | U79: =INDEX($B$3:$AI$36,$E79,U$59)&"-"&INDEX($B$3:$AI$36,U$59,$E79) -> - | V79: =INDEX($B$3:$AI$36,$E79,V$59)&"-"&INDEX($B$3:$AI$36,V$59,$E79) -> 8-10 | W79: =INDEX($B$3:$AI$36,$E79,W$59)&"-"&INDEX($B$3:$AI$36,W$59,$E79) -> - | X79: =INDEX($B$3:$AI$36,$E79,X$59)&"-"&INDEX($B$3:$AI$36,X$59,$E79) -> - | Y79: =INDEX($B$3:$AI$36,$E79,Y$59)&"-"&INDEX($B$3:$AI$36,Y$59,$E79) -> - | Z79: =INDEX($B$3:$AI$36,$E79,Z$59)&"-"&INDEX($B$3:$AI$36,Z$59,$E79) -> - | AA79: =INDEX($B$3:$AI$36,$E79,AA$59)&"-"&INDEX($B$3:$AI$36,AA$59,$E79) -> 1-1 | AB79: =INDEX($B$3:$AI$36,$E79,AB$59)&"-"&INDEX($B$3:$AI$36,AB$59,$E79) -> - | AC79: =INDEX($B$3:$AI$36,$E79,AC$59)&"-"&INDEX($B$3:$AI$36,AC$59,$E79) -> 6-2 | AD79: =INDEX($B$3:$AI$36,$E79,AD$59)&"-"&INDEX($B$3:$AI$36,AD$59,$E79) -> - | AE79: =INDEX($B$3:$AI$36,$E79,AE$59)&"-"&INDEX($B$3:$AI$36,AE$59,$E79) -> - | AF79: =INDEX($B$3:$AI$36,$E79,AF$59)&"-"&INDEX($B$3:$AI$36,AF$59,$E79) -> - | AG79: =INDEX($B$3:$AI$36,$E79,AG$59)&"-"&INDEX($B$3:$AI$36,AG$59,$E79) -> 6-3 | AH79: =INDEX($B$3:$AI$36,$E79,AH$59)&"-"&INDEX($B$3:$AI$36,AH$59,$E79) -> - | AI79: =INDEX($B$3:$AI$36,$E79,AI$59)&"-"&INDEX($B$3:$AI$36,AI$59,$E79) -> 8-1 | AJ79: =INDEX($B$3:$AI$36,$E79,AJ$59)&"-"&INDEX($B$3:$AI$36,AJ$59,$E79) -> - | AK79: =INDEX($B$3:$AI$36,$E79,AK$59)&"-"&INDEX($B$3:$AI$36,AK$59,$E79) -> 10-0 | AL79: =INDEX($B$3:$AI$36,$E79,AL$59)&"-"&INDEX($B$3:$AI$36,AL$59,$E79) -> 12-2 | AM79: =INDEX($B$3:$AI$36,$E79,AM$59)&"-"&INDEX($B$3:$AI$36,AM$59,$E79) -> - | AN79: =INDEX($B$3:$AI$36,$E79,AN$59)&"-"&INDEX($B$3:$AI$36,AN$59,$E79) -> 10-0
A80: 20 | B80: 22 | C80: 19 | D80: 20 | E80: 20 | F80: 320 | G80: =INDEX($B$3:$AI$36,$E80,G$59)&"-"&INDEX($B$3:$AI$36,G$59,$E80) -> - | H80: =INDEX($B$3:$AI$36,$E80,H$59)&"-"&INDEX($B$3:$AI$36,H$59,$E80) -> - | I80: =INDEX($B$3:$AI$36,$E80,I$59)&"-"&INDEX($B$3:$AI$36,I$59,$E80) -> - | J80: =INDEX($B$3:$AI$36,$E80,J$59)&"-"&INDEX($B$3:$AI$36,J$59,$E80) -> - | K80: =INDEX($B$3:$AI$36,$E80,K$59)&"-"&INDEX($B$3:$AI$36,K$59,$E80) -> - | L80: =INDEX($B$3:$AI$36,$E80,L$59)&"-"&INDEX($B$3:$AI$36,L$59,$E80) -> - | M80: =INDEX($B$3:$AI$36,$E80,M$59)&"-"&INDEX($B$3:$AI$36,M$59,$E80) -> - | N80: =INDEX($B$3:$AI$36,$E80,N$59)&"-"&INDEX($B$3:$AI$36,N$59,$E80) -> - | O80: =INDEX($B$3:$AI$36,$E80,O$59)&"-"&INDEX($B$3:$AI$36,O$59,$E80) -> - | P80: =INDEX($B$3:$AI$36,$E80,P$59)&"-"&INDEX($B$3:$AI$36,P$59,$E80) -> - | Q80: =INDEX($B$3:$AI$36,$E80,Q$59)&"-"&INDEX($B$3:$AI$36,Q$59,$E80) -> - | R80: =INDEX($B$3:$AI$36,$E80,R$59)&"-"&INDEX($B$3:$AI$36,R$59,$E80) -> - | S80: =INDEX($B$3:$AI$36,$E80,S$59)&"-"&INDEX($B$3:$AI$36,S$59,$E80) -> - | T80: =INDEX($B$3:$AI$36,$E80,T$59)&"-"&INDEX($B$3:$AI$36,T$59,$E80) -> 1-5 | U80: =INDEX($B$3:$AI$36,$E80,U$59)&"-"&INDEX($B$3:$AI$36,U$59,$E80) -> 3-7 | V80: =INDEX($B$3:$AI$36,$E80,V$59)&"-"&INDEX($B$3:$AI$36,V$59,$E80) -> 3-10 | W80: =INDEX($B$3:$AI$36,$E80,W$59)&"-"&INDEX($B$3:$AI$36,W$59,$E80) -> 1-8 | X80: =INDEX($B$3:$AI$36,$E80,X$59)&"-"&INDEX($B$3:$AI$36,X$59,$E80) -> - | Y80: =INDEX($B$3:$AI$36,$E80,Y$59)&"-"&INDEX($B$3:$AI$36,Y$59,$E80) -> - | Z80: =INDEX($B$3:$AI$36,$E80,Z$59)&"-"&INDEX($B$3:$AI$36,Z$59,$E80) -> - | AA80: =INDEX($B$3:$AI$36,$E80,AA$59)&"-"&INDEX($B$3:$AI$36,AA$59,$E80) -> - | AB80: =INDEX($B$3:$AI$36,$E80,AB$59)&"-"&INDEX($B$3:$AI$36,AB$59,$E80) -> - | AC80: =INDEX($B$3:$AI$36,$E80,AC$59)&"-"&INDEX($B$3:$AI$36,AC$59,$E80) -> - | AD80: =INDEX($B$3:$AI$36,$E80,AD$59)&"-"&INDEX($B$3:$AI$36,AD$59,$E80) -> - | AE80: =INDEX($B$3:$AI$36,$E80,AE$59)&"-"&INDEX($B$3:$AI$36,AE$59,$E80) -> 7-1 | AF80: =INDEX($B$3:$AI$36,$E80,AF$59)&"-"&INDEX($B$3:$AI$36,AF$59,$E80) -> 4-3 | AG80: =INDEX($B$3:$AI$36,$E80,AG$59)&"-"&INDEX($B$3:$AI$36,AG$59,$E80) -> 5-1 | AH80: =INDEX($B$3:$AI$36,$E80,AH$59)&"-"&INDEX($B$3:$AI$36,AH$59,$E80) -> - | AI80: =INDEX($B$3:$AI$36,$E80,AI$59)&"-"&INDEX($B$3:$AI$36,AI$59,$E80) -> - | AJ80: =INDEX($B$3:$AI$36,$E80,AJ$59)&"-"&INDEX($B$3:$AI$36,AJ$59,$E80) -> - | AK80: =INDEX($B$3:$AI$36,$E80,AK$59)&"-"&INDEX($B$3:$AI$36,AK$59,$E80) -> - | AL80: =INDEX($B$3:$AI$36,$E80,AL$59)&"-"&INDEX($B$3:$AI$36,AL$59,$E80) -> - | AM80: =INDEX($B$3:$AI$36,$E80,AM$59)&"-"&INDEX($B$3:$AI$36,AM$59,$E80) -> - | AN80: =INDEX($B$3:$AI$36,$E80,AN$59)&"-"&INDEX($B$3:$AI$36,AN$59,$E80) -> -
A81: 21 | B81: 21 | C81: 21 | D81: 16 | E81: 16 | F81: 316 | G81: =INDEX($B$3:$AI$36,$E81,G$59)&"-"&INDEX($B$3:$AI$36,G$59,$E81) -> - | H81: =INDEX($B$3:$AI$36,$E81,H$59)&"-"&INDEX($B$3:$AI$36,H$59,$E81) -> - | I81: =INDEX($B$3:$AI$36,$E81,I$59)&"-"&INDEX($B$3:$AI$36,I$59,$E81) -> - | J81: =INDEX($B$3:$AI$36,$E81,J$59)&"-"&INDEX($B$3:$AI$36,J$59,$E81) -> - | K81: =INDEX($B$3:$AI$36,$E81,K$59)&"-"&INDEX($B$3:$AI$36,K$59,$E81) -> - | L81: =INDEX($B$3:$AI$36,$E81,L$59)&"-"&INDEX($B$3:$AI$36,L$59,$E81) -> - | M81: =INDEX($B$3:$AI$36,$E81,M$59)&"-"&INDEX($B$3:$AI$36,M$59,$E81) -> - | N81: =INDEX($B$3:$AI$36,$E81,N$59)&"-"&INDEX($B$3:$AI$36,N$59,$E81) -> - | O81: =INDEX($B$3:$AI$36,$E81,O$59)&"-"&INDEX($B$3:$AI$36,O$59,$E81) -> - | P81: =INDEX($B$3:$AI$36,$E81,P$59)&"-"&INDEX($B$3:$AI$36,P$59,$E81) -> 0-6 | Q81: =INDEX($B$3:$AI$36,$E81,Q$59)&"-"&INDEX($B$3:$AI$36,Q$59,$E81) -> - | R81: =INDEX($B$3:$AI$36,$E81,R$59)&"-"&INDEX($B$3:$AI$36,R$59,$E81) -> - | S81: =INDEX($B$3:$AI$36,$E81,S$59)&"-"&INDEX($B$3:$AI$36,S$59,$E81) -> - | T81: =INDEX($B$3:$AI$36,$E81,T$59)&"-"&INDEX($B$3:$AI$36,T$59,$E81) -> 0-10 | U81: =INDEX($B$3:$AI$36,$E81,U$59)&"-"&INDEX($B$3:$AI$36,U$59,$E81) -> 0-4 | V81: =INDEX($B$3:$AI$36,$E81,V$59)&"-"&INDEX($B$3:$AI$36,V$59,$E81) -> 2-10 | W81: =INDEX($B$3:$AI$36,$E81,W$59)&"-"&INDEX($B$3:$AI$36,W$59,$E81) -> 4-3 | X81: =INDEX($B$3:$AI$36,$E81,X$59)&"-"&INDEX($B$3:$AI$36,X$59,$E81) -> 3-5 | Y81: =INDEX($B$3:$AI$36,$E81,Y$59)&"-"&INDEX($B$3:$AI$36,Y$59,$E81) -> 1-1 | Z81: =INDEX($B$3:$AI$36,$E81,Z$59)&"-"&INDEX($B$3:$AI$36,Z$59,$E81) -> - | AA81: =INDEX($B$3:$AI$36,$E81,AA$59)&"-"&INDEX($B$3:$AI$36,AA$59,$E81) -> - | AB81: =INDEX($B$3:$AI$36,$E81,AB$59)&"-"&INDEX($B$3:$AI$36,AB$59,$E81) -> - | AC81: =INDEX($B$3:$AI$36,$E81,AC$59)&"-"&INDEX($B$3:$AI$36,AC$59,$E81) -> - | AD81: =INDEX($B$3:$AI$36,$E81,AD$59)&"-"&INDEX($B$3:$AI$36,AD$59,$E81) -> - | AE81: =INDEX($B$3:$AI$36,$E81,AE$59)&"-"&INDEX($B$3:$AI$36,AE$59,$E81) -> - | AF81: =INDEX($B$3:$AI$36,$E81,AF$59)&"-"&INDEX($B$3:$AI$36,AF$59,$E81) -> - | AG81: =INDEX($B$3:$AI$36,$E81,AG$59)&"-"&INDEX($B$3:$AI$36,AG$59,$E81) -> - | AH81: =INDEX($B$3:$AI$36,$E81,AH$59)&"-"&INDEX($B$3:$AI$36,AH$59,$E81) -> - | AI81: =INDEX($B$3:$AI$36,$E81,AI$59)&"-"&INDEX($B$3:$AI$36,AI$59,$E81) -> - | AJ81: =INDEX($B$3:$AI$36,$E81,AJ$59)&"-"&INDEX($B$3:$AI$36,AJ$59,$E81) -> - | AK81: =INDEX($B$3:$AI$36,$E81,AK$59)&"-"&INDEX($B$3:$AI$36,AK$59,$E81) -> - | AL81: =INDEX($B$3:$AI$36,$E81,AL$59)&"-"&INDEX($B$3:$AI$36,AL$59,$E81) -> - | AM81: =INDEX($B$3:$AI$36,$E81,AM$59)&"-"&INDEX($B$3:$AI$36,AM$59,$E81) -> - | AN81: =INDEX($B$3:$AI$36,$E81,AN$59)&"-"&INDEX($B$3:$AI$36,AN$59,$E81) -> -
A82: 22 | B82: 20 | C82: 27 | D82: 28 | E82: 28 | F82: 328 | G82: =INDEX($B$3:$AI$36,$E82,G$59)&"-"&INDEX($B$3:$AI$36,G$59,$E82) -> - | H82: =INDEX($B$3:$AI$36,$E82,H$59)&"-"&INDEX($B$3:$AI$36,H$59,$E82) -> - | I82: =INDEX($B$3:$AI$36,$E82,I$59)&"-"&INDEX($B$3:$AI$36,I$59,$E82) -> - | J82: =INDEX($B$3:$AI$36,$E82,J$59)&"-"&INDEX($B$3:$AI$36,J$59,$E82) -> - | K82: =INDEX($B$3:$AI$36,$E82,K$59)&"-"&INDEX($B$3:$AI$36,K$59,$E82) -> - | L82: =INDEX($B$3:$AI$36,$E82,L$59)&"-"&INDEX($B$3:$AI$36,L$59,$E82) -> - | M82: =INDEX($B$3:$AI$36,$E82,M$59)&"-"&INDEX($B$3:$AI$36,M$59,$E82) -> - | N82: =INDEX($B$3:$AI$36,$E82,N$59)&"-"&INDEX($B$3:$AI$36,N$59,$E82) -> - | O82: =INDEX($B$3:$AI$36,$E82,O$59)&"-"&INDEX($B$3:$AI$36,O$59,$E82) -> - | P82: =INDEX($B$3:$AI$36,$E82,P$59)&"-"&INDEX($B$3:$AI$36,P$59,$E82) -> - | Q82: =INDEX($B$3:$AI$36,$E82,Q$59)&"-"&INDEX($B$3:$AI$36,Q$59,$E82) -> - | R82: =INDEX($B$3:$AI$36,$E82,R$59)&"-"&INDEX($B$3:$AI$36,R$59,$E82) -> - | S82: =INDEX($B$3:$AI$36,$E82,S$59)&"-"&INDEX($B$3:$AI$36,S$59,$E82) -> - | T82: =INDEX($B$3:$AI$36,$E82,T$59)&"-"&INDEX($B$3:$AI$36,T$59,$E82) -> - | U82: =INDEX($B$3:$AI$36,$E82,U$59)&"-"&INDEX($B$3:$AI$36,U$59,$E82) -> - | V82: =INDEX($B$3:$AI$36,$E82,V$59)&"-"&INDEX($B$3:$AI$36,V$59,$E82) -> - | W82: =INDEX($B$3:$AI$36,$E82,W$59)&"-"&INDEX($B$3:$AI$36,W$59,$E82) -> - | X82: =INDEX($B$3:$AI$36,$E82,X$59)&"-"&INDEX($B$3:$AI$36,X$59,$E82) -> - | Y82: =INDEX($B$3:$AI$36,$E82,Y$59)&"-"&INDEX($B$3:$AI$36,Y$59,$E82) -> - | Z82: =INDEX($B$3:$AI$36,$E82,Z$59)&"-"&INDEX($B$3:$AI$36,Z$59,$E82) -> - | AA82: =INDEX($B$3:$AI$36,$E82,AA$59)&"-"&INDEX($B$3:$AI$36,AA$59,$E82) -> - | AB82: =INDEX($B$3:$AI$36,$E82,AB$59)&"-"&INDEX($B$3:$AI$36,AB$59,$E82) -> - | AC82: =INDEX($B$3:$AI$36,$E82,AC$59)&"-"&INDEX($B$3:$AI$36,AC$59,$E82) -> - | AD82: =INDEX($B$3:$AI$36,$E82,AD$59)&"-"&INDEX($B$3:$AI$36,AD$59,$E82) -> - | AE82: =INDEX($B$3:$AI$36,$E82,AE$59)&"-"&INDEX($B$3:$AI$36,AE$59,$E82) -> - | AF82: =INDEX($B$3:$AI$36,$E82,AF$59)&"-"&INDEX($B$3:$AI$36,AF$59,$E82) -> - | AG82: =INDEX($B$3:$AI$36,$E82,AG$59)&"-"&INDEX($B$3:$AI$36,AG$59,$E82) -> - | AH82: =INDEX($B$3:$AI$36,$E82,AH$59)&"-"&INDEX($B$3:$AI$36,AH$59,$E82) -> 9-1 | AI82: =INDEX($B$3:$AI$36,$E82,AI$59)&"-"&INDEX($B$3:$AI$36,AI$59,$E82) -> 1-0 | AJ82: =INDEX($B$3:$AI$36,$E82,AJ$59)&"-"&INDEX($B$3:$AI$36,AJ$59,$E82) -> 9-1 | AK82: =INDEX($B$3:$AI$36,$E82,AK$59)&"-"&INDEX($B$3:$AI$36,AK$59,$E82) -> 9-1 | AL82: =INDEX($B$3:$AI$36,$E82,AL$59)&"-"&INDEX($B$3:$AI$36,AL$59,$E82) -> 12-0 | AM82: =INDEX($B$3:$AI$36,$E82,AM$59)&"-"&INDEX($B$3:$AI$36,AM$59,$E82) -> 17-1 | AN82: =INDEX($B$3:$AI$36,$E82,AN$59)&"-"&INDEX($B$3:$AI$36,AN$59,$E82) -> 10-0
A83: 23 | B83: 25 | C83: 22 | D83: 23 | E83: 23 | F83: 323 | G83: =INDEX($B$3:$AI$36,$E83,G$59)&"-"&INDEX($B$3:$AI$36,G$59,$E83) -> - | H83: =INDEX($B$3:$AI$36,$E83,H$59)&"-"&INDEX($B$3:$AI$36,H$59,$E83) -> - | I83: =INDEX($B$3:$AI$36,$E83,I$59)&"-"&INDEX($B$3:$AI$36,I$59,$E83) -> - | J83: =INDEX($B$3:$AI$36,$E83,J$59)&"-"&INDEX($B$3:$AI$36,J$59,$E83) -> - | K83: =INDEX($B$3:$AI$36,$E83,K$59)&"-"&INDEX($B$3:$AI$36,K$59,$E83) -> - | L83: =INDEX($B$3:$AI$36,$E83,L$59)&"-"&INDEX($B$3:$AI$36,L$59,$E83) -> - | M83: =INDEX($B$3:$AI$36,$E83,M$59)&"-"&INDEX($B$3:$AI$36,M$59,$E83) -> - | N83: =INDEX($B$3:$AI$36,$E83,N$59)&"-"&INDEX($B$3:$AI$36,N$59,$E83) -> - | O83: =INDEX($B$3:$AI$36,$E83,O$59)&"-"&INDEX($B$3:$AI$36,O$59,$E83) -> - | P83: =INDEX($B$3:$AI$36,$E83,P$59)&"-"&INDEX($B$3:$AI$36,P$59,$E83) -> - | Q83: =INDEX($B$3:$AI$36,$E83,Q$59)&"-"&INDEX($B$3:$AI$36,Q$59,$E83) -> - | R83: =INDEX($B$3:$AI$36,$E83,R$59)&"-"&INDEX($B$3:$AI$36,R$59,$E83) -> - | S83: =INDEX($B$3:$AI$36,$E83,S$59)&"-"&INDEX($B$3:$AI$36,S$59,$E83) -> - | T83: =INDEX($B$3:$AI$36,$E83,T$59)&"-"&INDEX($B$3:$AI$36,T$59,$E83) -> - | U83: =INDEX($B$3:$AI$36,$E83,U$59)&"-"&INDEX($B$3:$AI$36,U$59,$E83) -> - | V83: =INDEX($B$3:$AI$36,$E83,V$59)&"-"&INDEX($B$3:$AI$36,V$59,$E83) -> - | W83: =INDEX($B$3:$AI$36,$E83,W$59)&"-"&INDEX($B$3:$AI$36,W$59,$E83) -> - | X83: =INDEX($B$3:$AI$36,$E83,X$59)&"-"&INDEX($B$3:$AI$36,X$59,$E83) -> 3-5 | Y83: =INDEX($B$3:$AI$36,$E83,Y$59)&"-"&INDEX($B$3:$AI$36,Y$59,$E83) -> 2-6 | Z83: =INDEX($B$3:$AI$36,$E83,Z$59)&"-"&INDEX($B$3:$AI$36,Z$59,$E83) -> - | AA83: =INDEX($B$3:$AI$36,$E83,AA$59)&"-"&INDEX($B$3:$AI$36,AA$59,$E83) -> - | AB83: =INDEX($B$3:$AI$36,$E83,AB$59)&"-"&INDEX($B$3:$AI$36,AB$59,$E83) -> - | AC83: =INDEX($B$3:$AI$36,$E83,AC$59)&"-"&INDEX($B$3:$AI$36,AC$59,$E83) -> - | AD83: =INDEX($B$3:$AI$36,$E83,AD$59)&"-"&INDEX($B$3:$AI$36,AD$59,$E83) -> - | AE83: =INDEX($B$3:$AI$36,$E83,AE$59)&"-"&INDEX($B$3:$AI$36,AE$59,$E83) -> - | AF83: =INDEX($B$3:$AI$36,$E83,AF$59)&"-"&INDEX($B$3:$AI$36,AF$59,$E83) -> 2-0 | AG83: =INDEX($B$3:$AI$36,$E83,AG$59)&"-"&INDEX($B$3:$AI$36,AG$59,$E83) -> 2-2 | AH83: =INDEX($B$3:$AI$36,$E83,AH$59)&"-"&INDEX($B$3:$AI$36,AH$59,$E83) -> - | AI83: =INDEX($B$3:$AI$36,$E83,AI$59)&"-"&INDEX($B$3:$AI$36,AI$59,$E83) -> - | AJ83: =INDEX($B$3:$AI$36,$E83,AJ$59)&"-"&INDEX($B$3:$AI$36,AJ$59,$E83) -> - | AK83: =INDEX($B$3:$AI$36,$E83,AK$59)&"-"&INDEX($B$3:$AI$36,AK$59,$E83) -> 4-2 | AL83: =INDEX($B$3:$AI$36,$E83,AL$59)&"-"&INDEX($B$3:$AI$36,AL$59,$E83) -> - | AM83: =INDEX($B$3:$AI$36,$E83,AM$59)&"-"&INDEX($B$3:$AI$36,AM$59,$E83) -> - | AN83: =INDEX($B$3:$AI$36,$E83,AN$59)&"-"&INDEX($B$3:$AI$36,AN$59,$E83) -> -
A84: 24 | B84: 23 | C84: 24 | D84: 33 | E84: 33 | F84: 333 | G84: =INDEX($B$3:$AI$36,$E84,G$59)&"-"&INDEX($B$3:$AI$36,G$59,$E84) -> - | H84: =INDEX($B$3:$AI$36,$E84,H$59)&"-"&INDEX($B$3:$AI$36,H$59,$E84) -> - | I84: =INDEX($B$3:$AI$36,$E84,I$59)&"-"&INDEX($B$3:$AI$36,I$59,$E84) -> - | J84: =INDEX($B$3:$AI$36,$E84,J$59)&"-"&INDEX($B$3:$AI$36,J$59,$E84) -> - | K84: =INDEX($B$3:$AI$36,$E84,K$59)&"-"&INDEX($B$3:$AI$36,K$59,$E84) -> - | L84: =INDEX($B$3:$AI$36,$E84,L$59)&"-"&INDEX($B$3:$AI$36,L$59,$E84) -> - | M84: =INDEX($B$3:$AI$36,$E84,M$59)&"-"&INDEX($B$3:$AI$36,M$59,$E84) -> - | N84: =INDEX($B$3:$AI$36,$E84,N$59)&"-"&INDEX($B$3:$AI$36,N$59,$E84) -> - | O84: =INDEX($B$3:$AI$36,$E84,O$59)&"-"&INDEX($B$3:$AI$36,O$59,$E84) -> - | P84: =INDEX($B$3:$AI$36,$E84,P$59)&"-"&INDEX($B$3:$AI$36,P$59,$E84) -> - | Q84: =INDEX($B$3:$AI$36,$E84,Q$59)&"-"&INDEX($B$3:$AI$36,Q$59,$E84) -> - | R84: =INDEX($B$3:$AI$36,$E84,R$59)&"-"&INDEX($B$3:$AI$36,R$59,$E84) -> - | S84: =INDEX($B$3:$AI$36,$E84,S$59)&"-"&INDEX($B$3:$AI$36,S$59,$E84) -> - | T84: =INDEX($B$3:$AI$36,$E84,T$59)&"-"&INDEX($B$3:$AI$36,T$59,$E84) -> - | U84: =INDEX($B$3:$AI$36,$E84,U$59)&"-"&INDEX($B$3:$AI$36,U$59,$E84) -> - | V84: =INDEX($B$3:$AI$36,$E84,V$59)&"-"&INDEX($B$3:$AI$36,V$59,$E84) -> - | W84: =INDEX($B$3:$AI$36,$E84,W$59)&"-"&INDEX($B$3:$AI$36,W$59,$E84) -> - | X84: =INDEX($B$3:$AI$36,$E84,X$59)&"-"&INDEX($B$3:$AI$36,X$59,$E84) -> - | Y84: =INDEX($B$3:$AI$36,$E84,Y$59)&"-"&INDEX($B$3:$AI$36,Y$59,$E84) -> - | Z84: =INDEX($B$3:$AI$36,$E84,Z$59)&"-"&INDEX($B$3:$AI$36,Z$59,$E84) -> - | AA84: =INDEX($B$3:$AI$36,$E84,AA$59)&"-"&INDEX($B$3:$AI$36,AA$59,$E84) -> - | AB84: =INDEX($B$3:$AI$36,$E84,AB$59)&"-"&INDEX($B$3:$AI$36,AB$59,$E84) -> - | AC84: =INDEX($B$3:$AI$36,$E84,AC$59)&"-"&INDEX($B$3:$AI$36,AC$59,$E84) -> - | AD84: =INDEX($B$3:$AI$36,$E84,AD$59)&"-"&INDEX($B$3:$AI$36,AD$59,$E84) -> - | AE84: =INDEX($B$3:$AI$36,$E84,AE$59)&"-"&INDEX($B$3:$AI$36,AE$59,$E84) -> - | AF84: =INDEX($B$3:$AI$36,$E84,AF$59)&"-"&INDEX($B$3:$AI$36,AF$59,$E84) -> - | AG84: =INDEX($B$3:$AI$36,$E84,AG$59)&"-"&INDEX($B$3:$AI$36,AG$59,$E84) -> - | AH84: =INDEX($B$3:$AI$36,$E84,AH$59)&"-"&INDEX($B$3:$AI$36,AH$59,$E84) -> 4-9 | AI84: =INDEX($B$3:$AI$36,$E84,AI$59)&"-"&INDEX($B$3:$AI$36,AI$59,$E84) -> 20-1 | AJ84: =INDEX($B$3:$AI$36,$E84,AJ$59)&"-"&INDEX($B$3:$AI$36,AJ$59,$E84) -> 9-1 | AK84: =INDEX($B$3:$AI$36,$E84,AK$59)&"-"&INDEX($B$3:$AI$36,AK$59,$E84) -> - | AL84: =INDEX($B$3:$AI$36,$E84,AL$59)&"-"&INDEX($B$3:$AI$36,AL$59,$E84) -> 10-1 | AM84: =INDEX($B$3:$AI$36,$E84,AM$59)&"-"&INDEX($B$3:$AI$36,AM$59,$E84) -> 9-1 | AN84: =INDEX($B$3:$AI$36,$E84,AN$59)&"-"&INDEX($B$3:$AI$36,AN$59,$E84) -> 8-1
A85: 25 | B85: 24 | C85: 26 | D85: 29 | E85: 29 | F85: 329 | G85: =INDEX($B$3:$AI$36,$E85,G$59)&"-"&INDEX($B$3:$AI$36,G$59,$E85) -> - | H85: =INDEX($B$3:$AI$36,$E85,H$59)&"-"&INDEX($B$3:$AI$36,H$59,$E85) -> - | I85: =INDEX($B$3:$AI$36,$E85,I$59)&"-"&INDEX($B$3:$AI$36,I$59,$E85) -> - | J85: =INDEX($B$3:$AI$36,$E85,J$59)&"-"&INDEX($B$3:$AI$36,J$59,$E85) -> - | K85: =INDEX($B$3:$AI$36,$E85,K$59)&"-"&INDEX($B$3:$AI$36,K$59,$E85) -> - | L85: =INDEX($B$3:$AI$36,$E85,L$59)&"-"&INDEX($B$3:$AI$36,L$59,$E85) -> - | M85: =INDEX($B$3:$AI$36,$E85,M$59)&"-"&INDEX($B$3:$AI$36,M$59,$E85) -> - | N85: =INDEX($B$3:$AI$36,$E85,N$59)&"-"&INDEX($B$3:$AI$36,N$59,$E85) -> - | O85: =INDEX($B$3:$AI$36,$E85,O$59)&"-"&INDEX($B$3:$AI$36,O$59,$E85) -> - | P85: =INDEX($B$3:$AI$36,$E85,P$59)&"-"&INDEX($B$3:$AI$36,P$59,$E85) -> - | Q85: =INDEX($B$3:$AI$36,$E85,Q$59)&"-"&INDEX($B$3:$AI$36,Q$59,$E85) -> - | R85: =INDEX($B$3:$AI$36,$E85,R$59)&"-"&INDEX($B$3:$AI$36,R$59,$E85) -> - | S85: =INDEX($B$3:$AI$36,$E85,S$59)&"-"&INDEX($B$3:$AI$36,S$59,$E85) -> - | T85: =INDEX($B$3:$AI$36,$E85,T$59)&"-"&INDEX($B$3:$AI$36,T$59,$E85) -> - | U85: =INDEX($B$3:$AI$36,$E85,U$59)&"-"&INDEX($B$3:$AI$36,U$59,$E85) -> - | V85: =INDEX($B$3:$AI$36,$E85,V$59)&"-"&INDEX($B$3:$AI$36,V$59,$E85) -> - | W85: =INDEX($B$3:$AI$36,$E85,W$59)&"-"&INDEX($B$3:$AI$36,W$59,$E85) -> - | X85: =INDEX($B$3:$AI$36,$E85,X$59)&"-"&INDEX($B$3:$AI$36,X$59,$E85) -> - | Y85: =INDEX($B$3:$AI$36,$E85,Y$59)&"-"&INDEX($B$3:$AI$36,Y$59,$E85) -> - | Z85: =INDEX($B$3:$AI$36,$E85,Z$59)&"-"&INDEX($B$3:$AI$36,Z$59,$E85) -> 1-7 | AA85: =INDEX($B$3:$AI$36,$E85,AA$59)&"-"&INDEX($B$3:$AI$36,AA$59,$E85) -> - | AB85: =INDEX($B$3:$AI$36,$E85,AB$59)&"-"&INDEX($B$3:$AI$36,AB$59,$E85) -> - | AC85: =INDEX($B$3:$AI$36,$E85,AC$59)&"-"&INDEX($B$3:$AI$36,AC$59,$E85) -> - | AD85: =INDEX($B$3:$AI$36,$E85,AD$59)&"-"&INDEX($B$3:$AI$36,AD$59,$E85) -> - | AE85: =INDEX($B$3:$AI$36,$E85,AE$59)&"-"&INDEX($B$3:$AI$36,AE$59,$E85) -> - | AF85: =INDEX($B$3:$AI$36,$E85,AF$59)&"-"&INDEX($B$3:$AI$36,AF$59,$E85) -> - | AG85: =INDEX($B$3:$AI$36,$E85,AG$59)&"-"&INDEX($B$3:$AI$36,AG$59,$E85) -> - | AH85: =INDEX($B$3:$AI$36,$E85,AH$59)&"-"&INDEX($B$3:$AI$36,AH$59,$E85) -> 5-2 | AI85: =INDEX($B$3:$AI$36,$E85,AI$59)&"-"&INDEX($B$3:$AI$36,AI$59,$E85) -> 11-1 | AJ85: =INDEX($B$3:$AI$36,$E85,AJ$59)&"-"&INDEX($B$3:$AI$36,AJ$59,$E85) -> 7-2 | AK85: =INDEX($B$3:$AI$36,$E85,AK$59)&"-"&INDEX($B$3:$AI$36,AK$59,$E85) -> - | AL85: =INDEX($B$3:$AI$36,$E85,AL$59)&"-"&INDEX($B$3:$AI$36,AL$59,$E85) -> 11-2 | AM85: =INDEX($B$3:$AI$36,$E85,AM$59)&"-"&INDEX($B$3:$AI$36,AM$59,$E85) -> 5-1 | AN85: =INDEX($B$3:$AI$36,$E85,AN$59)&"-"&INDEX($B$3:$AI$36,AN$59,$E85) -> 8-0
A86: 26 | B86: 26 | C86: 23 | D86: 22 | E86: 22 | F86: 322 | G86: =INDEX($B$3:$AI$36,$E86,G$59)&"-"&INDEX($B$3:$AI$36,G$59,$E86) -> - | H86: =INDEX($B$3:$AI$36,$E86,H$59)&"-"&INDEX($B$3:$AI$36,H$59,$E86) -> - | I86: =INDEX($B$3:$AI$36,$E86,I$59)&"-"&INDEX($B$3:$AI$36,I$59,$E86) -> - | J86: =INDEX($B$3:$AI$36,$E86,J$59)&"-"&INDEX($B$3:$AI$36,J$59,$E86) -> - | K86: =INDEX($B$3:$AI$36,$E86,K$59)&"-"&INDEX($B$3:$AI$36,K$59,$E86) -> - | L86: =INDEX($B$3:$AI$36,$E86,L$59)&"-"&INDEX($B$3:$AI$36,L$59,$E86) -> - | M86: =INDEX($B$3:$AI$36,$E86,M$59)&"-"&INDEX($B$3:$AI$36,M$59,$E86) -> - | N86: =INDEX($B$3:$AI$36,$E86,N$59)&"-"&INDEX($B$3:$AI$36,N$59,$E86) -> - | O86: =INDEX($B$3:$AI$36,$E86,O$59)&"-"&INDEX($B$3:$AI$36,O$59,$E86) -> - | P86: =INDEX($B$3:$AI$36,$E86,P$59)&"-"&INDEX($B$3:$AI$36,P$59,$E86) -> - | Q86: =INDEX($B$3:$AI$36,$E86,Q$59)&"-"&INDEX($B$3:$AI$36,Q$59,$E86) -> - | R86: =INDEX($B$3:$AI$36,$E86,R$59)&"-"&INDEX($B$3:$AI$36,R$59,$E86) -> - | S86: =INDEX($B$3:$AI$36,$E86,S$59)&"-"&INDEX($B$3:$AI$36,S$59,$E86) -> - | T86: =INDEX($B$3:$AI$36,$E86,T$59)&"-"&INDEX($B$3:$AI$36,T$59,$E86) -> - | U86: =INDEX($B$3:$AI$36,$E86,U$59)&"-"&INDEX($B$3:$AI$36,U$59,$E86) -> - | V86: =INDEX($B$3:$AI$36,$E86,V$59)&"-"&INDEX($B$3:$AI$36,V$59,$E86) -> 1-11 | W86: =INDEX($B$3:$AI$36,$E86,W$59)&"-"&INDEX($B$3:$AI$36,W$59,$E86) -> 3-7 | X86: =INDEX($B$3:$AI$36,$E86,X$59)&"-"&INDEX($B$3:$AI$36,X$59,$E86) -> - | Y86: =INDEX($B$3:$AI$36,$E86,Y$59)&"-"&INDEX($B$3:$AI$36,Y$59,$E86) -> - | Z86: =INDEX($B$3:$AI$36,$E86,Z$59)&"-"&INDEX($B$3:$AI$36,Z$59,$E86) -> 3-4 | AA86: =INDEX($B$3:$AI$36,$E86,AA$59)&"-"&INDEX($B$3:$AI$36,AA$59,$E86) -> - | AB86: =INDEX($B$3:$AI$36,$E86,AB$59)&"-"&INDEX($B$3:$AI$36,AB$59,$E86) -> - | AC86: =INDEX($B$3:$AI$36,$E86,AC$59)&"-"&INDEX($B$3:$AI$36,AC$59,$E86) -> 0-2 | AD86: =INDEX($B$3:$AI$36,$E86,AD$59)&"-"&INDEX($B$3:$AI$36,AD$59,$E86) -> - | AE86: =INDEX($B$3:$AI$36,$E86,AE$59)&"-"&INDEX($B$3:$AI$36,AE$59,$E86) -> - | AF86: =INDEX($B$3:$AI$36,$E86,AF$59)&"-"&INDEX($B$3:$AI$36,AF$59,$E86) -> - | AG86: =INDEX($B$3:$AI$36,$E86,AG$59)&"-"&INDEX($B$3:$AI$36,AG$59,$E86) -> 2-2 | AH86: =INDEX($B$3:$AI$36,$E86,AH$59)&"-"&INDEX($B$3:$AI$36,AH$59,$E86) -> - | AI86: =INDEX($B$3:$AI$36,$E86,AI$59)&"-"&INDEX($B$3:$AI$36,AI$59,$E86) -> - | AJ86: =INDEX($B$3:$AI$36,$E86,AJ$59)&"-"&INDEX($B$3:$AI$36,AJ$59,$E86) -> - | AK86: =INDEX($B$3:$AI$36,$E86,AK$59)&"-"&INDEX($B$3:$AI$36,AK$59,$E86) -> 5-0 | AL86: =INDEX($B$3:$AI$36,$E86,AL$59)&"-"&INDEX($B$3:$AI$36,AL$59,$E86) -> - | AM86: =INDEX($B$3:$AI$36,$E86,AM$59)&"-"&INDEX($B$3:$AI$36,AM$59,$E86) -> - | AN86: =INDEX($B$3:$AI$36,$E86,AN$59)&"-"&INDEX($B$3:$AI$36,AN$59,$E86) -> -
A87: 27 | B87: 27 | C87: 25 | D87: 21 | E87: 21 | F87: 321 | G87: =INDEX($B$3:$AI$36,$E87,G$59)&"-"&INDEX($B$3:$AI$36,G$59,$E87) -> - | H87: =INDEX($B$3:$AI$36,$E87,H$59)&"-"&INDEX($B$3:$AI$36,H$59,$E87) -> - | I87: =INDEX($B$3:$AI$36,$E87,I$59)&"-"&INDEX($B$3:$AI$36,I$59,$E87) -> - | J87: =INDEX($B$3:$AI$36,$E87,J$59)&"-"&INDEX($B$3:$AI$36,J$59,$E87) -> - | K87: =INDEX($B$3:$AI$36,$E87,K$59)&"-"&INDEX($B$3:$AI$36,K$59,$E87) -> - | L87: =INDEX($B$3:$AI$36,$E87,L$59)&"-"&INDEX($B$3:$AI$36,L$59,$E87) -> - | M87: =INDEX($B$3:$AI$36,$E87,M$59)&"-"&INDEX($B$3:$AI$36,M$59,$E87) -> - | N87: =INDEX($B$3:$AI$36,$E87,N$59)&"-"&INDEX($B$3:$AI$36,N$59,$E87) -> - | O87: =INDEX($B$3:$AI$36,$E87,O$59)&"-"&INDEX($B$3:$AI$36,O$59,$E87) -> - | P87: =INDEX($B$3:$AI$36,$E87,P$59)&"-"&INDEX($B$3:$AI$36,P$59,$E87) -> - | Q87: =INDEX($B$3:$AI$36,$E87,Q$59)&"-"&INDEX($B$3:$AI$36,Q$59,$E87) -> - | R87: =INDEX($B$3:$AI$36,$E87,R$59)&"-"&INDEX($B$3:$AI$36,R$59,$E87) -> - | S87: =INDEX($B$3:$AI$36,$E87,S$59)&"-"&INDEX($B$3:$AI$36,S$59,$E87) -> - | T87: =INDEX($B$3:$AI$36,$E87,T$59)&"-"&INDEX($B$3:$AI$36,T$59,$E87) -> - | U87: =INDEX($B$3:$AI$36,$E87,U$59)&"-"&INDEX($B$3:$AI$36,U$59,$E87) -> - | V87: =INDEX($B$3:$AI$36,$E87,V$59)&"-"&INDEX($B$3:$AI$36,V$59,$E87) -> 3-8 | W87: =INDEX($B$3:$AI$36,$E87,W$59)&"-"&INDEX($B$3:$AI$36,W$59,$E87) -> 0-10 | X87: =INDEX($B$3:$AI$36,$E87,X$59)&"-"&INDEX($B$3:$AI$36,X$59,$E87) -> - | Y87: =INDEX($B$3:$AI$36,$E87,Y$59)&"-"&INDEX($B$3:$AI$36,Y$59,$E87) -> 3-6 | Z87: =INDEX($B$3:$AI$36,$E87,Z$59)&"-"&INDEX($B$3:$AI$36,Z$59,$E87) -> 1-5 | AA87: =INDEX($B$3:$AI$36,$E87,AA$59)&"-"&INDEX($B$3:$AI$36,AA$59,$E87) -> - | AB87: =INDEX($B$3:$AI$36,$E87,AB$59)&"-"&INDEX($B$3:$AI$36,AB$59,$E87) -> - | AC87: =INDEX($B$3:$AI$36,$E87,AC$59)&"-"&INDEX($B$3:$AI$36,AC$59,$E87) -> 2-2 | AD87: =INDEX($B$3:$AI$36,$E87,AD$59)&"-"&INDEX($B$3:$AI$36,AD$59,$E87) -> - | AE87: =INDEX($B$3:$AI$36,$E87,AE$59)&"-"&INDEX($B$3:$AI$36,AE$59,$E87) -> - | AF87: =INDEX($B$3:$AI$36,$E87,AF$59)&"-"&INDEX($B$3:$AI$36,AF$59,$E87) -> 2-2 | AG87: =INDEX($B$3:$AI$36,$E87,AG$59)&"-"&INDEX($B$3:$AI$36,AG$59,$E87) -> - | AH87: =INDEX($B$3:$AI$36,$E87,AH$59)&"-"&INDEX($B$3:$AI$36,AH$59,$E87) -> 2-4 | AI87: =INDEX($B$3:$AI$36,$E87,AI$59)&"-"&INDEX($B$3:$AI$36,AI$59,$E87) -> - | AJ87: =INDEX($B$3:$AI$36,$E87,AJ$59)&"-"&INDEX($B$3:$AI$36,AJ$59,$E87) -> - | AK87: =INDEX($B$3:$AI$36,$E87,AK$59)&"-"&INDEX($B$3:$AI$36,AK$59,$E87) -> 14-1 | AL87: =INDEX($B$3:$AI$36,$E87,AL$59)&"-"&INDEX($B$3:$AI$36,AL$59,$E87) -> - | AM87: =INDEX($B$3:$AI$36,$E87,AM$59)&"-"&INDEX($B$3:$AI$36,AM$59,$E87) -> - | AN87: =INDEX($B$3:$AI$36,$E87,AN$59)&"-"&INDEX($B$3:$AI$36,AN$59,$E87) -> -
A88: 28 | B88: 28 | C88: 28 | D88: 31 | E88: 31 | F88: 331 | G88: =INDEX($B$3:$AI$36,$E88,G$59)&"-"&INDEX($B$3:$AI$36,G$59,$E88) -> - | H88: =INDEX($B$3:$AI$36,$E88,H$59)&"-"&INDEX($B$3:$AI$36,H$59,$E88) -> - | I88: =INDEX($B$3:$AI$36,$E88,I$59)&"-"&INDEX($B$3:$AI$36,I$59,$E88) -> - | J88: =INDEX($B$3:$AI$36,$E88,J$59)&"-"&INDEX($B$3:$AI$36,J$59,$E88) -> - | K88: =INDEX($B$3:$AI$36,$E88,K$59)&"-"&INDEX($B$3:$AI$36,K$59,$E88) -> - | L88: =INDEX($B$3:$AI$36,$E88,L$59)&"-"&INDEX($B$3:$AI$36,L$59,$E88) -> - | M88: =INDEX($B$3:$AI$36,$E88,M$59)&"-"&INDEX($B$3:$AI$36,M$59,$E88) -> - | N88: =INDEX($B$3:$AI$36,$E88,N$59)&"-"&INDEX($B$3:$AI$36,N$59,$E88) -> - | O88: =INDEX($B$3:$AI$36,$E88,O$59)&"-"&INDEX($B$3:$AI$36,O$59,$E88) -> - | P88: =INDEX($B$3:$AI$36,$E88,P$59)&"-"&INDEX($B$3:$AI$36,P$59,$E88) -> - | Q88: =INDEX($B$3:$AI$36,$E88,Q$59)&"-"&INDEX($B$3:$AI$36,Q$59,$E88) -> - | R88: =INDEX($B$3:$AI$36,$E88,R$59)&"-"&INDEX($B$3:$AI$36,R$59,$E88) -> - | S88: =INDEX($B$3:$AI$36,$E88,S$59)&"-"&INDEX($B$3:$AI$36,S$59,$E88) -> - | T88: =INDEX($B$3:$AI$36,$E88,T$59)&"-"&INDEX($B$3:$AI$36,T$59,$E88) -> - | U88: =INDEX($B$3:$AI$36,$E88,U$59)&"-"&INDEX($B$3:$AI$36,U$59,$E88) -> - | V88: =INDEX($B$3:$AI$36,$E88,V$59)&"-"&INDEX($B$3:$AI$36,V$59,$E88) -> - | W88: =INDEX($B$3:$AI$36,$E88,W$59)&"-"&INDEX($B$3:$AI$36,W$59,$E88) -> - | X88: =INDEX($B$3:$AI$36,$E88,X$59)&"-"&INDEX($B$3:$AI$36,X$59,$E88) -> - | Y88: =INDEX($B$3:$AI$36,$E88,Y$59)&"-"&INDEX($B$3:$AI$36,Y$59,$E88) -> - | Z88: =INDEX($B$3:$AI$36,$E88,Z$59)&"-"&INDEX($B$3:$AI$36,Z$59,$E88) -> - | AA88: =INDEX($B$3:$AI$36,$E88,AA$59)&"-"&INDEX($B$3:$AI$36,AA$59,$E88) -> - | AB88: =INDEX($B$3:$AI$36,$E88,AB$59)&"-"&INDEX($B$3:$AI$36,AB$59,$E88) -> 1-9 | AC88: =INDEX($B$3:$AI$36,$E88,AC$59)&"-"&INDEX($B$3:$AI$36,AC$59,$E88) -> - | AD88: =INDEX($B$3:$AI$36,$E88,AD$59)&"-"&INDEX($B$3:$AI$36,AD$59,$E88) -> 9-4 | AE88: =INDEX($B$3:$AI$36,$E88,AE$59)&"-"&INDEX($B$3:$AI$36,AE$59,$E88) -> 2-5 | AF88: =INDEX($B$3:$AI$36,$E88,AF$59)&"-"&INDEX($B$3:$AI$36,AF$59,$E88) -> - | AG88: =INDEX($B$3:$AI$36,$E88,AG$59)&"-"&INDEX($B$3:$AI$36,AG$59,$E88) -> 4-2 | AH88: =INDEX($B$3:$AI$36,$E88,AH$59)&"-"&INDEX($B$3:$AI$36,AH$59,$E88) -> - | AI88: =INDEX($B$3:$AI$36,$E88,AI$59)&"-"&INDEX($B$3:$AI$36,AI$59,$E88) -> 1-4 | AJ88: =INDEX($B$3:$AI$36,$E88,AJ$59)&"-"&INDEX($B$3:$AI$36,AJ$59,$E88) -> 3-4 | AK88: =INDEX($B$3:$AI$36,$E88,AK$59)&"-"&INDEX($B$3:$AI$36,AK$59,$E88) -> - | AL88: =INDEX($B$3:$AI$36,$E88,AL$59)&"-"&INDEX($B$3:$AI$36,AL$59,$E88) -> 7-1 | AM88: =INDEX($B$3:$AI$36,$E88,AM$59)&"-"&INDEX($B$3:$AI$36,AM$59,$E88) -> - | AN88: =INDEX($B$3:$AI$36,$E88,AN$59)&"-"&INDEX($B$3:$AI$36,AN$59,$E88) -> 10-1
A89: 29 | B89: 29 | C89: 29 | D89: 30 | E89: 30 | F89: 330 | G89: =INDEX($B$3:$AI$36,$E89,G$59)&"-"&INDEX($B$3:$AI$36,G$59,$E89) -> - | H89: =INDEX($B$3:$AI$36,$E89,H$59)&"-"&INDEX($B$3:$AI$36,H$59,$E89) -> - | I89: =INDEX($B$3:$AI$36,$E89,I$59)&"-"&INDEX($B$3:$AI$36,I$59,$E89) -> - | J89: =INDEX($B$3:$AI$36,$E89,J$59)&"-"&INDEX($B$3:$AI$36,J$59,$E89) -> - | K89: =INDEX($B$3:$AI$36,$E89,K$59)&"-"&INDEX($B$3:$AI$36,K$59,$E89) -> - | L89: =INDEX($B$3:$AI$36,$E89,L$59)&"-"&INDEX($B$3:$AI$36,L$59,$E89) -> - | M89: =INDEX($B$3:$AI$36,$E89,M$59)&"-"&INDEX($B$3:$AI$36,M$59,$E89) -> - | N89: =INDEX($B$3:$AI$36,$E89,N$59)&"-"&INDEX($B$3:$AI$36,N$59,$E89) -> - | O89: =INDEX($B$3:$AI$36,$E89,O$59)&"-"&INDEX($B$3:$AI$36,O$59,$E89) -> - | P89: =INDEX($B$3:$AI$36,$E89,P$59)&"-"&INDEX($B$3:$AI$36,P$59,$E89) -> - | Q89: =INDEX($B$3:$AI$36,$E89,Q$59)&"-"&INDEX($B$3:$AI$36,Q$59,$E89) -> - | R89: =INDEX($B$3:$AI$36,$E89,R$59)&"-"&INDEX($B$3:$AI$36,R$59,$E89) -> - | S89: =INDEX($B$3:$AI$36,$E89,S$59)&"-"&INDEX($B$3:$AI$36,S$59,$E89) -> - | T89: =INDEX($B$3:$AI$36,$E89,T$59)&"-"&INDEX($B$3:$AI$36,T$59,$E89) -> - | U89: =INDEX($B$3:$AI$36,$E89,U$59)&"-"&INDEX($B$3:$AI$36,U$59,$E89) -> - | V89: =INDEX($B$3:$AI$36,$E89,V$59)&"-"&INDEX($B$3:$AI$36,V$59,$E89) -> - | W89: =INDEX($B$3:$AI$36,$E89,W$59)&"-"&INDEX($B$3:$AI$36,W$59,$E89) -> - | X89: =INDEX($B$3:$AI$36,$E89,X$59)&"-"&INDEX($B$3:$AI$36,X$59,$E89) -> - | Y89: =INDEX($B$3:$AI$36,$E89,Y$59)&"-"&INDEX($B$3:$AI$36,Y$59,$E89) -> 1-8 | Z89: =INDEX($B$3:$AI$36,$E89,Z$59)&"-"&INDEX($B$3:$AI$36,Z$59,$E89) -> - | AA89: =INDEX($B$3:$AI$36,$E89,AA$59)&"-"&INDEX($B$3:$AI$36,AA$59,$E89) -> - | AB89: =INDEX($B$3:$AI$36,$E89,AB$59)&"-"&INDEX($B$3:$AI$36,AB$59,$E89) -> 0-1 | AC89: =INDEX($B$3:$AI$36,$E89,AC$59)&"-"&INDEX($B$3:$AI$36,AC$59,$E89) -> - | AD89: =INDEX($B$3:$AI$36,$E89,AD$59)&"-"&INDEX($B$3:$AI$36,AD$59,$E89) -> 1-20 | AE89: =INDEX($B$3:$AI$36,$E89,AE$59)&"-"&INDEX($B$3:$AI$36,AE$59,$E89) -> 1-11 | AF89: =INDEX($B$3:$AI$36,$E89,AF$59)&"-"&INDEX($B$3:$AI$36,AF$59,$E89) -> - | AG89: =INDEX($B$3:$AI$36,$E89,AG$59)&"-"&INDEX($B$3:$AI$36,AG$59,$E89) -> - | AH89: =INDEX($B$3:$AI$36,$E89,AH$59)&"-"&INDEX($B$3:$AI$36,AH$59,$E89) -> 4-1 | AI89: =INDEX($B$3:$AI$36,$E89,AI$59)&"-"&INDEX($B$3:$AI$36,AI$59,$E89) -> - | AJ89: =INDEX($B$3:$AI$36,$E89,AJ$59)&"-"&INDEX($B$3:$AI$36,AJ$59,$E89) -> 1-0 | AK89: =INDEX($B$3:$AI$36,$E89,AK$59)&"-"&INDEX($B$3:$AI$36,AK$59,$E89) -> - | AL89: =INDEX($B$3:$AI$36,$E89,AL$59)&"-"&INDEX($B$3:$AI$36,AL$59,$E89) -> 6-3 | AM89: =INDEX($B$3:$AI$36,$E89,AM$59)&"-"&INDEX($B$3:$AI$36,AM$59,$E89) -> - | AN89: =INDEX($B$3:$AI$36,$E89,AN$59)&"-"&INDEX($B$3:$AI$36,AN$59,$E89) -> 2-4
A90: 30 | B90: 30 | C90: 30 | D90: 34 | E90: 34 | F90: 334 | G90: =INDEX($B$3:$AI$36,$E90,G$59)&"-"&INDEX($B$3:$AI$36,G$59,$E90) -> - | H90: =INDEX($B$3:$AI$36,$E90,H$59)&"-"&INDEX($B$3:$AI$36,H$59,$E90) -> - | I90: =INDEX($B$3:$AI$36,$E90,I$59)&"-"&INDEX($B$3:$AI$36,I$59,$E90) -> - | J90: =INDEX($B$3:$AI$36,$E90,J$59)&"-"&INDEX($B$3:$AI$36,J$59,$E90) -> - | K90: =INDEX($B$3:$AI$36,$E90,K$59)&"-"&INDEX($B$3:$AI$36,K$59,$E90) -> - | L90: =INDEX($B$3:$AI$36,$E90,L$59)&"-"&INDEX($B$3:$AI$36,L$59,$E90) -> - | M90: =INDEX($B$3:$AI$36,$E90,M$59)&"-"&INDEX($B$3:$AI$36,M$59,$E90) -> - | N90: =INDEX($B$3:$AI$36,$E90,N$59)&"-"&INDEX($B$3:$AI$36,N$59,$E90) -> - | O90: =INDEX($B$3:$AI$36,$E90,O$59)&"-"&INDEX($B$3:$AI$36,O$59,$E90) -> - | P90: =INDEX($B$3:$AI$36,$E90,P$59)&"-"&INDEX($B$3:$AI$36,P$59,$E90) -> - | Q90: =INDEX($B$3:$AI$36,$E90,Q$59)&"-"&INDEX($B$3:$AI$36,Q$59,$E90) -> - | R90: =INDEX($B$3:$AI$36,$E90,R$59)&"-"&INDEX($B$3:$AI$36,R$59,$E90) -> - | S90: =INDEX($B$3:$AI$36,$E90,S$59)&"-"&INDEX($B$3:$AI$36,S$59,$E90) -> - | T90: =INDEX($B$3:$AI$36,$E90,T$59)&"-"&INDEX($B$3:$AI$36,T$59,$E90) -> - | U90: =INDEX($B$3:$AI$36,$E90,U$59)&"-"&INDEX($B$3:$AI$36,U$59,$E90) -> - | V90: =INDEX($B$3:$AI$36,$E90,V$59)&"-"&INDEX($B$3:$AI$36,V$59,$E90) -> - | W90: =INDEX($B$3:$AI$36,$E90,W$59)&"-"&INDEX($B$3:$AI$36,W$59,$E90) -> - | X90: =INDEX($B$3:$AI$36,$E90,X$59)&"-"&INDEX($B$3:$AI$36,X$59,$E90) -> - | Y90: =INDEX($B$3:$AI$36,$E90,Y$59)&"-"&INDEX($B$3:$AI$36,Y$59,$E90) -> - | Z90: =INDEX($B$3:$AI$36,$E90,Z$59)&"-"&INDEX($B$3:$AI$36,Z$59,$E90) -> - | AA90: =INDEX($B$3:$AI$36,$E90,AA$59)&"-"&INDEX($B$3:$AI$36,AA$59,$E90) -> - | AB90: =INDEX($B$3:$AI$36,$E90,AB$59)&"-"&INDEX($B$3:$AI$36,AB$59,$E90) -> 1-9 | AC90: =INDEX($B$3:$AI$36,$E90,AC$59)&"-"&INDEX($B$3:$AI$36,AC$59,$E90) -> - | AD90: =INDEX($B$3:$AI$36,$E90,AD$59)&"-"&INDEX($B$3:$AI$36,AD$59,$E90) -> 1-9 | AE90: =INDEX($B$3:$AI$36,$E90,AE$59)&"-"&INDEX($B$3:$AI$36,AE$59,$E90) -> 2-7 | AF90: =INDEX($B$3:$AI$36,$E90,AF$59)&"-"&INDEX($B$3:$AI$36,AF$59,$E90) -> - | AG90: =INDEX($B$3:$AI$36,$E90,AG$59)&"-"&INDEX($B$3:$AI$36,AG$59,$E90) -> - | AH90: =INDEX($B$3:$AI$36,$E90,AH$59)&"-"&INDEX($B$3:$AI$36,AH$59,$E90) -> 4-3 | AI90: =INDEX($B$3:$AI$36,$E90,AI$59)&"-"&INDEX($B$3:$AI$36,AI$59,$E90) -> 0-1 | AJ90: =INDEX($B$3:$AI$36,$E90,AJ$59)&"-"&INDEX($B$3:$AI$36,AJ$59,$E90) -> - | AK90: =INDEX($B$3:$AI$36,$E90,AK$59)&"-"&INDEX($B$3:$AI$36,AK$59,$E90) -> - | AL90: =INDEX($B$3:$AI$36,$E90,AL$59)&"-"&INDEX($B$3:$AI$36,AL$59,$E90) -> 7-8 | AM90: =INDEX($B$3:$AI$36,$E90,AM$59)&"-"&INDEX($B$3:$AI$36,AM$59,$E90) -> - | AN90: =INDEX($B$3:$AI$36,$E90,AN$59)&"-"&INDEX($B$3:$AI$36,AN$59,$E90) -> 10-0
A91: 31 | B91: 31 | C91: 31 | D91: 24 | E91: 24 | F91: 324 | G91: =INDEX($B$3:$AI$36,$E91,G$59)&"-"&INDEX($B$3:$AI$36,G$59,$E91) -> - | H91: =INDEX($B$3:$AI$36,$E91,H$59)&"-"&INDEX($B$3:$AI$36,H$59,$E91) -> - | I91: =INDEX($B$3:$AI$36,$E91,I$59)&"-"&INDEX($B$3:$AI$36,I$59,$E91) -> - | J91: =INDEX($B$3:$AI$36,$E91,J$59)&"-"&INDEX($B$3:$AI$36,J$59,$E91) -> - | K91: =INDEX($B$3:$AI$36,$E91,K$59)&"-"&INDEX($B$3:$AI$36,K$59,$E91) -> - | L91: =INDEX($B$3:$AI$36,$E91,L$59)&"-"&INDEX($B$3:$AI$36,L$59,$E91) -> - | M91: =INDEX($B$3:$AI$36,$E91,M$59)&"-"&INDEX($B$3:$AI$36,M$59,$E91) -> - | N91: =INDEX($B$3:$AI$36,$E91,N$59)&"-"&INDEX($B$3:$AI$36,N$59,$E91) -> - | O91: =INDEX($B$3:$AI$36,$E91,O$59)&"-"&INDEX($B$3:$AI$36,O$59,$E91) -> - | P91: =INDEX($B$3:$AI$36,$E91,P$59)&"-"&INDEX($B$3:$AI$36,P$59,$E91) -> - | Q91: =INDEX($B$3:$AI$36,$E91,Q$59)&"-"&INDEX($B$3:$AI$36,Q$59,$E91) -> - | R91: =INDEX($B$3:$AI$36,$E91,R$59)&"-"&INDEX($B$3:$AI$36,R$59,$E91) -> - | S91: =INDEX($B$3:$AI$36,$E91,S$59)&"-"&INDEX($B$3:$AI$36,S$59,$E91) -> - | T91: =INDEX($B$3:$AI$36,$E91,T$59)&"-"&INDEX($B$3:$AI$36,T$59,$E91) -> - | U91: =INDEX($B$3:$AI$36,$E91,U$59)&"-"&INDEX($B$3:$AI$36,U$59,$E91) -> - | V91: =INDEX($B$3:$AI$36,$E91,V$59)&"-"&INDEX($B$3:$AI$36,V$59,$E91) -> - | W91: =INDEX($B$3:$AI$36,$E91,W$59)&"-"&INDEX($B$3:$AI$36,W$59,$E91) -> - | X91: =INDEX($B$3:$AI$36,$E91,X$59)&"-"&INDEX($B$3:$AI$36,X$59,$E91) -> - | Y91: =INDEX($B$3:$AI$36,$E91,Y$59)&"-"&INDEX($B$3:$AI$36,Y$59,$E91) -> 0-10 | Z91: =INDEX($B$3:$AI$36,$E91,Z$59)&"-"&INDEX($B$3:$AI$36,Z$59,$E91) -> - | AA91: =INDEX($B$3:$AI$36,$E91,AA$59)&"-"&INDEX($B$3:$AI$36,AA$59,$E91) -> - | AB91: =INDEX($B$3:$AI$36,$E91,AB$59)&"-"&INDEX($B$3:$AI$36,AB$59,$E91) -> 1-9 | AC91: =INDEX($B$3:$AI$36,$E91,AC$59)&"-"&INDEX($B$3:$AI$36,AC$59,$E91) -> 2-4 | AD91: =INDEX($B$3:$AI$36,$E91,AD$59)&"-"&INDEX($B$3:$AI$36,AD$59,$E91) -> - | AE91: =INDEX($B$3:$AI$36,$E91,AE$59)&"-"&INDEX($B$3:$AI$36,AE$59,$E91) -> - | AF91: =INDEX($B$3:$AI$36,$E91,AF$59)&"-"&INDEX($B$3:$AI$36,AF$59,$E91) -> 0-5 | AG91: =INDEX($B$3:$AI$36,$E91,AG$59)&"-"&INDEX($B$3:$AI$36,AG$59,$E91) -> 1-14 | AH91: =INDEX($B$3:$AI$36,$E91,AH$59)&"-"&INDEX($B$3:$AI$36,AH$59,$E91) -> - | AI91: =INDEX($B$3:$AI$36,$E91,AI$59)&"-"&INDEX($B$3:$AI$36,AI$59,$E91) -> - | AJ91: =INDEX($B$3:$AI$36,$E91,AJ$59)&"-"&INDEX($B$3:$AI$36,AJ$59,$E91) -> - | AK91: =INDEX($B$3:$AI$36,$E91,AK$59)&"-"&INDEX($B$3:$AI$36,AK$59,$E91) -> - | AL91: =INDEX($B$3:$AI$36,$E91,AL$59)&"-"&INDEX($B$3:$AI$36,AL$59,$E91) -> 8-1 | AM91: =INDEX($B$3:$AI$36,$E91,AM$59)&"-"&INDEX($B$3:$AI$36,AM$59,$E91) -> 2-3 | AN91: =INDEX($B$3:$AI$36,$E91,AN$59)&"-"&INDEX($B$3:$AI$36,AN$59,$E91) -> -
A92: 32 | B92: 33 | C92: 32 | D92: 27 | E92: 27 | F92: 327 | G92: =INDEX($B$3:$AI$36,$E92,G$59)&"-"&INDEX($B$3:$AI$36,G$59,$E92) -> - | H92: =INDEX($B$3:$AI$36,$E92,H$59)&"-"&INDEX($B$3:$AI$36,H$59,$E92) -> - | I92: =INDEX($B$3:$AI$36,$E92,I$59)&"-"&INDEX($B$3:$AI$36,I$59,$E92) -> - | J92: =INDEX($B$3:$AI$36,$E92,J$59)&"-"&INDEX($B$3:$AI$36,J$59,$E92) -> - | K92: =INDEX($B$3:$AI$36,$E92,K$59)&"-"&INDEX($B$3:$AI$36,K$59,$E92) -> - | L92: =INDEX($B$3:$AI$36,$E92,L$59)&"-"&INDEX($B$3:$AI$36,L$59,$E92) -> - | M92: =INDEX($B$3:$AI$36,$E92,M$59)&"-"&INDEX($B$3:$AI$36,M$59,$E92) -> - | N92: =INDEX($B$3:$AI$36,$E92,N$59)&"-"&INDEX($B$3:$AI$36,N$59,$E92) -> - | O92: =INDEX($B$3:$AI$36,$E92,O$59)&"-"&INDEX($B$3:$AI$36,O$59,$E92) -> - | P92: =INDEX($B$3:$AI$36,$E92,P$59)&"-"&INDEX($B$3:$AI$36,P$59,$E92) -> - | Q92: =INDEX($B$3:$AI$36,$E92,Q$59)&"-"&INDEX($B$3:$AI$36,Q$59,$E92) -> - | R92: =INDEX($B$3:$AI$36,$E92,R$59)&"-"&INDEX($B$3:$AI$36,R$59,$E92) -> - | S92: =INDEX($B$3:$AI$36,$E92,S$59)&"-"&INDEX($B$3:$AI$36,S$59,$E92) -> - | T92: =INDEX($B$3:$AI$36,$E92,T$59)&"-"&INDEX($B$3:$AI$36,T$59,$E92) -> - | U92: =INDEX($B$3:$AI$36,$E92,U$59)&"-"&INDEX($B$3:$AI$36,U$59,$E92) -> - | V92: =INDEX($B$3:$AI$36,$E92,V$59)&"-"&INDEX($B$3:$AI$36,V$59,$E92) -> - | W92: =INDEX($B$3:$AI$36,$E92,W$59)&"-"&INDEX($B$3:$AI$36,W$59,$E92) -> - | X92: =INDEX($B$3:$AI$36,$E92,X$59)&"-"&INDEX($B$3:$AI$36,X$59,$E92) -> - | Y92: =INDEX($B$3:$AI$36,$E92,Y$59)&"-"&INDEX($B$3:$AI$36,Y$59,$E92) -> 2-12 | Z92: =INDEX($B$3:$AI$36,$E92,Z$59)&"-"&INDEX($B$3:$AI$36,Z$59,$E92) -> - | AA92: =INDEX($B$3:$AI$36,$E92,AA$59)&"-"&INDEX($B$3:$AI$36,AA$59,$E92) -> - | AB92: =INDEX($B$3:$AI$36,$E92,AB$59)&"-"&INDEX($B$3:$AI$36,AB$59,$E92) -> 0-12 | AC92: =INDEX($B$3:$AI$36,$E92,AC$59)&"-"&INDEX($B$3:$AI$36,AC$59,$E92) -> - | AD92: =INDEX($B$3:$AI$36,$E92,AD$59)&"-"&INDEX($B$3:$AI$36,AD$59,$E92) -> 1-10 | AE92: =INDEX($B$3:$AI$36,$E92,AE$59)&"-"&INDEX($B$3:$AI$36,AE$59,$E92) -> 2-11 | AF92: =INDEX($B$3:$AI$36,$E92,AF$59)&"-"&INDEX($B$3:$AI$36,AF$59,$E92) -> - | AG92: =INDEX($B$3:$AI$36,$E92,AG$59)&"-"&INDEX($B$3:$AI$36,AG$59,$E92) -> - | AH92: =INDEX($B$3:$AI$36,$E92,AH$59)&"-"&INDEX($B$3:$AI$36,AH$59,$E92) -> 1-7 | AI92: =INDEX($B$3:$AI$36,$E92,AI$59)&"-"&INDEX($B$3:$AI$36,AI$59,$E92) -> 3-6 | AJ92: =INDEX($B$3:$AI$36,$E92,AJ$59)&"-"&INDEX($B$3:$AI$36,AJ$59,$E92) -> 8-7 | AK92: =INDEX($B$3:$AI$36,$E92,AK$59)&"-"&INDEX($B$3:$AI$36,AK$59,$E92) -> 1-8 | AL92: =INDEX($B$3:$AI$36,$E92,AL$59)&"-"&INDEX($B$3:$AI$36,AL$59,$E92) -> - | AM92: =INDEX($B$3:$AI$36,$E92,AM$59)&"-"&INDEX($B$3:$AI$36,AM$59,$E92) -> 2-0 | AN92: =INDEX($B$3:$AI$36,$E92,AN$59)&"-"&INDEX($B$3:$AI$36,AN$59,$E92) -> -
A93: 33 | B93: 32 | C93: 34 | D93: 26 | E93: 26 | F93: 326 | G93: =INDEX($B$3:$AI$36,$E93,G$59)&"-"&INDEX($B$3:$AI$36,G$59,$E93) -> - | H93: =INDEX($B$3:$AI$36,$E93,H$59)&"-"&INDEX($B$3:$AI$36,H$59,$E93) -> - | I93: =INDEX($B$3:$AI$36,$E93,I$59)&"-"&INDEX($B$3:$AI$36,I$59,$E93) -> - | J93: =INDEX($B$3:$AI$36,$E93,J$59)&"-"&INDEX($B$3:$AI$36,J$59,$E93) -> - | K93: =INDEX($B$3:$AI$36,$E93,K$59)&"-"&INDEX($B$3:$AI$36,K$59,$E93) -> - | L93: =INDEX($B$3:$AI$36,$E93,L$59)&"-"&INDEX($B$3:$AI$36,L$59,$E93) -> - | M93: =INDEX($B$3:$AI$36,$E93,M$59)&"-"&INDEX($B$3:$AI$36,M$59,$E93) -> - | N93: =INDEX($B$3:$AI$36,$E93,N$59)&"-"&INDEX($B$3:$AI$36,N$59,$E93) -> - | O93: =INDEX($B$3:$AI$36,$E93,O$59)&"-"&INDEX($B$3:$AI$36,O$59,$E93) -> - | P93: =INDEX($B$3:$AI$36,$E93,P$59)&"-"&INDEX($B$3:$AI$36,P$59,$E93) -> - | Q93: =INDEX($B$3:$AI$36,$E93,Q$59)&"-"&INDEX($B$3:$AI$36,Q$59,$E93) -> - | R93: =INDEX($B$3:$AI$36,$E93,R$59)&"-"&INDEX($B$3:$AI$36,R$59,$E93) -> - | S93: =INDEX($B$3:$AI$36,$E93,S$59)&"-"&INDEX($B$3:$AI$36,S$59,$E93) -> - | T93: =INDEX($B$3:$AI$36,$E93,T$59)&"-"&INDEX($B$3:$AI$36,T$59,$E93) -> 0-12 | U93: =INDEX($B$3:$AI$36,$E93,U$59)&"-"&INDEX($B$3:$AI$36,U$59,$E93) -> - | V93: =INDEX($B$3:$AI$36,$E93,V$59)&"-"&INDEX($B$3:$AI$36,V$59,$E93) -> - | W93: =INDEX($B$3:$AI$36,$E93,W$59)&"-"&INDEX($B$3:$AI$36,W$59,$E93) -> - | X93: =INDEX($B$3:$AI$36,$E93,X$59)&"-"&INDEX($B$3:$AI$36,X$59,$E93) -> - | Y93: =INDEX($B$3:$AI$36,$E93,Y$59)&"-"&INDEX($B$3:$AI$36,Y$59,$E93) -> - | Z93: =INDEX($B$3:$AI$36,$E93,Z$59)&"-"&INDEX($B$3:$AI$36,Z$59,$E93) -> - | AA93: =INDEX($B$3:$AI$36,$E93,AA$59)&"-"&INDEX($B$3:$AI$36,AA$59,$E93) -> - | AB93: =INDEX($B$3:$AI$36,$E93,AB$59)&"-"&INDEX($B$3:$AI$36,AB$59,$E93) -> 1-17 | AC93: =INDEX($B$3:$AI$36,$E93,AC$59)&"-"&INDEX($B$3:$AI$36,AC$59,$E93) -> - | AD93: =INDEX($B$3:$AI$36,$E93,AD$59)&"-"&INDEX($B$3:$AI$36,AD$59,$E93) -> 1-9 | AE93: =INDEX($B$3:$AI$36,$E93,AE$59)&"-"&INDEX($B$3:$AI$36,AE$59,$E93) -> 1-5 | AF93: =INDEX($B$3:$AI$36,$E93,AF$59)&"-"&INDEX($B$3:$AI$36,AF$59,$E93) -> - | AG93: =INDEX($B$3:$AI$36,$E93,AG$59)&"-"&INDEX($B$3:$AI$36,AG$59,$E93) -> - | AH93: =INDEX($B$3:$AI$36,$E93,AH$59)&"-"&INDEX($B$3:$AI$36,AH$59,$E93) -> - | AI93: =INDEX($B$3:$AI$36,$E93,AI$59)&"-"&INDEX($B$3:$AI$36,AI$59,$E93) -> - | AJ93: =INDEX($B$3:$AI$36,$E93,AJ$59)&"-"&INDEX($B$3:$AI$36,AJ$59,$E93) -> - | AK93: =INDEX($B$3:$AI$36,$E93,AK$59)&"-"&INDEX($B$3:$AI$36,AK$59,$E93) -> 3-2 | AL93: =INDEX($B$3:$AI$36,$E93,AL$59)&"-"&INDEX($B$3:$AI$36,AL$59,$E93) -> 0-2 | AM93: =INDEX($B$3:$AI$36,$E93,AM$59)&"-"&INDEX($B$3:$AI$36,AM$59,$E93) -> - | AN93: =INDEX($B$3:$AI$36,$E93,AN$59)&"-"&INDEX($B$3:$AI$36,AN$59,$E93) -> -
A94: 34 | B94: 34 | C94: 33 | D94: 32 | E94: 32 | F94: 332 | G94: =INDEX($B$3:$AI$36,$E94,G$59)&"-"&INDEX($B$3:$AI$36,G$59,$E94) -> - | H94: =INDEX($B$3:$AI$36,$E94,H$59)&"-"&INDEX($B$3:$AI$36,H$59,$E94) -> - | I94: =INDEX($B$3:$AI$36,$E94,I$59)&"-"&INDEX($B$3:$AI$36,I$59,$E94) -> - | J94: =INDEX($B$3:$AI$36,$E94,J$59)&"-"&INDEX($B$3:$AI$36,J$59,$E94) -> - | K94: =INDEX($B$3:$AI$36,$E94,K$59)&"-"&INDEX($B$3:$AI$36,K$59,$E94) -> - | L94: =INDEX($B$3:$AI$36,$E94,L$59)&"-"&INDEX($B$3:$AI$36,L$59,$E94) -> - | M94: =INDEX($B$3:$AI$36,$E94,M$59)&"-"&INDEX($B$3:$AI$36,M$59,$E94) -> - | N94: =INDEX($B$3:$AI$36,$E94,N$59)&"-"&INDEX($B$3:$AI$36,N$59,$E94) -> - | O94: =INDEX($B$3:$AI$36,$E94,O$59)&"-"&INDEX($B$3:$AI$36,O$59,$E94) -> - | P94: =INDEX($B$3:$AI$36,$E94,P$59)&"-"&INDEX($B$3:$AI$36,P$59,$E94) -> - | Q94: =INDEX($B$3:$AI$36,$E94,Q$59)&"-"&INDEX($B$3:$AI$36,Q$59,$E94) -> - | R94: =INDEX($B$3:$AI$36,$E94,R$59)&"-"&INDEX($B$3:$AI$36,R$59,$E94) -> - | S94: =INDEX($B$3:$AI$36,$E94,S$59)&"-"&INDEX($B$3:$AI$36,S$59,$E94) -> - | T94: =INDEX($B$3:$AI$36,$E94,T$59)&"-"&INDEX($B$3:$AI$36,T$59,$E94) -> - | U94: =INDEX($B$3:$AI$36,$E94,U$59)&"-"&INDEX($B$3:$AI$36,U$59,$E94) -> - | V94: =INDEX($B$3:$AI$36,$E94,V$59)&"-"&INDEX($B$3:$AI$36,V$59,$E94) -> - | W94: =INDEX($B$3:$AI$36,$E94,W$59)&"-"&INDEX($B$3:$AI$36,W$59,$E94) -> - | X94: =INDEX($B$3:$AI$36,$E94,X$59)&"-"&INDEX($B$3:$AI$36,X$59,$E94) -> - | Y94: =INDEX($B$3:$AI$36,$E94,Y$59)&"-"&INDEX($B$3:$AI$36,Y$59,$E94) -> 0-10 | Z94: =INDEX($B$3:$AI$36,$E94,Z$59)&"-"&INDEX($B$3:$AI$36,Z$59,$E94) -> - | AA94: =INDEX($B$3:$AI$36,$E94,AA$59)&"-"&INDEX($B$3:$AI$36,AA$59,$E94) -> - | AB94: =INDEX($B$3:$AI$36,$E94,AB$59)&"-"&INDEX($B$3:$AI$36,AB$59,$E94) -> 0-10 | AC94: =INDEX($B$3:$AI$36,$E94,AC$59)&"-"&INDEX($B$3:$AI$36,AC$59,$E94) -> - | AD94: =INDEX($B$3:$AI$36,$E94,AD$59)&"-"&INDEX($B$3:$AI$36,AD$59,$E94) -> 1-8 | AE94: =INDEX($B$3:$AI$36,$E94,AE$59)&"-"&INDEX($B$3:$AI$36,AE$59,$E94) -> 0-8 | AF94: =INDEX($B$3:$AI$36,$E94,AF$59)&"-"&INDEX($B$3:$AI$36,AF$59,$E94) -> - | AG94: =INDEX($B$3:$AI$36,$E94,AG$59)&"-"&INDEX($B$3:$AI$36,AG$59,$E94) -> - | AH94: =INDEX($B$3:$AI$36,$E94,AH$59)&"-"&INDEX($B$3:$AI$36,AH$59,$E94) -> 1-10 | AI94: =INDEX($B$3:$AI$36,$E94,AI$59)&"-"&INDEX($B$3:$AI$36,AI$59,$E94) -> 4-2 | AJ94: =INDEX($B$3:$AI$36,$E94,AJ$59)&"-"&INDEX($B$3:$AI$36,AJ$59,$E94) -> 0-10 | AK94: =INDEX($B$3:$AI$36,$E94,AK$59)&"-"&INDEX($B$3:$AI$36,AK$59,$E94) -> - | AL94: =INDEX($B$3:$AI$36,$E94,AL$59)&"-"&INDEX($B$3:$AI$36,AL$59,$E94) -> - | AM94: =INDEX($B$3:$AI$36,$E94,AM$59)&"-"&INDEX($B$3:$AI$36,AM$59,$E94) -> - | AN94: =INDEX($B$3:$AI$36,$E94,AN$59)&"-"&INDEX($B$3:$AI$36,AN$59,$E94) -> -

Sheet BantamGamesMatrix
A1: Leave this blank line in here!!!!!
A2: Teams | B2: 401 | C2: 402 | D2: 403 | E2: 404 | F2: 405 | G2: 406 | H2: 407 | I2: 408 | J2: 409 | K2: 410 | L2: 411 | M2: 412 | N2: 413 | O2: 414 | P2: 415 | Q2: 416 | R2: 417 | S2: 418 | T2: 419 | U2: 420 | V2: 421 | W2: 422 | X2: 423 | Y2: 424 | Z2: 425 | AA2: 426
A3: 401 | C3: 5 | D3: 4 | E3: 8 | F3: 3 | G3: 3 | H3: 11 | L3: 8
A4: 402 | B4: 0 | D4: 5 | E4: 1 | F4: 1 | H4: 4 | I4: 2 | J4: 2 | K4: 4 | M4: 2 | N4: 2
A5: 403 | B5: 2 | C5: 3 | E5: 2 | F5: 4 | G5: 1 | I5: 4 | J5: 10 | K5: 9 | N5: 7
A6: 404 | B6: 2 | C6: 3 | D6: 3 | F6: 4 | G6: 1 | H6: 5 | I6: 3 | K6: 5 | L6: 5 | M6: 5 | N6: 4
A7: 405 | B7: 5 | C7: 2 | D7: 3 | E7: 8 | G7: 1 | H7: 6 | I7: 3 | M7: 7
A8: 406 | B8: 4 | D8: 4 | E8: 6 | F8: 2 | H8: 8 | I8: 3 | L8: 2
A9: 407 | B9: 1 | C9: 0 | E9: 2 | F9: 3 | G9: 0 | J9: 3 | K9: 7 | L9: 1 | N9: 3
A10: 408 | C10: 4 | D10: 1 | E10: 1 | F10: 2 | G10: 2 | K10: 4 | L10: 4 | M10: 3 | S10: 11
A11: 409 | C11: 0 | D11: 2 | H11: 1 | L11: 1 | M11: 0 | O11: 1 | P11: 6 | Q11: 4
A12: 410 | C12: 1 | D12: 1 | E12: 3 | H12: 1 | I12: 1 | L12: 1 | M12: 0 | N12: 0 | O12: 2 | P12: 3 | T12: 5
A13: 411 | B13: 1 | E13: 0 | G13: 2 | H13: 4 | I13: 1 | J13: 6 | K13: 3 | N13: 5 | O13: 1
A14: 412 | C14: 0 | E14: 2 | F14: 2 | I14: 1 | J14: 10 | K14: 10 | N14: 7 | O14: 5 | R14: 13
A15: 413 | C15: 0 | D15: 1 | E15: 3 | H15: 7 | K15: 8 | L15: 3 | M15: 1 | O15: 4 | P15: 8 | Q15: 6
A16: 414 | J16: 8 | K16: 7 | L16: 4 | M16: 2 | N16: 4 | P16: 10 | Q16: 11 | R16: 12 | X16: 10
A17: 415 | J17: 4 | K17: 5 | N17: 2 | O17: 1 | Q17: 7 | R17: 8 | S17: 5 | Y17: 12
A18: 416 | J18: 2 | N18: 5 | O18: 2 | P18: 5 | R18: 10 | S18: 6 | T18: 1 | V18: 8
A19: 417 | M19: 0 | O19: 2 | P19: 0 | Q19: 2 | S19: 7 | T19: 7 | U19: 6 | V19: 4 | W19: 10 | X19: 3
A20: 418 | I20: 1 | P20: 0 | Q20: 2 | R20: 1 | U20: 6 | V20: 2 | W20: 10 | AA20: 4
A21: 419 | K21: 1 | Q21: 2 | R21: 4 | V21: 3 | Z21: 11 | AA21: 3
A22: 420 | R22: 0 | S22: 3 | V22: 6 | W22: 5 | X22: 4 | Z22: 8 | AA22: 8
A23: 421 | Q23: 0 | R23: 3 | S23: 2 | T23: 0 | U23: 0 | W23: 4 | X23: 3 | Y23: 2 | Z23: 3 | AA23: 3
A24: 422 | R24: 0 | S24: 0 | U24: 0 | V24: 0 | X24: 6 | Y24: 0 | Z24: 3 | AA24: 8
A25: 423 | O25: 0 | R25: 2 | U25: 2 | V25: 1 | W25: 6 | Y25: 1 | Z25: 5 | AA25: 3
A26: 424 | P26: 2 | V26: 2 | W26: 2 | X26: 1 | Z26: 3 | AA26: 8
A27: 425 | T27: 1 | U27: 0 | V27: 2 | W27: 7 | X27: 5 | Y27: 3 | AA27: 1
A28: 426 | S28: 3 | T28: 2 | U28: 0 | V28: 5 | W28: 16 | X28: 4 | Y28: 7 | Z28: 7
K37: From | L37: B3:AE32
K38: To | L38: B3:AA28
F47: CSHL | G47: 1 | H47: 2 | I47: 3 | J47: 4 | K47: 5 | L47: 6 | M47: 7 | N47: 8 | O47: 9 | P47: 10 | Q47: 11 | R47: 12 | S47: 13 | T47: 14 | U47: 15 | V47: 16 | W47: 17 | X47: 18 | Y47: 19 | Z47: 20 | AA47: 21 | AB47: 22 | AC47: 23 | AD47: 24 | AE47: 25 | AF47: 26
F48: MW | G48: 1 | H48: 2 | I48: 3 | J48: 4 | K48: 5 | L48: 7 | M48: 8 | N48: 6 | O48: 9 | P48: 10 | Q48: 11 | R48: 12 | S48: 15 | T48: 13 | U48: 14 | V48: 16 | W48: 18 | X48: 17 | Y48: 19 | Z48: 20 | AA48: 21 | AB48: 22 | AC48: 23 | AD48: 24 | AE48: 25 | AF48: 26
F49: Walkush | G49: 2 | H49: 1 | I49: 3 | J49: 5 | K49: 4 | L49: 6 | M49: 7 | N49: 9 | O49: 10 | P49: 8 | Q49: 11 | R49: 12 | S49: 13 | T49: 14 | U49: 15 | V49: 16 | W49: 17 | X49: 18 | Y49: 20 | Z49: 19 | AA49: 21 | AB49: 23 | AC49: 22 | AD49: 24 | AE49: 25 | AF49: 26
F50: Custom | G50: 1 | H50: 6 | I50: 5 | J50: 3 | K50: 4 | L50: 8 | M50: 2 | N50: 12 | O50: 14 | P50: 11 | Q50: 13 | R50: 7 | S50: 10 | T50: 15 | U50: 9 | V50: 16 | W50: 19 | X50: 17 | Y50: 20 | Z50: 18 | AA50: 26 | AB50: 21 | AC50: 24 | AD50: 23 | AE50: 25 | AF50: 22
E51: Index | F51: Index | G51: 1 | H51: 6 | I51: 5 | J51: 3 | K51: 4 | L51: 8 | M51: 2 | N51: 12 | O51: 14 | P51: 11 | Q51: 13 | R51: 7 | S51: 10 | T51: 15 | U51: 9 | V51: 16 | W51: 19 | X51: 17 | Y51: 20 | Z51: 18 | AA51: 26 | AB51: 21 | AC51: 24 | AD51: 23 | AE51: 25 | AF51: 22
A52: CSHL | B52: MW | C52: Walkush | D52: Custom | E52: Index | F52: Team | G52: 401 | H52: 406 | I52: 405 | J52: 403 | K52: 404 | L52: 408 | M52: 402 | N52: 412 | O52: 414 | P52: 411 | Q52: 413 | R52: 407 | S52: 410 | T52: 415 | U52: 409 | V52: 416 | W52: 419 | X52: 417 | Y52: 420 | Z52: 418 | AA52: 426 | AB52: 421 | AC52: 424 | AD52: 423 | AE52: 425 | AF52: 422
A53: 1 | B53: 1 | C53: 2 | D53: 1 | E53: 1 | F53: 401 | G53: =INDEX($B$3:$AA$28,$E53,G$51)&"-"&INDEX($B$3:$AA$28,G$51,$E53) -> - | H53: =INDEX($B$3:$AA$28,$E53,H$51)&"-"&INDEX($B$3:$AA$28,H$51,$E53) -> 3-4 | I53: =INDEX($B$3:$AA$28,$E53,I$51)&"-"&INDEX($B$3:$AA$28,I$51,$E53) -> 3-5 | J53: =INDEX($B$3:$AA$28,$E53,J$51)&"-"&INDEX($B$3:$AA$28,J$51,$E53) -> 4-2 | K53: =INDEX($B$3:$AA$28,$E53,K$51)&"-"&INDEX($B$3:$AA$28,K$51,$E53) -> 8-2 | L53: =INDEX($B$3:$AA$28,$E53,L$51)&"-"&INDEX($B$3:$AA$28,L$51,$E53) -> - | M53: =INDEX($B$3:$AA$28,$E53,M$51)&"-"&INDEX($B$3:$AA$28,M$51,$E53) -> 5-0 | N53: =INDEX($B$3:$AA$28,$E53,N$51)&"-"&INDEX($B$3:$AA$28,N$51,$E53) -> - | O53: =INDEX($B$3:$AA$28,$E53,O$51)&"-"&INDEX($B$3:$AA$28,O$51,$E53) -> - | P53: =INDEX($B$3:$AA$28,$E53,P$51)&"-"&INDEX($B$3:$AA$28,P$51,$E53) -> 8-1 | Q53: =INDEX($B$3:$AA$28,$E53,Q$51)&"-"&INDEX($B$3:$AA$28,Q$51,$E53) -> - | R53: =INDEX($B$3:$AA$28,$E53,R$51)&"-"&INDEX($B$3:$AA$28,R$51,$E53) -> 11-1 | S53: =INDEX($B$3:$AA$28,$E53,S$51)&"-"&INDEX($B$3:$AA$28,S$51,$E53) -> - | T53: =INDEX($B$3:$AA$28,$E53,T$51)&"-"&INDEX($B$3:$AA$28,T$51,$E53) -> - | U53: =INDEX($B$3:$AA$28,$E53,U$51)&"-"&INDEX($B$3:$AA$28,U$51,$E53) -> - | V53: =INDEX($B$3:$AA$28,$E53,V$51)&"-"&INDEX($B$3:$AA$28,V$51,$E53) -> - | W53: =INDEX($B$3:$AA$28,$E53,W$51)&"-"&INDEX($B$3:$AA$28,W$51,$E53) -> - | X53: =INDEX($B$3:$AA$28,$E53,X$51)&"-"&INDEX($B$3:$AA$28,X$51,$E53) -> - | Y53: =INDEX($B$3:$AA$28,$E53,Y$51)&"-"&INDEX($B$3:$AA$28,Y$51,$E53) -> - | Z53: =INDEX($B$3:$AA$28,$E53,Z$51)&"-"&INDEX($B$3:$AA$28,Z$51,$E53) -> - | AA53: =INDEX($B$3:$AA$28,$E53,AA$51)&"-"&INDEX($B$3:$AA$28,AA$51,$E53) -> - | AB53: =INDEX($B$3:$AA$28,$E53,AB$51)&"-"&INDEX($B$3:$AA$28,AB$51,$E53) -> - | AC53: =INDEX($B$3:$AA$28,$E53,AC$51)&"-"&INDEX($B$3:$AA$28,AC$51,$E53) -> - | AD53: =INDEX($B$3:$AA$28,$E53,AD$51)&"-"&INDEX($B$3:$AA$28,AD$51,$E53) -> - | AE53: =INDEX($B$3:$AA$28,$E53,AE$51)&"-"&INDEX($B$3:$AA$28,AE$51,$E53) -> - | AF53: =INDEX($B$3:$AA$28,$E53,AF$51)&"-"&INDEX($B$3:$AA$28,AF$51,$E53) -> -
A54: 2 | B54: 2 | C54: 1 | D54: 6 | E54: 6 | F54: 406 | G54: =INDEX($B$3:$AA$28,$E54,G$51)&"-"&INDEX($B$3:$AA$28,G$51,$E54) -> 4-3 | H54: =INDEX($B$3:$AA$28,$E54,H$51)&"-"&INDEX($B$3:$AA$28,H$51,$E54) -> - | I54: =INDEX($B$3:$AA$28,$E54,I$51)&"-"&INDEX($B$3:$AA$28,I$51,$E54) -> 2-1 | J54: =INDEX($B$3:$AA$28,$E54,J$51)&"-"&INDEX($B$3:$AA$28,J$51,$E54) -> 4-1 | K54: =INDEX($B$3:$AA$28,$E54,K$51)&"-"&INDEX($B$3:$AA$28,K$51,$E54) -> 6-1 | L54: =INDEX($B$3:$AA$28,$E54,L$51)&"-"&INDEX($B$3:$AA$28,L$51,$E54) -> 3-2 | M54: =INDEX($B$3:$AA$28,$E54,M$51)&"-"&INDEX($B$3:$AA$28,M$51,$E54) -> - | N54: =INDEX($B$3:$AA$28,$E54,N$51)&"-"&INDEX($B$3:$AA$28,N$51,$E54) -> - | O54: =INDEX($B$3:$AA$28,$E54,O$51)&"-"&INDEX($B$3:$AA$28,O$51,$E54) -> - | P54: =INDEX($B$3:$AA$28,$E54,P$51)&"-"&INDEX($B$3:$AA$28,P$51,$E54) -> 2-2 | Q54: =INDEX($B$3:$AA$28,$E54,Q$51)&"-"&INDEX($B$3:$AA$28,Q$51,$E54) -> - | R54: =INDEX($B$3:$AA$28,$E54,R$51)&"-"&INDEX($B$3:$AA$28,R$51,$E54) -> 8-0 | S54: =INDEX($B$3:$AA$28,$E54,S$51)&"-"&INDEX($B$3:$AA$28,S$51,$E54) -> - | T54: =INDEX($B$3:$AA$28,$E54,T$51)&"-"&INDEX($B$3:$AA$28,T$51,$E54) -> - | U54: =INDEX($B$3:$AA$28,$E54,U$51)&"-"&INDEX($B$3:$AA$28,U$51,$E54) -> - | V54: =INDEX($B$3:$AA$28,$E54,V$51)&"-"&INDEX($B$3:$AA$28,V$51,$E54) -> - | W54: =INDEX($B$3:$AA$28,$E54,W$51)&"-"&INDEX($B$3:$AA$28,W$51,$E54) -> - | X54: =INDEX($B$3:$AA$28,$E54,X$51)&"-"&INDEX($B$3:$AA$28,X$51,$E54) -> - | Y54: =INDEX($B$3:$AA$28,$E54,Y$51)&"-"&INDEX($B$3:$AA$28,Y$51,$E54) -> - | Z54: =INDEX($B$3:$AA$28,$E54,Z$51)&"-"&INDEX($B$3:$AA$28,Z$51,$E54) -> - | AA54: =INDEX($B$3:$AA$28,$E54,AA$51)&"-"&INDEX($B$3:$AA$28,AA$51,$E54) -> - | AB54: =INDEX($B$3:$AA$28,$E54,AB$51)&"-"&INDEX($B$3:$AA$28,AB$51,$E54) -> - | AC54: =INDEX($B$3:$AA$28,$E54,AC$51)&"-"&INDEX($B$3:$AA$28,AC$51,$E54) -> - | AD54: =INDEX($B$3:$AA$28,$E54,AD$51)&"-"&INDEX($B$3:$AA$28,AD$51,$E54) -> - | AE54: =INDEX($B$3:$AA$28,$E54,AE$51)&"-"&INDEX($B$3:$AA$28,AE$51,$E54) -> - | AF54: =INDEX($B$3:$AA$28,$E54,AF$51)&"-"&INDEX($B$3:$AA$28,AF$51,$E54) -> -
A55: 3 | B55: 3 | C55: 3 | D55: 5 | E55: 5 | F55: 405 | G55: =INDEX($B$3:$AA$28,$E55,G$51)&"-"&INDEX($B$3:$AA$28,G$51,$E55) -> 5-3 | H55: =INDEX($B$3:$AA$28,$E55,H$51)&"-"&INDEX($B$3:$AA$28,H$51,$E55) -> 1-2 | I55: =INDEX($B$3:$AA$28,$E55,I$51)&"-"&INDEX($B$3:$AA$28,I$51,$E55) -> - | J55: =INDEX($B$3:$AA$28,$E55,J$51)&"-"&INDEX($B$3:$AA$28,J$51,$E55) -> 3-4 | K55: =INDEX($B$3:$AA$28,$E55,K$51)&"-"&INDEX($B$3:$AA$28,K$51,$E55) -> 8-4 | L55: =INDEX($B$3:$AA$28,$E55,L$51)&"-"&INDEX($B$3:$AA$28,L$51,$E55) -> 3-2 | M55: =INDEX($B$3:$AA$28,$E55,M$51)&"-"&INDEX($B$3:$AA$28,M$51,$E55) -> 2-1 | N55: =INDEX($B$3:$AA$28,$E55,N$51)&"-"&INDEX($B$3:$AA$28,N$51,$E55) -> 7-2 | O55: =INDEX($B$3:$AA$28,$E55,O$51)&"-"&INDEX($B$3:$AA$28,O$51,$E55) -> - | P55: =INDEX($B$3:$AA$28,$E55,P$51)&"-"&INDEX($B$3:$AA$28,P$51,$E55) -> - | Q55: =INDEX($B$3:$AA$28,$E55,Q$51)&"-"&INDEX($B$3:$AA$28,Q$51,$E55) -> - | R55: =INDEX($B$3:$AA$28,$E55,R$51)&"-"&INDEX($B$3:$AA$28,R$51,$E55) -> 6-3 | S55: =INDEX($B$3:$AA$28,$E55,S$51)&"-"&INDEX($B$3:$AA$28,S$51,$E55) -> - | T55: =INDEX($B$3:$AA$28,$E55,T$51)&"-"&INDEX($B$3:$AA$28,T$51,$E55) -> - | U55: =INDEX($B$3:$AA$28,$E55,U$51)&"-"&INDEX($B$3:$AA$28,U$51,$E55) -> - | V55: =INDEX($B$3:$AA$28,$E55,V$51)&"-"&INDEX($B$3:$AA$28,V$51,$E55) -> - | W55: =INDEX($B$3:$AA$28,$E55,W$51)&"-"&INDEX($B$3:$AA$28,W$51,$E55) -> - | X55: =INDEX($B$3:$AA$28,$E55,X$51)&"-"&INDEX($B$3:$AA$28,X$51,$E55) -> - | Y55: =INDEX($B$3:$AA$28,$E55,Y$51)&"-"&INDEX($B$3:$AA$28,Y$51,$E55) -> - | Z55: =INDEX($B$3:$AA$28,$E55,Z$51)&"-"&INDEX($B$3:$AA$28,Z$51,$E55) -> - | AA55: =INDEX($B$3:$AA$28,$E55,AA$51)&"-"&INDEX($B$3:$AA$28,AA$51,$E55) -> - | AB55: =INDEX($B$3:$AA$28,$E55,AB$51)&"-"&INDEX($B$3:$AA$28,AB$51,$E55) -> - | AC55: =INDEX($B$3:$AA$28,$E55,AC$51)&"-"&INDEX($B$3:$AA$28,AC$51,$E55) -> - | AD55: =INDEX($B$3:$AA$28,$E55,AD$51)&"-"&INDEX($B$3:$AA$28,AD$51,$E55) -> - | AE55: =INDEX($B$3:$AA$28,$E55,AE$51)&"-"&INDEX($B$3:$AA$28,AE$51,$E55) -> - | AF55: =INDEX($B$3:$AA$28,$E55,AF$51)&"-"&INDEX($B$3:$AA$28,AF$51,$E55) -> -
A56: 4 | B56: 4 | C56: 5 | D56: 3 | E56: 3 | F56: 403 | G56: =INDEX($B$3:$AA$28,$E56,G$51)&"-"&INDEX($B$3:$AA$28,G$51,$E56) -> 2-4 | H56: =INDEX($B$3:$AA$28,$E56,H$51)&"-"&INDEX($B$3:$AA$28,H$51,$E56) -> 1-4 | I56: =INDEX($B$3:$AA$28,$E56,I$51)&"-"&INDEX($B$3:$AA$28,I$51,$E56) -> 4-3 | J56: =INDEX($B$3:$AA$28,$E56,J$51)&"-"&INDEX($B$3:$AA$28,J$51,$E56) -> - | K56: =INDEX($B$3:$AA$28,$E56,K$51)&"-"&INDEX($B$3:$AA$28,K$51,$E56) -> 2-3 | L56: =INDEX($B$3:$AA$28,$E56,L$51)&"-"&INDEX($B$3:$AA$28,L$51,$E56) -> 4-1 | M56: =INDEX($B$3:$AA$28,$E56,M$51)&"-"&INDEX($B$3:$AA$28,M$51,$E56) -> 3-5 | N56: =INDEX($B$3:$AA$28,$E56,N$51)&"-"&INDEX($B$3:$AA$28,N$51,$E56) -> - | O56: =INDEX($B$3:$AA$28,$E56,O$51)&"-"&INDEX($B$3:$AA$28,O$51,$E56) -> - | P56: =INDEX($B$3:$AA$28,$E56,P$51)&"-"&INDEX($B$3:$AA$28,P$51,$E56) -> - | Q56: =INDEX($B$3:$AA$28,$E56,Q$51)&"-"&INDEX($B$3:$AA$28,Q$51,$E56) -> 7-1 | R56: =INDEX($B$3:$AA$28,$E56,R$51)&"-"&INDEX($B$3:$AA$28,R$51,$E56) -> - | S56: =INDEX($B$3:$AA$28,$E56,S$51)&"-"&INDEX($B$3:$AA$28,S$51,$E56) -> 9-1 | T56: =INDEX($B$3:$AA$28,$E56,T$51)&"-"&INDEX($B$3:$AA$28,T$51,$E56) -> - | U56: =INDEX($B$3:$AA$28,$E56,U$51)&"-"&INDEX($B$3:$AA$28,U$51,$E56) -> 10-2 | V56: =INDEX($B$3:$AA$28,$E56,V$51)&"-"&INDEX($B$3:$AA$28,V$51,$E56) -> - | W56: =INDEX($B$3:$AA$28,$E56,W$51)&"-"&INDEX($B$3:$AA$28,W$51,$E56) -> - | X56: =INDEX($B$3:$AA$28,$E56,X$51)&"-"&INDEX($B$3:$AA$28,X$51,$E56) -> - | Y56: =INDEX($B$3:$AA$28,$E56,Y$51)&"-"&INDEX($B$3:$AA$28,Y$51,$E56) -> - | Z56: =INDEX($B$3:$AA$28,$E56,Z$51)&"-"&INDEX($B$3:$AA$28,Z$51,$E56) -> - | AA56: =INDEX($B$3:$AA$28,$E56,AA$51)&"-"&INDEX($B$3:$AA$28,AA$51,$E56) -> - | AB56: =INDEX($B$3:$AA$28,$E56,AB$51)&"-"&INDEX($B$3:$AA$28,AB$51,$E56) -> - | AC56: =INDEX($B$3:$AA$28,$E56,AC$51)&"-"&INDEX($B$3:$AA$28,AC$51,$E56) -> - | AD56: =INDEX($B$3:$AA$28,$E56,AD$51)&"-"&INDEX($B$3:$AA$28,AD$51,$E56) -> - | AE56: =INDEX($B$3:$AA$28,$E56,AE$51)&"-"&INDEX($B$3:$AA$28,AE$51,$E56) -> - | AF56: =INDEX($B$3:$AA$28,$E56,AF$51)&"-"&INDEX($B$3:$AA$28,AF$51,$E56) -> -
A57: 5 | B57: 5 | C57: 4 | D57: 4 | E57: 4 | F57: 404 | G57: =INDEX($B$3:$AA$28,$E57,G$51)&"-"&INDEX($B$3:$AA$28,G$51,$E57) -> 2-8 | H57: =INDEX($B$3:$AA$28,$E57,H$51)&"-"&INDEX($B$3:$AA$28,H$51,$E57) -> 1-6 | I57: =INDEX($B$3:$AA$28,$E57,I$51)&"-"&INDEX($B$3:$AA$28,I$51,$E57) -> 4-8 | J57: =INDEX($B$3:$AA$28,$E57,J$51)&"-"&INDEX($B$3:$AA$28,J$51,$E57) -> 3-2 | K57: =INDEX($B$3:$AA$28,$E57,K$51)&"-"&INDEX($B$3:$AA$28,K$51,$E57) -> - | L57: =INDEX($B$3:$AA$28,$E57,L$51)&"-"&INDEX($B$3:$AA$28,L$51,$E57) -> 3-1 | M57: =INDEX($B$3:$AA$28,$E57,M$51)&"-"&INDEX($B$3:$AA$28,M$51,$E57) -> 3-1 | N57: =INDEX($B$3:$AA$28,$E57,N$51)&"-"&INDEX($B$3:$AA$28,N$51,$E57) -> 5-2 | O57: =INDEX($B$3:$AA$28,$E57,O$51)&"-"&INDEX($B$3:$AA$28,O$51,$E57) -> - | P57: =INDEX($B$3:$AA$28,$E57,P$51)&"-"&INDEX($B$3:$AA$28,P$51,$E57) -> 5-0 | Q57: =INDEX($B$3:$AA$28,$E57,Q$51)&"-"&INDEX($B$3:$AA$28,Q$51,$E57) -> 4-3 | R57: =INDEX($B$3:$AA$28,$E57,R$51)&"-"&INDEX($B$3:$AA$28,R$51,$E57) -> 5-2 | S57: =INDEX($B$3:$AA$28,$E57,S$51)&"-"&INDEX($B$3:$AA$28,S$51,$E57) -> 5-3 | T57: =INDEX($B$3:$AA$28,$E57,T$51)&"-"&INDEX($B$3:$AA$28,T$51,$E57) -> - | U57: =INDEX($B$3:$AA$28,$E57,U$51)&"-"&INDEX($B$3:$AA$28,U$51,$E57) -> - | V57: =INDEX($B$3:$AA$28,$E57,V$51)&"-"&INDEX($B$3:$AA$28,V$51,$E57) -> - | W57: =INDEX($B$3:$AA$28,$E57,W$51)&"-"&INDEX($B$3:$AA$28,W$51,$E57) -> - | X57: =INDEX($B$3:$AA$28,$E57,X$51)&"-"&INDEX($B$3:$AA$28,X$51,$E57) -> - | Y57: =INDEX($B$3:$AA$28,$E57,Y$51)&"-"&INDEX($B$3:$AA$28,Y$51,$E57) -> - | Z57: =INDEX($B$3:$AA$28,$E57,Z$51)&"-"&INDEX($B$3:$AA$28,Z$51,$E57) -> - | AA57: =INDEX($B$3:$AA$28,$E57,AA$51)&"-"&INDEX($B$3:$AA$28,AA$51,$E57) -> - | AB57: =INDEX($B$3:$AA$28,$E57,AB$51)&"-"&INDEX($B$3:$AA$28,AB$51,$E57) -> - | AC57: =INDEX($B$3:$AA$28,$E57,AC$51)&"-"&INDEX($B$3:$AA$28,AC$51,$E57) -> - | AD57: =INDEX($B$3:$AA$28,$E57,AD$51)&"-"&INDEX($B$3:$AA$28,AD$51,$E57) -> - | AE57: =INDEX($B$3:$AA$28,$E57,AE$51)&"-"&INDEX($B$3:$AA$28,AE$51,$E57) -> - | AF57: =INDEX($B$3:$AA$28,$E57,AF$51)&"-"&INDEX($B$3:$AA$28,AF$51,$E57) -> -
A58: 6 | B58: 7 | C58: 6 | D58: 8 | E58: 8 | F58: 408 | G58: =INDEX($B$3:$AA$28,$E58,G$51)&"-"&INDEX($B$3:$AA$28,G$51,$E58) -> - | H58: =INDEX($B$3:$AA$28,$E58,H$51)&"-"&INDEX($B$3:$AA$28,H$51,$E58) -> 2-3 | I58: =INDEX($B$3:$AA$28,$E58,I$51)&"-"&INDEX($B$3:$AA$28,I$51,$E58) -> 2-3 | J58: =INDEX($B$3:$AA$28,$E58,J$51)&"-"&INDEX($B$3:$AA$28,J$51,$E58) -> 1-4 | K58: =INDEX($B$3:$AA$28,$E58,K$51)&"-"&INDEX($B$3:$AA$28,K$51,$E58) -> 1-3 | L58: =INDEX($B$3:$AA$28,$E58,L$51)&"-"&INDEX($B$3:$AA$28,L$51,$E58) -> - | M58: =INDEX($B$3:$AA$28,$E58,M$51)&"-"&INDEX($B$3:$AA$28,M$51,$E58) -> 4-2 | N58: =INDEX($B$3:$AA$28,$E58,N$51)&"-"&INDEX($B$3:$AA$28,N$51,$E58) -> 3-1 | O58: =INDEX($B$3:$AA$28,$E58,O$51)&"-"&INDEX($B$3:$AA$28,O$51,$E58) -> - | P58: =INDEX($B$3:$AA$28,$E58,P$51)&"-"&INDEX($B$3:$AA$28,P$51,$E58) -> 4-1 | Q58: =INDEX($B$3:$AA$28,$E58,Q$51)&"-"&INDEX($B$3:$AA$28,Q$51,$E58) -> - | R58: =INDEX($B$3:$AA$28,$E58,R$51)&"-"&INDEX($B$3:$AA$28,R$51,$E58) -> - | S58: =INDEX($B$3:$AA$28,$E58,S$51)&"-"&INDEX($B$3:$AA$28,S$51,$E58) -> 4-1 | T58: =INDEX($B$3:$AA$28,$E58,T$51)&"-"&INDEX($B$3:$AA$28,T$51,$E58) -> - | U58: =INDEX($B$3:$AA$28,$E58,U$51)&"-"&INDEX($B$3:$AA$28,U$51,$E58) -> - | V58: =INDEX($B$3:$AA$28,$E58,V$51)&"-"&INDEX($B$3:$AA$28,V$51,$E58) -> - | W58: =INDEX($B$3:$AA$28,$E58,W$51)&"-"&INDEX($B$3:$AA$28,W$51,$E58) -> - | X58: =INDEX($B$3:$AA$28,$E58,X$51)&"-"&INDEX($B$3:$AA$28,X$51,$E58) -> - | Y58: =INDEX($B$3:$AA$28,$E58,Y$51)&"-"&INDEX($B$3:$AA$28,Y$51,$E58) -> - | Z58: =INDEX($B$3:$AA$28,$E58,Z$51)&"-"&INDEX($B$3:$AA$28,Z$51,$E58) -> 11-1 | AA58: =INDEX($B$3:$AA$28,$E58,AA$51)&"-"&INDEX($B$3:$AA$28,AA$51,$E58) -> - | AB58: =INDEX($B$3:$AA$28,$E58,AB$51)&"-"&INDEX($B$3:$AA$28,AB$51,$E58) -> - | AC58: =INDEX($B$3:$AA$28,$E58,AC$51)&"-"&INDEX($B$3:$AA$28,AC$51,$E58) -> - | AD58: =INDEX($B$3:$AA$28,$E58,AD$51)&"-"&INDEX($B$3:$AA$28,AD$51,$E58) -> - | AE58: =INDEX($B$3:$AA$28,$E58,AE$51)&"-"&INDEX($B$3:$AA$28,AE$51,$E58) -> - | AF58: =INDEX($B$3:$AA$28,$E58,AF$51)&"-"&INDEX($B$3:$AA$28,AF$51,$E58) -> -
A59: 7 | B59: 8 | C59: 7 | D59: 2 | E59: 2 | F59: 402 | G59: =INDEX($B$3:$AA$28,$E59,G$51)&"-"&INDEX($B$3:$AA$28,G$51,$E59) -> 0-5 | H59: =INDEX($B$3:$AA$28,$E59,H$51)&"-"&INDEX($B$3:$AA$28,H$51,$E59) -> - | I59: =INDEX($B$3:$AA$28,$E59,I$51)&"-"&INDEX($B$3:$AA$28,I$51,$E59) -> 1-2 | J59: =INDEX($B$3:$AA$28,$E59,J$51)&"-"&INDEX($B$3:$AA$28,J$51,$E59) -> 5-3 | K59: =INDEX($B$3:$AA$28,$E59,K$51)&"-"&INDEX($B$3:$AA$28,K$51,$E59) -> 1-3 | L59: =INDEX($B$3:$AA$28,$E59,L$51)&"-"&INDEX($B$3:$AA$28,L$51,$E59) -> 2-4 | M59: =INDEX($B$3:$AA$28,$E59,M$51)&"-"&INDEX($B$3:$AA$28,M$51,$E59) -> - | N59: =INDEX($B$3:$AA$28,$E59,N$51)&"-"&INDEX($B$3:$AA$28,N$51,$E59) -> 2-0 | O59: =INDEX($B$3:$AA$28,$E59,O$51)&"-"&INDEX($B$3:$AA$28,O$51,$E59) -> - | P59: =INDEX($B$3:$AA$28,$E59,P$51)&"-"&INDEX($B$3:$AA$28,P$51,$E59) -> - | Q59: =INDEX($B$3:$AA$28,$E59,Q$51)&"-"&INDEX($B$3:$AA$28,Q$51,$E59) -> 2-0 | R59: =INDEX($B$3:$AA$28,$E59,R$51)&"-"&INDEX($B$3:$AA$28,R$51,$E59) -> 4-0 | S59: =INDEX($B$3:$AA$28,$E59,S$51)&"-"&INDEX($B$3:$AA$28,S$51,$E59) -> 4-1 | T59: =INDEX($B$3:$AA$28,$E59,T$51)&"-"&INDEX($B$3:$AA$28,T$51,$E59) -> - | U59: =INDEX($B$3:$AA$28,$E59,U$51)&"-"&INDEX($B$3:$AA$28,U$51,$E59) -> 2-0 | V59: =INDEX($B$3:$AA$28,$E59,V$51)&"-"&INDEX($B$3:$AA$28,V$51,$E59) -> - | W59: =INDEX($B$3:$AA$28,$E59,W$51)&"-"&INDEX($B$3:$AA$28,W$51,$E59) -> - | X59: =INDEX($B$3:$AA$28,$E59,X$51)&"-"&INDEX($B$3:$AA$28,X$51,$E59) -> - | Y59: =INDEX($B$3:$AA$28,$E59,Y$51)&"-"&INDEX($B$3:$AA$28,Y$51,$E59) -> - | Z59: =INDEX($B$3:$AA$28,$E59,Z$51)&"-"&INDEX($B$3:$AA$28,Z$51,$E59) -> - | AA59: =INDEX($B$3:$AA$28,$E59,AA$51)&"-"&INDEX($B$3:$AA$28,AA$51,$E59) -> - | AB59: =INDEX($B$3:$AA$28,$E59,AB$51)&"-"&INDEX($B$3:$AA$28,AB$51,$E59) -> - | AC59: =INDEX($B$3:$AA$28,$E59,AC$51)&"-"&INDEX($B$3:$AA$28,AC$51,$E59) -> - | AD59: =INDEX($B$3:$AA$28,$E59,AD$51)&"-"&INDEX($B$3:$AA$28,AD$51,$E59) -> - | AE59: =INDEX($B$3:$AA$28,$E59,AE$51)&"-"&INDEX($B$3:$AA$28,AE$51,$E59) -> - | AF59: =INDEX($B$3:$AA$28,$E59,AF$51)&"-"&INDEX($B$3:$AA$28,AF$51,$E59) -> -
A60: 8 | B60: 6 | C60: 9 | D60: 12 | E60: 12 | F60: 412 | G60: =INDEX($B$3:$AA$28,$E60,G$51)&"-"&INDEX($B$3:$AA$28,G$51,$E60) -> - | H60: =INDEX($B$3:$AA$28,$E60,H$51)&"-"&INDEX($B$3:$AA$28,H$51,$E60) -> - | I60: =INDEX($B$3:$AA$28,$E60,I$51)&"-"&INDEX($B$3:$AA$28,I$51,$E60) -> 2-7 | J60: =INDEX($B$3:$AA$28,$E60,J$51)&"-"&INDEX($B$3:$AA$28,J$51,$E60) -> - | K60: =INDEX($B$3:$AA$28,$E60,K$51)&"-"&INDEX($B$3:$AA$28,K$51,$E60) -> 2-5 | L60: =INDEX($B$3:$AA$28,$E60,L$51)&"-"&INDEX($B$3:$AA$28,L$51,$E60) -> 1-3 | M60: =INDEX($B$3:$AA$28,$E60,M$51)&"-"&INDEX($B$3:$AA$28,M$51,$E60) -> 0-2 | N60: =INDEX($B$3:$AA$28,$E60,N$51)&"-"&INDEX($B$3:$AA$28,N$51,$E60) -> - | O60: =INDEX($B$3:$AA$28,$E60,O$51)&"-"&INDEX($B$3:$AA$28,O$51,$E60) -> 5-2 | P60: =INDEX($B$3:$AA$28,$E60,P$51)&"-"&INDEX($B$3:$AA$28,P$51,$E60) -> - | Q60: =INDEX($B$3:$AA$28,$E60,Q$51)&"-"&INDEX($B$3:$AA$28,Q$51,$E60) -> 7-1 | R60: =INDEX($B$3:$AA$28,$E60,R$51)&"-"&INDEX($B$3:$AA$28,R$51,$E60) -> - | S60: =INDEX($B$3:$AA$28,$E60,S$51)&"-"&INDEX($B$3:$AA$28,S$51,$E60) -> 10-0 | T60: =INDEX($B$3:$AA$28,$E60,T$51)&"-"&INDEX($B$3:$AA$28,T$51,$E60) -> - | U60: =INDEX($B$3:$AA$28,$E60,U$51)&"-"&INDEX($B$3:$AA$28,U$51,$E60) -> 10-0 | V60: =INDEX($B$3:$AA$28,$E60,V$51)&"-"&INDEX($B$3:$AA$28,V$51,$E60) -> - | W60: =INDEX($B$3:$AA$28,$E60,W$51)&"-"&INDEX($B$3:$AA$28,W$51,$E60) -> - | X60: =INDEX($B$3:$AA$28,$E60,X$51)&"-"&INDEX($B$3:$AA$28,X$51,$E60) -> 13-0 | Y60: =INDEX($B$3:$AA$28,$E60,Y$51)&"-"&INDEX($B$3:$AA$28,Y$51,$E60) -> - | Z60: =INDEX($B$3:$AA$28,$E60,Z$51)&"-"&INDEX($B$3:$AA$28,Z$51,$E60) -> - | AA60: =INDEX($B$3:$AA$28,$E60,AA$51)&"-"&INDEX($B$3:$AA$28,AA$51,$E60) -> - | AB60: =INDEX($B$3:$AA$28,$E60,AB$51)&"-"&INDEX($B$3:$AA$28,AB$51,$E60) -> - | AC60: =INDEX($B$3:$AA$28,$E60,AC$51)&"-"&INDEX($B$3:$AA$28,AC$51,$E60) -> - | AD60: =INDEX($B$3:$AA$28,$E60,AD$51)&"-"&INDEX($B$3:$AA$28,AD$51,$E60) -> - | AE60: =INDEX($B$3:$AA$28,$E60,AE$51)&"-"&INDEX($B$3:$AA$28,AE$51,$E60) -> - | AF60: =INDEX($B$3:$AA$28,$E60,AF$51)&"-"&INDEX($B$3:$AA$28,AF$51,$E60) -> -
A61: 9 | B61: 9 | C61: 10 | D61: 14 | E61: 14 | F61: 414 | G61: =INDEX($B$3:$AA$28,$E61,G$51)&"-"&INDEX($B$3:$AA$28,G$51,$E61) -> - | H61: =INDEX($B$3:$AA$28,$E61,H$51)&"-"&INDEX($B$3:$AA$28,H$51,$E61) -> - | I61: =INDEX($B$3:$AA$28,$E61,I$51)&"-"&INDEX($B$3:$AA$28,I$51,$E61) -> - | J61: =INDEX($B$3:$AA$28,$E61,J$51)&"-"&INDEX($B$3:$AA$28,J$51,$E61) -> - | K61: =INDEX($B$3:$AA$28,$E61,K$51)&"-"&INDEX($B$3:$AA$28,K$51,$E61) -> - | L61: =INDEX($B$3:$AA$28,$E61,L$51)&"-"&INDEX($B$3:$AA$28,L$51,$E61) -> - | M61: =INDEX($B$3:$AA$28,$E61,M$51)&"-"&INDEX($B$3:$AA$28,M$51,$E61) -> - | N61: =INDEX($B$3:$AA$28,$E61,N$51)&"-"&INDEX($B$3:$AA$28,N$51,$E61) -> 2-5 | O61: =INDEX($B$3:$AA$28,$E61,O$51)&"-"&INDEX($B$3:$AA$28,O$51,$E61) -> - | P61: =INDEX($B$3:$AA$28,$E61,P$51)&"-"&INDEX($B$3:$AA$28,P$51,$E61) -> 4-1 | Q61: =INDEX($B$3:$AA$28,$E61,Q$51)&"-"&INDEX($B$3:$AA$28,Q$51,$E61) -> 4-4 | R61: =INDEX($B$3:$AA$28,$E61,R$51)&"-"&INDEX($B$3:$AA$28,R$51,$E61) -> - | S61: =INDEX($B$3:$AA$28,$E61,S$51)&"-"&INDEX($B$3:$AA$28,S$51,$E61) -> 7-2 | T61: =INDEX($B$3:$AA$28,$E61,T$51)&"-"&INDEX($B$3:$AA$28,T$51,$E61) -> 10-1 | U61: =INDEX($B$3:$AA$28,$E61,U$51)&"-"&INDEX($B$3:$AA$28,U$51,$E61) -> 8-1 | V61: =INDEX($B$3:$AA$28,$E61,V$51)&"-"&INDEX($B$3:$AA$28,V$51,$E61) -> 11-2 | W61: =INDEX($B$3:$AA$28,$E61,W$51)&"-"&INDEX($B$3:$AA$28,W$51,$E61) -> - | X61: =INDEX($B$3:$AA$28,$E61,X$51)&"-"&INDEX($B$3:$AA$28,X$51,$E61) -> 12-2 | Y61: =INDEX($B$3:$AA$28,$E61,Y$51)&"-"&INDEX($B$3:$AA$28,Y$51,$E61) -> - | Z61: =INDEX($B$3:$AA$28,$E61,Z$51)&"-"&INDEX($B$3:$AA$28,Z$51,$E61) -> - | AA61: =INDEX($B$3:$AA$28,$E61,AA$51)&"-"&INDEX($B$3:$AA$28,AA$51,$E61) -> - | AB61: =INDEX($B$3:$AA$28,$E61,AB$51)&"-"&INDEX($B$3:$AA$28,AB$51,$E61) -> - | AC61: =INDEX($B$3:$AA$28,$E61,AC$51)&"-"&INDEX($B$3:$AA$28,AC$51,$E61) -> - | AD61: =INDEX($B$3:$AA$28,$E61,AD$51)&"-"&INDEX($B$3:$AA$28,AD$51,$E61) -> 10-0 | AE61: =INDEX($B$3:$AA$28,$E61,AE$51)&"-"&INDEX($B$3:$AA$28,AE$51,$E61) -> - | AF61: =INDEX($B$3:$AA$28,$E61,AF$51)&"-"&INDEX($B$3:$AA$28,AF$51,$E61) -> -
A62: 10 | B62: 10 | C62: 8 | D62: 11 | E62: 11 | F62: 411 | G62: =INDEX($B$3:$AA$28,$E62,G$51)&"-"&INDEX($B$3:$AA$28,G$51,$E62) -> 1-8 | H62: =INDEX($B$3:$AA$28,$E62,H$51)&"-"&INDEX($B$3:$AA$28,H$51,$E62) -> 2-2 | I62: =INDEX($B$3:$AA$28,$E62,I$51)&"-"&INDEX($B$3:$AA$28,I$51,$E62) -> - | J62: =INDEX($B$3:$AA$28,$E62,J$51)&"-"&INDEX($B$3:$AA$28,J$51,$E62) -> - | K62: =INDEX($B$3:$AA$28,$E62,K$51)&"-"&INDEX($B$3:$AA$28,K$51,$E62) -> 0-5 | L62: =INDEX($B$3:$AA$28,$E62,L$51)&"-"&INDEX($B$3:$AA$28,L$51,$E62) -> 1-4 | M62: =INDEX($B$3:$AA$28,$E62,M$51)&"-"&INDEX($B$3:$AA$28,M$51,$E62) -> - | N62: =INDEX($B$3:$AA$28,$E62,N$51)&"-"&INDEX($B$3:$AA$28,N$51,$E62) -> - | O62: =INDEX($B$3:$AA$28,$E62,O$51)&"-"&INDEX($B$3:$AA$28,O$51,$E62) -> 1-4 | P62: =INDEX($B$3:$AA$28,$E62,P$51)&"-"&INDEX($B$3:$AA$28,P$51,$E62) -> - | Q62: =INDEX($B$3:$AA$28,$E62,Q$51)&"-"&INDEX($B$3:$AA$28,Q$51,$E62) -> 5-3 | R62: =INDEX($B$3:$AA$28,$E62,R$51)&"-"&INDEX($B$3:$AA$28,R$51,$E62) -> 4-1 | S62: =INDEX($B$3:$AA$28,$E62,S$51)&"-"&INDEX($B$3:$AA$28,S$51,$E62) -> 3-1 | T62: =INDEX($B$3:$AA$28,$E62,T$51)&"-"&INDEX($B$3:$AA$28,T$51,$E62) -> - | U62: =INDEX($B$3:$AA$28,$E62,U$51)&"-"&INDEX($B$3:$AA$28,U$51,$E62) -> 6-1 | V62: =INDEX($B$3:$AA$28,$E62,V$51)&"-"&INDEX($B$3:$AA$28,V$51,$E62) -> - | W62: =INDEX($B$3:$AA$28,$E62,W$51)&"-"&INDEX($B$3:$AA$28,W$51,$E62) -> - | X62: =INDEX($B$3:$AA$28,$E62,X$51)&"-"&INDEX($B$3:$AA$28,X$51,$E62) -> - | Y62: =INDEX($B$3:$AA$28,$E62,Y$51)&"-"&INDEX($B$3:$AA$28,Y$51,$E62) -> - | Z62: =INDEX($B$3:$AA$28,$E62,Z$51)&"-"&INDEX($B$3:$AA$28,Z$51,$E62) -> - | AA62: =INDEX($B$3:$AA$28,$E62,AA$51)&"-"&INDEX($B$3:$AA$28,AA$51,$E62) -> - | AB62: =INDEX($B$3:$AA$28,$E62,AB$51)&"-"&INDEX($B$3:$AA$28,AB$51,$E62) -> - | AC62: =INDEX($B$3:$AA$28,$E62,AC$51)&"-"&INDEX($B$3:$AA$28,AC$51,$E62) -> - | AD62: =INDEX($B$3:$AA$28,$E62,AD$51)&"-"&INDEX($B$3:$AA$28,AD$51,$E62) -> - | AE62: =INDEX($B$3:$AA$28,$E62,AE$51)&"-"&INDEX($B$3:$AA$28,AE$51,$E62) -> - | AF62: =INDEX($B$3:$AA$28,$E62,AF$51)&"-"&INDEX($B$3:$AA$28,AF$51,$E62) -> -
A63: 11 | B63: 11 | C63: 11 | D63: 13 | E63: 13 | F63: 413 | G63: =INDEX($B$3:$AA$28,$E63,G$51)&"-"&INDEX($B$3:$AA$28,G$51,$E63) -> - | H63: =INDEX($B$3:$AA$28,$E63,H$51)&"-"&INDEX($B$3:$AA$28,H$51,$E63) -> - | I63: =INDEX($B$3:$AA$28,$E63,I$51)&"-"&INDEX($B$3:$AA$28,I$51,$E63) -> - | J63: =INDEX($B$3:$AA$28,$E63,J$51)&"-"&INDEX($B$3:$AA$28,J$51,$E63) -> 1-7 | K63: =INDEX($B$3:$AA$28,$E63,K$51)&"-"&INDEX($B$3:$AA$28,K$51,$E63) -> 3-4 | L63: =INDEX($B$3:$AA$28,$E63,L$51)&"-"&INDEX($B$3:$AA$28,L$51,$E63) -> - | M63: =INDEX($B$3:$AA$28,$E63,M$51)&"-"&INDEX($B$3:$AA$28,M$51,$E63) -> 0-2 | N63: =INDEX($B$3:$AA$28,$E63,N$51)&"-"&INDEX($B$3:$AA$28,N$51,$E63) -> 1-7 | O63: =INDEX($B$3:$AA$28,$E63,O$51)&"-"&INDEX($B$3:$AA$28,O$51,$E63) -> 4-4 | P63: =INDEX($B$3:$AA$28,$E63,P$51)&"-"&INDEX($B$3:$AA$28,P$51,$E63) -> 3-5 | Q63: =INDEX($B$3:$AA$28,$E63,Q$51)&"-"&INDEX($B$3:$AA$28,Q$51,$E63) -> - | R63: =INDEX($B$3:$AA$28,$E63,R$51)&"-"&INDEX($B$3:$AA$28,R$51,$E63) -> 7-3 | S63: =INDEX($B$3:$AA$28,$E63,S$51)&"-"&INDEX($B$3:$AA$28,S$51,$E63) -> 8-0 | T63: =INDEX($B$3:$AA$28,$E63,T$51)&"-"&INDEX($B$3:$AA$28,T$51,$E63) -> 8-2 | U63: =INDEX($B$3:$AA$28,$E63,U$51)&"-"&INDEX($B$3:$AA$28,U$51,$E63) -> - | V63: =INDEX($B$3:$AA$28,$E63,V$51)&"-"&INDEX($B$3:$AA$28,V$51,$E63) -> 6-5 | W63: =INDEX($B$3:$AA$28,$E63,W$51)&"-"&INDEX($B$3:$AA$28,W$51,$E63) -> - | X63: =INDEX($B$3:$AA$28,$E63,X$51)&"-"&INDEX($B$3:$AA$28,X$51,$E63) -> - | Y63: =INDEX($B$3:$AA$28,$E63,Y$51)&"-"&INDEX($B$3:$AA$28,Y$51,$E63) -> - | Z63: =INDEX($B$3:$AA$28,$E63,Z$51)&"-"&INDEX($B$3:$AA$28,Z$51,$E63) -> - | AA63: =INDEX($B$3:$AA$28,$E63,AA$51)&"-"&INDEX($B$3:$AA$28,AA$51,$E63) -> - | AB63: =INDEX($B$3:$AA$28,$E63,AB$51)&"-"&INDEX($B$3:$AA$28,AB$51,$E63) -> - | AC63: =INDEX($B$3:$AA$28,$E63,AC$51)&"-"&INDEX($B$3:$AA$28,AC$51,$E63) -> - | AD63: =INDEX($B$3:$AA$28,$E63,AD$51)&"-"&INDEX($B$3:$AA$28,AD$51,$E63) -> - | AE63: =INDEX($B$3:$AA$28,$E63,AE$51)&"-"&INDEX($B$3:$AA$28,AE$51,$E63) -> - | AF63: =INDEX($B$3:$AA$28,$E63,AF$51)&"-"&INDEX($B$3:$AA$28,AF$51,$E63) -> -
A64: 12 | B64: 12 | C64: 12 | D64: 7 | E64: 7 | F64: 407 | G64: =INDEX($B$3:$AA$28,$E64,G$51)&"-"&INDEX($B$3:$AA$28,G$51,$E64) -> 1-11 | H64: =INDEX($B$3:$AA$28,$E64,H$51)&"-"&INDEX($B$3:$AA$28,H$51,$E64) -> 0-8 | I64: =INDEX($B$3:$AA$28,$E64,I$51)&"-"&INDEX($B$3:$AA$28,I$51,$E64) -> 3-6 | J64: =INDEX($B$3:$AA$28,$E64,J$51)&"-"&INDEX($B$3:$AA$28,J$51,$E64) -> - | K64: =INDEX($B$3:$AA$28,$E64,K$51)&"-"&INDEX($B$3:$AA$28,K$51,$E64) -> 2-5 | L64: =INDEX($B$3:$AA$28,$E64,L$51)&"-"&INDEX($B$3:$AA$28,L$51,$E64) -> - | M64: =INDEX($B$3:$AA$28,$E64,M$51)&"-"&INDEX($B$3:$AA$28,M$51,$E64) -> 0-4 | N64: =INDEX($B$3:$AA$28,$E64,N$51)&"-"&INDEX($B$3:$AA$28,N$51,$E64) -> - | O64: =INDEX($B$3:$AA$28,$E64,O$51)&"-"&INDEX($B$3:$AA$28,O$51,$E64) -> - | P64: =INDEX($B$3:$AA$28,$E64,P$51)&"-"&INDEX($B$3:$AA$28,P$51,$E64) -> 1-4 | Q64: =INDEX($B$3:$AA$28,$E64,Q$51)&"-"&INDEX($B$3:$AA$28,Q$51,$E64) -> 3-7 | R64: =INDEX($B$3:$AA$28,$E64,R$51)&"-"&INDEX($B$3:$AA$28,R$51,$E64) -> - | S64: =INDEX($B$3:$AA$28,$E64,S$51)&"-"&INDEX($B$3:$AA$28,S$51,$E64) -> 7-1 | T64: =INDEX($B$3:$AA$28,$E64,T$51)&"-"&INDEX($B$3:$AA$28,T$51,$E64) -> - | U64: =INDEX($B$3:$AA$28,$E64,U$51)&"-"&INDEX($B$3:$AA$28,U$51,$E64) -> 3-1 | V64: =INDEX($B$3:$AA$28,$E64,V$51)&"-"&INDEX($B$3:$AA$28,V$51,$E64) -> - | W64: =INDEX($B$3:$AA$28,$E64,W$51)&"-"&INDEX($B$3:$AA$28,W$51,$E64) -> - | X64: =INDEX($B$3:$AA$28,$E64,X$51)&"-"&INDEX($B$3:$AA$28,X$51,$E64) -> - | Y64: =INDEX($B$3:$AA$28,$E64,Y$51)&"-"&INDEX($B$3:$AA$28,Y$51,$E64) -> - | Z64: =INDEX($B$3:$AA$28,$E64,Z$51)&"-"&INDEX($B$3:$AA$28,Z$51,$E64) -> - | AA64: =INDEX($B$3:$AA$28,$E64,AA$51)&"-"&INDEX($B$3:$AA$28,AA$51,$E64) -> - | AB64: =INDEX($B$3:$AA$28,$E64,AB$51)&"-"&INDEX($B$3:$AA$28,AB$51,$E64) -> - | AC64: =INDEX($B$3:$AA$28,$E64,AC$51)&"-"&INDEX($B$3:$AA$28,AC$51,$E64) -> - | AD64: =INDEX($B$3:$AA$28,$E64,AD$51)&"-"&INDEX($B$3:$AA$28,AD$51,$E64) -> - | AE64: =INDEX($B$3:$AA$28,$E64,AE$51)&"-"&INDEX($B$3:$AA$28,AE$51,$E64) -> - | AF64: =INDEX($B$3:$AA$28,$E64,AF$51)&"-"&INDEX($B$3:$AA$28,AF$51,$E64) -> -
A65: 13 | B65: 15 | C65: 13 | D65: 10 | E65: 10 | F65: 410 | G65: =INDEX($B$3:$AA$28,$E65,G$51)&"-"&INDEX($B$3:$AA$28,G$51,$E65) -> - | H65: =INDEX($B$3:$AA$28,$E65,H$51)&"-"&INDEX($B$3:$AA$28,H$51,$E65) -> - | I65: =INDEX($B$3:$AA$28,$E65,I$51)&"-"&INDEX($B$3:$AA$28,I$51,$E65) -> - | J65: =INDEX($B$3:$AA$28,$E65,J$51)&"-"&INDEX($B$3:$AA$28,J$51,$E65) -> 1-9 | K65: =INDEX($B$3:$AA$28,$E65,K$51)&"-"&INDEX($B$3:$AA$28,K$51,$E65) -> 3-5 | L65: =INDEX($B$3:$AA$28,$E65,L$51)&"-"&INDEX($B$3:$AA$28,L$51,$E65) -> 1-4 | M65: =INDEX($B$3:$AA$28,$E65,M$51)&"-"&INDEX($B$3:$AA$28,M$51,$E65) -> 1-4 | N65: =INDEX($B$3:$AA$28,$E65,N$51)&"-"&INDEX($B$3:$AA$28,N$51,$E65) -> 0-10 | O65: =INDEX($B$3:$AA$28,$E65,O$51)&"-"&INDEX($B$3:$AA$28,O$51,$E65) -> 2-7 | P65: =INDEX($B$3:$AA$28,$E65,P$51)&"-"&INDEX($B$3:$AA$28,P$51,$E65) -> 1-3 | Q65: =INDEX($B$3:$AA$28,$E65,Q$51)&"-"&INDEX($B$3:$AA$28,Q$51,$E65) -> 0-8 | R65: =INDEX($B$3:$AA$28,$E65,R$51)&"-"&INDEX($B$3:$AA$28,R$51,$E65) -> 1-7 | S65: =INDEX($B$3:$AA$28,$E65,S$51)&"-"&INDEX($B$3:$AA$28,S$51,$E65) -> - | T65: =INDEX($B$3:$AA$28,$E65,T$51)&"-"&INDEX($B$3:$AA$28,T$51,$E65) -> 3-5 | U65: =INDEX($B$3:$AA$28,$E65,U$51)&"-"&INDEX($B$3:$AA$28,U$51,$E65) -> - | V65: =INDEX($B$3:$AA$28,$E65,V$51)&"-"&INDEX($B$3:$AA$28,V$51,$E65) -> - | W65: =INDEX($B$3:$AA$28,$E65,W$51)&"-"&INDEX($B$3:$AA$28,W$51,$E65) -> 5-1 | X65: =INDEX($B$3:$AA$28,$E65,X$51)&"-"&INDEX($B$3:$AA$28,X$51,$E65) -> - | Y65: =INDEX($B$3:$AA$28,$E65,Y$51)&"-"&INDEX($B$3:$AA$28,Y$51,$E65) -> - | Z65: =INDEX($B$3:$AA$28,$E65,Z$51)&"-"&INDEX($B$3:$AA$28,Z$51,$E65) -> - | AA65: =INDEX($B$3:$AA$28,$E65,AA$51)&"-"&INDEX($B$3:$AA$28,AA$51,$E65) -> - | AB65: =INDEX($B$3:$AA$28,$E65,AB$51)&"-"&INDEX($B$3:$AA$28,AB$51,$E65) -> - | AC65: =INDEX($B$3:$AA$28,$E65,AC$51)&"-"&INDEX($B$3:$AA$28,AC$51,$E65) -> - | AD65: =INDEX($B$3:$AA$28,$E65,AD$51)&"-"&INDEX($B$3:$AA$28,AD$51,$E65) -> - | AE65: =INDEX($B$3:$AA$28,$E65,AE$51)&"-"&INDEX($B$3:$AA$28,AE$51,$E65) -> - | AF65: =INDEX($B$3:$AA$28,$E65,AF$51)&"-"&INDEX($B$3:$AA$28,AF$51,$E65) -> -
A66: 14 | B66: 13 | C66: 14 | D66: 15 | E66: 15 | F66: 415 | G66: =INDEX($B$3:$AA$28,$E66,G$51)&"-"&INDEX($B$3:$AA$28,G$51,$E66) -> - | H66: =INDEX($B$3:$AA$28,$E66,H$51)&"-"&INDEX($B$3:$AA$28,H$51,$E66) -> - | I66: =INDEX($B$3:$AA$28,$E66,I$51)&"-"&INDEX($B$3:$AA$28,I$51,$E66) -> - | J66: =INDEX($B$3:$AA$28,$E66,J$51)&"-"&INDEX($B$3:$AA$28,J$51,$E66) -> - | K66: =INDEX($B$3:$AA$28,$E66,K$51)&"-"&INDEX($B$3:$AA$28,K$51,$E66) -> - | L66: =INDEX($B$3:$AA$28,$E66,L$51)&"-"&INDEX($B$3:$AA$28,L$51,$E66) -> - | M66: =INDEX($B$3:$AA$28,$E66,M$51)&"-"&INDEX($B$3:$AA$28,M$51,$E66) -> - | N66: =INDEX($B$3:$AA$28,$E66,N$51)&"-"&INDEX($B$3:$AA$28,N$51,$E66) -> - | O66: =INDEX($B$3:$AA$28,$E66,O$51)&"-"&INDEX($B$3:$AA$28,O$51,$E66) -> 1-10 | P66: =INDEX($B$3:$AA$28,$E66,P$51)&"-"&INDEX($B$3:$AA$28,P$51,$E66) -> - | Q66: =INDEX($B$3:$AA$28,$E66,Q$51)&"-"&INDEX($B$3:$AA$28,Q$51,$E66) -> 2-8 | R66: =INDEX($B$3:$AA$28,$E66,R$51)&"-"&INDEX($B$3:$AA$28,R$51,$E66) -> - | S66: =INDEX($B$3:$AA$28,$E66,S$51)&"-"&INDEX($B$3:$AA$28,S$51,$E66) -> 5-3 | T66: =INDEX($B$3:$AA$28,$E66,T$51)&"-"&INDEX($B$3:$AA$28,T$51,$E66) -> - | U66: =INDEX($B$3:$AA$28,$E66,U$51)&"-"&INDEX($B$3:$AA$28,U$51,$E66) -> 4-6 | V66: =INDEX($B$3:$AA$28,$E66,V$51)&"-"&INDEX($B$3:$AA$28,V$51,$E66) -> 7-5 | W66: =INDEX($B$3:$AA$28,$E66,W$51)&"-"&INDEX($B$3:$AA$28,W$51,$E66) -> - | X66: =INDEX($B$3:$AA$28,$E66,X$51)&"-"&INDEX($B$3:$AA$28,X$51,$E66) -> 8-0 | Y66: =INDEX($B$3:$AA$28,$E66,Y$51)&"-"&INDEX($B$3:$AA$28,Y$51,$E66) -> - | Z66: =INDEX($B$3:$AA$28,$E66,Z$51)&"-"&INDEX($B$3:$AA$28,Z$51,$E66) -> 5-0 | AA66: =INDEX($B$3:$AA$28,$E66,AA$51)&"-"&INDEX($B$3:$AA$28,AA$51,$E66) -> - | AB66: =INDEX($B$3:$AA$28,$E66,AB$51)&"-"&INDEX($B$3:$AA$28,AB$51,$E66) -> - | AC66: =INDEX($B$3:$AA$28,$E66,AC$51)&"-"&INDEX($B$3:$AA$28,AC$51,$E66) -> 12-2 | AD66: =INDEX($B$3:$AA$28,$E66,AD$51)&"-"&INDEX($B$3:$AA$28,AD$51,$E66) -> - | AE66: =INDEX($B$3:$AA$28,$E66,AE$51)&"-"&INDEX($B$3:$AA$28,AE$51,$E66) -> - | AF66: =INDEX($B$3:$AA$28,$E66,AF$51)&"-"&INDEX($B$3:$AA$28,AF$51,$E66) -> -
